Workbook

Sheet Daten
A1: GDP | X1: Inflation | AV1: Unemployment Rate | BT1: Industrial Production | CS1: ew:uah09005 | CV1: ew:rol09005 | CY1: Serbia
A2: Croatia | C2: Bulgaria | E2: Czech Republic | G2: Hungary | I2: Romania | K2: Russia Real GDP | M2: Serbia | O2: Slovenia | Q2: Ukraine | S2: Slovakia | U2: Poland | X2: Croatia | Z2: Bulgaria | AB2: Czech Republic | AD2: Hungary | AF2: Romania | AH2: Russia | AJ2: Serbia Harmonized CPI | AL2: Slovenia | AN2: Ukraine | AP2: Slovakia | AR2: Poland | AV2: Croatia | AX2: Bulgaria | AZ2: Czech Republic | BB2: Hungary | BD2: Romania | BF2: Russia | BH2: Serbia | BJ2: Slovenia | BL2: Ukraine | BN2: Slovakia | BP2: Poland | BT2: Croatia | BV2: Bulgaria | BX2: Czech Republic | BZ2: Hungary | CB2: Romania | CD2: Russia Industrial Production | CF2: Serbia | CH2: Slovenia Industrial Production | CJ2: Ukraine Industrial Production | CL2: Slovakia Industrial Orders | CN2: Poland Sold Industrial Output | CS2: Ukraine, Unemployment, Registered rate | CV2: Romania, Unemployment, Rate, Overall, Registered | CY2: Unemployment
A3: CQGRCOYY Index | C3: BUGSGDPQ Index | E3: CZGDPSAQ Index | G3: HUGSTQ Index | I3: ROGDPQOQ Index | K3: RUDPRYOY Index | M3: SEGDYTOT Index | O3: SVGDCYOY Index | Q3: UADPRYOY Index | S3: SKGDLYOY Index | U3: POGDYOY Index | X3: CQPCIYOY Index | Z3: BUCPIYOY Index | AB3: CZCPYOY Index | AD3: HUCPIYY Index | AF3: ROCOPYOY Index | AH3: RUCPIYOY Index | AJ3: SEHCYY Index | AL3: SVCPYOY Index | AN3: UACPTYOY Index | AP3: SLCPLYOY Index | AR3: POCPIYOY Index | AV3: CQUER Index | AX3: BUUERATE Index | AZ3: CZJLR Index | BB3: HUEMUNR Index | BF3: RUUER Index | BJ3: SVUER Index | BN3: SLUER Index | BP3: POUER Index | BT3: CQIPTYOY Index | BV3: BUIPYOY Index | BX3: CZIPITYY Index | BZ3: HUIPIYOY Index | CB3: ROIOUYOY Index | CD3: RUIPRNYY Index | CF3: SEIPYY Index | CH3: SVIPTYOY Index | CJ3: UAIPYY Index | CL3: SLIOINYY Index | CN3: POISCYOY Index | CY3: Rate
A4: Date | B4: PX_LAST | C4: Date | D4: PX_LAST | E4: Date | F4: PX_LAST | G4: Date | H4: PX_LAST | I4: Date | J4: PX_LAST | K4: Date | L4: PX_LAST | M4: Date | N4: PX_LAST | O4: Date | P4: PX_LAST | Q4: Date | R4: PX_LAST | S4: Date | T4: PX_LAST | U4: Date | V4: PX_LAST | X4: Date | Y4: PX_LAST | Z4: Date | AA4: PX_LAST | AB4: Date | AC4: PX_LAST | AD4: Date | AE4: PX_LAST | AF4: Date | AG4: PX_LAST | AH4: Date | AI4: PX_LAST | AJ4: Date | AK4: PX_LAST | AL4: Date | AM4: PX_LAST | AN4: Date | AO4: PX_LAST | AP4: Date | AQ4: PX_LAST | AR4: Date | AS4: PX_LAST | AV4: Date | AW4: PX_LAST | AX4: Date | AY4: PX_LAST | AZ4: Date | BA4: PX_LAST | BB4: Date | BC4: PX_LAST | BF4: Date | BG4: PX_LAST | BJ4: Date | BK4: PX_LAST | BN4: Date | BO4: PX_LAST | BP4: Date | BQ4: PX_LAST | BT4: Date | BU4: PX_LAST | BV4: Date | BW4: PX_LAST | BX4: Date | BY4: PX_LAST | BZ4: Date | CA4: PX_LAST | CB4: Date | CC4: PX_LAST | CD4: Date | CE4: PX_LAST | CF4: Date | CG4: PX_LAST | CH4: Date | CI4: PX_LAST | CJ4: Date | CK4: PX_LAST | CL4: Date | CM4: PX_LAST | CN4: Date | CO4: PX_LAST
A5: =_xll.BDH($A$3,$B$4:$B$4,"11.03.2008","11.04.2011","Dir=V","Dts=S","Sort=A","Quote=C","QtTyp=Y","Days=T","Per=cd","DtFmt=D","UseDPDF=Y","cols=2;rows=12") ->  | B5: 4.29 | C5: =_xll.BDH($C$3,$D$4,"11.03.2008","11.04.2011","Dir=V","Dts=S","Sort=A","Quote=C","QtTyp=Y","Days=T","Per=cd","DtFmt=D","UseDPDF=Y","cols=2;rows=12") ->  | D5: 1.54 | E5: =_xll.BDH($E$3,$F$4,"11.03.2008","11.04.2011","Dir=V","Dts=S","Sort=A","Quote=C","QtTyp=Y","Days=T","Per=cd","DtFmt=D","UseDPDF=Y","cols=2;rows=12") ->  | F5: 0.3 | G5: =_xll.BDH($G$3,$H$4,"11.03.2008","11.04.2011","Dir=V","Dts=S","Sort=A","Quote=C","QtTyp=Y","Days=T","Per=cd","DtFmt=D","UseDPDF=Y","cols=2;rows=12") ->  | H5: 1.2 | I5: =_xll.BDH($I$3,$J$4,"11.03.2008","11.04.2011","Dir=V","Dts=S","Sort=A","Quote=C","QtTyp=Y","Days=T","Per=cd","DtFmt=D","UseDPDF=Y","cols=2;rows=12") ->  | J5: 8.55 | K5: =_xll.BDH($K$3,$L$4,"11.03.2008","11.04.2011","Dir=V","Dts=S","Sort=A","Quote=C","QtTyp=Y","Days=T","Per=cd","DtFmt=D","UseDPDF=Y","cols=2;rows=12") ->  | L5: 9.1 | M5: =_xll.BDH($M$3,$N$4,"11.03.2008","11.04.2011","Dir=V","Dts=S","Sort=A","Quote=C","QtTyp=Y","Days=T","Per=cd","DtFmt=D","UseDPDF=Y","cols=2;rows=12") ->  | N5: 8.9 | O5: =_xll.BDH($O$3,$P$4,"11.03.2008","11.04.2011","Dir=V","Dts=S","Sort=A","Quote=C","QtTyp=Y","Days=T","Per=cd","DtFmt=D","UseDPDF=Y","cols=2;rows=12") ->  | P5: 5.7 | Q5: =_xll.BDH($Q$3,$R$4,"11.03.2008","11.04.2011","Dir=V","Dts=S","Sort=A","Quote=C","QtTyp=Y","Days=T","Per=cd","DtFmt=D","UseDPDF=Y","cols=2;rows=12") ->  | R5: 8.5 | S5: =_xll.BDH($S$3,$T$4,"11.03.2008","11.04.2011","Dir=V","Dts=S","Sort=A","Quote=C","QtTyp=Y","Days=T","Per=cd","DtFmt=D","UseDPDF=Y","cols=2;rows=12") ->  | T5: 9.7 | U5: =_xll.BDH($U$3,$V$4,"11.03.2008","11.04.2011","Dir=V","Dts=S","Sort=A","Quote=C","QtTyp=Y","Days=T","Per=cd","DtFmt=D","UseDPDF=Y","cols=2;rows=12") ->  | V5: 6.3 | X5: =_xll.BDH($X$3,$Y$4,"11.03.2008","11.04.2011","Dir=V","Dts=S","Sort=A","Quote=C","QtTyp=Y","Days=T","Per=cd","DtFmt=D","UseDPDF=Y","cols=2;rows=36") ->  | Y5: 5.7 | Z5: =_xll.BDH($Z$3,$AA$4,"11.03.2008","11.04.2011","Dir=V","Dts=S","Sort=A","Quote=C","QtTyp=Y","Days=T","Per=cd","DtFmt=D","UseDPDF=Y","cols=2;rows=36") ->  | AA5: 14.2 | AB5: =_xll.BDH($AB$3,$AC$4,"11.03.2008","11.04.2011","Dir=V","Dts=S","Sort=A","Quote=C","QtTyp=Y","Days=T","Per=cd","DtFmt=D","UseDPDF=Y","cols=2;rows=37") ->  | AC5: 7.1 | AD5: =_xll.BDH($AD$3,$AE$4,"11.03.2008","11.04.2011","Dir=V","Dts=S","Sort=A","Quote=C","QtTyp=Y","Days=T","Per=cd","DtFmt=D","UseDPDF=Y","cols=2;rows=36") ->  | AE5: 6.7 | AF5: =_xll.BDH($AF$3,$AG$4,"11.03.2008","11.04.2011","Dir=V","Dts=S","Sort=A","Quote=C","QtTyp=Y","Days=T","Per=cd","DtFmt=D","UseDPDF=Y","cols=2;rows=37") ->  | AG5: 8.63 | AH5: =_xll.BDH($AH$3,$AI$4,"11.03.2008","11.04.2011","Dir=V","Dts=S","Sort=A","Quote=C","QtTyp=Y","Days=T","Per=cd","DtFmt=D","UseDPDF=Y","cols=2;rows=37") ->  | AI5: 13.3 | AJ5: =_xll.BDH($AJ$3,$AK$4,"11.03.2008","11.04.2011","Dir=V","Dts=S","Sort=A","Quote=C","QtTyp=Y","Days=T","Per=cd","DtFmt=D","UseDPDF=Y","cols=2;rows=36") ->  | AK5: 13.6 | AL5: =_xll.BDH($AL$3,$AM$4,"11.03.2008","11.04.2011","Dir=V","Dts=S","Sort=A","Quote=C","QtTyp=Y","Days=T","Per=cd","DtFmt=D","UseDPDF=Y","cols=2;rows=37") ->  | AM5: 6.9 | AN5: =_xll.BDH($AN$3,$AO$4,"11.03.2008","11.04.2011","Dir=V","Dts=S","Sort=A","Quote=C","QtTyp=Y","Days=T","Per=cd","DtFmt=D","UseDPDF=Y","cols=2;rows=37") ->  | AO5: 22.5 | AP5: =_xll.BDH($AP$3,$AQ$4,"11.03.2008","11.04.2011","Dir=V","Dts=S","Sort=A","Quote=C","QtTyp=Y","Days=T","Per=cd","DtFmt=D","UseDPDF=Y","cols=2;rows=36") ->  | AQ5: 4.2 | AR5: =_xll.BDH($AR$3,$AS$4,"11.03.2008","11.04.2011","Dir=V","Dts=S","Sort=A","Quote=C","QtTyp=Y","Days=T","Per=cd","DtFmt=D","UseDPDF=Y","cols=2;rows=36") ->  | AS5: 4.1 | AV5: =_xll.BDH($AV$3,$AW$4,"11.03.2008","11.04.2011","Dir=V","Dts=S","Sort=A","Quote=C","QtTyp=Y","Days=T","Per=cd","DtFmt=D","UseDPDF=Y","cols=2;rows=36") ->  | AW5: 14.5 | AX5: =_xll.BDH($AX$3,$AY$4,"11.03.2008","11.04.2011","Dir=V","Dts=S","Sort=A","Quote=C","QtTyp=Y","Days=T","Per=cd","DtFmt=D","UseDPDF=Y","cols=2;rows=35") ->  | AY5: 6.8 | AZ5: =_xll.BDH($AZ$3,$BA$4,"11.03.2008","11.04.2011","Dir=V","Dts=S","Sort=A","Quote=C","QtTyp=Y","Days=T","Per=cd","DtFmt=D","UseDPDF=Y","cols=2;rows=37") ->  | BA5: 5.6 | BB5: =_xll.BDH($BB$3,$BC$4,"11.03.2008","11.04.2011","Dir=V","Dts=S","Sort=A","Quote=C","QtTyp=Y","Days=T","Per=cd","DtFmt=D","UseDPDF=Y","cols=2;rows=36") ->  | BC5: 8 | BF5: =_xll.BDH($BF$3,$BG$4,"11.03.2008","11.04.2011","Dir=V","Dts=S","Sort=A","Quote=C","QtTyp=Y","Days=T","Per=cd","DtFmt=D","UseDPDF=Y","cols=2;rows=36") ->  | BG5: 6.5 | BJ5: =_xll.BDH($BJ$3,$BK$4,"11.03.2008","11.04.2011","Dir=V","Dts=S","Sort=A","Quote=C","QtTyp=Y","Days=T","Per=cd","DtFmt=D","UseDPDF=Y","cols=2;rows=35") ->  | BK5: 6.9 | BN5: =_xll.BDH($BN$3,$BO$4,"11.03.2008","11.04.2011","Dir=V","Dts=S","Sort=A","Quote=C","QtTyp=Y","Days=T","Per=cd","DtFmt=D","UseDPDF=Y","cols=2;rows=36") ->  | BO5: 7.6 | BP5: =_xll.BDH($BP$3,$BQ$4,"11.03.2008","11.04.2011","Dir=V","Dts=S","Sort=A","Quote=C","QtTyp=Y","Days=T","Per=cd","DtFmt=D","UseDPDF=Y","cols=2;rows=36") ->  | BQ5: 10.9 | BT5: =_xll.BDH($BT$3,$BU$4,"11.03.2008","11.04.2011","Dir=V","Dts=S","Sort=A","Quote=C","QtTyp=Y","Days=T","Per=cd","DtFmt=D","UseDPDF=Y","cols=2;rows=36") ->  | BU5: 2.2 | BV5: =_xll.BDH($BV$3,$BW$4,"11.03.2008","11.04.2011","Dir=V","Dts=S","Sort=A","Quote=C","QtTyp=Y","Days=T","Per=cd","DtFmt=D","UseDPDF=Y","cols=2;rows=36") ->  | BW5: -1.1 | BX5: =_xll.BDH($BX$3,$BY$4,"11.03.2008","11.04.2011","Dir=V","Dts=S","Sort=A","Quote=C","QtTyp=Y","Days=T","Per=cd","DtFmt=D","UseDPDF=Y","cols=2;rows=36") ->  | BY5: -4.6 | BZ5: =_xll.BDH($BZ$3,$CA$4,"11.03.2008","11.04.2011","Dir=V","Dts=S","Sort=A","Quote=C","QtTyp=Y","Days=T","Per=cd","DtFmt=D","UseDPDF=Y","cols=2;rows=36") ->  | CA5: 4.8 | CB5: =_xll.BDH($CB$3,$CC$4,"11.03.2008","11.04.2011","Dir=V","Dts=S","Sort=A","Quote=C","QtTyp=Y","Days=T","Per=cd","DtFmt=D","UseDPDF=Y","cols=2;rows=26") ->  | CC5: -12.04 | CD5: =_xll.BDH($CD$3,$CE$4,"11.03.2008","11.04.2011","Dir=V","Dts=S","Sort=A","Quote=C","QtTyp=Y","Days=T","Per=cd","DtFmt=D","UseDPDF=Y","cols=2;rows=36") ->  | CE5: 3.5 | CF5: =_xll.BDH($CF$3,$CG$4,"11.03.2008","11.04.2011","Dir=V","Dts=S","Sort=A","Quote=C","QtTyp=Y","Days=T","Per=cd","DtFmt=D","UseDPDF=Y","cols=2;rows=36") ->  | CG5: 2.6 | CH5: =_xll.BDH($CH$3,$CI$4,"11.03.2008","11.04.2011","Dir=V","Dts=S","Sort=A","Quote=C","QtTyp=Y","Days=T","Per=cd","DtFmt=D","UseDPDF=Y","cols=2;rows=36") ->  | CI5: 1 | CJ5: =_xll.BDH($CJ$3,$CK$4,"11.03.2008","11.04.2011","Dir=V","Dts=S","Sort=A","Quote=C","QtTyp=Y","Days=T","Per=cd","DtFmt=D","UseDPDF=Y","cols=2;rows=36") ->  | CK5: 5.8 | CL5: =_xll.BDH($CL$3,$CM$4,"11.03.2008","11.04.2011","Dir=V","Dts=S","Sort=A","Quote=C","QtTyp=Y","Days=T","Per=cd","DtFmt=D","UseDPDF=Y","cols=2;rows=25") ->  | CM5: -36.9 | CN5: =_xll.BDH($CN$3,$CO$4,"11.03.2008","11.04.2011","Dir=V","Dts=S","Sort=A","Quote=C","QtTyp=Y","Days=T","Per=cd","DtFmt=D","UseDPDF=Y","cols=2;rows=36") ->  | CO5: 1
A6: 2008-06-30 | B6: 0 | C6: 2008-06-30 | D6: 1.29 | E6: 2008-06-30 | F6: 0.7 | G6: 2008-06-30 | H6: -0.2 | I6: 2008-06-30 | J6: 9.64 | K6: 2008-06-30 | L6: 7.7 | M6: 2008-06-30 | N6: 6.3 | O6: 2008-06-30 | P6: 5.5 | Q6: 2008-06-30 | R6: 6.2 | S6: 2008-06-30 | T6: 7.3 | U6: 2008-06-30 | V6: 6.1 | X6: 2008-04-30 | Y6: 5.7 | Z6: 2008-04-30 | AA6: 14.6 | AB6: 2008-04-30 | AC6: 6.8 | AD6: 2008-04-30 | AE6: 6.6 | AF6: 2008-04-30 | AG6: 8.62 | AH6: 2008-04-30 | AI6: 14.3 | AJ6: 2008-04-30 | AK6: 14.6 | AL6: 2008-04-30 | AM6: 6.5 | AN6: 2008-04-30 | AO6: 24.4 | AP6: 2008-04-30 | AQ6: 4.3 | AR6: 2008-04-30 | AS6: 4 | AV6: 2008-04-30 | AW6: 13.9 | AX6: 2008-04-30 | AY6: 6.5 | AZ6: 2008-04-30 | BA6: 5.2 | BB6: 2008-04-30 | BC6: 7.7 | BF6: 2008-04-30 | BG6: 6 | BJ6: 2008-04-30 | BK6: 6.6 | BN6: 2008-04-30 | BO6: 7.4 | BP6: 2008-04-30 | BQ6: 10.3 | BT6: 2008-04-30 | BU6: 3.7 | BV6: 2008-04-30 | BW6: 8.9 | BX6: 2008-04-30 | BY6: 10.1 | BZ6: 2008-04-30 | CA6: 6.3 | CB6: 2009-02-28 | CC6: -12 | CD6: 2008-04-30 | CE6: 5.7 | CF6: 2008-04-30 | CG6: 3.1 | CH6: 2008-04-30 | CI6: 6.9 | CJ6: 2008-04-30 | CK6: 8.3 | CL6: 2009-02-28 | CM6: -36.8 | CN6: 2008-04-30 | CO6: 15.1
A7: 2008-09-30 | B7: 1.6 | C7: 2008-09-30 | D7: 1.37 | E7: 2008-09-30 | F7: 0.2 | G7: 2008-09-30 | H7: -1 | I7: 2008-09-30 | J7: 9.44 | K7: 2008-09-30 | L7: 6.4 | M7: 2008-09-30 | N7: 4.6 | O7: 2008-09-30 | P7: 3.9 | Q7: 2008-09-30 | R7: 4.3 | S7: 2008-09-30 | T7: 6.8 | U7: 2008-09-30 | V7: 5.2 | X7: 2008-05-31 | Y7: 6.4 | Z7: 2008-05-31 | AA7: 15 | AB7: 2008-05-31 | AC7: 6.8 | AD7: 2008-05-31 | AE7: 7 | AF7: 2008-05-31 | AG7: 8.46 | AH7: 2008-05-31 | AI7: 15.1 | AJ7: 2008-05-31 | AK7: 14.5 | AL7: 2008-05-31 | AM7: 6.4 | AN7: 2008-05-31 | AO7: 25.8 | AP7: 2008-05-31 | AQ7: 4.6 | AR7: 2008-05-31 | AS7: 4.4 | AV7: 2008-05-31 | AW7: 13.2 | AX7: 2008-05-31 | AY7: 6.2 | AZ7: 2008-05-31 | BA7: 5 | BB7: 2008-05-31 | BC7: 7.7 | BF7: 2008-05-31 | BG7: 5.4 | BJ7: 2008-05-31 | BK7: 6.5 | BN7: 2008-05-31 | BO7: 7.4 | BP7: 2008-05-31 | BQ7: 9.8 | BT7: 2008-05-31 | BU7: -1.9 | BV7: 2008-05-31 | BW7: 6.6 | BX7: 2008-05-31 | BY7: -0.1 | BZ7: 2008-05-31 | CA7: 6.5 | CB7: 2009-03-31 | CC7: -12.1 | CD7: 2008-05-31 | CE7: 4.5 | CF7: 2008-05-31 | CG7: 3.8 | CH7: 2008-05-31 | CI7: 1.2 | CJ7: 2008-05-31 | CK7: 8.3 | CL7: 2009-03-31 | CM7: -27.4 | CN7: 2008-05-31 | CO7: 2.4
A8: 2008-12-31 | B8: 0.2 | C8: 2008-12-31 | D8: 0.55 | E8: 2008-12-31 | F8: -0.9 | G8: 2008-12-31 | H8: -2.1 | I8: 2008-12-31 | J8: 3.13 | K8: 2008-12-31 | L8: -1.1 | M8: 2008-12-31 | N8: 2.9 | O8: 2008-12-31 | P8: -0.8 | Q8: 2008-12-31 | R8: -7.8 | S8: 2008-12-31 | T8: 1.6 | U8: 2008-12-31 | V8: 3.2 | X8: 2008-06-30 | Y8: 7.6 | Z8: 2008-06-30 | AA8: 15.3 | AB8: 2008-06-30 | AC8: 6.7 | AD8: 2008-06-30 | AE8: 6.7 | AF8: 2008-06-30 | AG8: 8.61 | AH8: 2008-06-30 | AI8: 15.1 | AJ8: 2008-06-30 | AK8: 14.9 | AL8: 2008-06-30 | AM8: 7 | AN8: 2008-06-30 | AO8: 26.4 | AP8: 2008-06-30 | AQ8: 4.6 | AR8: 2008-06-30 | AS8: 4.6 | AV8: 2008-06-30 | AW8: 12.5 | AX8: 2008-06-30 | AY8: 6 | AZ8: 2008-06-30 | BA8: 5 | BB8: 2008-06-30 | BC8: 7.6 | BF8: 2008-06-30 | BG8: 5.6 | BJ8: 2008-06-30 | BK8: 6.4 | BN8: 2008-06-30 | BO8: 7.42 | BP8: 2008-06-30 | BQ8: 9.4 | BT8: 2008-06-30 | BU8: 4.8 | BV8: 2008-06-30 | BW8: 4.2 | BX8: 2008-06-30 | BY8: 2 | BZ8: 2008-06-30 | CA8: 0.8 | CB8: 2009-04-30 | CC8: -9.5 | CD8: 2008-06-30 | CE8: 2.8 | CF8: 2008-06-30 | CG8: 1.8 | CH8: 2008-06-30 | CI8: 1.9 | CJ8: 2008-06-30 | CK8: 5.2 | CL8: 2009-04-30 | CM8: -37.6 | CN8: 2008-06-30 | CO8: 7.3
A9: 2009-03-31 | B9: -6.7 | C9: 2009-03-31 | D9: -6.33 | E9: 2009-03-31 | F9: -3.6 | G9: 2009-03-31 | H9: -3.2 | I9: 2009-03-31 | J9: -6.25 | K9: 2009-03-31 | L9: -9.3 | M9: 2009-03-31 | N9: -4.3 | O9: 2009-03-31 | P9: -8.2 | Q9: 2009-03-31 | R9: -20.2 | S9: 2009-03-31 | T9: -5.6 | U9: 2009-03-31 | V9: 0.5 | X9: 2008-07-31 | Y9: 8.4 | Z9: 2008-07-31 | AA9: 14.5 | AB9: 2008-07-31 | AC9: 6.9 | AD9: 2008-07-31 | AE9: 6.7 | AF9: 2008-07-31 | AG9: 9.04 | AH9: 2008-07-31 | AI9: 14.7 | AJ9: 2008-07-31 | AK9: 13.9 | AL9: 2008-07-31 | AM9: 6.9 | AN9: 2008-07-31 | AO9: 26.4 | AP9: 2008-07-31 | AQ9: 4.8 | AR9: 2008-07-31 | AS9: 4.8 | AV9: 2008-07-31 | AW9: 12.4 | AX9: 2008-07-31 | AY9: 5.96 | AZ9: 2008-07-31 | BA9: 5.3 | BB9: 2008-07-31 | BC9: 7.5 | BF9: 2008-07-31 | BG9: 5.7 | BJ9: 2008-07-31 | BK9: 6.5 | BN9: 2008-07-31 | BO9: 7.47 | BP9: 2008-07-31 | BQ9: 9.2 | BT9: 2008-07-31 | BU9: 0.3 | BV9: 2008-07-31 | BW9: 4.4 | BX9: 2008-07-31 | BY9: 5 | BZ9: 2008-07-31 | CA9: 1.2 | CB9: 2009-05-31 | CC9: -9.8 | CD9: 2008-07-31 | CE9: 1.9 | CF9: 2008-07-31 | CG9: 5.4 | CH9: 2008-07-31 | CI9: -4.6 | CJ9: 2008-07-31 | CK9: 5.1 | CL9: 2009-05-31 | CM9: -30.8 | CN9: 2008-07-31 | CO9: 5.9
A10: 2009-06-30 | B10: -6.9 | C10: 2009-06-30 | D10: -0.04 | E10: 2009-06-30 | F10: -0.5 | G10: 2009-06-30 | H10: -1.3 | I10: 2009-06-30 | J10: -8.7 | K10: 2009-06-30 | L10: -11 | M10: 2009-06-30 | N10: -4.5 | O10: 2009-06-30 | P10: -9.2 | Q10: 2009-06-30 | R10: -17.8 | S10: 2009-06-30 | T10: -5.5 | U10: 2009-06-30 | V10: 1 | X10: 2008-08-31 | Y10: 7.4 | Z10: 2008-08-31 | AA10: 11.2 | AB10: 2008-08-31 | AC10: 6.5 | AD10: 2008-08-31 | AE10: 6.5 | AF10: 2008-08-31 | AG10: 8.02 | AH10: 2008-08-31 | AI10: 15 | AJ10: 2008-08-31 | AK10: 11.5 | AL10: 2008-08-31 | AM10: 6 | AN10: 2008-08-31 | AO10: 26.4 | AP10: 2008-08-31 | AQ10: 5 | AR10: 2008-08-31 | AS10: 4.8 | AV10: 2008-08-31 | AW10: 12.3 | AX10: 2008-08-31 | AY10: 5.89 | AZ10: 2008-08-31 | BA10: 5.3 | BB10: 2008-08-31 | BC10: 7.5 | BF10: 2008-08-31 | BG10: 5.8 | BJ10: 2008-08-31 | BK10: 6.5 | BN10: 2008-08-31 | BO10: 7.36 | BP10: 2008-08-31 | BQ10: 9.1 | BT10: 2008-08-31 | BU10: -0.5 | BV10: 2008-08-31 | BW10: -6 | BX10: 2008-08-31 | BY10: -7.4 | BZ10: 2008-08-31 | CA10: -5 | CB10: 2009-06-30 | CC10: -8.9 | CD10: 2008-08-31 | CE10: 1 | CF10: 2008-08-31 | CG10: -4.4 | CH10: 2008-08-31 | CI10: -2.5 | CJ10: 2008-08-31 | CK10: -0.5 | CL10: 2009-06-30 | CM10: -23.6 | CN10: 2008-08-31 | CO10: -3.7 | CR10: 2007-12-31 | CS10: 2.3 | CU10: 2007-12-31 | CV10: 4.1 | CX10: 2009-10-31 | CY10: 17.4
A11: 2009-09-30 | B11: -5.7 | C11: 2009-09-30 | D11: -0.15 | E11: 2009-09-30 | F11: 0.5 | G11: 2009-09-30 | H11: -0.8 | I11: 2009-09-30 | J11: -7.1 | K11: 2009-09-30 | L11: -8.6 | M11: 2009-09-30 | N11: -2.2 | O11: 2009-09-30 | P11: -8.8 | Q11: 2009-09-30 | R11: -16 | S11: 2009-09-30 | T11: -4.9 | U11: 2009-09-30 | V11: 1.7 | X11: 2008-09-30 | Y11: 6.4 | Z11: 2008-09-30 | AA11: 11 | AB11: 2008-09-30 | AC11: 6.6 | AD11: 2008-09-30 | AE11: 5.7 | AF11: 2008-09-30 | AG11: 7.3 | AH11: 2008-09-30 | AI11: 15 | AJ11: 2008-09-30 | AK11: 10.9 | AL11: 2008-09-30 | AM11: 5.5 | AN11: 2008-09-30 | AO11: 26.2 | AP11: 2008-09-30 | AQ11: 5.4 | AR11: 2008-09-30 | AS11: 4.5 | AV11: 2008-09-30 | AW11: 12.6 | AX11: 2008-09-30 | AY11: 5.8 | AZ11: 2008-09-30 | BA11: 5.3 | BB11: 2008-09-30 | BC11: 7.7 | BF11: 2008-09-30 | BG11: 6.2 | BJ11: 2008-09-30 | BK11: 6.3 | BN11: 2008-09-30 | BO11: 7.54 | BP11: 2008-09-30 | BQ11: 8.9 | BT11: 2008-09-30 | BU11: 0.5 | BV11: 2008-09-30 | BW11: 2.5 | BX11: 2008-09-30 | BY11: 4.3 | BZ11: 2008-09-30 | CA11: -3.6 | CB11: 2009-07-31 | CC11: -6.9 | CD11: 2008-09-30 | CE11: 2.8 | CF11: 2008-09-30 | CG11: 2.1 | CH11: 2008-09-30 | CI11: 1.5 | CJ11: 2008-09-30 | CK11: -4.5 | CL11: 2009-07-31 | CM11: -25.5 | CN11: 2008-09-30 | CO11: 6.8 | CR11: 2008-01-31 | CS11: 2.4 | CU11: 2008-01-31 | CV11: 4.2 | CX11: 2010-04-30 | CY11: 20.1
A12: 2009-12-31 | B12: -4.6 | C12: 2009-12-31 | D12: -0.17 | E12: 2009-12-31 | F12: 0.4 | G12: 2009-12-31 | H12: 0.1 | I12: 2009-12-31 | J12: -6.5 | K12: 2009-12-31 | L12: -2.9 | M12: 2009-12-31 | N12: -1.7 | O12: 2009-12-31 | P12: -5.7 | Q12: 2009-12-31 | R12: -6.8 | S12: 2009-12-31 | T12: -2.6 | U12: 2009-12-31 | V12: 3.2 | X12: 2008-10-31 | Y12: 5.9 | Z12: 2008-10-31 | AA12: 10.9 | AB12: 2008-10-31 | AC12: 6 | AD12: 2008-10-31 | AE12: 5.1 | AF12: 2008-10-31 | AG12: 7.39 | AH12: 2008-10-31 | AI12: 14.2 | AJ12: 2008-10-31 | AK12: 12.3 | AL12: 2008-10-31 | AM12: 4.9 | AN12: 2008-10-31 | AO12: 25.8 | AP12: 2008-10-31 | AQ12: 5.1 | AR12: 2008-10-31 | AS12: 4.2 | AV12: 2008-10-31 | AW12: 12.9 | AX12: 2008-10-31 | AY12: 5.85 | AZ12: 2008-10-31 | BA12: 5.2 | BB12: 2008-10-31 | BC12: 7.7 | BF12: 2008-10-31 | BG12: 6.6 | BJ12: 2008-10-31 | BK12: 6.6 | BN12: 2008-10-31 | BO12: 7.51 | BP12: 2008-10-31 | BQ12: 8.8 | BT12: 2008-10-31 | BU12: 0.1 | BV12: 2008-10-31 | BW12: -2.3 | BX12: 2008-10-31 | BY12: -9.8 | BZ12: 2008-10-31 | CA12: -5.5 | CB12: 2009-08-31 | CC12: -5.9 | CD12: 2008-10-31 | CE12: -1.6 | CF12: 2008-10-31 | CG12: -3.4 | CH12: 2008-10-31 | CI12: -3.1 | CJ12: 2008-10-31 | CK12: -19.8 | CL12: 2009-08-31 | CM12: -2.9 | CN12: 2008-10-31 | CO12: -0.1 | CR12: 2008-02-29 | CS12: 2.4 | CU12: 2008-02-29 | CV12: 4.2 | CX12: 2010-10-31 | CY12: 20
A13: 2010-03-31 | B13: -2.3 | C13: 2010-03-31 | D13: -0.5 | E13: 2010-03-31 | F13: 0.7 | G13: 2010-03-31 | H13: 1.4 | I13: 2010-03-31 | J13: -2.2 | K13: 2010-03-31 | L13: 3.1 | M13: 2010-03-31 | N13: 0.4 | O13: 2010-03-31 | P13: -1.2 | Q13: 2010-03-31 | R13: 4.8 | S13: 2010-03-31 | T13: 4.7 | U13: 2010-03-31 | V13: 3 | X13: 2008-11-30 | Y13: 4.7 | Z13: 2008-11-30 | AA13: 9.1 | AB13: 2008-11-30 | AC13: 4.4 | AD13: 2008-11-30 | AE13: 4.2 | AF13: 2008-11-30 | AG13: 6.74 | AH13: 2008-11-30 | AI13: 13.8 | AJ13: 2008-11-30 | AK13: 10.9 | AL13: 2008-11-30 | AM13: 3.1 | AN13: 2008-11-30 | AO13: 25.5 | AP13: 2008-11-30 | AQ13: 4.9 | AR13: 2008-11-30 | AS13: 3.7 | AV13: 2008-11-30 | AW13: 13.2 | AX13: 2008-11-30 | AY13: 5.85 | AZ13: 2008-11-30 | BA13: 5.3 | BB13: 2008-11-30 | BC13: 7.8 | BF13: 2008-11-30 | BG13: 7 | BJ13: 2008-11-30 | BK13: 6.7 | BN13: 2008-11-30 | BO13: 7.8 | BP13: 2008-11-30 | BQ13: 9.1 | BT13: 2008-11-30 | BU13: -1.7 | BV13: 2008-11-30 | BW13: -9.3 | BX13: 2008-11-30 | BY13: -18 | BZ13: 2008-11-30 | CA13: -8.4 | CB13: 2009-09-30 | CC13: -4 | CD13: 2008-11-30 | CE13: -12.5 | CF13: 2008-11-30 | CG13: -2.6 | CH13: 2008-11-30 | CI13: -12 | CJ13: 2008-11-30 | CK13: -28.6 | CL13: 2009-09-30 | CM13: -11.9 | CN13: 2008-11-30 | CO13: -9.2 | CR13: 2008-03-31 | CS13: 2.3 | CU13: 2008-03-31 | CV13: 4.1
A14: 2010-06-30 | B14: -2.3 | C14: 2010-06-30 | D14: 0.5 | E14: 2010-06-30 | F14: 0.7 | G14: 2010-06-30 | H14: 0.1 | I14: 2010-06-30 | J14: -0.4 | K14: 2010-06-30 | L14: 5.2 | M14: 2010-06-30 | N14: 1.7 | O14: 2010-06-30 | P14: 2.1 | Q14: 2010-06-30 | R14: 5.5 | S14: 2010-06-30 | T14: 4.2 | U14: 2010-06-30 | V14: 3.5 | X14: 2008-12-31 | Y14: 2.9 | Z14: 2008-12-31 | AA14: 7.8 | AB14: 2008-12-31 | AC14: 3.6 | AD14: 2008-12-31 | AE14: 3.5 | AF14: 2008-12-31 | AG14: 6.3 | AH14: 2008-12-31 | AI14: 13.3 | AJ14: 2008-12-31 | AK14: 8.6 | AL14: 2008-12-31 | AM14: 2.1 | AN14: 2008-12-31 | AO14: 25.2 | AP14: 2008-12-31 | AQ14: 4.4 | AR14: 2008-12-31 | AS14: 3.3 | AV14: 2008-12-31 | AW14: 13.7 | AX14: 2008-12-31 | AY14: 6.27 | AZ14: 2008-12-31 | BA14: 6 | BB14: 2008-12-31 | BC14: 8 | BF14: 2008-12-31 | BG14: 7.8 | BJ14: 2008-12-31 | BK14: 7 | BN14: 2008-12-31 | BO14: 8.39 | BP14: 2008-12-31 | BQ14: 9.5 | BT14: 2008-12-31 | BU14: -5 | BV14: 2008-12-31 | BW14: -8.3 | BX14: 2008-12-31 | BY14: -12.8 | BZ14: 2008-12-31 | CA14: -23 | CB14: 2009-10-31 | CC14: -1.5 | CD14: 2008-12-31 | CE14: -12.8 | CF14: 2008-12-31 | CG14: -8.9 | CH14: 2008-12-31 | CI14: -17.5 | CJ14: 2008-12-31 | CK14: -26.6 | CL14: 2009-10-31 | CM14: -6 | CN14: 2008-12-31 | CO14: -4.4 | CR14: 2008-04-30 | CS14: 2.2 | CU14: 2008-04-30 | CV14: 3.9
A15: 2010-09-30 | B15: 0.3 | C15: 2010-09-30 | D15: 0.7 | E15: 2010-09-30 | F15: 0.9 | G15: 2010-09-30 | H15: 0.5 | I15: 2010-09-30 | J15: -2.2 | K15: 2010-09-30 | L15: 3.1 | M15: 2010-09-30 | N15: 3.1 | O15: 2010-09-30 | P15: 1.7 | Q15: 2010-09-30 | R15: 3.6 | S15: 2010-09-30 | T15: 3.8 | U15: 2010-09-30 | V15: 4.2 | X15: 2009-01-31 | Y15: 3.4 | Z15: 2009-01-31 | AA15: 7.1 | AB15: 2009-01-31 | AC15: 2.2 | AD15: 2009-01-31 | AE15: 3.1 | AF15: 2009-01-31 | AG15: 6.71 | AH15: 2009-01-31 | AI15: 13.4 | AJ15: 2009-01-31 | AK15: 10 | AL15: 2009-01-31 | AM15: 1.6 | AN15: 2009-01-31 | AO15: 22.3 | AP15: 2009-01-31 | AQ15: 3.4 | AR15: 2009-01-31 | AS15: 2.8 | AV15: 2009-01-31 | AW15: 14.3 | AX15: 2009-01-31 | AY15: 6.5 | AZ15: 2009-01-31 | BA15: 6.8 | BB15: 2009-01-31 | BC15: 8.4 | BF15: 2009-01-31 | BG15: 8.7 | BJ15: 2009-01-31 | BK15: 7.8 | BN15: 2009-01-31 | BO15: 9.03 | BP15: 2009-01-31 | BQ15: 10.4 | BT15: 2009-01-31 | BU15: -11.5 | BV15: 2009-01-31 | BW15: -18.4 | BX15: 2009-01-31 | BY15: -22.8 | BZ15: 2009-01-31 | CA15: -20.7 | CB15: 2009-11-30 | CC15: 3 | CD15: 2009-01-31 | CE15: -16.9 | CF15: 2009-01-31 | CG15: -17.1 | CH15: 2009-01-31 | CI15: -17.4 | CJ15: 2009-01-31 | CK15: -34.1 | CL15: 2009-11-30 | CM15: 3.6 | CN15: 2009-01-31 | CO15: -15.3 | CR15: 2008-05-30 | CS15: 2 | CU15: 2008-05-30 | CV15: 3.7
A16: 2010-12-31 | B16: 0.3 | C16: 2010-12-31 | D16: 2.1 | E16: 2010-12-31 | F16: 0.3 | G16: 2010-12-31 | H16: 0.2 | I16: 2010-12-31 | J16: -0.6 | K16: 2010-12-31 | L16: 4.5 | M16: 2010-12-31 | N16: 1.7 | O16: 2010-12-31 | P16: 2.1 | Q16: 2010-12-31 | R16: 3.3 | S16: 2010-12-31 | T16: 3.5 | U16: 2010-12-31 | V16: 4.4 | X16: 2009-02-28 | Y16: 4.2 | Z16: 2009-02-28 | AA16: 6 | AB16: 2009-02-28 | AC16: 2 | AD16: 2009-02-28 | AE16: 3 | AF16: 2009-02-28 | AG16: 6.89 | AH16: 2009-02-28 | AI16: 13.9 | AJ16: 2009-02-28 | AK16: 10.7 | AL16: 2009-02-28 | AM16: 2.1 | AN16: 2009-02-28 | AO16: 20.9 | AP16: 2009-02-28 | AQ16: 3 | AR16: 2009-02-28 | AS16: 3.3 | AV16: 2009-02-28 | AW16: 14.8 | AX16: 2009-02-28 | AY16: 6.69 | AZ16: 2009-02-28 | BA16: 7.4 | BB16: 2009-02-28 | BC16: 9.1 | BF16: 2009-02-28 | BG16: 9.4 | BJ16: 2009-02-28 | BK16: 8.2 | BN16: 2009-02-28 | BO16: 9.72 | BP16: 2009-02-28 | BQ16: 10.9 | BT16: 2009-02-28 | BU16: -8.3 | BV16: 2009-02-28 | BW16: -17.7 | BX16: 2009-02-28 | BY16: -23 | BZ16: 2009-02-28 | CA16: -25.3 | CB16: 2009-12-31 | CC16: 8.3 | CD16: 2009-02-28 | CE16: -16.7 | CF16: 2009-02-28 | CG16: -19.7 | CH16: 2009-02-28 | CI16: -22.3 | CJ16: 2009-02-28 | CK16: -31.6 | CL16: 2009-12-31 | CM16: 22.8 | CN16: 2009-02-28 | CO16: -14.6 | CR16: 2008-06-30 | CS16: 1.9 | CU16: 2008-06-30 | CV16: 3.7
X17: 2009-03-31 | Y17: 3.8 | Z17: 2009-03-31 | AA17: 4.9 | AB17: 2009-03-31 | AC17: 2.3 | AD17: 2009-03-31 | AE17: 2.9 | AF17: 2009-03-31 | AG17: 6.71 | AH17: 2009-03-31 | AI17: 14 | AJ17: 2009-03-31 | AK17: 9.4 | AL17: 2009-03-31 | AM17: 1.8 | AN17: 2009-03-31 | AO17: 18.1 | AP17: 2009-03-31 | AQ17: 2.5 | AR17: 2009-03-31 | AS17: 3.6 | AV17: 2009-03-31 | AW17: 15 | AX17: 2009-04-30 | AY17: 7.04 | AZ17: 2009-03-31 | BA17: 7.7 | BB17: 2009-03-31 | BC17: 9.7 | BF17: 2009-03-31 | BG17: 9.2 | BJ17: 2009-03-31 | BK17: 8.4 | BN17: 2009-03-31 | BO17: 10.33 | BP17: 2009-03-31 | BQ17: 11.1 | BT17: 2009-03-31 | BU17: -10 | BV17: 2009-03-31 | BW17: -16.9 | BX17: 2009-03-31 | BY17: -12.2 | BZ17: 2009-03-31 | CA17: -19.3 | CB17: 2010-01-31 | CC17: 7.1 | CD17: 2009-03-31 | CE17: -13.2 | CF17: 2009-03-31 | CG17: -14.2 | CH17: 2009-03-31 | CI17: -18.5 | CJ17: 2009-03-31 | CK17: -30.4 | CL17: 2010-01-31 | CM17: 24.6 | CN17: 2009-03-31 | CO17: -1.9 | CR17: 2008-07-31 | CS17: 1.8 | CU17: 2008-07-31 | CV17: 3.7
X18: 2009-04-30 | Y18: 3.9 | Z18: 2009-04-30 | AA18: 4.8 | AB18: 2009-04-30 | AC18: 1.8 | AD18: 2009-04-30 | AE18: 3.4 | AF18: 2009-04-30 | AG18: 6.45 | AH18: 2009-04-30 | AI18: 13.2 | AJ18: 2009-04-30 | AK18: 8.8 | AL18: 2009-04-30 | AM18: 1.1 | AN18: 2009-04-30 | AO18: 15.6 | AP18: 2009-04-30 | AQ18: 2.1 | AR18: 2009-04-30 | AS18: 4 | AV18: 2009-04-30 | AW18: 14.8 | AX18: 2009-05-31 | AY18: 7.08 | AZ18: 2009-04-30 | BA18: 7.9 | BB18: 2009-04-30 | BC18: 9.9 | BF18: 2009-04-30 | BG18: 8.8 | BJ18: 2009-04-30 | BK18: 8.8 | BN18: 2009-04-30 | BO18: 10.92 | BP18: 2009-04-30 | BQ18: 10.9 | BT18: 2009-04-30 | BU18: -5 | BV18: 2009-04-30 | BW18: -20.2 | BX18: 2009-04-30 | BY18: -22.1 | BZ18: 2009-04-30 | CA18: -25.4 | CB18: 2010-02-28 | CC18: 1.4 | CD18: 2009-04-30 | CE18: -14.2 | CF18: 2009-04-30 | CG18: -21.1 | CH18: 2009-04-30 | CI18: -24.9 | CJ18: 2009-04-30 | CK18: -31.8 | CL18: 2010-02-28 | CM18: 32.3 | CN18: 2009-04-30 | CO18: -12.2 | CR18: 2008-08-29 | CS18: 1.8 | CU18: 2008-08-29 | CV18: 3.8
X19: 2009-05-31 | Y19: 2.7 | Z19: 2009-05-31 | AA19: 3.9 | AB19: 2009-05-31 | AC19: 1.3 | AD19: 2009-05-31 | AE19: 3.8 | AF19: 2009-05-31 | AG19: 5.95 | AH19: 2009-05-31 | AI19: 12.3 | AJ19: 2009-05-31 | AK19: 9.1 | AL19: 2009-05-31 | AM19: 0.7 | AN19: 2009-05-31 | AO19: 14.7 | AP19: 2009-05-31 | AQ19: 1.9 | AR19: 2009-05-31 | AS19: 3.6 | AV19: 2009-05-31 | AW19: 14.4 | AX19: 2009-06-30 | AY19: 7.3 | AZ19: 2009-05-31 | BA19: 7.9 | BB19: 2009-05-31 | BC19: 9.8 | BF19: 2009-05-31 | BG19: 8.5 | BJ19: 2009-05-31 | BK19: 8.9 | BN19: 2009-05-31 | BO19: 11.39 | BP19: 2009-05-31 | BQ19: 10.7 | BT19: 2009-05-31 | BU19: -7.3 | BV19: 2009-05-31 | BW19: -22 | BX19: 2009-05-31 | BY19: -21.3 | BZ19: 2009-05-31 | CA19: -22.1 | CB19: 2010-03-31 | CC19: 5.2 | CD19: 2009-05-31 | CE19: -14.5 | CF19: 2009-05-31 | CG19: -19.5 | CH19: 2009-05-31 | CI19: -19.8 | CJ19: 2009-05-31 | CK19: -31.8 | CL19: 2010-03-31 | CM19: 31.9 | CN19: 2009-05-31 | CO19: -5.2 | CR19: 2008-09-30 | CS19: 1.8 | CU19: 2008-09-30 | CV19: 3.9
X20: 2009-06-30 | Y20: 2.1 | Z20: 2009-06-30 | AA20: 3.7 | AB20: 2009-06-30 | AC20: 1.2 | AD20: 2009-06-30 | AE20: 3.7 | AF20: 2009-06-30 | AG20: 5.86 | AH20: 2009-06-30 | AI20: 11.9 | AJ20: 2009-06-30 | AK20: 8.3 | AL20: 2009-06-30 | AM20: 0.3 | AN20: 2009-06-30 | AO20: 15 | AP20: 2009-06-30 | AQ20: 1.8 | AR20: 2009-06-30 | AS20: 3.5 | AV20: 2009-06-30 | AW20: 14 | AX20: 2009-07-31 | AY20: 7.62 | AZ20: 2009-06-30 | BA20: 8 | BB20: 2009-06-30 | BC20: 9.6 | BF20: 2009-06-30 | BG20: 8.3 | BJ20: 2009-06-30 | BK20: 9.1 | BN20: 2009-06-30 | BO20: 11.81 | BP20: 2009-06-30 | BQ20: 10.6 | BT20: 2009-06-30 | BU20: -12.4 | BV20: 2009-06-30 | BW20: -18.2 | BX20: 2009-06-30 | BY20: -11.8 | BZ20: 2009-06-30 | CA20: -18.6 | CB20: 2010-04-30 | CC20: 3 | CD20: 2009-06-30 | CE20: -12 | CF20: 2009-06-30 | CG20: -14.1 | CH20: 2009-06-30 | CI20: -22.3 | CJ20: 2009-06-30 | CK20: -27.5 | CL20: 2010-04-30 | CM20: 35.9 | CN20: 2009-06-30 | CO20: -4.5 | CR20: 2008-10-31 | CS20: 1.9 | CU20: 2008-10-31 | CV20: 4
X21: 2009-07-31 | Y21: 1.2 | Z21: 2009-07-31 | AA21: 1.6 | AB21: 2009-07-31 | AC21: 0.3 | AD21: 2009-07-31 | AE21: 5.1 | AF21: 2009-07-31 | AG21: 5.06 | AH21: 2009-07-31 | AI21: 12 | AJ21: 2009-07-31 | AK21: 8.5 | AL21: 2009-07-31 | AM21: -0.6 | AN21: 2009-07-31 | AO21: 15.5 | AP21: 2009-07-31 | AQ21: 1.7 | AR21: 2009-07-31 | AS21: 3.6 | AV21: 2009-07-31 | AW21: 14 | AX21: 2009-08-31 | AY21: 7.88 | AZ21: 2009-07-31 | BA21: 8.4 | BB21: 2009-07-31 | BC21: 9.7 | BF21: 2009-07-31 | BG21: 8.5 | BJ21: 2009-07-31 | BK21: 9.4 | BN21: 2009-07-31 | BO21: 12.07 | BP21: 2009-07-31 | BQ21: 10.7 | BT21: 2009-07-31 | BU21: -9.1 | BV21: 2009-07-31 | BW21: -18.7 | BX21: 2009-07-31 | BY21: -18.2 | BZ21: 2009-07-31 | CA21: -19.4 | CB21: 2010-05-31 | CC21: 4.1 | CD21: 2009-07-31 | CE21: -9.8 | CF21: 2009-07-31 | CG21: -15.4 | CH21: 2009-07-31 | CI21: -20.4 | CJ21: 2009-07-31 | CK21: -26.7 | CL21: 2010-05-31 | CM21: 41.8 | CN21: 2009-07-31 | CO21: -4.4 | CR21: 2008-11-28 | CS21: 2.3 | CU21: 2008-11-28 | CV21: 4.1
X22: 2009-08-31 | Y22: 1.5 | Z22: 2009-08-31 | AA22: 1.3 | AB22: 2009-08-31 | AC22: 0.2 | AD22: 2009-08-31 | AE22: 5 | AF22: 2009-08-31 | AG22: 4.96 | AH22: 2009-08-31 | AI22: 11.6 | AJ22: 2009-08-31 | AK22: 8 | AL22: 2009-08-31 | AM22: 0 | AN22: 2009-08-31 | AO22: 15.3 | AP22: 2009-08-31 | AQ22: 1.3 | AR22: 2009-08-31 | AS22: 3.7 | AV22: 2009-08-31 | AW22: 14.2 | AX22: 2009-09-30 | AY22: 8.03 | AZ22: 2009-08-31 | BA22: 8.5 | BB22: 2009-08-31 | BC22: 9.9 | BF22: 2009-08-31 | BG22: 7.8 | BJ22: 2009-08-31 | BK22: 9.4 | BN22: 2009-08-31 | BO22: 12.05 | BP22: 2009-08-31 | BQ22: 10.8 | BT22: 2009-08-31 | BU22: -9.7 | BV22: 2009-08-31 | BW22: -15.9 | BX22: 2009-08-31 | BY22: -8.8 | BZ22: 2009-08-31 | CA22: -19.7 | CB22: 2010-06-30 | CC22: 4.7 | CD22: 2009-08-31 | CE22: -10.7 | CF22: 2009-08-31 | CG22: -10 | CH22: 2009-08-31 | CI22: -18.4 | CJ22: 2009-08-31 | CK22: -23.3 | CL22: 2010-06-30 | CM22: 30.1 | CN22: 2009-08-31 | CO22: 0.1 | CR22: 2008-12-31 | CS22: 3 | CU22: 2008-12-31 | CV22: 4.4
X23: 2009-09-30 | Y23: 1 | Z23: 2009-09-30 | AA23: 0.2 | AB23: 2009-09-30 | AC23: 0 | AD23: 2009-09-30 | AE23: 4.9 | AF23: 2009-09-30 | AG23: 4.94 | AH23: 2009-09-30 | AI23: 10.7 | AJ23: 2009-09-30 | AK23: 7.3 | AL23: 2009-09-30 | AM23: -0.1 | AN23: 2009-09-30 | AO23: 15 | AP23: 2009-09-30 | AQ23: 0.6 | AR23: 2009-09-30 | AS23: 3.4 | AV23: 2009-09-30 | AW23: 14.7 | AX23: 2009-10-31 | AY23: 8.23 | AZ23: 2009-09-30 | BA23: 8.6 | BB23: 2009-09-30 | BC23: 10.3 | BF23: 2009-09-30 | BG23: 7.6 | BJ23: 2009-09-30 | BK23: 9.4 | BN23: 2009-09-30 | BO23: 12.45 | BP23: 2009-09-30 | BQ23: 10.9 | BT23: 2009-09-30 | BU23: -9.5 | BV23: 2009-09-30 | BW23: -21.1 | BX23: 2009-09-30 | BY23: -11.5 | BZ23: 2009-09-30 | CA23: -14.7 | CB23: 2010-07-31 | CC23: 2.3 | CD23: 2009-09-30 | CE23: -8.4 | CF23: 2009-09-30 | CG23: -6.3 | CH23: 2009-09-30 | CI23: -16.3 | CJ23: 2009-09-30 | CK23: -18.4 | CL23: 2010-07-31 | CM23: 22.8 | CN23: 2009-09-30 | CO23: -1.3 | CR23: 2009-01-30 | CS23: 3.2 | CU23: 2009-01-30 | CV23: 4.9
X24: 2009-10-31 | Y24: 1.3 | Z24: 2009-10-31 | AA24: -0.3 | AB24: 2009-10-31 | AC24: -0.2 | AD24: 2009-10-31 | AE24: 4.7 | AF24: 2009-10-31 | AG24: 4.3 | AH24: 2009-10-31 | AI24: 9.7 | AJ24: 2009-10-31 | AK24: 5.2 | AL24: 2009-10-31 | AM24: 0 | AN24: 2009-10-31 | AO24: 14.1 | AP24: 2009-10-31 | AQ24: 0.4 | AR24: 2009-10-31 | AS24: 3.1 | AV24: 2009-10-31 | AW24: 15.5 | AX24: 2009-11-30 | AY24: 8.66 | AZ24: 2009-10-31 | BA24: 8.5 | BB24: 2009-10-31 | BC24: 10.4 | BF24: 2009-10-31 | BG24: 7.7 | BJ24: 2009-10-31 | BK24: 10 | BN24: 2009-10-31 | BO24: 12.4 | BP24: 2009-10-31 | BQ24: 11.1 | BT24: 2009-10-31 | BU24: -7.2 | BV24: 2009-10-31 | BW24: -16.1 | BX24: 2009-10-31 | BY24: -7.2 | BZ24: 2009-10-31 | CA24: -11.1 | CB24: 2010-08-31 | CC24: 4.9 | CD24: 2009-10-31 | CE24: -5.6 | CF24: 2009-10-31 | CG24: -5.8 | CH24: 2009-10-31 | CI24: -18.3 | CJ24: 2009-10-31 | CK24: -6.2 | CL24: 2010-08-31 | CM24: 12.8 | CN24: 2009-10-31 | CO24: -1.3 | CR24: 2009-02-27 | CS24: 3.2 | CU24: 2009-02-27 | CV24: 5.3
X25: 2009-11-30 | Y25: 1.8 | Z25: 2009-11-30 | AA25: -0.1 | AB25: 2009-11-30 | AC25: 0.5 | AD25: 2009-11-30 | AE25: 5.2 | AF25: 2009-11-30 | AG25: 4.7 | AH25: 2009-11-30 | AI25: 9.1 | AJ25: 2009-11-30 | AK25: 5.9 | AL25: 2009-11-30 | AM25: 1.6 | AN25: 2009-11-30 | AO25: 13.6 | AP25: 2009-11-30 | AQ25: 0.4 | AR25: 2009-11-30 | AS25: 3.3 | AV25: 2009-11-30 | AW25: 16.1 | AX25: 2009-12-31 | AY25: 9.13 | AZ25: 2009-11-30 | BA25: 8.6 | BB25: 2009-11-30 | BC25: 10.5 | BF25: 2009-11-30 | BG25: 8.2 | BJ25: 2009-11-30 | BK25: 10.1 | BN25: 2009-11-30 | BO25: 12.4 | BP25: 2009-11-30 | BQ25: 11.4 | BT25: 2009-11-30 | BU25: -9.8 | BV25: 2009-11-30 | BW25: -10.8 | BX25: 2009-11-30 | BY25: -0.2 | BZ25: 2009-11-30 | CA25: -9 | CB25: 2010-09-30 | CC25: 2.8 | CD25: 2009-11-30 | CE25: 4.9 | CF25: 2009-11-30 | CG25: -4.2 | CH25: 2009-11-30 | CI25: -2.3 | CJ25: 2009-11-30 | CK25: 8.6 | CL25: 2010-09-30 | CM25: 13.2 | CN25: 2009-11-30 | CO25: 9.9 | CR25: 2009-03-31 | CS25: 3.1 | CU25: 2009-03-31 | CV25: 5.6
X26: 2009-12-31 | Y26: 1.9 | Z26: 2009-12-31 | AA26: 0.6 | AB26: 2009-12-31 | AC26: 1 | AD26: 2009-12-31 | AE26: 5.6 | AF26: 2009-12-31 | AG26: 4.74 | AH26: 2009-12-31 | AI26: 8.8 | AJ26: 2009-12-31 | AK26: 6.6 | AL26: 2009-12-31 | AM26: 1.8 | AN26: 2009-12-31 | AO26: 12.3 | AP26: 2009-12-31 | AQ26: 0.5 | AR26: 2009-12-31 | AS26: 3.5 | AV26: 2009-12-31 | AW26: 16.7 | AX26: 2010-01-31 | AY26: 9.9 | AZ26: 2009-12-31 | BA26: 9.2 | BB26: 2009-12-31 | BC26: 10.5 | BF26: 2009-12-31 | BG26: 8.2 | BJ26: 2009-12-31 | BK26: 10.3 | BN26: 2009-12-31 | BO26: 12.66 | BP26: 2009-12-31 | BQ26: 12.1 | BT26: 2009-12-31 | BU26: -7.2 | BV26: 2009-12-31 | BW26: -12.1 | BX26: 2009-12-31 | BY26: 1.8 | BZ26: 2009-12-31 | CA26: -0.8 | CB26: 2010-10-31 | CC26: 2 | CD26: 2009-12-31 | CE26: 6.9 | CF26: 2009-12-31 | CG26: -1.3 | CH26: 2009-12-31 | CI26: 2.7 | CJ26: 2009-12-31 | CK26: 7.4 | CL26: 2010-10-31 | CM26: 23.7 | CN26: 2009-12-31 | CO26: 7.4 | CR26: 2009-04-30 | CS26: 2.9 | CU26: 2009-04-30 | CV26: 5.7
X27: 2010-01-31 | Y27: 1.1 | Z27: 2010-01-31 | AA27: 0.5 | AB27: 2010-01-31 | AC27: 0.7 | AD27: 2010-01-31 | AE27: 6.4 | AF27: 2010-01-31 | AG27: 5.2 | AH27: 2010-01-31 | AI27: 8 | AJ27: 2010-01-31 | AK27: 4.8 | AL27: 2010-01-31 | AM27: 1.5 | AN27: 2010-01-31 | AO27: 11.1 | AP27: 2010-01-31 | AQ27: 0.4 | AR27: 2010-01-31 | AS27: 3.5 | AV27: 2010-01-31 | AW27: 17.8 | AX27: 2010-02-28 | AY27: 10.26 | AZ27: 2010-01-31 | BA27: 9.8 | BB27: 2010-01-31 | BC27: 10.8 | BF27: 2010-01-31 | BG27: 9.2 | BJ27: 2010-01-31 | BK27: 10.6 | BN27: 2010-01-31 | BO27: 12.89 | BP27: 2010-01-31 | BQ27: 12.9 | BT27: 2010-01-31 | BU27: 1.5 | BV27: 2010-01-31 | BW27: -0.9 | BX27: 2010-01-31 | BY27: 4.9 | BZ27: 2010-01-31 | CA27: 6 | CB27: 2010-11-30 | CC27: 4 | CD27: 2010-01-31 | CE27: 10.2 | CF27: 2010-01-31 | CG27: 3.7 | CH27: 2010-01-31 | CI27: -7.9 | CJ27: 2010-01-31 | CK27: 11.8 | CL27: 2010-11-30 | CM27: 22.6 | CN27: 2010-01-31 | CO27: 8.5 | CR27: 2009-05-29 | CS27: 2.6 | CU27: 2009-05-29 | CV27: 5.8
X28: 2010-02-28 | Y28: 0.7 | Z28: 2010-02-28 | AA28: 0.9 | AB28: 2010-02-28 | AC28: 0.6 | AD28: 2010-02-28 | AE28: 5.7 | AF28: 2010-02-28 | AG28: 4.49 | AH28: 2010-02-28 | AI28: 7.2 | AJ28: 2010-02-28 | AK28: 3.9 | AL28: 2010-02-28 | AM28: 1.3 | AN28: 2010-02-28 | AO28: 11.5 | AP28: 2010-02-28 | AQ28: 0.4 | AR28: 2010-02-28 | AS28: 2.9 | AV28: 2010-02-28 | AW28: 18.3 | AX28: 2010-03-31 | AY28: 10.14 | AZ28: 2010-02-28 | BA28: 9.9 | BB28: 2010-02-28 | BC28: 11.4 | BF28: 2010-02-28 | BG28: 8.6 | BJ28: 2010-02-28 | BK28: 10.7 | BN28: 2010-02-28 | BO28: 12.97 | BP28: 2010-02-28 | BQ28: 13.2 | BT28: 2010-02-28 | BU28: 0.1 | BV28: 2010-02-28 | BW28: -9.1 | BX28: 2010-02-28 | BY28: 6.9 | BZ28: 2010-02-28 | CA28: 8.2 | CB28: 2010-12-31 | CC28: 6.5 | CD28: 2010-02-28 | CE28: 8.4 | CF28: 2010-02-28 | CG28: 2.8 | CH28: 2010-02-28 | CI28: 1.5 | CJ28: 2010-02-28 | CK28: 5.6 | CL28: 2010-12-31 | CM28: 34.6 | CN28: 2010-02-28 | CO28: 9.2 | CR28: 2009-06-30 | CS28: 2.4 | CU28: 2009-06-30 | CV28: 6
X29: 2010-03-31 | Y29: 0.9 | Z29: 2010-03-31 | AA29: 1.3 | AB29: 2010-03-31 | AC29: 0.7 | AD29: 2010-03-31 | AE29: 5.9 | AF29: 2010-03-31 | AG29: 4.2 | AH29: 2010-03-31 | AI29: 6.5 | AJ29: 2010-03-31 | AK29: 4.7 | AL29: 2010-03-31 | AM29: 1.4 | AN29: 2010-03-31 | AO29: 11 | AP29: 2010-03-31 | AQ29: 0.81 | AR29: 2010-03-31 | AS29: 2.6 | AV29: 2010-03-31 | AW29: 17.9 | AX29: 2010-04-30 | AY29: 9.95 | AZ29: 2010-03-31 | BA29: 9.7 | BB29: 2010-03-31 | BC29: 11.8 | BF29: 2010-03-31 | BG29: 8.6 | BJ29: 2010-03-31 | BK29: 10.6 | BN29: 2010-03-31 | BO29: 12.88 | BP29: 2010-03-31 | BQ29: 13 | BT29: 2010-03-31 | BU29: -0.6 | BV29: 2010-03-31 | BW29: 1.7 | BX29: 2010-03-31 | BY29: 10.2 | BZ29: 2010-03-31 | CA29: 4.2 | CB29: 2011-01-31 | CC29: 10.6 | CD29: 2010-03-31 | CE29: 9.8 | CF29: 2010-03-31 | CG29: 2.7 | CH29: 2010-03-31 | CI29: 6.5 | CJ29: 2010-03-31 | CK29: 13.8 | CL29: 2011-01-31 | CM29: 28.4 | CN29: 2010-03-31 | CO29: 12.5 | CR29: 2009-07-31 | CS29: 2.2 | CU29: 2009-07-31 | CV29: 6.3
X30: 2010-04-30 | Y30: 0.6 | Z30: 2010-04-30 | AA30: 1.8 | AB30: 2010-04-30 | AC30: 1.1 | AD30: 2010-04-30 | AE30: 5.7 | AF30: 2010-04-30 | AG30: 4.28 | AH30: 2010-04-30 | AI30: 6 | AJ30: 2010-04-30 | AK30: 4.3 | AL30: 2010-04-30 | AM30: 2.3 | AN30: 2010-04-30 | AO30: 9.7 | AP30: 2010-04-30 | AQ30: 1.21 | AR30: 2010-04-30 | AS30: 2.4 | AV30: 2010-04-30 | AW30: 17.9 | AX30: 2010-05-31 | AY30: 9.53 | AZ30: 2010-04-30 | BA30: 9.2 | BB30: 2010-04-30 | BC30: 11.8 | BF30: 2010-04-30 | BG30: 8.2 | BJ30: 2010-04-30 | BK30: 10.6 | BN30: 2010-04-30 | BO30: 12.52 | BP30: 2010-04-30 | BQ30: 12.4 | BT30: 2010-04-30 | BU30: -6.5 | BV30: 2010-04-30 | BW30: 0.2 | BX30: 2010-04-30 | BY30: 10.9 | BZ30: 2010-04-30 | CA30: 10 | CB30: 2011-02-28 | CC30: 12.7 | CD30: 2010-04-30 | CE30: 10.4 | CF30: 2010-04-30 | CG30: 11.3 | CH30: 2010-04-30 | CI30: 9.7 | CJ30: 2010-04-30 | CK30: 17.4 | CN30: 2010-04-30 | CO30: 9.7 | CR30: 2009-08-31 | CS30: 2 | CU30: 2009-08-31 | CV30: 6.6
X31: 2010-05-31 | Y31: 0.8 | Z31: 2010-05-31 | AA31: 1.9 | AB31: 2010-05-31 | AC31: 1.2 | AD31: 2010-05-31 | AE31: 5.1 | AF31: 2010-05-31 | AG31: 4.42 | AH31: 2010-05-31 | AI31: 6 | AJ31: 2010-05-31 | AK31: 3.7 | AL31: 2010-05-31 | AM31: 2.1 | AN31: 2010-05-31 | AO31: 8.5 | AP31: 2010-05-31 | AQ31: 1.21 | AR31: 2010-05-31 | AS31: 2.2 | AV31: 2010-05-31 | AW31: 17.2 | AX31: 2010-06-30 | AY31: 9.26 | AZ31: 2010-05-31 | BA31: 8.7 | BB31: 2010-05-31 | BC31: 11.4 | BF31: 2010-05-31 | BG31: 7.3 | BJ31: 2010-05-31 | BK31: 10.5 | BN31: 2010-05-31 | BO31: 12.24 | BP31: 2010-05-31 | BQ31: 12.1 | BT31: 2010-05-31 | BU31: -3.4 | BV31: 2010-05-31 | BW31: 0.4 | BX31: 2010-05-31 | BY31: 16.2 | BZ31: 2010-05-31 | CA31: 14.2 | CD31: 2010-05-31 | CE31: 12.6 | CF31: 2010-05-31 | CG31: 7 | CH31: 2010-05-31 | CI31: 11.8 | CJ31: 2010-05-31 | CK31: 12.7 | CN31: 2010-05-31 | CO31: 13.5 | CR31: 2009-09-30 | CS31: 1.9 | CU31: 2009-09-30 | CV31: 6.8
X32: 2010-06-30 | Y32: 0.7 | Z32: 2010-06-30 | AA32: 1.4 | AB32: 2010-06-30 | AC32: 1.2 | AD32: 2010-06-30 | AE32: 5.3 | AF32: 2010-06-30 | AG32: 4.4 | AH32: 2010-06-30 | AI32: 5.8 | AJ32: 2010-06-30 | AK32: 4.2 | AL32: 2010-06-30 | AM32: 1.9 | AN32: 2010-06-30 | AO32: 6.9 | AP32: 2010-06-30 | AQ32: 0.94 | AR32: 2010-06-30 | AS32: 2.3 | AV32: 2010-06-30 | AW32: 16.6 | AX32: 2010-07-31 | AY32: 9.23 | AZ32: 2010-06-30 | BA32: 8.5 | BB32: 2010-06-30 | BC32: 11.1 | BF32: 2010-06-30 | BG32: 6.8 | BJ32: 2010-06-30 | BK32: 10.5 | BN32: 2010-06-30 | BO32: 12.34 | BP32: 2010-06-30 | BQ32: 11.7 | BT32: 2010-06-30 | BU32: -4 | BV32: 2010-06-30 | BW32: 3.6 | BX32: 2010-06-30 | BY32: 9 | BZ32: 2010-06-30 | CA32: 12.6 | CD32: 2010-06-30 | CE32: 9.7 | CF32: 2010-06-30 | CG32: 2.5 | CH32: 2010-06-30 | CI32: 10.4 | CJ32: 2010-06-30 | CK32: 8.9 | CN32: 2010-06-30 | CO32: 14.3 | CR32: 2009-10-30 | CS32: 1.8 | CU32: 2009-10-30 | CV32: 7.1
X33: 2010-07-31 | Y33: 1 | Z33: 2010-07-31 | AA33: 2.4 | AB33: 2010-07-31 | AC33: 1.9 | AD33: 2010-07-31 | AE33: 4 | AF33: 2010-07-31 | AG33: 7.14 | AH33: 2010-07-31 | AI33: 5.5 | AJ33: 2010-07-31 | AK33: 5.1 | AL33: 2010-07-31 | AM33: 2.1 | AN33: 2010-07-31 | AO33: 6.8 | AP33: 2010-07-31 | AQ33: 1.07 | AR33: 2010-07-31 | AS33: 2 | AV33: 2010-07-31 | AW33: 16.4 | AX33: 2010-08-31 | AY33: 9.14 | AZ33: 2010-07-31 | BA33: 8.7 | BB33: 2010-07-31 | BC33: 11 | BF33: 2010-07-31 | BG33: 7 | BJ33: 2010-07-31 | BK33: 10.5 | BN33: 2010-07-31 | BO33: 12.33 | BP33: 2010-07-31 | BQ33: 11.5 | BT33: 2010-07-31 | BU33: -1.8 | BV33: 2010-07-31 | BW33: 2.4 | BX33: 2010-07-31 | BY33: 5.3 | BZ33: 2010-07-31 | CA33: 12.1 | CD33: 2010-07-31 | CE33: 5.9 | CF33: 2010-07-31 | CG33: 5.1 | CH33: 2010-07-31 | CI33: 9.5 | CJ33: 2010-07-31 | CK33: 6.4 | CN33: 2010-07-31 | CO33: 10.5 | CR33: 2009-11-30 | CS33: 1.8 | CU33: 2009-11-30 | CV33: 7.5
X34: 2010-08-31 | Y34: 0.9 | Z34: 2010-08-31 | AA34: 2.7 | AB34: 2010-08-31 | AC34: 1.9 | AD34: 2010-08-31 | AE34: 3.7 | AF34: 2010-08-31 | AG34: 7.58 | AH34: 2010-08-31 | AI34: 6.1 | AJ34: 2010-08-31 | AK34: 6.6 | AL34: 2010-08-31 | AM34: 2.3 | AN34: 2010-08-31 | AO34: 8.3 | AP34: 2010-08-31 | AQ34: 1.08 | AR34: 2010-08-31 | AS34: 2 | AV34: 2010-08-31 | AW34: 16.4 | AX34: 2010-09-30 | AY34: 9 | AZ34: 2010-08-31 | BA34: 8.6 | BB34: 2010-08-31 | BC34: 11 | BF34: 2010-08-31 | BG34: 6.9 | BJ34: 2010-08-31 | BK34: 10.6 | BN34: 2010-08-31 | BO34: 12.19 | BP34: 2010-08-31 | BQ34: 11.4 | BT34: 2010-08-31 | BU34: -0.7 | BV34: 2010-08-31 | BW34: 4 | BX34: 2010-08-31 | BY34: 14.1 | BZ34: 2010-08-31 | CA34: 15 | CD34: 2010-08-31 | CE34: 7 | CF34: 2010-08-31 | CG34: 3.4 | CH34: 2010-08-31 | CI34: 11.5 | CJ34: 2010-08-31 | CK34: 9.2 | CN34: 2010-08-31 | CO34: 13.6 | CR34: 2009-12-31 | CS34: 1.9 | CU34: 2009-12-31 | CV34: 7.8
X35: 2010-09-30 | Y35: 1.4 | Z35: 2010-09-30 | AA35: 3.5 | AB35: 2010-09-30 | AC35: 2 | AD35: 2010-09-30 | AE35: 3.8 | AF35: 2010-09-30 | AG35: 7.77 | AH35: 2010-09-30 | AI35: 7 | AJ35: 2010-09-30 | AK35: 7.7 | AL35: 2010-09-30 | AM35: 2 | AN35: 2010-09-30 | AO35: 10.5 | AP35: 2010-09-30 | AQ35: 1.08 | AR35: 2010-09-30 | AS35: 2.5 | AV35: 2010-09-30 | AW35: 16.9 | AX35: 2010-10-31 | AY35: 8.9 | AZ35: 2010-09-30 | BA35: 8.5 | BB35: 2010-09-30 | BC35: 10.9 | BF35: 2010-09-30 | BG35: 6.6 | BJ35: 2010-09-30 | BK35: 10.5 | BN35: 2010-09-30 | BO35: 12.42 | BP35: 2010-09-30 | BQ35: 11.5 | BT35: 2010-09-30 | BU35: 3.1 | BV35: 2010-09-30 | BW35: 9.3 | BX35: 2010-09-30 | BY35: 12.4 | BZ35: 2010-09-30 | CA35: 11.2 | CD35: 2010-09-30 | CE35: 6.2 | CF35: 2010-09-30 | CG35: 2.6 | CH35: 2010-09-30 | CI35: 5.1 | CJ35: 2010-09-30 | CK35: 10.2 | CN35: 2010-09-30 | CO35: 11.8 | CR35: 2010-01-29 | CS35: 1.9 | CU35: 2010-01-29 | CV35: 8.1
X36: 2010-10-31 | Y36: 1.4 | Z36: 2010-10-31 | AA36: 3.9 | AB36: 2010-10-31 | AC36: 2 | AD36: 2010-10-31 | AE36: 4.2 | AF36: 2010-10-31 | AG36: 7.88 | AH36: 2010-10-31 | AI36: 7.5 | AJ36: 2010-10-31 | AK36: 8.9 | AL36: 2010-10-31 | AM36: 1.9 | AN36: 2010-10-31 | AO36: 10.1 | AP36: 2010-10-31 | AQ36: 0.94 | AR36: 2010-10-31 | AS36: 2.8 | AV36: 2010-10-31 | AW36: 17.8 | AX36: 2010-11-30 | AY36: 9.1 | AZ36: 2010-10-31 | BA36: 8.5 | BB36: 2010-10-31 | BC36: 10.9 | BF36: 2010-10-31 | BG36: 6.8 | BJ36: 2010-10-31 | BK36: 10.9 | BN36: 2010-10-31 | BO36: 12.29 | BP36: 2010-10-31 | BQ36: 11.5 | BT36: 2010-10-31 | BU36: -4.5 | BV36: 2010-10-31 | BW36: 4 | BX36: 2010-10-31 | BY36: 6.9 | BZ36: 2010-10-31 | CA36: 8.5 | CD36: 2010-10-31 | CE36: 6.6 | CF36: 2010-10-31 | CG36: -2.9 | CH36: 2010-10-31 | CI36: 8.5 | CJ36: 2010-10-31 | CK36: 10.2 | CN36: 2010-10-31 | CO36: 8 | CR36: 2010-02-26 | CS36: 1.9 | CU36: 2010-02-26 | CV36: 8.4
X37: 2010-11-30 | Y37: 1.2 | Z37: 2010-11-30 | AA37: 4.6 | AB37: 2010-11-30 | AC37: 2 | AD37: 2010-11-30 | AE37: 4.2 | AF37: 2010-11-30 | AG37: 7.73 | AH37: 2010-11-30 | AI37: 8.1 | AJ37: 2010-11-30 | AK37: 9.6 | AL37: 2010-11-30 | AM37: 1.4 | AN37: 2010-11-30 | AO37: 9.2 | AP37: 2010-11-30 | AQ37: 1 | AR37: 2010-11-30 | AS37: 2.7 | AV37: 2010-11-30 | AW37: 18.3 | AX37: 2010-12-31 | AY37: 9.2 | AZ37: 2010-11-30 | BA37: 8.6 | BB37: 2010-11-30 | BC37: 10.7 | BF37: 2010-11-30 | BG37: 6.7 | BJ37: 2010-11-30 | BK37: 11.1 | BN37: 2010-11-30 | BO37: 12.2 | BP37: 2010-11-30 | BQ37: 11.7 | BT37: 2010-11-30 | BU37: 0.2 | BV37: 2010-11-30 | BW37: 5.8 | BX37: 2010-11-30 | BY37: 15.2 | BZ37: 2010-11-30 | CA37: 14.7 | CD37: 2010-11-30 | CE37: 6.7 | CF37: 2010-11-30 | CG37: -0.5 | CH37: 2010-11-30 | CI37: 5.4 | CJ37: 2010-11-30 | CK37: 9.9 | CN37: 2010-11-30 | CO37: 10 | CR37: 2010-03-31 | CS37: 1.8 | CU37: 2010-03-31 | CV37: 8.4
X38: 2010-12-31 | Y38: 1.8 | Z38: 2010-12-31 | AA38: 4.5 | AB38: 2010-12-31 | AC38: 2.3 | AD38: 2010-12-31 | AE38: 4.7 | AF38: 2010-12-31 | AG38: 7.96 | AH38: 2010-12-31 | AI38: 8.8 | AJ38: 2010-12-31 | AK38: 10.3 | AL38: 2010-12-31 | AM38: 1.9 | AN38: 2010-12-31 | AO38: 9.1 | AP38: 2010-12-31 | AQ38: 1.3 | AR38: 2010-12-31 | AS38: 3.1 | AV38: 2010-12-31 | AW38: 18.8 | AX38: 2011-01-31 | AY38: 9.8 | AZ38: 2010-12-31 | BA38: 9.6 | BB38: 2010-12-31 | BC38: 10.8 | BF38: 2010-12-31 | BG38: 7.2 | BJ38: 2010-12-31 | BK38: 11.8 | BN38: 2010-12-31 | BO38: 12.46 | BP38: 2010-12-31 | BQ38: 12.3 | BT38: 2010-12-31 | BU38: -0.7 | BV38: 2010-12-31 | BW38: 5.2 | BX38: 2010-12-31 | BY38: 12 | BZ38: 2010-12-31 | CA38: 5.9 | CD38: 2010-12-31 | CE38: 6.3 | CF38: 2010-12-31 | CG38: -0.8 | CH38: 2010-12-31 | CI38: 10.8 | CJ38: 2010-12-31 | CK38: 12.5 | CN38: 2010-12-31 | CO38: 11.4 | CR38: 2010-04-30 | CS38: 1.6 | CU38: 2010-04-30 | CV38: 8.1
X39: 2011-01-31 | Y39: 1.9 | Z39: 2011-01-31 | AA39: 4.5 | AB39: 2011-01-31 | AC39: 1.7 | AD39: 2011-01-31 | AE39: 4 | AF39: 2011-01-31 | AG39: 6.99 | AH39: 2011-01-31 | AI39: 9.6 | AJ39: 2011-01-31 | AK39: 11.2 | AL39: 2011-01-31 | AM39: 1.8 | AN39: 2011-01-31 | AO39: 8.2 | AP39: 2011-01-31 | AQ39: 3 | AR39: 2011-01-31 | AS39: 3.6 | AV39: 2011-01-31 | AW39: 19.6 | AX39: 2011-02-28 | AY39: 9.78 | AZ39: 2011-01-31 | BA39: 9.7 | BB39: 2011-01-31 | BC39: 11.2 | BF39: 2011-01-31 | BG39: 7.8 | BJ39: 2011-01-31 | BK39: 12.3 | BN39: 2011-01-31 | BO39: 12.98 | BP39: 2011-01-31 | BQ39: 13 | BT39: 2011-01-31 | BU39: -6.7 | BV39: 2011-01-31 | BW39: 8.6 | BX39: 2011-01-31 | BY39: 16.4 | BZ39: 2011-01-31 | CA39: 10.7 | CD39: 2011-01-31 | CE39: 6.7 | CF39: 2011-01-31 | CG39: 3.8 | CH39: 2011-01-31 | CI39: 12.7 | CJ39: 2011-01-31 | CK39: 9.7 | CN39: 2011-01-31 | CO39: 10.3 | CR39: 2010-05-31 | CS39: 1.5 | CU39: 2010-05-31 | CV39: 7.7
X40: 2011-02-28 | Y40: 2.2 | Z40: 2011-02-28 | AA40: 5.2 | AB40: 2011-02-28 | AC40: 1.8 | AD40: 2011-02-28 | AE40: 4.1 | AF40: 2011-02-28 | AG40: 7.6 | AH40: 2011-02-28 | AI40: 9.5 | AJ40: 2011-02-28 | AK40: 12.6 | AL40: 2011-02-28 | AM40: 1.4 | AN40: 2011-02-28 | AO40: 7.2 | AP40: 2011-02-28 | AQ40: 3.3 | AR40: 2011-02-28 | AS40: 3.6 | AV40: 2011-02-28 | AW40: 19.6 | AZ40: 2011-02-28 | BA40: 9.6 | BB40: 2011-02-28 | BC40: 11.5 | BF40: 2011-02-28 | BG40: 7.6 | BN40: 2011-02-28 | BO40: 13.16 | BP40: 2011-02-28 | BQ40: 13.2 | BT40: 2011-02-28 | BU40: -4.1 | BV40: 2011-02-28 | BW40: 15.2 | BX40: 2011-02-28 | BY40: 13 | BZ40: 2011-02-28 | CA40: 14.3 | CD40: 2011-02-28 | CE40: 5.8 | CF40: 2011-02-28 | CG40: 5.8 | CH40: 2011-02-28 | CI40: 7.7 | CJ40: 2011-02-28 | CK40: 11.5 | CN40: 2011-02-28 | CO40: 10.7 | CR40: 2010-06-30 | CS40: 1.4 | CU40: 2010-06-30 | CV40: 7.5
AB41: 2011-03-31 | AC41: 1.7 | AF41: 2011-03-31 | AG41: 8.01 | AH41: 2011-03-31 | AI41: 9.5 | AL41: 2011-03-31 | AM41: 1.9 | AN41: 2011-03-31 | AO41: 7.7 | AZ41: 2011-03-31 | BA41: 9.2 | CR41: 2010-07-30 | CS41: 1.4 | CU41: 2010-07-30 | CV41: 7.5
CR42: 2010-08-31 | CS42: 1.4 | CU42: 2010-08-31 | CV42: 7.4
CR43: 2010-09-30 | CS43: 1.5 | CU43: 2010-09-30 | CV43: 7.3
CR44: 2010-10-29 | CS44: 1.4 | CU44: 2010-10-29 | CV44: 7.1
CR45: 2010-11-30 | CS45: 1.6 | CU45: 2010-11-30 | CV45: 6.9
CR46: 2010-12-31 | CS46: 2 | CU46: 2010-12-31 | CV46: 6.9
CR47: 2011-01-31 | CS47: 2.1 | CU47: 2011-01-31 | CV47: 6.74
CR48: 2011-02-28 | CS48: 2.2 | CU48: 2011-02-28 | CV48: 6.58

Sheet Tabelle
A1: Gross Domestic Product YoY | O1: Inflation | AB1: Unemployment Rate | AO1: Industrial Production
B3: Croatia | C3: Bulgaria | D3: Serbia | E3: Slovenia | F3: Romania | I3: Czech Republic | J3: Hungary | K3: Russia Real GDP | L3: Poland | O3: Croatia | P3: Bulgaria | Q3: Serbia Harmonized CPI | R3: Slovenia | S3: Romania | V3: Czech Republic | W3: Hungary | X3: Russia | Y3: Poland | AB3: Croatia | AC3: Bulgaria | AD3: Serbia | AE3: Slovenia | AF3: Romania | AI3: Czech Republic | AJ3: Hungary | AK3: Russia | AL3: Poland | AO3: Croatia | AP3: Bulgaria | AQ3: Serbia | AR3: Slovenia | AS3: Romania | AV3: Czech Republic | AW3: Hungary | AX3: Russia | AY3: Poland
A4: 2008-03-31 | B4: =+Daten!B5 -> 4.29 | C4: =+Daten!D5 -> 1.54 | D4: =+Daten!N5 -> 8.9 | E4: =+Daten!P5 -> 5.7 | F4: =+Daten!J5 -> 8.55 | H4: 2008-03-31 | I4: =+Daten!F5 -> 0.3 | J4: =+Daten!H5 -> 1.2 | K4: =+Daten!L5 -> 9.1 | L4: =+Daten!V5 -> 6.3 | N4: 2008-03-31 | O4: =+Daten!Y5 -> 5.7 | P4: =+Daten!AA5 -> 14.2 | Q4: =+Daten!AK5 -> 13.6 | R4: =+Daten!AM5 -> 6.9 | S4: =+Daten!AG5 -> 8.63 | U4: 2008-03-31 | V4: =+Daten!AC5 -> 7.1 | W4: =+Daten!AE5 -> 6.7 | X4: =+Daten!AI5 -> 13.3 | Y4: =+Daten!AS5 -> 4.1 | AA4: 2008-03-31 | AB4: =+Daten!AW5 -> 14.5 | AC4: =+Daten!AY5 -> 6.8 | AD4: 17.4 | AE4: =+Daten!BK5 -> 6.9 | AF4: =+Daten!CV13 -> 4.1 | AH4: 2008-03-31 | AI4: =+Daten!BA5 -> 5.6 | AJ4: =+Daten!BC5 -> 8 | AK4: =+Daten!BG5 -> 6.5 | AL4: =+Daten!BQ5 -> 10.9 | AN4: 2008-03-31 | AO4: =+Daten!BU5 -> 2.2 | AP4: =+Daten!BW5 -> -1.1 | AQ4: =+Daten!CG5 -> 2.6 | AR4: =+Daten!CI5 -> 1 | AU4: 2008-03-31 | AV4: =+Daten!BY5 -> -4.6 | AW4: =+Daten!CA5 -> 4.8 | AX4: =+Daten!CE5 -> 3.5 | AY4: =+Daten!CO5 -> 1
A5: =+Daten!A6 -> 2008-06-30 | B5: =+Daten!B6 -> 0 | C5: =+Daten!D6 -> 1.29 | D5: =+Daten!N6 -> 6.3 | E5: =+Daten!P6 -> 5.5 | F5: =+Daten!J6 -> 9.64 | H5: =+Daten!A6 -> 2008-06-30 | I5: =+Daten!F6 -> 0.7 | J5: =+Daten!H6 -> -0.2 | K5: =+Daten!L6 -> 7.7 | L5: =+Daten!V6 -> 6.1 | N5: =+Daten!X6 -> 2008-04-30 | O5: =+Daten!Y6 -> 5.7 | P5: =+Daten!AA6 -> 14.6 | Q5: =+Daten!AK6 -> 14.6 | R5: =+Daten!AM6 -> 6.5 | S5: =+Daten!AG6 -> 8.62 | U5: =+Daten!AB6 -> 2008-04-30 | V5: =+Daten!AC6 -> 6.8 | W5: =+Daten!AE6 -> 6.6 | X5: =+Daten!AI6 -> 14.3 | Y5: =+Daten!AS6 -> 4 | AA5: =+Daten!AV6 -> 2008-04-30 | AB5: =+Daten!AW6 -> 13.9 | AC5: =+Daten!AY6 -> 6.5 | AD5: 17.4 | AE5: =+Daten!BK6 -> 6.6 | AF5: =+Daten!CV14 -> 3.9 | AH5: =+Daten!AZ6 -> 2008-04-30 | AI5: =+Daten!BA6 -> 5.2 | AJ5: =+Daten!BC6 -> 7.7 | AK5: =+Daten!BG6 -> 6 | AL5: =+Daten!BQ6 -> 10.3 | AN5: =+Daten!BT6 -> 2008-04-30 | AO5: =+Daten!BU6 -> 3.7 | AP5: =+Daten!BW6 -> 8.9 | AQ5: =+Daten!CG6 -> 3.1 | AR5: =+Daten!CI6 -> 6.9 | AU5: =+Daten!BX6 -> 2008-04-30 | AV5: =+Daten!BY6 -> 10.1 | AW5: =+Daten!CA6 -> 6.3 | AX5: =+Daten!CE6 -> 5.7 | AY5: =+Daten!CO6 -> 15.1
A6: =+Daten!A7 -> 2008-09-30 | B6: =+Daten!B7 -> 1.6 | C6: =+Daten!D7 -> 1.37 | D6: =+Daten!N7 -> 4.6 | E6: =+Daten!P7 -> 3.9 | F6: =+Daten!J7 -> 9.44 | H6: =+Daten!A7 -> 2008-09-30 | I6: =+Daten!F7 -> 0.2 | J6: =+Daten!H7 -> -1 | K6: =+Daten!L7 -> 6.4 | L6: =+Daten!V7 -> 5.2 | N6: =+Daten!X7 -> 2008-05-31 | O6: =+Daten!Y7 -> 6.4 | P6: =+Daten!AA7 -> 15 | Q6: =+Daten!AK7 -> 14.5 | R6: =+Daten!AM7 -> 6.4 | S6: =+Daten!AG7 -> 8.46 | U6: =+Daten!AB7 -> 2008-05-31 | V6: =+Daten!AC7 -> 6.8 | W6: =+Daten!AE7 -> 7 | X6: =+Daten!AI7 -> 15.1 | Y6: =+Daten!AS7 -> 4.4 | AA6: =+Daten!AV7 -> 2008-05-31 | AB6: =+Daten!AW7 -> 13.2 | AC6: =+Daten!AY7 -> 6.2 | AD6: 17.4 | AE6: =+Daten!BK7 -> 6.5 | AF6: =+Daten!CV15 -> 3.7 | AH6: =+Daten!AZ7 -> 2008-05-31 | AI6: =+Daten!BA7 -> 5 | AJ6: =+Daten!BC7 -> 7.7 | AK6: =+Daten!BG7 -> 5.4 | AL6: =+Daten!BQ7 -> 9.8 | AN6: =+Daten!BT7 -> 2008-05-31 | AO6: =+Daten!BU7 -> -1.9 | AP6: =+Daten!BW7 -> 6.6 | AQ6: =+Daten!CG7 -> 3.8 | AR6: =+Daten!CI7 -> 1.2 | AU6: =+Daten!BX7 -> 2008-05-31 | AV6: =+Daten!BY7 -> -0.1 | AW6: =+Daten!CA7 -> 6.5 | AX6: =+Daten!CE7 -> 4.5 | AY6: =+Daten!CO7 -> 2.4
A7: =+Daten!A8 -> 2008-12-31 | B7: =+Daten!B8 -> 0.2 | C7: =+Daten!D8 -> 0.55 | D7: =+Daten!N8 -> 2.9 | E7: =+Daten!P8 -> -0.8 | F7: =+Daten!J8 -> 3.13 | H7: =+Daten!A8 -> 2008-12-31 | I7: =+Daten!F8 -> -0.9 | J7: =+Daten!H8 -> -2.1 | K7: =+Daten!L8 -> -1.1 | L7: =+Daten!V8 -> 3.2 | N7: =+Daten!X8 -> 2008-06-30 | O7: =+Daten!Y8 -> 7.6 | P7: =+Daten!AA8 -> 15.3 | Q7: =+Daten!AK8 -> 14.9 | R7: =+Daten!AM8 -> 7 | S7: =+Daten!AG8 -> 8.61 | U7: =+Daten!AB8 -> 2008-06-30 | V7: =+Daten!AC8 -> 6.7 | W7: =+Daten!AE8 -> 6.7 | X7: =+Daten!AI8 -> 15.1 | Y7: =+Daten!AS8 -> 4.6 | AA7: =+Daten!AV8 -> 2008-06-30 | AB7: =+Daten!AW8 -> 12.5 | AC7: =+Daten!AY8 -> 6 | AD7: 17.4 | AE7: =+Daten!BK8 -> 6.4 | AF7: =+Daten!CV16 -> 3.7 | AH7: =+Daten!AZ8 -> 2008-06-30 | AI7: =+Daten!BA8 -> 5 | AJ7: =+Daten!BC8 -> 7.6 | AK7: =+Daten!BG8 -> 5.6 | AL7: =+Daten!BQ8 -> 9.4 | AN7: =+Daten!BT8 -> 2008-06-30 | AO7: =+Daten!BU8 -> 4.8 | AP7: =+Daten!BW8 -> 4.2 | AQ7: =+Daten!CG8 -> 1.8 | AR7: =+Daten!CI8 -> 1.9 | AU7: =+Daten!BX8 -> 2008-06-30 | AV7: =+Daten!BY8 -> 2 | AW7: =+Daten!CA8 -> 0.8 | AX7: =+Daten!CE8 -> 2.8 | AY7: =+Daten!CO8 -> 7.3
A8: =+Daten!A9 -> 2009-03-31 | B8: =+Daten!B9 -> -6.7 | C8: =+Daten!D9 -> -6.33 | D8: =+Daten!N9 -> -4.3 | E8: =+Daten!P9 -> -8.2 | F8: =+Daten!J9 -> -6.25 | H8: =+Daten!A9 -> 2009-03-31 | I8: =+Daten!F9 -> -3.6 | J8: =+Daten!H9 -> -3.2 | K8: =+Daten!L9 -> -9.3 | L8: =+Daten!V9 -> 0.5 | N8: =+Daten!X9 -> 2008-07-31 | O8: =+Daten!Y9 -> 8.4 | P8: =+Daten!AA9 -> 14.5 | Q8: =+Daten!AK9 -> 13.9 | R8: =+Daten!AM9 -> 6.9 | S8: =+Daten!AG9 -> 9.04 | U8: =+Daten!AB9 -> 2008-07-31 | V8: =+Daten!AC9 -> 6.9 | W8: =+Daten!AE9 -> 6.7 | X8: =+Daten!AI9 -> 14.7 | Y8: =+Daten!AS9 -> 4.8 | AA8: =+Daten!AV9 -> 2008-07-31 | AB8: =+Daten!AW9 -> 12.4 | AC8: =+Daten!AY9 -> 5.96 | AD8: 17.4 | AE8: =+Daten!BK9 -> 6.5 | AF8: =+Daten!CV17 -> 3.7 | AH8: =+Daten!AZ9 -> 2008-07-31 | AI8: =+Daten!BA9 -> 5.3 | AJ8: =+Daten!BC9 -> 7.5 | AK8: =+Daten!BG9 -> 5.7 | AL8: =+Daten!BQ9 -> 9.2 | AN8: =+Daten!BT9 -> 2008-07-31 | AO8: =+Daten!BU9 -> 0.3 | AP8: =+Daten!BW9 -> 4.4 | AQ8: =+Daten!CG9 -> 5.4 | AR8: =+Daten!CI9 -> -4.6 | AU8: =+Daten!BX9 -> 2008-07-31 | AV8: =+Daten!BY9 -> 5 | AW8: =+Daten!CA9 -> 1.2 | AX8: =+Daten!CE9 -> 1.9 | AY8: =+Daten!CO9 -> 5.9
A9: =+Daten!A10 -> 2009-06-30 | B9: =+Daten!B10 -> -6.9 | C9: =+Daten!D10 -> -0.04 | D9: =+Daten!N10 -> -4.5 | E9: =+Daten!P10 -> -9.2 | F9: =+Daten!J10 -> -8.7 | H9: =+Daten!A10 -> 2009-06-30 | I9: =+Daten!F10 -> -0.5 | J9: =+Daten!H10 -> -1.3 | K9: =+Daten!L10 -> -11 | L9: =+Daten!V10 -> 1 | N9: =+Daten!X10 -> 2008-08-31 | O9: =+Daten!Y10 -> 7.4 | P9: =+Daten!AA10 -> 11.2 | Q9: =+Daten!AK10 -> 11.5 | R9: =+Daten!AM10 -> 6 | S9: =+Daten!AG10 -> 8.02 | U9: =+Daten!AB10 -> 2008-08-31 | V9: =+Daten!AC10 -> 6.5 | W9: =+Daten!AE10 -> 6.5 | X9: =+Daten!AI10 -> 15 | Y9: =+Daten!AS10 -> 4.8 | AA9: =+Daten!AV10 -> 2008-08-31 | AB9: =+Daten!AW10 -> 12.3 | AC9: =+Daten!AY10 -> 5.89 | AD9: 17.4 | AE9: =+Daten!BK10 -> 6.5 | AF9: =+Daten!CV18 -> 3.8 | AH9: =+Daten!AZ10 -> 2008-08-31 | AI9: =+Daten!BA10 -> 5.3 | AJ9: =+Daten!BC10 -> 7.5 | AK9: =+Daten!BG10 -> 5.8 | AL9: =+Daten!BQ10 -> 9.1 | AN9: =+Daten!BT10 -> 2008-08-31 | AO9: =+Daten!BU10 -> -0.5 | AP9: =+Daten!BW10 -> -6 | AQ9: =+Daten!CG10 -> -4.4 | AR9: =+Daten!CI10 -> -2.5 | AU9: =+Daten!BX10 -> 2008-08-31 | AV9: =+Daten!BY10 -> -7.4 | AW9: =+Daten!CA10 -> -5 | AX9: =+Daten!CE10 -> 1 | AY9: =+Daten!CO10 -> -3.7
A10: =+Daten!A11 -> 2009-09-30 | B10: =+Daten!B11 -> -5.7 | C10: =+Daten!D11 -> -0.15 | D10: =+Daten!N11 -> -2.2 | E10: =+Daten!P11 -> -8.8 | F10: =+Daten!J11 -> -7.1 | H10: =+Daten!A11 -> 2009-09-30 | I10: =+Daten!F11 -> 0.5 | J10: =+Daten!H11 -> -0.8 | K10: =+Daten!L11 -> -8.6 | L10: =+Daten!V11 -> 1.7 | N10: =+Daten!X11 -> 2008-09-30 | O10: =+Daten!Y11 -> 6.4 | P10: =+Daten!AA11 -> 11 | Q10: =+Daten!AK11 -> 10.9 | R10: =+Daten!AM11 -> 5.5 | S10: =+Daten!AG11 -> 7.3 | U10: =+Daten!AB11 -> 2008-09-30 | V10: =+Daten!AC11 -> 6.6 | W10: =+Daten!AE11 -> 5.7 | X10: =+Daten!AI11 -> 15 | Y10: =+Daten!AS11 -> 4.5 | AA10: =+Daten!AV11 -> 2008-09-30 | AB10: =+Daten!AW11 -> 12.6 | AC10: =+Daten!AY11 -> 5.8 | AD10: 17.4 | AE10: =+Daten!BK11 -> 6.3 | AF10: =+Daten!CV19 -> 3.9 | AH10: =+Daten!AZ11 -> 2008-09-30 | AI10: =+Daten!BA11 -> 5.3 | AJ10: =+Daten!BC11 -> 7.7 | AK10: =+Daten!BG11 -> 6.2 | AL10: =+Daten!BQ11 -> 8.9 | AN10: =+Daten!BT11 -> 2008-09-30 | AO10: =+Daten!BU11 -> 0.5 | AP10: =+Daten!BW11 -> 2.5 | AQ10: =+Daten!CG11 -> 2.1 | AR10: =+Daten!CI11 -> 1.5 | AU10: =+Daten!BX11 -> 2008-09-30 | AV10: =+Daten!BY11 -> 4.3 | AW10: =+Daten!CA11 -> -3.6 | AX10: =+Daten!CE11 -> 2.8 | AY10: =+Daten!CO11 -> 6.8
A11: =+Daten!A12 -> 2009-12-31 | B11: =+Daten!B12 -> -4.6 | C11: =+Daten!D12 -> -0.17 | D11: =+Daten!N12 -> -1.7 | E11: =+Daten!P12 -> -5.7 | F11: =+Daten!J12 -> -6.5 | H11: =+Daten!A12 -> 2009-12-31 | I11: =+Daten!F12 -> 0.4 | J11: =+Daten!H12 -> 0.1 | K11: =+Daten!L12 -> -2.9 | L11: =+Daten!V12 -> 3.2 | N11: =+Daten!X12 -> 2008-10-31 | O11: =+Daten!Y12 -> 5.9 | P11: =+Daten!AA12 -> 10.9 | Q11: =+Daten!AK12 -> 12.3 | R11: =+Daten!AM12 -> 4.9 | S11: =+Daten!AG12 -> 7.39 | U11: =+Daten!AB12 -> 2008-10-31 | V11: =+Daten!AC12 -> 6 | W11: =+Daten!AE12 -> 5.1 | X11: =+Daten!AI12 -> 14.2 | Y11: =+Daten!AS12 -> 4.2 | AA11: =+Daten!AV12 -> 2008-10-31 | AB11: =+Daten!AW12 -> 12.9 | AC11: =+Daten!AY12 -> 5.85 | AD11: 17.4 | AE11: =+Daten!BK12 -> 6.6 | AF11: =+Daten!CV20 -> 4 | AH11: =+Daten!AZ12 -> 2008-10-31 | AI11: =+Daten!BA12 -> 5.2 | AJ11: =+Daten!BC12 -> 7.7 | AK11: =+Daten!BG12 -> 6.6 | AL11: =+Daten!BQ12 -> 8.8 | AN11: =+Daten!BT12 -> 2008-10-31 | AO11: =+Daten!BU12 -> 0.1 | AP11: =+Daten!BW12 -> -2.3 | AQ11: =+Daten!CG12 -> -3.4 | AR11: =+Daten!CI12 -> -3.1 | AU11: =+Daten!BX12 -> 2008-10-31 | AV11: =+Daten!BY12 -> -9.8 | AW11: =+Daten!CA12 -> -5.5 | AX11: =+Daten!CE12 -> -1.6 | AY11: =+Daten!CO12 -> -0.1
A12: =+Daten!A13 -> 2010-03-31 | B12: =+Daten!B13 -> -2.3 | C12: =+Daten!D13 -> -0.5 | D12: =+Daten!N13 -> 0.4 | E12: =+Daten!P13 -> -1.2 | F12: =+Daten!J13 -> -2.2 | H12: =+Daten!A13 -> 2010-03-31 | I12: =+Daten!F13 -> 0.7 | J12: =+Daten!H13 -> 1.4 | K12: =+Daten!L13 -> 3.1 | L12: =+Daten!V13 -> 3 | N12: =+Daten!X13 -> 2008-11-30 | O12: =+Daten!Y13 -> 4.7 | P12: =+Daten!AA13 -> 9.1 | Q12: =+Daten!AK13 -> 10.9 | R12: =+Daten!AM13 -> 3.1 | S12: =+Daten!AG13 -> 6.74 | U12: =+Daten!AB13 -> 2008-11-30 | V12: =+Daten!AC13 -> 4.4 | W12: =+Daten!AE13 -> 4.2 | X12: =+Daten!AI13 -> 13.8 | Y12: =+Daten!AS13 -> 3.7 | AA12: =+Daten!AV13 -> 2008-11-30 | AB12: =+Daten!AW13 -> 13.2 | AC12: =+Daten!AY13 -> 5.85 | AD12: 17.4 | AE12: =+Daten!BK13 -> 6.7 | AF12: =+Daten!CV21 -> 4.1 | AH12: =+Daten!AZ13 -> 2008-11-30 | AI12: =+Daten!BA13 -> 5.3 | AJ12: =+Daten!BC13 -> 7.8 | AK12: =+Daten!BG13 -> 7 | AL12: =+Daten!BQ13 -> 9.1 | AN12: =+Daten!BT13 -> 2008-11-30 | AO12: =+Daten!BU13 -> -1.7 | AP12: =+Daten!BW13 -> -9.3 | AQ12: =+Daten!CG13 -> -2.6 | AR12: =+Daten!CI13 -> -12 | AU12: =+Daten!BX13 -> 2008-11-30 | AV12: =+Daten!BY13 -> -18 | AW12: =+Daten!CA13 -> -8.4 | AX12: =+Daten!CE13 -> -12.5 | AY12: =+Daten!CO13 -> -9.2
A13: =+Daten!A14 -> 2010-06-30 | B13: =+Daten!B14 -> -2.3 | C13: =+Daten!D14 -> 0.5 | D13: =+Daten!N14 -> 1.7 | E13: =+Daten!P14 -> 2.1 | F13: =+Daten!J14 -> -0.4 | H13: =+Daten!A14 -> 2010-06-30 | I13: =+Daten!F14 -> 0.7 | J13: =+Daten!H14 -> 0.1 | K13: =+Daten!L14 -> 5.2 | L13: =+Daten!V14 -> 3.5 | N13: =+Daten!X14 -> 2008-12-31 | O13: =+Daten!Y14 -> 2.9 | P13: =+Daten!AA14 -> 7.8 | Q13: =+Daten!AK14 -> 8.6 | R13: =+Daten!AM14 -> 2.1 | S13: =+Daten!AG14 -> 6.3 | U13: =+Daten!AB14 -> 2008-12-31 | V13: =+Daten!AC14 -> 3.6 | W13: =+Daten!AE14 -> 3.5 | X13: =+Daten!AI14 -> 13.3 | Y13: =+Daten!AS14 -> 3.3 | AA13: =+Daten!AV14 -> 2008-12-31 | AB13: =+Daten!AW14 -> 13.7 | AC13: =+Daten!AY14 -> 6.27 | AD13: 17.4 | AE13: =+Daten!BK14 -> 7 | AF13: =+Daten!CV22 -> 4.4 | AH13: =+Daten!AZ14 -> 2008-12-31 | AI13: =+Daten!BA14 -> 6 | AJ13: =+Daten!BC14 -> 8 | AK13: =+Daten!BG14 -> 7.8 | AL13: =+Daten!BQ14 -> 9.5 | AN13: =+Daten!BT14 -> 2008-12-31 | AO13: =+Daten!BU14 -> -5 | AP13: =+Daten!BW14 -> -8.3 | AQ13: =+Daten!CG14 -> -8.9 | AR13: =+Daten!CI14 -> -17.5 | AU13: =+Daten!BX14 -> 2008-12-31 | AV13: =+Daten!BY14 -> -12.8 | AW13: =+Daten!CA14 -> -23 | AX13: =+Daten!CE14 -> -12.8 | AY13: =+Daten!CO14 -> -4.4
A14: =+Daten!A15 -> 2010-09-30 | B14: =+Daten!B15 -> 0.3 | C14: =+Daten!D15 -> 0.7 | D14: =+Daten!N15 -> 3.1 | E14: =+Daten!P15 -> 1.7 | F14: =+Daten!J15 -> -2.2 | H14: =+Daten!A15 -> 2010-09-30 | I14: =+Daten!F15 -> 0.9 | J14: =+Daten!H15 -> 0.5 | K14: =+Daten!L15 -> 3.1 | L14: =+Daten!V15 -> 4.2 | N14: =+Daten!X15 -> 2009-01-31 | O14: =+Daten!Y15 -> 3.4 | P14: =+Daten!AA15 -> 7.1 | Q14: =+Daten!AK15 -> 10 | R14: =+Daten!AM15 -> 1.6 | S14: =+Daten!AG15 -> 6.71 | U14: =+Daten!AB15 -> 2009-01-31 | V14: =+Daten!AC15 -> 2.2 | W14: =+Daten!AE15 -> 3.1 | X14: =+Daten!AI15 -> 13.4 | Y14: =+Daten!AS15 -> 2.8 | AA14: =+Daten!AV15 -> 2009-01-31 | AB14: =+Daten!AW15 -> 14.3 | AC14: =+Daten!AY15 -> 6.5 | AD14: 17.4 | AE14: =+Daten!BK15 -> 7.8 | AF14: =+Daten!CV23 -> 4.9 | AH14: =+Daten!AZ15 -> 2009-01-31 | AI14: =+Daten!BA15 -> 6.8 | AJ14: =+Daten!BC15 -> 8.4 | AK14: =+Daten!BG15 -> 8.7 | AL14: =+Daten!BQ15 -> 10.4 | AN14: =+Daten!BT15 -> 2009-01-31 | AO14: =+Daten!BU15 -> -11.5 | AP14: =+Daten!BW15 -> -18.4 | AQ14: =+Daten!CG15 -> -17.1 | AR14: =+Daten!CI15 -> -17.4 | AS14: =+Daten!CC5 -> -12.04 | AU14: =+Daten!BX15 -> 2009-01-31 | AV14: =+Daten!BY15 -> -22.8 | AW14: =+Daten!CA15 -> -20.7 | AX14: =+Daten!CE15 -> -16.9 | AY14: =+Daten!CO15 -> -15.3
A15: =+Daten!A16 -> 2010-12-31 | B15: =+Daten!B16 -> 0.3 | C15: =+Daten!D16 -> 2.1 | D15: =+Daten!N16 -> 1.7 | E15: =+Daten!P16 -> 2.1 | F15: =+Daten!J16 -> -0.6 | H15: =+Daten!A16 -> 2010-12-31 | I15: =+Daten!F16 -> 0.3 | J15: =+Daten!H16 -> 0.2 | K15: =+Daten!L16 -> 4.5 | L15: =+Daten!V16 -> 4.4 | N15: =+Daten!X16 -> 2009-02-28 | O15: =+Daten!Y16 -> 4.2 | P15: =+Daten!AA16 -> 6 | Q15: =+Daten!AK16 -> 10.7 | R15: =+Daten!AM16 -> 2.1 | S15: =+Daten!AG16 -> 6.89 | U15: =+Daten!AB16 -> 2009-02-28 | V15: =+Daten!AC16 -> 2 | W15: =+Daten!AE16 -> 3 | X15: =+Daten!AI16 -> 13.9 | Y15: =+Daten!AS16 -> 3.3 | AA15: =+Daten!AV16 -> 2009-02-28 | AB15: =+Daten!AW16 -> 14.8 | AC15: =+Daten!AY16 -> 6.69 | AD15: 17.4 | AE15: =+Daten!BK16 -> 8.2 | AF15: =+Daten!CV24 -> 5.3 | AH15: =+Daten!AZ16 -> 2009-02-28 | AI15: =+Daten!BA16 -> 7.4 | AJ15: =+Daten!BC16 -> 9.1 | AK15: =+Daten!BG16 -> 9.4 | AL15: =+Daten!BQ16 -> 10.9 | AN15: =+Daten!BT16 -> 2009-02-28 | AO15: =+Daten!BU16 -> -8.3 | AP15: =+Daten!BW16 -> -17.7 | AQ15: =+Daten!CG16 -> -19.7 | AR15: =+Daten!CI16 -> -22.3 | AS15: =+Daten!CC6 -> -12 | AU15: =+Daten!BX16 -> 2009-02-28 | AV15: =+Daten!BY16 -> -23 | AW15: =+Daten!CA16 -> -25.3 | AX15: =+Daten!CE16 -> -16.7 | AY15: =+Daten!CO16 -> -14.6
N16: =+Daten!X17 -> 2009-03-31 | O16: =+Daten!Y17 -> 3.8 | P16: =+Daten!AA17 -> 4.9 | Q16: =+Daten!AK17 -> 9.4 | R16: =+Daten!AM17 -> 1.8 | S16: =+Daten!AG17 -> 6.71 | U16: =+Daten!AB17 -> 2009-03-31 | V16: =+Daten!AC17 -> 2.3 | W16: =+Daten!AE17 -> 2.9 | X16: =+Daten!AI17 -> 14 | Y16: =+Daten!AS17 -> 3.6 | AA16: =+Daten!AV17 -> 2009-03-31 | AB16: =+Daten!AW17 -> 15 | AC16: =+Daten!AY17 -> 7.04 | AD16: 17.4 | AE16: =+Daten!BK17 -> 8.4 | AF16: =+Daten!CV25 -> 5.6 | AH16: =+Daten!AZ17 -> 2009-03-31 | AI16: =+Daten!BA17 -> 7.7 | AJ16: =+Daten!BC17 -> 9.7 | AK16: =+Daten!BG17 -> 9.2 | AL16: =+Daten!BQ17 -> 11.1 | AN16: =+Daten!BT17 -> 2009-03-31 | AO16: =+Daten!BU17 -> -10 | AP16: =+Daten!BW17 -> -16.9 | AQ16: =+Daten!CG17 -> -14.2 | AR16: =+Daten!CI17 -> -18.5 | AS16: =+Daten!CC7 -> -12.1 | AU16: =+Daten!BX17 -> 2009-03-31 | AV16: =+Daten!BY17 -> -12.2 | AW16: =+Daten!CA17 -> -19.3 | AX16: =+Daten!CE17 -> -13.2 | AY16: =+Daten!CO17 -> -1.9
N17: =+Daten!X18 -> 2009-04-30 | O17: =+Daten!Y18 -> 3.9 | P17: =+Daten!AA18 -> 4.8 | Q17: =+Daten!AK18 -> 8.8 | R17: =+Daten!AM18 -> 1.1 | S17: =+Daten!AG18 -> 6.45 | U17: =+Daten!AB18 -> 2009-04-30 | V17: =+Daten!AC18 -> 1.8 | W17: =+Daten!AE18 -> 3.4 | X17: =+Daten!AI18 -> 13.2 | Y17: =+Daten!AS18 -> 4 | AA17: =+Daten!AV18 -> 2009-04-30 | AB17: =+Daten!AW18 -> 14.8 | AC17: =+Daten!AY18 -> 7.08 | AD17: 17.4 | AE17: =+Daten!BK18 -> 8.8 | AF17: =+Daten!CV26 -> 5.7 | AH17: =+Daten!AZ18 -> 2009-04-30 | AI17: =+Daten!BA18 -> 7.9 | AJ17: =+Daten!BC18 -> 9.9 | AK17: =+Daten!BG18 -> 8.8 | AL17: =+Daten!BQ18 -> 10.9 | AN17: =+Daten!BT18 -> 2009-04-30 | AO17: =+Daten!BU18 -> -5 | AP17: =+Daten!BW18 -> -20.2 | AQ17: =+Daten!CG18 -> -21.1 | AR17: =+Daten!CI18 -> -24.9 | AS17: =+Daten!CC8 -> -9.5 | AU17: =+Daten!BX18 -> 2009-04-30 | AV17: =+Daten!BY18 -> -22.1 | AW17: =+Daten!CA18 -> -25.4 | AX17: =+Daten!CE18 -> -14.2 | AY17: =+Daten!CO18 -> -12.2
N18: =+Daten!X19 -> 2009-05-31 | O18: =+Daten!Y19 -> 2.7 | P18: =+Daten!AA19 -> 3.9 | Q18: =+Daten!AK19 -> 9.1 | R18: =+Daten!AM19 -> 0.7 | S18: =+Daten!AG19 -> 5.95 | U18: =+Daten!AB19 -> 2009-05-31 | V18: =+Daten!AC19 -> 1.3 | W18: =+Daten!AE19 -> 3.8 | X18: =+Daten!AI19 -> 12.3 | Y18: =+Daten!AS19 -> 3.6 | AA18: =+Daten!AV19 -> 2009-05-31 | AB18: =+Daten!AW19 -> 14.4 | AC18: =+Daten!AY19 -> 7.3 | AD18: 17.4 | AE18: =+Daten!BK19 -> 8.9 | AF18: =+Daten!CV27 -> 5.8 | AH18: =+Daten!AZ19 -> 2009-05-31 | AI18: =+Daten!BA19 -> 7.9 | AJ18: =+Daten!BC19 -> 9.8 | AK18: =+Daten!BG19 -> 8.5 | AL18: =+Daten!BQ19 -> 10.7 | AN18: =+Daten!BT19 -> 2009-05-31 | AO18: =+Daten!BU19 -> -7.3 | AP18: =+Daten!BW19 -> -22 | AQ18: =+Daten!CG19 -> -19.5 | AR18: =+Daten!CI19 -> -19.8 | AS18: =+Daten!CC9 -> -9.8 | AU18: =+Daten!BX19 -> 2009-05-31 | AV18: =+Daten!BY19 -> -21.3 | AW18: =+Daten!CA19 -> -22.1 | AX18: =+Daten!CE19 -> -14.5 | AY18: =+Daten!CO19 -> -5.2
N19: =+Daten!X20 -> 2009-06-30 | O19: =+Daten!Y20 -> 2.1 | P19: =+Daten!AA20 -> 3.7 | Q19: =+Daten!AK20 -> 8.3 | R19: =+Daten!AM20 -> 0.3 | S19: =+Daten!AG20 -> 5.86 | U19: =+Daten!AB20 -> 2009-06-30 | V19: =+Daten!AC20 -> 1.2 | W19: =+Daten!AE20 -> 3.7 | X19: =+Daten!AI20 -> 11.9 | Y19: =+Daten!AS20 -> 3.5 | AA19: =+Daten!AV20 -> 2009-06-30 | AB19: =+Daten!AW20 -> 14 | AC19: =+Daten!AY20 -> 7.62 | AD19: 17.4 | AE19: =+Daten!BK20 -> 9.1 | AF19: =+Daten!CV28 -> 6 | AH19: =+Daten!AZ20 -> 2009-06-30 | AI19: =+Daten!BA20 -> 8 | AJ19: =+Daten!BC20 -> 9.6 | AK19: =+Daten!BG20 -> 8.3 | AL19: =+Daten!BQ20 -> 10.6 | AN19: =+Daten!BT20 -> 2009-06-30 | AO19: =+Daten!BU20 -> -12.4 | AP19: =+Daten!BW20 -> -18.2 | AQ19: =+Daten!CG20 -> -14.1 | AR19: =+Daten!CI20 -> -22.3 | AS19: =+Daten!CC10 -> -8.9 | AU19: =+Daten!BX20 -> 2009-06-30 | AV19: =+Daten!BY20 -> -11.8 | AW19: =+Daten!CA20 -> -18.6 | AX19: =+Daten!CE20 -> -12 | AY19: =+Daten!CO20 -> -4.5
N20: =+Daten!X21 -> 2009-07-31 | O20: =+Daten!Y21 -> 1.2 | P20: =+Daten!AA21 -> 1.6 | Q20: =+Daten!AK21 -> 8.5 | R20: =+Daten!AM21 -> -0.6 | S20: =+Daten!AG21 -> 5.06 | U20: =+Daten!AB21 -> 2009-07-31 | V20: =+Daten!AC21 -> 0.3 | W20: =+Daten!AE21 -> 5.1 | X20: =+Daten!AI21 -> 12 | Y20: =+Daten!AS21 -> 3.6 | AA20: =+Daten!AV21 -> 2009-07-31 | AB20: =+Daten!AW21 -> 14 | AC20: =+Daten!AY21 -> 7.88 | AD20: 17.4 | AE20: =+Daten!BK21 -> 9.4 | AF20: =+Daten!CV29 -> 6.3 | AH20: =+Daten!AZ21 -> 2009-07-31 | AI20: =+Daten!BA21 -> 8.4 | AJ20: =+Daten!BC21 -> 9.7 | AK20: =+Daten!BG21 -> 8.5 | AL20: =+Daten!BQ21 -> 10.7 | AN20: =+Daten!BT21 -> 2009-07-31 | AO20: =+Daten!BU21 -> -9.1 | AP20: =+Daten!BW21 -> -18.7 | AQ20: =+Daten!CG21 -> -15.4 | AR20: =+Daten!CI21 -> -20.4 | AS20: =+Daten!CC11 -> -6.9 | AU20: =+Daten!BX21 -> 2009-07-31 | AV20: =+Daten!BY21 -> -18.2 | AW20: =+Daten!CA21 -> -19.4 | AX20: =+Daten!CE21 -> -9.8 | AY20: =+Daten!CO21 -> -4.4
N21: =+Daten!X22 -> 2009-08-31 | O21: =+Daten!Y22 -> 1.5 | P21: =+Daten!AA22 -> 1.3 | Q21: =+Daten!AK22 -> 8 | R21: =+Daten!AM22 -> 0 | S21: =+Daten!AG22 -> 4.96 | U21: =+Daten!AB22 -> 2009-08-31 | V21: =+Daten!AC22 -> 0.2 | W21: =+Daten!AE22 -> 5 | X21: =+Daten!AI22 -> 11.6 | Y21: =+Daten!AS22 -> 3.7 | AA21: =+Daten!AV22 -> 2009-08-31 | AB21: =+Daten!AW22 -> 14.2 | AC21: =+Daten!AY22 -> 8.03 | AD21: 17.4 | AE21: =+Daten!BK22 -> 9.4 | AF21: =+Daten!CV30 -> 6.6 | AH21: =+Daten!AZ22 -> 2009-08-31 | AI21: =+Daten!BA22 -> 8.5 | AJ21: =+Daten!BC22 -> 9.9 | AK21: =+Daten!BG22 -> 7.8 | AL21: =+Daten!BQ22 -> 10.8 | AN21: =+Daten!BT22 -> 2009-08-31 | AO21: =+Daten!BU22 -> -9.7 | AP21: =+Daten!BW22 -> -15.9 | AQ21: =+Daten!CG22 -> -10 | AR21: =+Daten!CI22 -> -18.4 | AS21: =+Daten!CC12 -> -5.9 | AU21: =+Daten!BX22 -> 2009-08-31 | AV21: =+Daten!BY22 -> -8.8 | AW21: =+Daten!CA22 -> -19.7 | AX21: =+Daten!CE22 -> -10.7 | AY21: =+Daten!CO22 -> 0.1
N22: =+Daten!X23 -> 2009-09-30 | O22: =+Daten!Y23 -> 1 | P22: =+Daten!AA23 -> 0.2 | Q22: =+Daten!AK23 -> 7.3 | R22: =+Daten!AM23 -> -0.1 | S22: =+Daten!AG23 -> 4.94 | U22: =+Daten!AB23 -> 2009-09-30 | V22: =+Daten!AC23 -> 0 | W22: =+Daten!AE23 -> 4.9 | X22: =+Daten!AI23 -> 10.7 | Y22: =+Daten!AS23 -> 3.4 | AA22: =+Daten!AV23 -> 2009-09-30 | AB22: =+Daten!AW23 -> 14.7 | AC22: =+Daten!AY23 -> 8.23 | AD22: 17.4 | AE22: =+Daten!BK23 -> 9.4 | AF22: =+Daten!CV31 -> 6.8 | AH22: =+Daten!AZ23 -> 2009-09-30 | AI22: =+Daten!BA23 -> 8.6 | AJ22: =+Daten!BC23 -> 10.3 | AK22: =+Daten!BG23 -> 7.6 | AL22: =+Daten!BQ23 -> 10.9 | AN22: =+Daten!BT23 -> 2009-09-30 | AO22: =+Daten!BU23 -> -9.5 | AP22: =+Daten!BW23 -> -21.1 | AQ22: =+Daten!CG23 -> -6.3 | AR22: =+Daten!CI23 -> -16.3 | AS22: =+Daten!CC13 -> -4 | AU22: =+Daten!BX23 -> 2009-09-30 | AV22: =+Daten!BY23 -> -11.5 | AW22: =+Daten!CA23 -> -14.7 | AX22: =+Daten!CE23 -> -8.4 | AY22: =+Daten!CO23 -> -1.3
N23: =+Daten!X24 -> 2009-10-31 | O23: =+Daten!Y24 -> 1.3 | P23: =+Daten!AA24 -> -0.3 | Q23: =+Daten!AK24 -> 5.2 | R23: =+Daten!AM24 -> 0 | S23: =+Daten!AG24 -> 4.3 | U23: =+Daten!AB24 -> 2009-10-31 | V23: =+Daten!AC24 -> -0.2 | W23: =+Daten!AE24 -> 4.7 | X23: =+Daten!AI24 -> 9.7 | Y23: =+Daten!AS24 -> 3.1 | AA23: =+Daten!AV24 -> 2009-10-31 | AB23: =+Daten!AW24 -> 15.5 | AC23: =+Daten!AY24 -> 8.66 | AD23: =VLOOKUP(AA23,Daten!CX:CY,2,1) -> 17.4 | AE23: =+Daten!BK24 -> 10 | AF23: =+Daten!CV32 -> 7.1 | AH23: =+Daten!AZ24 -> 2009-10-31 | AI23: =+Daten!BA24 -> 8.5 | AJ23: =+Daten!BC24 -> 10.4 | AK23: =+Daten!BG24 -> 7.7 | AL23: =+Daten!BQ24 -> 11.1 | AN23: =+Daten!BT24 -> 2009-10-31 | AO23: =+Daten!BU24 -> -7.2 | AP23: =+Daten!BW24 -> -16.1 | AQ23: =+Daten!CG24 -> -5.8 | AR23: =+Daten!CI24 -> -18.3 | AS23: =+Daten!CC14 -> -1.5 | AU23: =+Daten!BX24 -> 2009-10-31 | AV23: =+Daten!BY24 -> -7.2 | AW23: =+Daten!CA24 -> -11.1 | AX23: =+Daten!CE24 -> -5.6 | AY23: =+Daten!CO24 -> -1.3
N24: =+Daten!X25 -> 2009-11-30 | O24: =+Daten!Y25 -> 1.8 | P24: =+Daten!AA25 -> -0.1 | Q24: =+Daten!AK25 -> 5.9 | R24: =+Daten!AM25 -> 1.6 | S24: =+Daten!AG25 -> 4.7 | U24: =+Daten!AB25 -> 2009-11-30 | V24: =+Daten!AC25 -> 0.5 | W24: =+Daten!AE25 -> 5.2 | X24: =+Daten!AI25 -> 9.1 | Y24: =+Daten!AS25 -> 3.3 | AA24: =+Daten!AV25 -> 2009-11-30 | AB24: =+Daten!AW25 -> 16.1 | AC24: =+Daten!AY25 -> 9.13 | AD24: =VLOOKUP(AA24,Daten!CX:CY,2,1) -> 17.4 | AE24: =+Daten!BK25 -> 10.1 | AF24: =+Daten!CV33 -> 7.5 | AH24: =+Daten!AZ25 -> 2009-11-30 | AI24: =+Daten!BA25 -> 8.6 | AJ24: =+Daten!BC25 -> 10.5 | AK24: =+Daten!BG25 -> 8.2 | AL24: =+Daten!BQ25 -> 11.4 | AN24: =+Daten!BT25 -> 2009-11-30 | AO24: =+Daten!BU25 -> -9.8 | AP24: =+Daten!BW25 -> -10.8 | AQ24: =+Daten!CG25 -> -4.2 | AR24: =+Daten!CI25 -> -2.3 | AS24: =+Daten!CC15 -> 3 | AU24: =+Daten!BX25 -> 2009-11-30 | AV24: =+Daten!BY25 -> -0.2 | AW24: =+Daten!CA25 -> -9 | AX24: =+Daten!CE25 -> 4.9 | AY24: =+Daten!CO25 -> 9.9
N25: =+Daten!X26 -> 2009-12-31 | O25: =+Daten!Y26 -> 1.9 | P25: =+Daten!AA26 -> 0.6 | Q25: =+Daten!AK26 -> 6.6 | R25: =+Daten!AM26 -> 1.8 | S25: =+Daten!AG26 -> 4.74 | U25: =+Daten!AB26 -> 2009-12-31 | V25: =+Daten!AC26 -> 1 | W25: =+Daten!AE26 -> 5.6 | X25: =+Daten!AI26 -> 8.8 | Y25: =+Daten!AS26 -> 3.5 | AA25: =+Daten!AV26 -> 2009-12-31 | AB25: =+Daten!AW26 -> 16.7 | AC25: =+Daten!AY26 -> 9.9 | AD25: =VLOOKUP(AA25,Daten!CX:CY,2,1) -> 17.4 | AE25: =+Daten!BK26 -> 10.3 | AF25: =+Daten!CV34 -> 7.8 | AH25: =+Daten!AZ26 -> 2009-12-31 | AI25: =+Daten!BA26 -> 9.2 | AJ25: =+Daten!BC26 -> 10.5 | AK25: =+Daten!BG26 -> 8.2 | AL25: =+Daten!BQ26 -> 12.1 | AN25: =+Daten!BT26 -> 2009-12-31 | AO25: =+Daten!BU26 -> -7.2 | AP25: =+Daten!BW26 -> -12.1 | AQ25: =+Daten!CG26 -> -1.3 | AR25: =+Daten!CI26 -> 2.7 | AS25: =+Daten!CC16 -> 8.3 | AU25: =+Daten!BX26 -> 2009-12-31 | AV25: =+Daten!BY26 -> 1.8 | AW25: =+Daten!CA26 -> -0.8 | AX25: =+Daten!CE26 -> 6.9 | AY25: =+Daten!CO26 -> 7.4
N26: =+Daten!X27 -> 2010-01-31 | O26: =+Daten!Y27 -> 1.1 | P26: =+Daten!AA27 -> 0.5 | Q26: =+Daten!AK27 -> 4.8 | R26: =+Daten!AM27 -> 1.5 | S26: =+Daten!AG27 -> 5.2 | U26: =+Daten!AB27 -> 2010-01-31 | V26: =+Daten!AC27 -> 0.7 | W26: =+Daten!AE27 -> 6.4 | X26: =+Daten!AI27 -> 8 | Y26: =+Daten!AS27 -> 3.5 | AA26: =+Daten!AV27 -> 2010-01-31 | AB26: =+Daten!AW27 -> 17.8 | AC26: =+Daten!AY27 -> 10.26 | AD26: =VLOOKUP(AA26,Daten!CX:CY,2,1) -> 17.4 | AE26: =+Daten!BK27 -> 10.6 | AF26: =+Daten!CV35 -> 8.1 | AH26: =+Daten!AZ27 -> 2010-01-31 | AI26: =+Daten!BA27 -> 9.8 | AJ26: =+Daten!BC27 -> 10.8 | AK26: =+Daten!BG27 -> 9.2 | AL26: =+Daten!BQ27 -> 12.9 | AN26: =+Daten!BT27 -> 2010-01-31 | AO26: =+Daten!BU27 -> 1.5 | AP26: =+Daten!BW27 -> -0.9 | AQ26: =+Daten!CG27 -> 3.7 | AR26: =+Daten!CI27 -> -7.9 | AS26: =+Daten!CC17 -> 7.1 | AU26: =+Daten!BX27 -> 2010-01-31 | AV26: =+Daten!BY27 -> 4.9 | AW26: =+Daten!CA27 -> 6 | AX26: =+Daten!CE27 -> 10.2 | AY26: =+Daten!CO27 -> 8.5
N27: =+Daten!X28 -> 2010-02-28 | O27: =+Daten!Y28 -> 0.7 | P27: =+Daten!AA28 -> 0.9 | Q27: =+Daten!AK28 -> 3.9 | R27: =+Daten!AM28 -> 1.3 | S27: =+Daten!AG28 -> 4.49 | U27: =+Daten!AB28 -> 2010-02-28 | V27: =+Daten!AC28 -> 0.6 | W27: =+Daten!AE28 -> 5.7 | X27: =+Daten!AI28 -> 7.2 | Y27: =+Daten!AS28 -> 2.9 | AA27: =+Daten!AV28 -> 2010-02-28 | AB27: =+Daten!AW28 -> 18.3 | AC27: =+Daten!AY28 -> 10.14 | AD27: =VLOOKUP(AA27,Daten!CX:CY,2,1) -> 17.4 | AE27: =+Daten!BK28 -> 10.7 | AF27: =+Daten!CV36 -> 8.4 | AH27: =+Daten!AZ28 -> 2010-02-28 | AI27: =+Daten!BA28 -> 9.9 | AJ27: =+Daten!BC28 -> 11.4 | AK27: =+Daten!BG28 -> 8.6 | AL27: =+Daten!BQ28 -> 13.2 | AN27: =+Daten!BT28 -> 2010-02-28 | AO27: =+Daten!BU28 -> 0.1 | AP27: =+Daten!BW28 -> -9.1 | AQ27: =+Daten!CG28 -> 2.8 | AR27: =+Daten!CI28 -> 1.5 | AS27: =+Daten!CC18 -> 1.4 | AU27: =+Daten!BX28 -> 2010-02-28 | AV27: =+Daten!BY28 -> 6.9 | AW27: =+Daten!CA28 -> 8.2 | AX27: =+Daten!CE28 -> 8.4 | AY27: =+Daten!CO28 -> 9.2
N28: =+Daten!X29 -> 2010-03-31 | O28: =+Daten!Y29 -> 0.9 | P28: =+Daten!AA29 -> 1.3 | Q28: =+Daten!AK29 -> 4.7 | R28: =+Daten!AM29 -> 1.4 | S28: =+Daten!AG29 -> 4.2 | U28: =+Daten!AB29 -> 2010-03-31 | V28: =+Daten!AC29 -> 0.7 | W28: =+Daten!AE29 -> 5.9 | X28: =+Daten!AI29 -> 6.5 | Y28: =+Daten!AS29 -> 2.6 | AA28: =+Daten!AV29 -> 2010-03-31 | AB28: =+Daten!AW29 -> 17.9 | AC28: =+Daten!AY29 -> 9.95 | AD28: =VLOOKUP(AA28,Daten!CX:CY,2,1) -> 17.4 | AE28: =+Daten!BK29 -> 10.6 | AF28: =+Daten!CV37 -> 8.4 | AH28: =+Daten!AZ29 -> 2010-03-31 | AI28: =+Daten!BA29 -> 9.7 | AJ28: =+Daten!BC29 -> 11.8 | AK28: =+Daten!BG29 -> 8.6 | AL28: =+Daten!BQ29 -> 13 | AN28: =+Daten!BT29 -> 2010-03-31 | AO28: =+Daten!BU29 -> -0.6 | AP28: =+Daten!BW29 -> 1.7 | AQ28: =+Daten!CG29 -> 2.7 | AR28: =+Daten!CI29 -> 6.5 | AS28: =+Daten!CC19 -> 5.2 | AU28: =+Daten!BX29 -> 2010-03-31 | AV28: =+Daten!BY29 -> 10.2 | AW28: =+Daten!CA29 -> 4.2 | AX28: =+Daten!CE29 -> 9.8 | AY28: =+Daten!CO29 -> 12.5
N29: =+Daten!X30 -> 2010-04-30 | O29: =+Daten!Y30 -> 0.6 | P29: =+Daten!AA30 -> 1.8 | Q29: =+Daten!AK30 -> 4.3 | R29: =+Daten!AM30 -> 2.3 | S29: =+Daten!AG30 -> 4.28 | U29: =+Daten!AB30 -> 2010-04-30 | V29: =+Daten!AC30 -> 1.1 | W29: =+Daten!AE30 -> 5.7 | X29: =+Daten!AI30 -> 6 | Y29: =+Daten!AS30 -> 2.4 | AA29: =+Daten!AV30 -> 2010-04-30 | AB29: =+Daten!AW30 -> 17.9 | AC29: =+Daten!AY30 -> 9.53 | AD29: =VLOOKUP(AA29,Daten!CX:CY,2,1) -> 20.1 | AE29: =+Daten!BK30 -> 10.6 | AF29: =+Daten!CV38 -> 8.1 | AH29: =+Daten!AZ30 -> 2010-04-30 | AI29: =+Daten!BA30 -> 9.2 | AJ29: =+Daten!BC30 -> 11.8 | AK29: =+Daten!BG30 -> 8.2 | AL29: =+Daten!BQ30 -> 12.4 | AN29: =+Daten!BT30 -> 2010-04-30 | AO29: =+Daten!BU30 -> -6.5 | AP29: =+Daten!BW30 -> 0.2 | AQ29: =+Daten!CG30 -> 11.3 | AR29: =+Daten!CI30 -> 9.7 | AS29: =+Daten!CC20 -> 3 | AU29: =+Daten!BX30 -> 2010-04-30 | AV29: =+Daten!BY30 -> 10.9 | AW29: =+Daten!CA30 -> 10 | AX29: =+Daten!CE30 -> 10.4 | AY29: =+Daten!CO30 -> 9.7
N30: =+Daten!X31 -> 2010-05-31 | O30: =+Daten!Y31 -> 0.8 | P30: =+Daten!AA31 -> 1.9 | Q30: =+Daten!AK31 -> 3.7 | R30: =+Daten!AM31 -> 2.1 | S30: =+Daten!AG31 -> 4.42 | U30: =+Daten!AB31 -> 2010-05-31 | V30: =+Daten!AC31 -> 1.2 | W30: =+Daten!AE31 -> 5.1 | X30: =+Daten!AI31 -> 6 | Y30: =+Daten!AS31 -> 2.2 | AA30: =+Daten!AV31 -> 2010-05-31 | AB30: =+Daten!AW31 -> 17.2 | AC30: =+Daten!AY31 -> 9.26 | AD30: =VLOOKUP(AA30,Daten!CX:CY,2,1) -> 20.1 | AE30: =+Daten!BK31 -> 10.5 | AF30: =+Daten!CV39 -> 7.7 | AH30: =+Daten!AZ31 -> 2010-05-31 | AI30: =+Daten!BA31 -> 8.7 | AJ30: =+Daten!BC31 -> 11.4 | AK30: =+Daten!BG31 -> 7.3 | AL30: =+Daten!BQ31 -> 12.1 | AN30: =+Daten!BT31 -> 2010-05-31 | AO30: =+Daten!BU31 -> -3.4 | AP30: =+Daten!BW31 -> 0.4 | AQ30: =+Daten!CG31 -> 7 | AR30: =+Daten!CI31 -> 11.8 | AS30: =+Daten!CC21 -> 4.1 | AU30: =+Daten!BX31 -> 2010-05-31 | AV30: =+Daten!BY31 -> 16.2 | AW30: =+Daten!CA31 -> 14.2 | AX30: =+Daten!CE31 -> 12.6 | AY30: =+Daten!CO31 -> 13.5
N31: =+Daten!X32 -> 2010-06-30 | O31: =+Daten!Y32 -> 0.7 | P31: =+Daten!AA32 -> 1.4 | Q31: =+Daten!AK32 -> 4.2 | R31: =+Daten!AM32 -> 1.9 | S31: =+Daten!AG32 -> 4.4 | U31: =+Daten!AB32 -> 2010-06-30 | V31: =+Daten!AC32 -> 1.2 | W31: =+Daten!AE32 -> 5.3 | X31: =+Daten!AI32 -> 5.8 | Y31: =+Daten!AS32 -> 2.3 | AA31: =+Daten!AV32 -> 2010-06-30 | AB31: =+Daten!AW32 -> 16.6 | AC31: =+Daten!AY32 -> 9.23 | AD31: =VLOOKUP(AA31,Daten!CX:CY,2,1) -> 20.1 | AE31: =+Daten!BK32 -> 10.5 | AF31: =+Daten!CV40 -> 7.5 | AH31: =+Daten!AZ32 -> 2010-06-30 | AI31: =+Daten!BA32 -> 8.5 | AJ31: =+Daten!BC32 -> 11.1 | AK31: =+Daten!BG32 -> 6.8 | AL31: =+Daten!BQ32 -> 11.7 | AN31: =+Daten!BT32 -> 2010-06-30 | AO31: =+Daten!BU32 -> -4 | AP31: =+Daten!BW32 -> 3.6 | AQ31: =+Daten!CG32 -> 2.5 | AR31: =+Daten!CI32 -> 10.4 | AS31: =+Daten!CC22 -> 4.7 | AU31: =+Daten!BX32 -> 2010-06-30 | AV31: =+Daten!BY32 -> 9 | AW31: =+Daten!CA32 -> 12.6 | AX31: =+Daten!CE32 -> 9.7 | AY31: =+Daten!CO32 -> 14.3
N32: =+Daten!X33 -> 2010-07-31 | O32: =+Daten!Y33 -> 1 | P32: =+Daten!AA33 -> 2.4 | Q32: =+Daten!AK33 -> 5.1 | R32: =+Daten!AM33 -> 2.1 | S32: =+Daten!AG33 -> 7.14 | U32: =+Daten!AB33 -> 2010-07-31 | V32: =+Daten!AC33 -> 1.9 | W32: =+Daten!AE33 -> 4 | X32: =+Daten!AI33 -> 5.5 | Y32: =+Daten!AS33 -> 2 | AA32: =+Daten!AV33 -> 2010-07-31 | AB32: =+Daten!AW33 -> 16.4 | AC32: =+Daten!AY33 -> 9.14 | AD32: =VLOOKUP(AA32,Daten!CX:CY,2,1) -> 20.1 | AE32: =+Daten!BK33 -> 10.5 | AF32: =+Daten!CV41 -> 7.5 | AH32: =+Daten!AZ33 -> 2010-07-31 | AI32: =+Daten!BA33 -> 8.7 | AJ32: =+Daten!BC33 -> 11 | AK32: =+Daten!BG33 -> 7 | AL32: =+Daten!BQ33 -> 11.5 | AN32: =+Daten!BT33 -> 2010-07-31 | AO32: =+Daten!BU33 -> -1.8 | AP32: =+Daten!BW33 -> 2.4 | AQ32: =+Daten!CG33 -> 5.1 | AR32: =+Daten!CI33 -> 9.5 | AS32: =+Daten!CC23 -> 2.3 | AU32: =+Daten!BX33 -> 2010-07-31 | AV32: =+Daten!BY33 -> 5.3 | AW32: =+Daten!CA33 -> 12.1 | AX32: =+Daten!CE33 -> 5.9 | AY32: =+Daten!CO33 -> 10.5
N33: =+Daten!X34 -> 2010-08-31 | O33: =+Daten!Y34 -> 0.9 | P33: =+Daten!AA34 -> 2.7 | Q33: =+Daten!AK34 -> 6.6 | R33: =+Daten!AM34 -> 2.3 | S33: =+Daten!AG34 -> 7.58 | U33: =+Daten!AB34 -> 2010-08-31 | V33: =+Daten!AC34 -> 1.9 | W33: =+Daten!AE34 -> 3.7 | X33: =+Daten!AI34 -> 6.1 | Y33: =+Daten!AS34 -> 2 | AA33: =+Daten!AV34 -> 2010-08-31 | AB33: =+Daten!AW34 -> 16.4 | AC33: =+Daten!AY34 -> 9 | AD33: =VLOOKUP(AA33,Daten!CX:CY,2,1) -> 20.1 | AE33: =+Daten!BK34 -> 10.6 | AF33: =+Daten!CV42 -> 7.4 | AH33: =+Daten!AZ34 -> 2010-08-31 | AI33: =+Daten!BA34 -> 8.6 | AJ33: =+Daten!BC34 -> 11 | AK33: =+Daten!BG34 -> 6.9 | AL33: =+Daten!BQ34 -> 11.4 | AN33: =+Daten!BT34 -> 2010-08-31 | AO33: =+Daten!BU34 -> -0.7 | AP33: =+Daten!BW34 -> 4 | AQ33: =+Daten!CG34 -> 3.4 | AR33: =+Daten!CI34 -> 11.5 | AS33: =+Daten!CC24 -> 4.9 | AU33: =+Daten!BX34 -> 2010-08-31 | AV33: =+Daten!BY34 -> 14.1 | AW33: =+Daten!CA34 -> 15 | AX33: =+Daten!CE34 -> 7 | AY33: =+Daten!CO34 -> 13.6
N34: =+Daten!X35 -> 2010-09-30 | O34: =+Daten!Y35 -> 1.4 | P34: =+Daten!AA35 -> 3.5 | Q34: =+Daten!AK35 -> 7.7 | R34: =+Daten!AM35 -> 2 | S34: =+Daten!AG35 -> 7.77 | U34: =+Daten!AB35 -> 2010-09-30 | V34: =+Daten!AC35 -> 2 | W34: =+Daten!AE35 -> 3.8 | X34: =+Daten!AI35 -> 7 | Y34: =+Daten!AS35 -> 2.5 | AA34: =+Daten!AV35 -> 2010-09-30 | AB34: =+Daten!AW35 -> 16.9 | AC34: =+Daten!AY35 -> 8.9 | AD34: =VLOOKUP(AA34,Daten!CX:CY,2,1) -> 20.1 | AE34: =+Daten!BK35 -> 10.5 | AF34: =+Daten!CV43 -> 7.3 | AH34: =+Daten!AZ35 -> 2010-09-30 | AI34: =+Daten!BA35 -> 8.5 | AJ34: =+Daten!BC35 -> 10.9 | AK34: =+Daten!BG35 -> 6.6 | AL34: =+Daten!BQ35 -> 11.5 | AN34: =+Daten!BT35 -> 2010-09-30 | AO34: =+Daten!BU35 -> 3.1 | AP34: =+Daten!BW35 -> 9.3 | AQ34: =+Daten!CG35 -> 2.6 | AR34: =+Daten!CI35 -> 5.1 | AS34: =+Daten!CC25 -> 2.8 | AU34: =+Daten!BX35 -> 2010-09-30 | AV34: =+Daten!BY35 -> 12.4 | AW34: =+Daten!CA35 -> 11.2 | AX34: =+Daten!CE35 -> 6.2 | AY34: =+Daten!CO35 -> 11.8
N35: =+Daten!X36 -> 2010-10-31 | O35: =+Daten!Y36 -> 1.4 | P35: =+Daten!AA36 -> 3.9 | Q35: =+Daten!AK36 -> 8.9 | R35: =+Daten!AM36 -> 1.9 | S35: =+Daten!AG36 -> 7.88 | U35: =+Daten!AB36 -> 2010-10-31 | V35: =+Daten!AC36 -> 2 | W35: =+Daten!AE36 -> 4.2 | X35: =+Daten!AI36 -> 7.5 | Y35: =+Daten!AS36 -> 2.8 | AA35: =+Daten!AV36 -> 2010-10-31 | AB35: =+Daten!AW36 -> 17.8 | AC35: =+Daten!AY36 -> 9.1 | AD35: =VLOOKUP(AA35,Daten!CX:CY,2,1) -> 20 | AE35: =+Daten!BK36 -> 10.9 | AF35: =+Daten!CV44 -> 7.1 | AH35: =+Daten!AZ36 -> 2010-10-31 | AI35: =+Daten!BA36 -> 8.5 | AJ35: =+Daten!BC36 -> 10.9 | AK35: =+Daten!BG36 -> 6.8 | AL35: =+Daten!BQ36 -> 11.5 | AN35: =+Daten!BT36 -> 2010-10-31 | AO35: =+Daten!BU36 -> -4.5 | AP35: =+Daten!BW36 -> 4 | AQ35: =+Daten!CG36 -> -2.9 | AR35: =+Daten!CI36 -> 8.5 | AS35: =+Daten!CC26 -> 2 | AU35: =+Daten!BX36 -> 2010-10-31 | AV35: =+Daten!BY36 -> 6.9 | AW35: =+Daten!CA36 -> 8.5 | AX35: =+Daten!CE36 -> 6.6 | AY35: =+Daten!CO36 -> 8
N36: =+Daten!X37 -> 2010-11-30 | O36: =+Daten!Y37 -> 1.2 | P36: =+Daten!AA37 -> 4.6 | Q36: =+Daten!AK37 -> 9.6 | R36: =+Daten!AM37 -> 1.4 | S36: =+Daten!AG37 -> 7.73 | U36: =+Daten!AB37 -> 2010-11-30 | V36: =+Daten!AC37 -> 2 | W36: =+Daten!AE37 -> 4.2 | X36: =+Daten!AI37 -> 8.1 | Y36: =+Daten!AS37 -> 2.7 | AA36: =+Daten!AV37 -> 2010-11-30 | AB36: =+Daten!AW37 -> 18.3 | AC36: =+Daten!AY37 -> 9.2 | AD36: =VLOOKUP(AA36,Daten!CX:CY,2,1) -> 20 | AE36: =+Daten!BK37 -> 11.1 | AF36: =+Daten!CV45 -> 6.9 | AH36: =+Daten!AZ37 -> 2010-11-30 | AI36: =+Daten!BA37 -> 8.6 | AJ36: =+Daten!BC37 -> 10.7 | AK36: =+Daten!BG37 -> 6.7 | AL36: =+Daten!BQ37 -> 11.7 | AN36: =+Daten!BT37 -> 2010-11-30 | AO36: =+Daten!BU37 -> 0.2 | AP36: =+Daten!BW37 -> 5.8 | AQ36: =+Daten!CG37 -> -0.5 | AR36: =+Daten!CI37 -> 5.4 | AS36: =+Daten!CC27 -> 4 | AU36: =+Daten!BX37 -> 2010-11-30 | AV36: =+Daten!BY37 -> 15.2 | AW36: =+Daten!CA37 -> 14.7 | AX36: =+Daten!CE37 -> 6.7 | AY36: =+Daten!CO37 -> 10
N37: =+Daten!X38 -> 2010-12-31 | O37: =+Daten!Y38 -> 1.8 | P37: =+Daten!AA38 -> 4.5 | Q37: =+Daten!AK38 -> 10.3 | R37: =+Daten!AM38 -> 1.9 | S37: =+Daten!AG38 -> 7.96 | U37: =+Daten!AB38 -> 2010-12-31 | V37: =+Daten!AC38 -> 2.3 | W37: =+Daten!AE38 -> 4.7 | X37: =+Daten!AI38 -> 8.8 | Y37: =+Daten!AS38 -> 3.1 | AA37: =+Daten!AV38 -> 2010-12-31 | AB37: =+Daten!AW38 -> 18.8 | AC37: =+Daten!AY38 -> 9.8 | AD37: =VLOOKUP(AA37,Daten!CX:CY,2,1) -> 20 | AE37: =+Daten!BK38 -> 11.8 | AF37: =+Daten!CV46 -> 6.9 | AH37: =+Daten!AZ38 -> 2010-12-31 | AI37: =+Daten!BA38 -> 9.6 | AJ37: =+Daten!BC38 -> 10.8 | AK37: =+Daten!BG38 -> 7.2 | AL37: =+Daten!BQ38 -> 12.3 | AN37: =+Daten!BT38 -> 2010-12-31 | AO37: =+Daten!BU38 -> -0.7 | AP37: =+Daten!BW38 -> 5.2 | AQ37: =+Daten!CG38 -> -0.8 | AR37: =+Daten!CI38 -> 10.8 | AS37: =+Daten!CC28 -> 6.5 | AU37: =+Daten!BX38 -> 2010-12-31 | AV37: =+Daten!BY38 -> 12 | AW37: =+Daten!CA38 -> 5.9 | AX37: =+Daten!CE38 -> 6.3 | AY37: =+Daten!CO38 -> 11.4
N38: =+Daten!X39 -> 2011-01-31 | O38: =+Daten!Y39 -> 1.9 | P38: =+Daten!AA39 -> 4.5 | Q38: =+Daten!AK39 -> 11.2 | R38: =+Daten!AM39 -> 1.8 | S38: =+Daten!AG39 -> 6.99 | U38: =+Daten!AB39 -> 2011-01-31 | V38: =+Daten!AC39 -> 1.7 | W38: =+Daten!AE39 -> 4 | X38: =+Daten!AI39 -> 9.6 | Y38: =+Daten!AS39 -> 3.6 | AA38: =+Daten!AV39 -> 2011-01-31 | AB38: =+Daten!AW39 -> 19.6 | AC38: =+Daten!AY39 -> 9.78 | AD38: =VLOOKUP(AA38,Daten!CX:CY,2,1) -> 20 | AE38: =+Daten!BK39 -> 12.3 | AF38: =+Daten!CV47 -> 6.74 | AH38: =+Daten!AZ39 -> 2011-01-31 | AI38: =+Daten!BA39 -> 9.7 | AJ38: =+Daten!BC39 -> 11.2 | AK38: =+Daten!BG39 -> 7.8 | AL38: =+Daten!BQ39 -> 13 | AN38: =+Daten!BT39 -> 2011-01-31 | AO38: =+Daten!BU39 -> -6.7 | AP38: =+Daten!BW39 -> 8.6 | AQ38: =+Daten!CG39 -> 3.8 | AR38: =+Daten!CI39 -> 12.7 | AS38: =+Daten!CC29 -> 10.6 | AU38: =+Daten!BX39 -> 2011-01-31 | AV38: =+Daten!BY39 -> 16.4 | AW38: =+Daten!CA39 -> 10.7 | AX38: =+Daten!CE39 -> 6.7 | AY38: =+Daten!CO39 -> 10.3
N39: =+Daten!X40 -> 2011-02-28 | O39: =+Daten!Y40 -> 2.2 | P39: =+Daten!AA40 -> 5.2 | Q39: =+Daten!AK40 -> 12.6 | R39: =+Daten!AM40 -> 1.4 | S39: =+Daten!AG40 -> 7.6 | U39: =+Daten!AB40 -> 2011-02-28 | V39: =+Daten!AC40 -> 1.8 | W39: =+Daten!AE40 -> 4.1 | X39: =+Daten!AI40 -> 9.5 | Y39: =+Daten!AS40 -> 3.6 | AA39: =+Daten!AV40 -> 2011-02-28 | AB39: =+Daten!AW40 -> 19.6 | AD39: =VLOOKUP(AA39,Daten!CX:CY,2,1) -> 20 | AF39: =+Daten!CV48 -> 6.58 | AH39: =+Daten!AZ40 -> 2011-02-28 | AI39: =+Daten!BA40 -> 9.6 | AJ39: =+Daten!BC40 -> 11.5 | AK39: =+Daten!BG40 -> 7.6 | AL39: =+Daten!BQ40 -> 13.2 | AN39: =+Daten!BT40 -> 2011-02-28 | AO39: =+Daten!BU40 -> -4.1 | AP39: =+Daten!BW40 -> 15.2 | AQ39: =+Daten!CG40 -> 5.8 | AR39: =+Daten!CI40 -> 7.7 | AS39: =+Daten!CC30 -> 12.7 | AU39: =+Daten!BX40 -> 2011-02-28 | AV39: =+Daten!BY40 -> 13 | AW39: =+Daten!CA40 -> 14.3 | AX39: =+Daten!CE40 -> 5.8 | AY39: =+Daten!CO40 -> 10.7

Sheet chart
J1: FALSE | K1: TRUE | L1: TRUE | M1: TRUE | N1: TRUE | Q1: TRUE | R1: TRUE | S1: TRUE | T1: TRUE
H2: Inflation | V2: =H2&" SEE" -> Inflation SEE | AF2: TRUE | AG2: TRUE | AH2: TRUE | AI2: TRUE
J3: Croatia | K3: Bulgaria | L3: Serbia | M3: Slovenia | N3: Romania | Q3: Czech Republic | R3: Hungary | S3: Russia | T3: Poland | V3: =H2 & " CEE" -> Inflation CEE | Y3: =IF(J$1,J3,"") ->  | Z3: Bulgaria | AA3: Serbia | AB3: Slovenia | AC3: Romania | AF3: =IF(Q$1,Q3,"") -> Czech Republic | AG3: =IF(R$1,R3,"") -> Hungary | AH3: =IF(S$1,S3,"") -> Russia | AI3: =IF(T$1,T3,"") -> Poland
I4: =IF(ISNUMBER(IF($H$2=$V$5,OFFSET(Tabelle!A4,0,0),IF($H$2=$V$6,OFFSET(Tabelle!N4,0,0),IF($H$2=$V$7,OFFSET(Tabelle!AA4,0,0),IF($H$2=$V$8,OFFSET(Tabelle!AN4,0,0)))))),IF($H$2=$V$5,OFFSET(Tabelle!A4,0,0),IF($H$2=$V$6,OFFSET(Tabelle!N4,0,0),IF($H$2=$V$7,OFFSET(Tabelle!AA4,0,0),IF($H$2=$V$8,OFFSET(Tabelle!AN4,0,0))))),"") -> 2008-03-31 | J4: =IF(ISERROR(IF($H$2=$V$5,VLOOKUP($I4,Tabelle!$A:$B,2,0),IF($H$2=$V$6,VLOOKUP($I4,Tabelle!$N:$O,2,0),IF($H$2=$V$7,VLOOKUP($I4,Tabelle!$AA:$AB,2,0),IF($H$2=$V$8,VLOOKUP($I4,Tabelle!$AN:$AO,2,0)))))),"",IF($H$2=$V$5,VLOOKUP($I4,Tabelle!$A:$B,2,0),IF($H$2=$V$6,VLOOKUP($I4,Tabelle!$N:$O,2,0),IF($H$2=$V$7,VLOOKUP($I4,Tabelle!$AA:$AB,2,0),IF($H$2=$V$8,VLOOKUP($I4,Tabelle!$AN:$AO,2,0)))))) -> 5.7 | K4: =IF(ISERROR(IF($H$2=$V$5,VLOOKUP($I4,Tabelle!$A:$C,3,0),IF($H$2=$V$6,VLOOKUP($I4,Tabelle!$N:$P,3,0),IF($H$2=$V$7,VLOOKUP($I4,Tabelle!$AA:$AC,3,0),IF($H$2=$V$8,VLOOKUP($I4,Tabelle!$AN:$AP,3,0)))))),"",IF($H$2=$V$5,VLOOKUP($I4,Tabelle!$A:$C,3,0),IF($H$2=$V$6,VLOOKUP($I4,Tabelle!$N:$P,3,0),IF($H$2=$V$7,VLOOKUP($I4,Tabelle!$AA:$AC,3,0),IF($H$2=$V$8,VLOOKUP($I4,Tabelle!$AN:$AP,3,0)))))) -> 14.2 | L4: =IF(ISERROR(IF($H$2=$V$5,VLOOKUP($I4,Tabelle!$A:$D,4,0),IF($H$2=$V$6,VLOOKUP($I4,Tabelle!$N:$Q,4,0),IF($H$2=$V$7,VLOOKUP($I4,Tabelle!$AA:$AD,4,0),IF($H$2=$V$8,VLOOKUP($I4,Tabelle!$AN:$AQ,4,0)))))),"",IF($H$2=$V$5,VLOOKUP($I4,Tabelle!$A:$D,4,0),IF($H$2=$V$6,VLOOKUP($I4,Tabelle!$N:$Q,4,0),IF($H$2=$V$7,VLOOKUP($I4,Tabelle!$AA:$AD,4,0),IF($H$2=$V$8,VLOOKUP($I4,Tabelle!$AN:$AQ,4,0)))))) -> 13.6 | M4: =IF(ISERROR(IF($H$2=$V$5,VLOOKUP($I4,Tabelle!$A:$E,5,0),IF($H$2=$V$6,VLOOKUP($I4,Tabelle!$N:$R,5,0),IF($H$2=$V$7,VLOOKUP($I4,Tabelle!$AA:$AE,5,0),IF($H$2=$V$8,VLOOKUP($I4,Tabelle!$AN:$AR,5,0)))))),"",IF($H$2=$V$5,VLOOKUP($I4,Tabelle!$A:$E,5,0),IF($H$2=$V$6,VLOOKUP($I4,Tabelle!$N:$R,5,0),IF($H$2=$V$7,VLOOKUP($I4,Tabelle!$AA:$AE,5,0),IF($H$2=$V$8,VLOOKUP($I4,Tabelle!$AN:$AR,5,0)))))) -> 6.9 | N4: =IF(ISERROR(IF($H$2=$V$5,VLOOKUP($I4,Tabelle!$A:$F,6,0),IF($H$2=$V$6,VLOOKUP($I4,Tabelle!$N:$S,6,0),IF($H$2=$V$7,VLOOKUP($I4,Tabelle!$AA:$AF,6,0),IF($H$2=$V$8,VLOOKUP($I4,Tabelle!$AN:$AS,6,0)))))),"",IF($H$2=$V$5,VLOOKUP($I4,Tabelle!$A:$F,6,0),IF($H$2=$V$6,VLOOKUP($I4,Tabelle!$N:$S,6,0),IF($H$2=$V$7,VLOOKUP($I4,Tabelle!$AA:$AF,6,0),IF($H$2=$V$8,VLOOKUP($I4,Tabelle!$AN:$AS,6,0)))))) -> 8.63 | P4: =IF(ISNUMBER(IF($H$2=$V$5,OFFSET(Tabelle!H4,0,0),IF($H$2=$V$6,OFFSET(Tabelle!U4,0,0),IF($H$2=$V$7,OFFSET(Tabelle!AH4,0,0),IF($H$2=$V$8,OFFSET(Tabelle!AV4,0,0)))))),IF($H$2=$V$5,OFFSET(Tabelle!H4,0,0),IF($H$2=$V$6,OFFSET(Tabelle!U4,0,0),IF($H$2=$V$7,OFFSET(Tabelle!AH4,0,0),IF($H$2=$V$8,OFFSET(Tabelle!AU4,0,0))))),"") -> 2008-03-31 | Q4: =IF(ISERROR(IF($H$2=$V$5,VLOOKUP($P4,Tabelle!$H:$I,2,0),IF($H$2=$V$6,VLOOKUP($P4,Tabelle!$U:$V,2,0),IF($H$2=$V$7,VLOOKUP($P4,Tabelle!$AH:$AI,2,0),IF($H$2=$V$8,VLOOKUP($P4,Tabelle!$AU:$AV,2,0)))))),"",IF($H$2=$V$5,VLOOKUP($P4,Tabelle!$H:$I,2,0),IF($H$2=$V$6,VLOOKUP($P4,Tabelle!$U:$V,2,0),IF($H$2=$V$7,VLOOKUP($P4,Tabelle!$AH:$AI,2,0),IF($H$2=$V$8,VLOOKUP($P4,Tabelle!$AU:$AV,2,0)))))) -> 7.1 | R4: =IF(ISERROR(IF($H$2=$V$5,VLOOKUP($P4,Tabelle!$H:$J,3,0),IF($H$2=$V$6,VLOOKUP($P4,Tabelle!$U:$W,3,0),IF($H$2=$V$7,VLOOKUP($P4,Tabelle!$AH:$AJ,3,0),IF($H$2=$V$8,VLOOKUP($P4,Tabelle!$AU:$AW,3,0)))))),"",IF($H$2=$V$5,VLOOKUP($P4,Tabelle!$H:$J,3,0),IF($H$2=$V$6,VLOOKUP($P4,Tabelle!$U:$W,3,0),IF($H$2=$V$7,VLOOKUP($P4,Tabelle!$AH:$AJ,3,0),IF($H$2=$V$8,VLOOKUP($P4,Tabelle!$AU:$AW,3,0)))))) -> 6.7 | S4: =IF(ISERROR(IF($H$2=$V$5,VLOOKUP($P4,Tabelle!$H:$K,4,0),IF($H$2=$V$6,VLOOKUP($P4,Tabelle!$U:$X,4,0),IF($H$2=$V$7,VLOOKUP($P4,Tabelle!$AH:$AK,4,0),IF($H$2=$V$8,VLOOKUP($P4,Tabelle!$AU:$AX,4,0)))))),"",IF($H$2=$V$5,VLOOKUP($P4,Tabelle!$H:$K,4,0),IF($H$2=$V$6,VLOOKUP($P4,Tabelle!$U:$X,4,0),IF($H$2=$V$7,VLOOKUP($P4,Tabelle!$AH:$AK,4,0),IF($H$2=$V$8,VLOOKUP($P4,Tabelle!$AU:$AX,4,0)))))) -> 13.3 | T4: =IF(ISERROR(IF($H$2=$V$5,VLOOKUP($P4,Tabelle!$H:$L,5,0),IF($H$2=$V$6,VLOOKUP($P4,Tabelle!$U:$Y,5,0),IF($H$2=$V$7,VLOOKUP($P4,Tabelle!$AH:$AL,5,0),IF($H$2=$V$8,VLOOKUP($P4,Tabelle!$AU:$AY,5,0)))))),"",IF($H$2=$V$5,VLOOKUP($P4,Tabelle!$H:$L,5,0),IF($H$2=$V$6,VLOOKUP($P4,Tabelle!$U:$Y,5,0),IF($H$2=$V$7,VLOOKUP($P4,Tabelle!$AH:$AL,5,0),IF($H$2=$V$8,VLOOKUP($P4,Tabelle!$AU:$AY,5,0)))))) -> 4.1 | Z4: 14.2 | AA4: 13.6 | AB4: 6.9 | AC4: 8.63 | AF4: =IF(Q$1,Q4,NA()) -> 7.1 | AG4: =IF(R$1,R4,NA()) -> 6.7 | AH4: =IF(S$1,S4,NA()) -> 13.3 | AI4: =IF(T$1,T4,NA()) -> 4.1
I5: =IF(ISNUMBER(IF($H$2=$V$5,OFFSET(Tabelle!A5,0,0),IF($H$2=$V$6,OFFSET(Tabelle!N5,0,0),IF($H$2=$V$7,OFFSET(Tabelle!AA5,0,0),IF($H$2=$V$8,OFFSET(Tabelle!AN5,0,0)))))),IF($H$2=$V$5,OFFSET(Tabelle!A5,0,0),IF($H$2=$V$6,OFFSET(Tabelle!N5,0,0),IF($H$2=$V$7,OFFSET(Tabelle!AA5,0,0),IF($H$2=$V$8,OFFSET(Tabelle!AN5,0,0))))),"") -> 2008-04-30 | J5: =IF(ISERROR(IF($H$2=$V$5,VLOOKUP($I5,Tabelle!$A:$B,2,0),IF($H$2=$V$6,VLOOKUP($I5,Tabelle!$N:$O,2,0),IF($H$2=$V$7,VLOOKUP($I5,Tabelle!$AA:$AB,2,0),IF($H$2=$V$8,VLOOKUP($I5,Tabelle!$AN:$AO,2,0)))))),"",IF($H$2=$V$5,VLOOKUP($I5,Tabelle!$A:$B,2,0),IF($H$2=$V$6,VLOOKUP($I5,Tabelle!$N:$O,2,0),IF($H$2=$V$7,VLOOKUP($I5,Tabelle!$AA:$AB,2,0),IF($H$2=$V$8,VLOOKUP($I5,Tabelle!$AN:$AO,2,0)))))) -> 5.7 | K5: =IF(ISERROR(IF($H$2=$V$5,VLOOKUP($I5,Tabelle!$A:$C,3,0),IF($H$2=$V$6,VLOOKUP($I5,Tabelle!$N:$P,3,0),IF($H$2=$V$7,VLOOKUP($I5,Tabelle!$AA:$AC,3,0),IF($H$2=$V$8,VLOOKUP($I5,Tabelle!$AN:$AP,3,0)))))),"",IF($H$2=$V$5,VLOOKUP($I5,Tabelle!$A:$C,3,0),IF($H$2=$V$6,VLOOKUP($I5,Tabelle!$N:$P,3,0),IF($H$2=$V$7,VLOOKUP($I5,Tabelle!$AA:$AC,3,0),IF($H$2=$V$8,VLOOKUP($I5,Tabelle!$AN:$AP,3,0)))))) -> 14.6 | L5: =IF(ISERROR(IF($H$2=$V$5,VLOOKUP($I5,Tabelle!$A:$D,4,0),IF($H$2=$V$6,VLOOKUP($I5,Tabelle!$N:$Q,4,0),IF($H$2=$V$7,VLOOKUP($I5,Tabelle!$AA:$AD,4,0),IF($H$2=$V$8,VLOOKUP($I5,Tabelle!$AN:$AQ,4,0)))))),"",IF($H$2=$V$5,VLOOKUP($I5,Tabelle!$A:$D,4,0),IF($H$2=$V$6,VLOOKUP($I5,Tabelle!$N:$Q,4,0),IF($H$2=$V$7,VLOOKUP($I5,Tabelle!$AA:$AD,4,0),IF($H$2=$V$8,VLOOKUP($I5,Tabelle!$AN:$AQ,4,0)))))) -> 14.6 | M5: =IF(ISERROR(IF($H$2=$V$5,VLOOKUP($I5,Tabelle!$A:$E,5,0),IF($H$2=$V$6,VLOOKUP($I5,Tabelle!$N:$R,5,0),IF($H$2=$V$7,VLOOKUP($I5,Tabelle!$AA:$AE,5,0),IF($H$2=$V$8,VLOOKUP($I5,Tabelle!$AN:$AR,5,0)))))),"",IF($H$2=$V$5,VLOOKUP($I5,Tabelle!$A:$E,5,0),IF($H$2=$V$6,VLOOKUP($I5,Tabelle!$N:$R,5,0),IF($H$2=$V$7,VLOOKUP($I5,Tabelle!$AA:$AE,5,0),IF($H$2=$V$8,VLOOKUP($I5,Tabelle!$AN:$AR,5,0)))))) -> 6.5 | N5: =IF(ISERROR(IF($H$2=$V$5,VLOOKUP($I5,Tabelle!$A:$F,6,0),IF($H$2=$V$6,VLOOKUP($I5,Tabelle!$N:$S,6,0),IF($H$2=$V$7,VLOOKUP($I5,Tabelle!$AA:$AF,6,0),IF($H$2=$V$8,VLOOKUP($I5,Tabelle!$AN:$AS,6,0)))))),"",IF($H$2=$V$5,VLOOKUP($I5,Tabelle!$A:$F,6,0),IF($H$2=$V$6,VLOOKUP($I5,Tabelle!$N:$S,6,0),IF($H$2=$V$7,VLOOKUP($I5,Tabelle!$AA:$AF,6,0),IF($H$2=$V$8,VLOOKUP($I5,Tabelle!$AN:$AS,6,0)))))) -> 8.62 | P5: =IF(ISNUMBER(IF($H$2=$V$5,OFFSET(Tabelle!H5,0,0),IF($H$2=$V$6,OFFSET(Tabelle!U5,0,0),IF($H$2=$V$7,OFFSET(Tabelle!AH5,0,0),IF($H$2=$V$8,OFFSET(Tabelle!AV5,0,0)))))),IF($H$2=$V$5,OFFSET(Tabelle!H5,0,0),IF($H$2=$V$6,OFFSET(Tabelle!U5,0,0),IF($H$2=$V$7,OFFSET(Tabelle!AH5,0,0),IF($H$2=$V$8,OFFSET(Tabelle!AU5,0,0))))),"") -> 2008-04-30 | Q5: =IF(ISERROR(IF($H$2=$V$5,VLOOKUP($P5,Tabelle!$H:$I,2,0),IF($H$2=$V$6,VLOOKUP($P5,Tabelle!$U:$V,2,0),IF($H$2=$V$7,VLOOKUP($P5,Tabelle!$AH:$AI,2,0),IF($H$2=$V$8,VLOOKUP($P5,Tabelle!$AU:$AV,2,0)))))),"",IF($H$2=$V$5,VLOOKUP($P5,Tabelle!$H:$I,2,0),IF($H$2=$V$6,VLOOKUP($P5,Tabelle!$U:$V,2,0),IF($H$2=$V$7,VLOOKUP($P5,Tabelle!$AH:$AI,2,0),IF($H$2=$V$8,VLOOKUP($P5,Tabelle!$AU:$AV,2,0)))))) -> 6.8 | R5: =IF(ISERROR(IF($H$2=$V$5,VLOOKUP($P5,Tabelle!$H:$J,3,0),IF($H$2=$V$6,VLOOKUP($P5,Tabelle!$U:$W,3,0),IF($H$2=$V$7,VLOOKUP($P5,Tabelle!$AH:$AJ,3,0),IF($H$2=$V$8,VLOOKUP($P5,Tabelle!$AU:$AW,3,0)))))),"",IF($H$2=$V$5,VLOOKUP($P5,Tabelle!$H:$J,3,0),IF($H$2=$V$6,VLOOKUP($P5,Tabelle!$U:$W,3,0),IF($H$2=$V$7,VLOOKUP($P5,Tabelle!$AH:$AJ,3,0),IF($H$2=$V$8,VLOOKUP($P5,Tabelle!$AU:$AW,3,0)))))) -> 6.6 | S5: =IF(ISERROR(IF($H$2=$V$5,VLOOKUP($P5,Tabelle!$H:$K,4,0),IF($H$2=$V$6,VLOOKUP($P5,Tabelle!$U:$X,4,0),IF($H$2=$V$7,VLOOKUP($P5,Tabelle!$AH:$AK,4,0),IF($H$2=$V$8,VLOOKUP($P5,Tabelle!$AU:$AX,4,0)))))),"",IF($H$2=$V$5,VLOOKUP($P5,Tabelle!$H:$K,4,0),IF($H$2=$V$6,VLOOKUP($P5,Tabelle!$U:$X,4,0),IF($H$2=$V$7,VLOOKUP($P5,Tabelle!$AH:$AK,4,0),IF($H$2=$V$8,VLOOKUP($P5,Tabelle!$AU:$AX,4,0)))))) -> 14.3 | T5: =IF(ISERROR(IF($H$2=$V$5,VLOOKUP($P5,Tabelle!$H:$L,5,0),IF($H$2=$V$6,VLOOKUP($P5,Tabelle!$U:$Y,5,0),IF($H$2=$V$7,VLOOKUP($P5,Tabelle!$AH:$AL,5,0),IF($H$2=$V$8,VLOOKUP($P5,Tabelle!$AU:$AY,5,0)))))),"",IF($H$2=$V$5,VLOOKUP($P5,Tabelle!$H:$L,5,0),IF($H$2=$V$6,VLOOKUP($P5,Tabelle!$U:$Y,5,0),IF($H$2=$V$7,VLOOKUP($P5,Tabelle!$AH:$AL,5,0),IF($H$2=$V$8,VLOOKUP($P5,Tabelle!$AU:$AY,5,0)))))) -> 4 | V5: Gross Domestic Product | Y5: =IF(J$1,J5,"") ->  | Z5: =IF(K$1,K5,"") -> 14.6 | AA5: =IF(L$1,L5,"") -> 14.6 | AB5: =IF(M$1,M5,"") -> 6.5 | AC5: =IF(N$1,N5,"") -> 8.62 | AF5: =IF(Q$1,Q5,NA()) -> 6.8 | AG5: =IF(R$1,R5,NA()) -> 6.6 | AH5: =IF(S$1,S5,NA()) -> 14.3 | AI5: =IF(T$1,T5,NA()) -> 4
I6: =IF(ISNUMBER(IF($H$2=$V$5,OFFSET(Tabelle!A6,0,0),IF($H$2=$V$6,OFFSET(Tabelle!N6,0,0),IF($H$2=$V$7,OFFSET(Tabelle!AA6,0,0),IF($H$2=$V$8,OFFSET(Tabelle!AN6,0,0)))))),IF($H$2=$V$5,OFFSET(Tabelle!A6,0,0),IF($H$2=$V$6,OFFSET(Tabelle!N6,0,0),IF($H$2=$V$7,OFFSET(Tabelle!AA6,0,0),IF($H$2=$V$8,OFFSET(Tabelle!AN6,0,0))))),"") -> 2008-05-31 | J6: =IF(ISERROR(IF($H$2=$V$5,VLOOKUP($I6,Tabelle!$A:$B,2,0),IF($H$2=$V$6,VLOOKUP($I6,Tabelle!$N:$O,2,0),IF($H$2=$V$7,VLOOKUP($I6,Tabelle!$AA:$AB,2,0),IF($H$2=$V$8,VLOOKUP($I6,Tabelle!$AN:$AO,2,0)))))),"",IF($H$2=$V$5,VLOOKUP($I6,Tabelle!$A:$B,2,0),IF($H$2=$V$6,VLOOKUP($I6,Tabelle!$N:$O,2,0),IF($H$2=$V$7,VLOOKUP($I6,Tabelle!$AA:$AB,2,0),IF($H$2=$V$8,VLOOKUP($I6,Tabelle!$AN:$AO,2,0)))))) -> 6.4 | K6: =IF(ISERROR(IF($H$2=$V$5,VLOOKUP($I6,Tabelle!$A:$C,3,0),IF($H$2=$V$6,VLOOKUP($I6,Tabelle!$N:$P,3,0),IF($H$2=$V$7,VLOOKUP($I6,Tabelle!$AA:$AC,3,0),IF($H$2=$V$8,VLOOKUP($I6,Tabelle!$AN:$AP,3,0)))))),"",IF($H$2=$V$5,VLOOKUP($I6,Tabelle!$A:$C,3,0),IF($H$2=$V$6,VLOOKUP($I6,Tabelle!$N:$P,3,0),IF($H$2=$V$7,VLOOKUP($I6,Tabelle!$AA:$AC,3,0),IF($H$2=$V$8,VLOOKUP($I6,Tabelle!$AN:$AP,3,0)))))) -> 15 | L6: =IF(ISERROR(IF($H$2=$V$5,VLOOKUP($I6,Tabelle!$A:$D,4,0),IF($H$2=$V$6,VLOOKUP($I6,Tabelle!$N:$Q,4,0),IF($H$2=$V$7,VLOOKUP($I6,Tabelle!$AA:$AD,4,0),IF($H$2=$V$8,VLOOKUP($I6,Tabelle!$AN:$AQ,4,0)))))),"",IF($H$2=$V$5,VLOOKUP($I6,Tabelle!$A:$D,4,0),IF($H$2=$V$6,VLOOKUP($I6,Tabelle!$N:$Q,4,0),IF($H$2=$V$7,VLOOKUP($I6,Tabelle!$AA:$AD,4,0),IF($H$2=$V$8,VLOOKUP($I6,Tabelle!$AN:$AQ,4,0)))))) -> 14.5 | M6: =IF(ISERROR(IF($H$2=$V$5,VLOOKUP($I6,Tabelle!$A:$E,5,0),IF($H$2=$V$6,VLOOKUP($I6,Tabelle!$N:$R,5,0),IF($H$2=$V$7,VLOOKUP($I6,Tabelle!$AA:$AE,5,0),IF($H$2=$V$8,VLOOKUP($I6,Tabelle!$AN:$AR,5,0)))))),"",IF($H$2=$V$5,VLOOKUP($I6,Tabelle!$A:$E,5,0),IF($H$2=$V$6,VLOOKUP($I6,Tabelle!$N:$R,5,0),IF($H$2=$V$7,VLOOKUP($I6,Tabelle!$AA:$AE,5,0),IF($H$2=$V$8,VLOOKUP($I6,Tabelle!$AN:$AR,5,0)))))) -> 6.4 | N6: =IF(ISERROR(IF($H$2=$V$5,VLOOKUP($I6,Tabelle!$A:$F,6,0),IF($H$2=$V$6,VLOOKUP($I6,Tabelle!$N:$S,6,0),IF($H$2=$V$7,VLOOKUP($I6,Tabelle!$AA:$AF,6,0),IF($H$2=$V$8,VLOOKUP($I6,Tabelle!$AN:$AS,6,0)))))),"",IF($H$2=$V$5,VLOOKUP($I6,Tabelle!$A:$F,6,0),IF($H$2=$V$6,VLOOKUP($I6,Tabelle!$N:$S,6,0),IF($H$2=$V$7,VLOOKUP($I6,Tabelle!$AA:$AF,6,0),IF($H$2=$V$8,VLOOKUP($I6,Tabelle!$AN:$AS,6,0)))))) -> 8.46 | P6: =IF(ISNUMBER(IF($H$2=$V$5,OFFSET(Tabelle!H6,0,0),IF($H$2=$V$6,OFFSET(Tabelle!U6,0,0),IF($H$2=$V$7,OFFSET(Tabelle!AH6,0,0),IF($H$2=$V$8,OFFSET(Tabelle!AV6,0,0)))))),IF($H$2=$V$5,OFFSET(Tabelle!H6,0,0),IF($H$2=$V$6,OFFSET(Tabelle!U6,0,0),IF($H$2=$V$7,OFFSET(Tabelle!AH6,0,0),IF($H$2=$V$8,OFFSET(Tabelle!AU6,0,0))))),"") -> 2008-05-31 | Q6: =IF(ISERROR(IF($H$2=$V$5,VLOOKUP($P6,Tabelle!$H:$I,2,0),IF($H$2=$V$6,VLOOKUP($P6,Tabelle!$U:$V,2,0),IF($H$2=$V$7,VLOOKUP($P6,Tabelle!$AH:$AI,2,0),IF($H$2=$V$8,VLOOKUP($P6,Tabelle!$AU:$AV,2,0)))))),"",IF($H$2=$V$5,VLOOKUP($P6,Tabelle!$H:$I,2,0),IF($H$2=$V$6,VLOOKUP($P6,Tabelle!$U:$V,2,0),IF($H$2=$V$7,VLOOKUP($P6,Tabelle!$AH:$AI,2,0),IF($H$2=$V$8,VLOOKUP($P6,Tabelle!$AU:$AV,2,0)))))) -> 6.8 | R6: =IF(ISERROR(IF($H$2=$V$5,VLOOKUP($P6,Tabelle!$H:$J,3,0),IF($H$2=$V$6,VLOOKUP($P6,Tabelle!$U:$W,3,0),IF($H$2=$V$7,VLOOKUP($P6,Tabelle!$AH:$AJ,3,0),IF($H$2=$V$8,VLOOKUP($P6,Tabelle!$AU:$AW,3,0)))))),"",IF($H$2=$V$5,VLOOKUP($P6,Tabelle!$H:$J,3,0),IF($H$2=$V$6,VLOOKUP($P6,Tabelle!$U:$W,3,0),IF($H$2=$V$7,VLOOKUP($P6,Tabelle!$AH:$AJ,3,0),IF($H$2=$V$8,VLOOKUP($P6,Tabelle!$AU:$AW,3,0)))))) -> 7 | S6: =IF(ISERROR(IF($H$2=$V$5,VLOOKUP($P6,Tabelle!$H:$K,4,0),IF($H$2=$V$6,VLOOKUP($P6,Tabelle!$U:$X,4,0),IF($H$2=$V$7,VLOOKUP($P6,Tabelle!$AH:$AK,4,0),IF($H$2=$V$8,VLOOKUP($P6,Tabelle!$AU:$AX,4,0)))))),"",IF($H$2=$V$5,VLOOKUP($P6,Tabelle!$H:$K,4,0),IF($H$2=$V$6,VLOOKUP($P6,Tabelle!$U:$X,4,0),IF($H$2=$V$7,VLOOKUP($P6,Tabelle!$AH:$AK,4,0),IF($H$2=$V$8,VLOOKUP($P6,Tabelle!$AU:$AX,4,0)))))) -> 15.1 | T6: =IF(ISERROR(IF($H$2=$V$5,VLOOKUP($P6,Tabelle!$H:$L,5,0),IF($H$2=$V$6,VLOOKUP($P6,Tabelle!$U:$Y,5,0),IF($H$2=$V$7,VLOOKUP($P6,Tabelle!$AH:$AL,5,0),IF($H$2=$V$8,VLOOKUP($P6,Tabelle!$AU:$AY,5,0)))))),"",IF($H$2=$V$5,VLOOKUP($P6,Tabelle!$H:$L,5,0),IF($H$2=$V$6,VLOOKUP($P6,Tabelle!$U:$Y,5,0),IF($H$2=$V$7,VLOOKUP($P6,Tabelle!$AH:$AL,5,0),IF($H$2=$V$8,VLOOKUP($P6,Tabelle!$AU:$AY,5,0)))))) -> 4.4 | V6: Inflation | Z6: 15 | AA6: 14.5 | AB6: 6.4 | AC6: 8.46 | AF6: 6.8 | AG6: 7 | AH6: 15.1 | AI6: 4.4
I7: =IF(ISNUMBER(IF($H$2=$V$5,OFFSET(Tabelle!A7,0,0),IF($H$2=$V$6,OFFSET(Tabelle!N7,0,0),IF($H$2=$V$7,OFFSET(Tabelle!AA7,0,0),IF($H$2=$V$8,OFFSET(Tabelle!AN7,0,0)))))),IF($H$2=$V$5,OFFSET(Tabelle!A7,0,0),IF($H$2=$V$6,OFFSET(Tabelle!N7,0,0),IF($H$2=$V$7,OFFSET(Tabelle!AA7,0,0),IF($H$2=$V$8,OFFSET(Tabelle!AN7,0,0))))),"") -> 2008-06-30 | J7: =IF(ISERROR(IF($H$2=$V$5,VLOOKUP($I7,Tabelle!$A:$B,2,0),IF($H$2=$V$6,VLOOKUP($I7,Tabelle!$N:$O,2,0),IF($H$2=$V$7,VLOOKUP($I7,Tabelle!$AA:$AB,2,0),IF($H$2=$V$8,VLOOKUP($I7,Tabelle!$AN:$AO,2,0)))))),"",IF($H$2=$V$5,VLOOKUP($I7,Tabelle!$A:$B,2,0),IF($H$2=$V$6,VLOOKUP($I7,Tabelle!$N:$O,2,0),IF($H$2=$V$7,VLOOKUP($I7,Tabelle!$AA:$AB,2,0),IF($H$2=$V$8,VLOOKUP($I7,Tabelle!$AN:$AO,2,0)))))) -> 7.6 | K7: =IF(ISERROR(IF($H$2=$V$5,VLOOKUP($I7,Tabelle!$A:$C,3,0),IF($H$2=$V$6,VLOOKUP($I7,Tabelle!$N:$P,3,0),IF($H$2=$V$7,VLOOKUP($I7,Tabelle!$AA:$AC,3,0),IF($H$2=$V$8,VLOOKUP($I7,Tabelle!$AN:$AP,3,0)))))),"",IF($H$2=$V$5,VLOOKUP($I7,Tabelle!$A:$C,3,0),IF($H$2=$V$6,VLOOKUP($I7,Tabelle!$N:$P,3,0),IF($H$2=$V$7,VLOOKUP($I7,Tabelle!$AA:$AC,3,0),IF($H$2=$V$8,VLOOKUP($I7,Tabelle!$AN:$AP,3,0)))))) -> 15.3 | L7: =IF(ISERROR(IF($H$2=$V$5,VLOOKUP($I7,Tabelle!$A:$D,4,0),IF($H$2=$V$6,VLOOKUP($I7,Tabelle!$N:$Q,4,0),IF($H$2=$V$7,VLOOKUP($I7,Tabelle!$AA:$AD,4,0),IF($H$2=$V$8,VLOOKUP($I7,Tabelle!$AN:$AQ,4,0)))))),"",IF($H$2=$V$5,VLOOKUP($I7,Tabelle!$A:$D,4,0),IF($H$2=$V$6,VLOOKUP($I7,Tabelle!$N:$Q,4,0),IF($H$2=$V$7,VLOOKUP($I7,Tabelle!$AA:$AD,4,0),IF($H$2=$V$8,VLOOKUP($I7,Tabelle!$AN:$AQ,4,0)))))) -> 14.9 | M7: =IF(ISERROR(IF($H$2=$V$5,VLOOKUP($I7,Tabelle!$A:$E,5,0),IF($H$2=$V$6,VLOOKUP($I7,Tabelle!$N:$R,5,0),IF($H$2=$V$7,VLOOKUP($I7,Tabelle!$AA:$AE,5,0),IF($H$2=$V$8,VLOOKUP($I7,Tabelle!$AN:$AR,5,0)))))),"",IF($H$2=$V$5,VLOOKUP($I7,Tabelle!$A:$E,5,0),IF($H$2=$V$6,VLOOKUP($I7,Tabelle!$N:$R,5,0),IF($H$2=$V$7,VLOOKUP($I7,Tabelle!$AA:$AE,5,0),IF($H$2=$V$8,VLOOKUP($I7,Tabelle!$AN:$AR,5,0)))))) -> 7 | N7: =IF(ISERROR(IF($H$2=$V$5,VLOOKUP($I7,Tabelle!$A:$F,6,0),IF($H$2=$V$6,VLOOKUP($I7,Tabelle!$N:$S,6,0),IF($H$2=$V$7,VLOOKUP($I7,Tabelle!$AA:$AF,6,0),IF($H$2=$V$8,VLOOKUP($I7,Tabelle!$AN:$AS,6,0)))))),"",IF($H$2=$V$5,VLOOKUP($I7,Tabelle!$A:$F,6,0),IF($H$2=$V$6,VLOOKUP($I7,Tabelle!$N:$S,6,0),IF($H$2=$V$7,VLOOKUP($I7,Tabelle!$AA:$AF,6,0),IF($H$2=$V$8,VLOOKUP($I7,Tabelle!$AN:$AS,6,0)))))) -> 8.61 | P7: =IF(ISNUMBER(IF($H$2=$V$5,OFFSET(Tabelle!H7,0,0),IF($H$2=$V$6,OFFSET(Tabelle!U7,0,0),IF($H$2=$V$7,OFFSET(Tabelle!AH7,0,0),IF($H$2=$V$8,OFFSET(Tabelle!AV7,0,0)))))),IF($H$2=$V$5,OFFSET(Tabelle!H7,0,0),IF($H$2=$V$6,OFFSET(Tabelle!U7,0,0),IF($H$2=$V$7,OFFSET(Tabelle!AH7,0,0),IF($H$2=$V$8,OFFSET(Tabelle!AU7,0,0))))),"") -> 2008-06-30 | Q7: =IF(ISERROR(IF($H$2=$V$5,VLOOKUP($P7,Tabelle!$H:$I,2,0),IF($H$2=$V$6,VLOOKUP($P7,Tabelle!$U:$V,2,0),IF($H$2=$V$7,VLOOKUP($P7,Tabelle!$AH:$AI,2,0),IF($H$2=$V$8,VLOOKUP($P7,Tabelle!$AU:$AV,2,0)))))),"",IF($H$2=$V$5,VLOOKUP($P7,Tabelle!$H:$I,2,0),IF($H$2=$V$6,VLOOKUP($P7,Tabelle!$U:$V,2,0),IF($H$2=$V$7,VLOOKUP($P7,Tabelle!$AH:$AI,2,0),IF($H$2=$V$8,VLOOKUP($P7,Tabelle!$AU:$AV,2,0)))))) -> 6.7 | R7: =IF(ISERROR(IF($H$2=$V$5,VLOOKUP($P7,Tabelle!$H:$J,3,0),IF($H$2=$V$6,VLOOKUP($P7,Tabelle!$U:$W,3,0),IF($H$2=$V$7,VLOOKUP($P7,Tabelle!$AH:$AJ,3,0),IF($H$2=$V$8,VLOOKUP($P7,Tabelle!$AU:$AW,3,0)))))),"",IF($H$2=$V$5,VLOOKUP($P7,Tabelle!$H:$J,3,0),IF($H$2=$V$6,VLOOKUP($P7,Tabelle!$U:$W,3,0),IF($H$2=$V$7,VLOOKUP($P7,Tabelle!$AH:$AJ,3,0),IF($H$2=$V$8,VLOOKUP($P7,Tabelle!$AU:$AW,3,0)))))) -> 6.7 | S7: =IF(ISERROR(IF($H$2=$V$5,VLOOKUP($P7,Tabelle!$H:$K,4,0),IF($H$2=$V$6,VLOOKUP($P7,Tabelle!$U:$X,4,0),IF($H$2=$V$7,VLOOKUP($P7,Tabelle!$AH:$AK,4,0),IF($H$2=$V$8,VLOOKUP($P7,Tabelle!$AU:$AX,4,0)))))),"",IF($H$2=$V$5,VLOOKUP($P7,Tabelle!$H:$K,4,0),IF($H$2=$V$6,VLOOKUP($P7,Tabelle!$U:$X,4,0),IF($H$2=$V$7,VLOOKUP($P7,Tabelle!$AH:$AK,4,0),IF($H$2=$V$8,VLOOKUP($P7,Tabelle!$AU:$AX,4,0)))))) -> 15.1 | T7: =IF(ISERROR(IF($H$2=$V$5,VLOOKUP($P7,Tabelle!$H:$L,5,0),IF($H$2=$V$6,VLOOKUP($P7,Tabelle!$U:$Y,5,0),IF($H$2=$V$7,VLOOKUP($P7,Tabelle!$AH:$AL,5,0),IF($H$2=$V$8,VLOOKUP($P7,Tabelle!$AU:$AY,5,0)))))),"",IF($H$2=$V$5,VLOOKUP($P7,Tabelle!$H:$L,5,0),IF($H$2=$V$6,VLOOKUP($P7,Tabelle!$U:$Y,5,0),IF($H$2=$V$7,VLOOKUP($P7,Tabelle!$AH:$AL,5,0),IF($H$2=$V$8,VLOOKUP($P7,Tabelle!$AU:$AY,5,0)))))) -> 4.6 | V7: Unemployment Rate | Z7: 15.3 | AA7: 14.9 | AB7: 7 | AC7: 8.61 | AF7: 6.7 | AG7: 6.7 | AH7: 15.1 | AI7: 4.6
I8: =IF(ISNUMBER(IF($H$2=$V$5,OFFSET(Tabelle!A8,0,0),IF($H$2=$V$6,OFFSET(Tabelle!N8,0,0),IF($H$2=$V$7,OFFSET(Tabelle!AA8,0,0),IF($H$2=$V$8,OFFSET(Tabelle!AN8,0,0)))))),IF($H$2=$V$5,OFFSET(Tabelle!A8,0,0),IF($H$2=$V$6,OFFSET(Tabelle!N8,0,0),IF($H$2=$V$7,OFFSET(Tabelle!AA8,0,0),IF($H$2=$V$8,OFFSET(Tabelle!AN8,0,0))))),"") -> 2008-07-31 | J8: =IF(ISERROR(IF($H$2=$V$5,VLOOKUP($I8,Tabelle!$A:$B,2,0),IF($H$2=$V$6,VLOOKUP($I8,Tabelle!$N:$O,2,0),IF($H$2=$V$7,VLOOKUP($I8,Tabelle!$AA:$AB,2,0),IF($H$2=$V$8,VLOOKUP($I8,Tabelle!$AN:$AO,2,0)))))),"",IF($H$2=$V$5,VLOOKUP($I8,Tabelle!$A:$B,2,0),IF($H$2=$V$6,VLOOKUP($I8,Tabelle!$N:$O,2,0),IF($H$2=$V$7,VLOOKUP($I8,Tabelle!$AA:$AB,2,0),IF($H$2=$V$8,VLOOKUP($I8,Tabelle!$AN:$AO,2,0)))))) -> 8.4 | K8: =IF(ISERROR(IF($H$2=$V$5,VLOOKUP($I8,Tabelle!$A:$C,3,0),IF($H$2=$V$6,VLOOKUP($I8,Tabelle!$N:$P,3,0),IF($H$2=$V$7,VLOOKUP($I8,Tabelle!$AA:$AC,3,0),IF($H$2=$V$8,VLOOKUP($I8,Tabelle!$AN:$AP,3,0)))))),"",IF($H$2=$V$5,VLOOKUP($I8,Tabelle!$A:$C,3,0),IF($H$2=$V$6,VLOOKUP($I8,Tabelle!$N:$P,3,0),IF($H$2=$V$7,VLOOKUP($I8,Tabelle!$AA:$AC,3,0),IF($H$2=$V$8,VLOOKUP($I8,Tabelle!$AN:$AP,3,0)))))) -> 14.5 | L8: =IF(ISERROR(IF($H$2=$V$5,VLOOKUP($I8,Tabelle!$A:$D,4,0),IF($H$2=$V$6,VLOOKUP($I8,Tabelle!$N:$Q,4,0),IF($H$2=$V$7,VLOOKUP($I8,Tabelle!$AA:$AD,4,0),IF($H$2=$V$8,VLOOKUP($I8,Tabelle!$AN:$AQ,4,0)))))),"",IF($H$2=$V$5,VLOOKUP($I8,Tabelle!$A:$D,4,0),IF($H$2=$V$6,VLOOKUP($I8,Tabelle!$N:$Q,4,0),IF($H$2=$V$7,VLOOKUP($I8,Tabelle!$AA:$AD,4,0),IF($H$2=$V$8,VLOOKUP($I8,Tabelle!$AN:$AQ,4,0)))))) -> 13.9 | M8: =IF(ISERROR(IF($H$2=$V$5,VLOOKUP($I8,Tabelle!$A:$E,5,0),IF($H$2=$V$6,VLOOKUP($I8,Tabelle!$N:$R,5,0),IF($H$2=$V$7,VLOOKUP($I8,Tabelle!$AA:$AE,5,0),IF($H$2=$V$8,VLOOKUP($I8,Tabelle!$AN:$AR,5,0)))))),"",IF($H$2=$V$5,VLOOKUP($I8,Tabelle!$A:$E,5,0),IF($H$2=$V$6,VLOOKUP($I8,Tabelle!$N:$R,5,0),IF($H$2=$V$7,VLOOKUP($I8,Tabelle!$AA:$AE,5,0),IF($H$2=$V$8,VLOOKUP($I8,Tabelle!$AN:$AR,5,0)))))) -> 6.9 | N8: =IF(ISERROR(IF($H$2=$V$5,VLOOKUP($I8,Tabelle!$A:$F,6,0),IF($H$2=$V$6,VLOOKUP($I8,Tabelle!$N:$S,6,0),IF($H$2=$V$7,VLOOKUP($I8,Tabelle!$AA:$AF,6,0),IF($H$2=$V$8,VLOOKUP($I8,Tabelle!$AN:$AS,6,0)))))),"",IF($H$2=$V$5,VLOOKUP($I8,Tabelle!$A:$F,6,0),IF($H$2=$V$6,VLOOKUP($I8,Tabelle!$N:$S,6,0),IF($H$2=$V$7,VLOOKUP($I8,Tabelle!$AA:$AF,6,0),IF($H$2=$V$8,VLOOKUP($I8,Tabelle!$AN:$AS,6,0)))))) -> 9.04 | P8: =IF(ISNUMBER(IF($H$2=$V$5,OFFSET(Tabelle!H8,0,0),IF($H$2=$V$6,OFFSET(Tabelle!U8,0,0),IF($H$2=$V$7,OFFSET(Tabelle!AH8,0,0),IF($H$2=$V$8,OFFSET(Tabelle!AV8,0,0)))))),IF($H$2=$V$5,OFFSET(Tabelle!H8,0,0),IF($H$2=$V$6,OFFSET(Tabelle!U8,0,0),IF($H$2=$V$7,OFFSET(Tabelle!AH8,0,0),IF($H$2=$V$8,OFFSET(Tabelle!AU8,0,0))))),"") -> 2008-07-31 | Q8: =IF(ISERROR(IF($H$2=$V$5,VLOOKUP($P8,Tabelle!$H:$I,2,0),IF($H$2=$V$6,VLOOKUP($P8,Tabelle!$U:$V,2,0),IF($H$2=$V$7,VLOOKUP($P8,Tabelle!$AH:$AI,2,0),IF($H$2=$V$8,VLOOKUP($P8,Tabelle!$AU:$AV,2,0)))))),"",IF($H$2=$V$5,VLOOKUP($P8,Tabelle!$H:$I,2,0),IF($H$2=$V$6,VLOOKUP($P8,Tabelle!$U:$V,2,0),IF($H$2=$V$7,VLOOKUP($P8,Tabelle!$AH:$AI,2,0),IF($H$2=$V$8,VLOOKUP($P8,Tabelle!$AU:$AV,2,0)))))) -> 6.9 | R8: =IF(ISERROR(IF($H$2=$V$5,VLOOKUP($P8,Tabelle!$H:$J,3,0),IF($H$2=$V$6,VLOOKUP($P8,Tabelle!$U:$W,3,0),IF($H$2=$V$7,VLOOKUP($P8,Tabelle!$AH:$AJ,3,0),IF($H$2=$V$8,VLOOKUP($P8,Tabelle!$AU:$AW,3,0)))))),"",IF($H$2=$V$5,VLOOKUP($P8,Tabelle!$H:$J,3,0),IF($H$2=$V$6,VLOOKUP($P8,Tabelle!$U:$W,3,0),IF($H$2=$V$7,VLOOKUP($P8,Tabelle!$AH:$AJ,3,0),IF($H$2=$V$8,VLOOKUP($P8,Tabelle!$AU:$AW,3,0)))))) -> 6.7 | S8: =IF(ISERROR(IF($H$2=$V$5,VLOOKUP($P8,Tabelle!$H:$K,4,0),IF($H$2=$V$6,VLOOKUP($P8,Tabelle!$U:$X,4,0),IF($H$2=$V$7,VLOOKUP($P8,Tabelle!$AH:$AK,4,0),IF($H$2=$V$8,VLOOKUP($P8,Tabelle!$AU:$AX,4,0)))))),"",IF($H$2=$V$5,VLOOKUP($P8,Tabelle!$H:$K,4,0),IF($H$2=$V$6,VLOOKUP($P8,Tabelle!$U:$X,4,0),IF($H$2=$V$7,VLOOKUP($P8,Tabelle!$AH:$AK,4,0),IF($H$2=$V$8,VLOOKUP($P8,Tabelle!$AU:$AX,4,0)))))) -> 14.7 | T8: =IF(ISERROR(IF($H$2=$V$5,VLOOKUP($P8,Tabelle!$H:$L,5,0),IF($H$2=$V$6,VLOOKUP($P8,Tabelle!$U:$Y,5,0),IF($H$2=$V$7,VLOOKUP($P8,Tabelle!$AH:$AL,5,0),IF($H$2=$V$8,VLOOKUP($P8,Tabelle!$AU:$AY,5,0)))))),"",IF($H$2=$V$5,VLOOKUP($P8,Tabelle!$H:$L,5,0),IF($H$2=$V$6,VLOOKUP($P8,Tabelle!$U:$Y,5,0),IF($H$2=$V$7,VLOOKUP($P8,Tabelle!$AH:$AL,5,0),IF($H$2=$V$8,VLOOKUP($P8,Tabelle!$AU:$AY,5,0)))))) -> 4.8 | V8: Industrial Production | Z8: 14.5 | AA8: 13.9 | AB8: 6.9 | AC8: 9.04 | AF8: 6.9 | AG8: 6.7 | AH8: 14.7 | AI8: 4.8
I9: =IF(ISNUMBER(IF($H$2=$V$5,OFFSET(Tabelle!A9,0,0),IF($H$2=$V$6,OFFSET(Tabelle!N9,0,0),IF($H$2=$V$7,OFFSET(Tabelle!AA9,0,0),IF($H$2=$V$8,OFFSET(Tabelle!AN9,0,0)))))),IF($H$2=$V$5,OFFSET(Tabelle!A9,0,0),IF($H$2=$V$6,OFFSET(Tabelle!N9,0,0),IF($H$2=$V$7,OFFSET(Tabelle!AA9,0,0),IF($H$2=$V$8,OFFSET(Tabelle!AN9,0,0))))),"") -> 2008-08-31 | J9: =IF(ISERROR(IF($H$2=$V$5,VLOOKUP($I9,Tabelle!$A:$B,2,0),IF($H$2=$V$6,VLOOKUP($I9,Tabelle!$N:$O,2,0),IF($H$2=$V$7,VLOOKUP($I9,Tabelle!$AA:$AB,2,0),IF($H$2=$V$8,VLOOKUP($I9,Tabelle!$AN:$AO,2,0)))))),"",IF($H$2=$V$5,VLOOKUP($I9,Tabelle!$A:$B,2,0),IF($H$2=$V$6,VLOOKUP($I9,Tabelle!$N:$O,2,0),IF($H$2=$V$7,VLOOKUP($I9,Tabelle!$AA:$AB,2,0),IF($H$2=$V$8,VLOOKUP($I9,Tabelle!$AN:$AO,2,0)))))) -> 7.4 | K9: =IF(ISERROR(IF($H$2=$V$5,VLOOKUP($I9,Tabelle!$A:$C,3,0),IF($H$2=$V$6,VLOOKUP($I9,Tabelle!$N:$P,3,0),IF($H$2=$V$7,VLOOKUP($I9,Tabelle!$AA:$AC,3,0),IF($H$2=$V$8,VLOOKUP($I9,Tabelle!$AN:$AP,3,0)))))),"",IF($H$2=$V$5,VLOOKUP($I9,Tabelle!$A:$C,3,0),IF($H$2=$V$6,VLOOKUP($I9,Tabelle!$N:$P,3,0),IF($H$2=$V$7,VLOOKUP($I9,Tabelle!$AA:$AC,3,0),IF($H$2=$V$8,VLOOKUP($I9,Tabelle!$AN:$AP,3,0)))))) -> 11.2 | L9: =IF(ISERROR(IF($H$2=$V$5,VLOOKUP($I9,Tabelle!$A:$D,4,0),IF($H$2=$V$6,VLOOKUP($I9,Tabelle!$N:$Q,4,0),IF($H$2=$V$7,VLOOKUP($I9,Tabelle!$AA:$AD,4,0),IF($H$2=$V$8,VLOOKUP($I9,Tabelle!$AN:$AQ,4,0)))))),"",IF($H$2=$V$5,VLOOKUP($I9,Tabelle!$A:$D,4,0),IF($H$2=$V$6,VLOOKUP($I9,Tabelle!$N:$Q,4,0),IF($H$2=$V$7,VLOOKUP($I9,Tabelle!$AA:$AD,4,0),IF($H$2=$V$8,VLOOKUP($I9,Tabelle!$AN:$AQ,4,0)))))) -> 11.5 | M9: =IF(ISERROR(IF($H$2=$V$5,VLOOKUP($I9,Tabelle!$A:$E,5,0),IF($H$2=$V$6,VLOOKUP($I9,Tabelle!$N:$R,5,0),IF($H$2=$V$7,VLOOKUP($I9,Tabelle!$AA:$AE,5,0),IF($H$2=$V$8,VLOOKUP($I9,Tabelle!$AN:$AR,5,0)))))),"",IF($H$2=$V$5,VLOOKUP($I9,Tabelle!$A:$E,5,0),IF($H$2=$V$6,VLOOKUP($I9,Tabelle!$N:$R,5,0),IF($H$2=$V$7,VLOOKUP($I9,Tabelle!$AA:$AE,5,0),IF($H$2=$V$8,VLOOKUP($I9,Tabelle!$AN:$AR,5,0)))))) -> 6 | N9: =IF(ISERROR(IF($H$2=$V$5,VLOOKUP($I9,Tabelle!$A:$F,6,0),IF($H$2=$V$6,VLOOKUP($I9,Tabelle!$N:$S,6,0),IF($H$2=$V$7,VLOOKUP($I9,Tabelle!$AA:$AF,6,0),IF($H$2=$V$8,VLOOKUP($I9,Tabelle!$AN:$AS,6,0)))))),"",IF($H$2=$V$5,VLOOKUP($I9,Tabelle!$A:$F,6,0),IF($H$2=$V$6,VLOOKUP($I9,Tabelle!$N:$S,6,0),IF($H$2=$V$7,VLOOKUP($I9,Tabelle!$AA:$AF,6,0),IF($H$2=$V$8,VLOOKUP($I9,Tabelle!$AN:$AS,6,0)))))) -> 8.02 | P9: =IF(ISNUMBER(IF($H$2=$V$5,OFFSET(Tabelle!H9,0,0),IF($H$2=$V$6,OFFSET(Tabelle!U9,0,0),IF($H$2=$V$7,OFFSET(Tabelle!AH9,0,0),IF($H$2=$V$8,OFFSET(Tabelle!AV9,0,0)))))),IF($H$2=$V$5,OFFSET(Tabelle!H9,0,0),IF($H$2=$V$6,OFFSET(Tabelle!U9,0,0),IF($H$2=$V$7,OFFSET(Tabelle!AH9,0,0),IF($H$2=$V$8,OFFSET(Tabelle!AU9,0,0))))),"") -> 2008-08-31 | Q9: =IF(ISERROR(IF($H$2=$V$5,VLOOKUP($P9,Tabelle!$H:$I,2,0),IF($H$2=$V$6,VLOOKUP($P9,Tabelle!$U:$V,2,0),IF($H$2=$V$7,VLOOKUP($P9,Tabelle!$AH:$AI,2,0),IF($H$2=$V$8,VLOOKUP($P9,Tabelle!$AU:$AV,2,0)))))),"",IF($H$2=$V$5,VLOOKUP($P9,Tabelle!$H:$I,2,0),IF($H$2=$V$6,VLOOKUP($P9,Tabelle!$U:$V,2,0),IF($H$2=$V$7,VLOOKUP($P9,Tabelle!$AH:$AI,2,0),IF($H$2=$V$8,VLOOKUP($P9,Tabelle!$AU:$AV,2,0)))))) -> 6.5 | R9: =IF(ISERROR(IF($H$2=$V$5,VLOOKUP($P9,Tabelle!$H:$J,3,0),IF($H$2=$V$6,VLOOKUP($P9,Tabelle!$U:$W,3,0),IF($H$2=$V$7,VLOOKUP($P9,Tabelle!$AH:$AJ,3,0),IF($H$2=$V$8,VLOOKUP($P9,Tabelle!$AU:$AW,3,0)))))),"",IF($H$2=$V$5,VLOOKUP($P9,Tabelle!$H:$J,3,0),IF($H$2=$V$6,VLOOKUP($P9,Tabelle!$U:$W,3,0),IF($H$2=$V$7,VLOOKUP($P9,Tabelle!$AH:$AJ,3,0),IF($H$2=$V$8,VLOOKUP($P9,Tabelle!$AU:$AW,3,0)))))) -> 6.5 | S9: =IF(ISERROR(IF($H$2=$V$5,VLOOKUP($P9,Tabelle!$H:$K,4,0),IF($H$2=$V$6,VLOOKUP($P9,Tabelle!$U:$X,4,0),IF($H$2=$V$7,VLOOKUP($P9,Tabelle!$AH:$AK,4,0),IF($H$2=$V$8,VLOOKUP($P9,Tabelle!$AU:$AX,4,0)))))),"",IF($H$2=$V$5,VLOOKUP($P9,Tabelle!$H:$K,4,0),IF($H$2=$V$6,VLOOKUP($P9,Tabelle!$U:$X,4,0),IF($H$2=$V$7,VLOOKUP($P9,Tabelle!$AH:$AK,4,0),IF($H$2=$V$8,VLOOKUP($P9,Tabelle!$AU:$AX,4,0)))))) -> 15 | T9: =IF(ISERROR(IF($H$2=$V$5,VLOOKUP($P9,Tabelle!$H:$L,5,0),IF($H$2=$V$6,VLOOKUP($P9,Tabelle!$U:$Y,5,0),IF($H$2=$V$7,VLOOKUP($P9,Tabelle!$AH:$AL,5,0),IF($H$2=$V$8,VLOOKUP($P9,Tabelle!$AU:$AY,5,0)))))),"",IF($H$2=$V$5,VLOOKUP($P9,Tabelle!$H:$L,5,0),IF($H$2=$V$6,VLOOKUP($P9,Tabelle!$U:$Y,5,0),IF($H$2=$V$7,VLOOKUP($P9,Tabelle!$AH:$AL,5,0),IF($H$2=$V$8,VLOOKUP($P9,Tabelle!$AU:$AY,5,0)))))) -> 4.8 | Z9: 11.2 | AA9: 11.5 | AB9: 6 | AC9: 8.02 | AF9: 6.5 | AG9: 6.5 | AH9: 15 | AI9: 4.8
I10: =IF(ISNUMBER(IF($H$2=$V$5,OFFSET(Tabelle!A10,0,0),IF($H$2=$V$6,OFFSET(Tabelle!N10,0,0),IF($H$2=$V$7,OFFSET(Tabelle!AA10,0,0),IF($H$2=$V$8,OFFSET(Tabelle!AN10,0,0)))))),IF($H$2=$V$5,OFFSET(Tabelle!A10,0,0),IF($H$2=$V$6,OFFSET(Tabelle!N10,0,0),IF($H$2=$V$7,OFFSET(Tabelle!AA10,0,0),IF($H$2=$V$8,OFFSET(Tabelle!AN10,0,0))))),"") -> 2008-09-30 | J10: =IF(ISERROR(IF($H$2=$V$5,VLOOKUP($I10,Tabelle!$A:$B,2,0),IF($H$2=$V$6,VLOOKUP($I10,Tabelle!$N:$O,2,0),IF($H$2=$V$7,VLOOKUP($I10,Tabelle!$AA:$AB,2,0),IF($H$2=$V$8,VLOOKUP($I10,Tabelle!$AN:$AO,2,0)))))),"",IF($H$2=$V$5,VLOOKUP($I10,Tabelle!$A:$B,2,0),IF($H$2=$V$6,VLOOKUP($I10,Tabelle!$N:$O,2,0),IF($H$2=$V$7,VLOOKUP($I10,Tabelle!$AA:$AB,2,0),IF($H$2=$V$8,VLOOKUP($I10,Tabelle!$AN:$AO,2,0)))))) -> 6.4 | K10: =IF(ISERROR(IF($H$2=$V$5,VLOOKUP($I10,Tabelle!$A:$C,3,0),IF($H$2=$V$6,VLOOKUP($I10,Tabelle!$N:$P,3,0),IF($H$2=$V$7,VLOOKUP($I10,Tabelle!$AA:$AC,3,0),IF($H$2=$V$8,VLOOKUP($I10,Tabelle!$AN:$AP,3,0)))))),"",IF($H$2=$V$5,VLOOKUP($I10,Tabelle!$A:$C,3,0),IF($H$2=$V$6,VLOOKUP($I10,Tabelle!$N:$P,3,0),IF($H$2=$V$7,VLOOKUP($I10,Tabelle!$AA:$AC,3,0),IF($H$2=$V$8,VLOOKUP($I10,Tabelle!$AN:$AP,3,0)))))) -> 11 | L10: =IF(ISERROR(IF($H$2=$V$5,VLOOKUP($I10,Tabelle!$A:$D,4,0),IF($H$2=$V$6,VLOOKUP($I10,Tabelle!$N:$Q,4,0),IF($H$2=$V$7,VLOOKUP($I10,Tabelle!$AA:$AD,4,0),IF($H$2=$V$8,VLOOKUP($I10,Tabelle!$AN:$AQ,4,0)))))),"",IF($H$2=$V$5,VLOOKUP($I10,Tabelle!$A:$D,4,0),IF($H$2=$V$6,VLOOKUP($I10,Tabelle!$N:$Q,4,0),IF($H$2=$V$7,VLOOKUP($I10,Tabelle!$AA:$AD,4,0),IF($H$2=$V$8,VLOOKUP($I10,Tabelle!$AN:$AQ,4,0)))))) -> 10.9 | M10: =IF(ISERROR(IF($H$2=$V$5,VLOOKUP($I10,Tabelle!$A:$E,5,0),IF($H$2=$V$6,VLOOKUP($I10,Tabelle!$N:$R,5,0),IF($H$2=$V$7,VLOOKUP($I10,Tabelle!$AA:$AE,5,0),IF($H$2=$V$8,VLOOKUP($I10,Tabelle!$AN:$AR,5,0)))))),"",IF($H$2=$V$5,VLOOKUP($I10,Tabelle!$A:$E,5,0),IF($H$2=$V$6,VLOOKUP($I10,Tabelle!$N:$R,5,0),IF($H$2=$V$7,VLOOKUP($I10,Tabelle!$AA:$AE,5,0),IF($H$2=$V$8,VLOOKUP($I10,Tabelle!$AN:$AR,5,0)))))) -> 5.5 | N10: =IF(ISERROR(IF($H$2=$V$5,VLOOKUP($I10,Tabelle!$A:$F,6,0),IF($H$2=$V$6,VLOOKUP($I10,Tabelle!$N:$S,6,0),IF($H$2=$V$7,VLOOKUP($I10,Tabelle!$AA:$AF,6,0),IF($H$2=$V$8,VLOOKUP($I10,Tabelle!$AN:$AS,6,0)))))),"",IF($H$2=$V$5,VLOOKUP($I10,Tabelle!$A:$F,6,0),IF($H$2=$V$6,VLOOKUP($I10,Tabelle!$N:$S,6,0),IF($H$2=$V$7,VLOOKUP($I10,Tabelle!$AA:$AF,6,0),IF($H$2=$V$8,VLOOKUP($I10,Tabelle!$AN:$AS,6,0)))))) -> 7.3 | P10: =IF(ISNUMBER(IF($H$2=$V$5,OFFSET(Tabelle!H10,0,0),IF($H$2=$V$6,OFFSET(Tabelle!U10,0,0),IF($H$2=$V$7,OFFSET(Tabelle!AH10,0,0),IF($H$2=$V$8,OFFSET(Tabelle!AV10,0,0)))))),IF($H$2=$V$5,OFFSET(Tabelle!H10,0,0),IF($H$2=$V$6,OFFSET(Tabelle!U10,0,0),IF($H$2=$V$7,OFFSET(Tabelle!AH10,0,0),IF($H$2=$V$8,OFFSET(Tabelle!AU10,0,0))))),"") -> 2008-09-30 | Q10: =IF(ISERROR(IF($H$2=$V$5,VLOOKUP($P10,Tabelle!$H:$I,2,0),IF($H$2=$V$6,VLOOKUP($P10,Tabelle!$U:$V,2,0),IF($H$2=$V$7,VLOOKUP($P10,Tabelle!$AH:$AI,2,0),IF($H$2=$V$8,VLOOKUP($P10,Tabelle!$AU:$AV,2,0)))))),"",IF($H$2=$V$5,VLOOKUP($P10,Tabelle!$H:$I,2,0),IF($H$2=$V$6,VLOOKUP($P10,Tabelle!$U:$V,2,0),IF($H$2=$V$7,VLOOKUP($P10,Tabelle!$AH:$AI,2,0),IF($H$2=$V$8,VLOOKUP($P10,Tabelle!$AU:$AV,2,0)))))) -> 6.6 | R10: =IF(ISERROR(IF($H$2=$V$5,VLOOKUP($P10,Tabelle!$H:$J,3,0),IF($H$2=$V$6,VLOOKUP($P10,Tabelle!$U:$W,3,0),IF($H$2=$V$7,VLOOKUP($P10,Tabelle!$AH:$AJ,3,0),IF($H$2=$V$8,VLOOKUP($P10,Tabelle!$AU:$AW,3,0)))))),"",IF($H$2=$V$5,VLOOKUP($P10,Tabelle!$H:$J,3,0),IF($H$2=$V$6,VLOOKUP($P10,Tabelle!$U:$W,3,0),IF($H$2=$V$7,VLOOKUP($P10,Tabelle!$AH:$AJ,3,0),IF($H$2=$V$8,VLOOKUP($P10,Tabelle!$AU:$AW,3,0)))))) -> 5.7 | S10: =IF(ISERROR(IF($H$2=$V$5,VLOOKUP($P10,Tabelle!$H:$K,4,0),IF($H$2=$V$6,VLOOKUP($P10,Tabelle!$U:$X,4,0),IF($H$2=$V$7,VLOOKUP($P10,Tabelle!$AH:$AK,4,0),IF($H$2=$V$8,VLOOKUP($P10,Tabelle!$AU:$AX,4,0)))))),"",IF($H$2=$V$5,VLOOKUP($P10,Tabelle!$H:$K,4,0),IF($H$2=$V$6,VLOOKUP($P10,Tabelle!$U:$X,4,0),IF($H$2=$V$7,VLOOKUP($P10,Tabelle!$AH:$AK,4,0),IF($H$2=$V$8,VLOOKUP($P10,Tabelle!$AU:$AX,4,0)))))) -> 15 | T10: =IF(ISERROR(IF($H$2=$V$5,VLOOKUP($P10,Tabelle!$H:$L,5,0),IF($H$2=$V$6,VLOOKUP($P10,Tabelle!$U:$Y,5,0),IF($H$2=$V$7,VLOOKUP($P10,Tabelle!$AH:$AL,5,0),IF($H$2=$V$8,VLOOKUP($P10,Tabelle!$AU:$AY,5,0)))))),"",IF($H$2=$V$5,VLOOKUP($P10,Tabelle!$H:$L,5,0),IF($H$2=$V$6,VLOOKUP($P10,Tabelle!$U:$Y,5,0),IF($H$2=$V$7,VLOOKUP($P10,Tabelle!$AH:$AL,5,0),IF($H$2=$V$8,VLOOKUP($P10,Tabelle!$AU:$AY,5,0)))))) -> 4.5 | V10: DatesSEE | Z10: 11 | AA10: 10.9 | AB10: 5.5 | AC10: 7.3 | AF10: 6.6 | AG10: 5.7 | AH10: 15 | AI10: 4.5
I11: =IF(ISNUMBER(IF($H$2=$V$5,OFFSET(Tabelle!A11,0,0),IF($H$2=$V$6,OFFSET(Tabelle!N11,0,0),IF($H$2=$V$7,OFFSET(Tabelle!AA11,0,0),IF($H$2=$V$8,OFFSET(Tabelle!AN11,0,0)))))),IF($H$2=$V$5,OFFSET(Tabelle!A11,0,0),IF($H$2=$V$6,OFFSET(Tabelle!N11,0,0),IF($H$2=$V$7,OFFSET(Tabelle!AA11,0,0),IF($H$2=$V$8,OFFSET(Tabelle!AN11,0,0))))),"") -> 2008-10-31 | J11: =IF(ISERROR(IF($H$2=$V$5,VLOOKUP($I11,Tabelle!$A:$B,2,0),IF($H$2=$V$6,VLOOKUP($I11,Tabelle!$N:$O,2,0),IF($H$2=$V$7,VLOOKUP($I11,Tabelle!$AA:$AB,2,0),IF($H$2=$V$8,VLOOKUP($I11,Tabelle!$AN:$AO,2,0)))))),"",IF($H$2=$V$5,VLOOKUP($I11,Tabelle!$A:$B,2,0),IF($H$2=$V$6,VLOOKUP($I11,Tabelle!$N:$O,2,0),IF($H$2=$V$7,VLOOKUP($I11,Tabelle!$AA:$AB,2,0),IF($H$2=$V$8,VLOOKUP($I11,Tabelle!$AN:$AO,2,0)))))) -> 5.9 | K11: =IF(ISERROR(IF($H$2=$V$5,VLOOKUP($I11,Tabelle!$A:$C,3,0),IF($H$2=$V$6,VLOOKUP($I11,Tabelle!$N:$P,3,0),IF($H$2=$V$7,VLOOKUP($I11,Tabelle!$AA:$AC,3,0),IF($H$2=$V$8,VLOOKUP($I11,Tabelle!$AN:$AP,3,0)))))),"",IF($H$2=$V$5,VLOOKUP($I11,Tabelle!$A:$C,3,0),IF($H$2=$V$6,VLOOKUP($I11,Tabelle!$N:$P,3,0),IF($H$2=$V$7,VLOOKUP($I11,Tabelle!$AA:$AC,3,0),IF($H$2=$V$8,VLOOKUP($I11,Tabelle!$AN:$AP,3,0)))))) -> 10.9 | L11: =IF(ISERROR(IF($H$2=$V$5,VLOOKUP($I11,Tabelle!$A:$D,4,0),IF($H$2=$V$6,VLOOKUP($I11,Tabelle!$N:$Q,4,0),IF($H$2=$V$7,VLOOKUP($I11,Tabelle!$AA:$AD,4,0),IF($H$2=$V$8,VLOOKUP($I11,Tabelle!$AN:$AQ,4,0)))))),"",IF($H$2=$V$5,VLOOKUP($I11,Tabelle!$A:$D,4,0),IF($H$2=$V$6,VLOOKUP($I11,Tabelle!$N:$Q,4,0),IF($H$2=$V$7,VLOOKUP($I11,Tabelle!$AA:$AD,4,0),IF($H$2=$V$8,VLOOKUP($I11,Tabelle!$AN:$AQ,4,0)))))) -> 12.3 | M11: =IF(ISERROR(IF($H$2=$V$5,VLOOKUP($I11,Tabelle!$A:$E,5,0),IF($H$2=$V$6,VLOOKUP($I11,Tabelle!$N:$R,5,0),IF($H$2=$V$7,VLOOKUP($I11,Tabelle!$AA:$AE,5,0),IF($H$2=$V$8,VLOOKUP($I11,Tabelle!$AN:$AR,5,0)))))),"",IF($H$2=$V$5,VLOOKUP($I11,Tabelle!$A:$E,5,0),IF($H$2=$V$6,VLOOKUP($I11,Tabelle!$N:$R,5,0),IF($H$2=$V$7,VLOOKUP($I11,Tabelle!$AA:$AE,5,0),IF($H$2=$V$8,VLOOKUP($I11,Tabelle!$AN:$AR,5,0)))))) -> 4.9 | N11: =IF(ISERROR(IF($H$2=$V$5,VLOOKUP($I11,Tabelle!$A:$F,6,0),IF($H$2=$V$6,VLOOKUP($I11,Tabelle!$N:$S,6,0),IF($H$2=$V$7,VLOOKUP($I11,Tabelle!$AA:$AF,6,0),IF($H$2=$V$8,VLOOKUP($I11,Tabelle!$AN:$AS,6,0)))))),"",IF($H$2=$V$5,VLOOKUP($I11,Tabelle!$A:$F,6,0),IF($H$2=$V$6,VLOOKUP($I11,Tabelle!$N:$S,6,0),IF($H$2=$V$7,VLOOKUP($I11,Tabelle!$AA:$AF,6,0),IF($H$2=$V$8,VLOOKUP($I11,Tabelle!$AN:$AS,6,0)))))) -> 7.39 | P11: =IF(ISNUMBER(IF($H$2=$V$5,OFFSET(Tabelle!H11,0,0),IF($H$2=$V$6,OFFSET(Tabelle!U11,0,0),IF($H$2=$V$7,OFFSET(Tabelle!AH11,0,0),IF($H$2=$V$8,OFFSET(Tabelle!AV11,0,0)))))),IF($H$2=$V$5,OFFSET(Tabelle!H11,0,0),IF($H$2=$V$6,OFFSET(Tabelle!U11,0,0),IF($H$2=$V$7,OFFSET(Tabelle!AH11,0,0),IF($H$2=$V$8,OFFSET(Tabelle!AU11,0,0))))),"") -> 2008-10-31 | Q11: =IF(ISERROR(IF($H$2=$V$5,VLOOKUP($P11,Tabelle!$H:$I,2,0),IF($H$2=$V$6,VLOOKUP($P11,Tabelle!$U:$V,2,0),IF($H$2=$V$7,VLOOKUP($P11,Tabelle!$AH:$AI,2,0),IF($H$2=$V$8,VLOOKUP($P11,Tabelle!$AU:$AV,2,0)))))),"",IF($H$2=$V$5,VLOOKUP($P11,Tabelle!$H:$I,2,0),IF($H$2=$V$6,VLOOKUP($P11,Tabelle!$U:$V,2,0),IF($H$2=$V$7,VLOOKUP($P11,Tabelle!$AH:$AI,2,0),IF($H$2=$V$8,VLOOKUP($P11,Tabelle!$AU:$AV,2,0)))))) -> 6 | R11: =IF(ISERROR(IF($H$2=$V$5,VLOOKUP($P11,Tabelle!$H:$J,3,0),IF($H$2=$V$6,VLOOKUP($P11,Tabelle!$U:$W,3,0),IF($H$2=$V$7,VLOOKUP($P11,Tabelle!$AH:$AJ,3,0),IF($H$2=$V$8,VLOOKUP($P11,Tabelle!$AU:$AW,3,0)))))),"",IF($H$2=$V$5,VLOOKUP($P11,Tabelle!$H:$J,3,0),IF($H$2=$V$6,VLOOKUP($P11,Tabelle!$U:$W,3,0),IF($H$2=$V$7,VLOOKUP($P11,Tabelle!$AH:$AJ,3,0),IF($H$2=$V$8,VLOOKUP($P11,Tabelle!$AU:$AW,3,0)))))) -> 5.1 | S11: =IF(ISERROR(IF($H$2=$V$5,VLOOKUP($P11,Tabelle!$H:$K,4,0),IF($H$2=$V$6,VLOOKUP($P11,Tabelle!$U:$X,4,0),IF($H$2=$V$7,VLOOKUP($P11,Tabelle!$AH:$AK,4,0),IF($H$2=$V$8,VLOOKUP($P11,Tabelle!$AU:$AX,4,0)))))),"",IF($H$2=$V$5,VLOOKUP($P11,Tabelle!$H:$K,4,0),IF($H$2=$V$6,VLOOKUP($P11,Tabelle!$U:$X,4,0),IF($H$2=$V$7,VLOOKUP($P11,Tabelle!$AH:$AK,4,0),IF($H$2=$V$8,VLOOKUP($P11,Tabelle!$AU:$AX,4,0)))))) -> 14.2 | T11: =IF(ISERROR(IF($H$2=$V$5,VLOOKUP($P11,Tabelle!$H:$L,5,0),IF($H$2=$V$6,VLOOKUP($P11,Tabelle!$U:$Y,5,0),IF($H$2=$V$7,VLOOKUP($P11,Tabelle!$AH:$AL,5,0),IF($H$2=$V$8,VLOOKUP($P11,Tabelle!$AU:$AY,5,0)))))),"",IF($H$2=$V$5,VLOOKUP($P11,Tabelle!$H:$L,5,0),IF($H$2=$V$6,VLOOKUP($P11,Tabelle!$U:$Y,5,0),IF($H$2=$V$7,VLOOKUP($P11,Tabelle!$AH:$AL,5,0),IF($H$2=$V$8,VLOOKUP($P11,Tabelle!$AU:$AY,5,0)))))) -> 4.2 | V11: ChartCroatia | Z11: 10.9 | AA11: 12.3 | AB11: 4.9 | AC11: 7.39 | AF11: 6 | AG11: 5.1 | AH11: 14.2 | AI11: 4.2
I12: =IF(ISNUMBER(IF($H$2=$V$5,OFFSET(Tabelle!A12,0,0),IF($H$2=$V$6,OFFSET(Tabelle!N12,0,0),IF($H$2=$V$7,OFFSET(Tabelle!AA12,0,0),IF($H$2=$V$8,OFFSET(Tabelle!AN12,0,0)))))),IF($H$2=$V$5,OFFSET(Tabelle!A12,0,0),IF($H$2=$V$6,OFFSET(Tabelle!N12,0,0),IF($H$2=$V$7,OFFSET(Tabelle!AA12,0,0),IF($H$2=$V$8,OFFSET(Tabelle!AN12,0,0))))),"") -> 2008-11-30 | J12: =IF(ISERROR(IF($H$2=$V$5,VLOOKUP($I12,Tabelle!$A:$B,2,0),IF($H$2=$V$6,VLOOKUP($I12,Tabelle!$N:$O,2,0),IF($H$2=$V$7,VLOOKUP($I12,Tabelle!$AA:$AB,2,0),IF($H$2=$V$8,VLOOKUP($I12,Tabelle!$AN:$AO,2,0)))))),"",IF($H$2=$V$5,VLOOKUP($I12,Tabelle!$A:$B,2,0),IF($H$2=$V$6,VLOOKUP($I12,Tabelle!$N:$O,2,0),IF($H$2=$V$7,VLOOKUP($I12,Tabelle!$AA:$AB,2,0),IF($H$2=$V$8,VLOOKUP($I12,Tabelle!$AN:$AO,2,0)))))) -> 4.7 | K12: =IF(ISERROR(IF($H$2=$V$5,VLOOKUP($I12,Tabelle!$A:$C,3,0),IF($H$2=$V$6,VLOOKUP($I12,Tabelle!$N:$P,3,0),IF($H$2=$V$7,VLOOKUP($I12,Tabelle!$AA:$AC,3,0),IF($H$2=$V$8,VLOOKUP($I12,Tabelle!$AN:$AP,3,0)))))),"",IF($H$2=$V$5,VLOOKUP($I12,Tabelle!$A:$C,3,0),IF($H$2=$V$6,VLOOKUP($I12,Tabelle!$N:$P,3,0),IF($H$2=$V$7,VLOOKUP($I12,Tabelle!$AA:$AC,3,0),IF($H$2=$V$8,VLOOKUP($I12,Tabelle!$AN:$AP,3,0)))))) -> 9.1 | L12: =IF(ISERROR(IF($H$2=$V$5,VLOOKUP($I12,Tabelle!$A:$D,4,0),IF($H$2=$V$6,VLOOKUP($I12,Tabelle!$N:$Q,4,0),IF($H$2=$V$7,VLOOKUP($I12,Tabelle!$AA:$AD,4,0),IF($H$2=$V$8,VLOOKUP($I12,Tabelle!$AN:$AQ,4,0)))))),"",IF($H$2=$V$5,VLOOKUP($I12,Tabelle!$A:$D,4,0),IF($H$2=$V$6,VLOOKUP($I12,Tabelle!$N:$Q,4,0),IF($H$2=$V$7,VLOOKUP($I12,Tabelle!$AA:$AD,4,0),IF($H$2=$V$8,VLOOKUP($I12,Tabelle!$AN:$AQ,4,0)))))) -> 10.9 | M12: =IF(ISERROR(IF($H$2=$V$5,VLOOKUP($I12,Tabelle!$A:$E,5,0),IF($H$2=$V$6,VLOOKUP($I12,Tabelle!$N:$R,5,0),IF($H$2=$V$7,VLOOKUP($I12,Tabelle!$AA:$AE,5,0),IF($H$2=$V$8,VLOOKUP($I12,Tabelle!$AN:$AR,5,0)))))),"",IF($H$2=$V$5,VLOOKUP($I12,Tabelle!$A:$E,5,0),IF($H$2=$V$6,VLOOKUP($I12,Tabelle!$N:$R,5,0),IF($H$2=$V$7,VLOOKUP($I12,Tabelle!$AA:$AE,5,0),IF($H$2=$V$8,VLOOKUP($I12,Tabelle!$AN:$AR,5,0)))))) -> 3.1 | N12: =IF(ISERROR(IF($H$2=$V$5,VLOOKUP($I12,Tabelle!$A:$F,6,0),IF($H$2=$V$6,VLOOKUP($I12,Tabelle!$N:$S,6,0),IF($H$2=$V$7,VLOOKUP($I12,Tabelle!$AA:$AF,6,0),IF($H$2=$V$8,VLOOKUP($I12,Tabelle!$AN:$AS,6,0)))))),"",IF($H$2=$V$5,VLOOKUP($I12,Tabelle!$A:$F,6,0),IF($H$2=$V$6,VLOOKUP($I12,Tabelle!$N:$S,6,0),IF($H$2=$V$7,VLOOKUP($I12,Tabelle!$AA:$AF,6,0),IF($H$2=$V$8,VLOOKUP($I12,Tabelle!$AN:$AS,6,0)))))) -> 6.74 | P12: =IF(ISNUMBER(IF($H$2=$V$5,OFFSET(Tabelle!H12,0,0),IF($H$2=$V$6,OFFSET(Tabelle!U12,0,0),IF($H$2=$V$7,OFFSET(Tabelle!AH12,0,0),IF($H$2=$V$8,OFFSET(Tabelle!AV12,0,0)))))),IF($H$2=$V$5,OFFSET(Tabelle!H12,0,0),IF($H$2=$V$6,OFFSET(Tabelle!U12,0,0),IF($H$2=$V$7,OFFSET(Tabelle!AH12,0,0),IF($H$2=$V$8,OFFSET(Tabelle!AU12,0,0))))),"") -> 2008-11-30 | Q12: =IF(ISERROR(IF($H$2=$V$5,VLOOKUP($P12,Tabelle!$H:$I,2,0),IF($H$2=$V$6,VLOOKUP($P12,Tabelle!$U:$V,2,0),IF($H$2=$V$7,VLOOKUP($P12,Tabelle!$AH:$AI,2,0),IF($H$2=$V$8,VLOOKUP($P12,Tabelle!$AU:$AV,2,0)))))),"",IF($H$2=$V$5,VLOOKUP($P12,Tabelle!$H:$I,2,0),IF($H$2=$V$6,VLOOKUP($P12,Tabelle!$U:$V,2,0),IF($H$2=$V$7,VLOOKUP($P12,Tabelle!$AH:$AI,2,0),IF($H$2=$V$8,VLOOKUP($P12,Tabelle!$AU:$AV,2,0)))))) -> 4.4 | R12: =IF(ISERROR(IF($H$2=$V$5,VLOOKUP($P12,Tabelle!$H:$J,3,0),IF($H$2=$V$6,VLOOKUP($P12,Tabelle!$U:$W,3,0),IF($H$2=$V$7,VLOOKUP($P12,Tabelle!$AH:$AJ,3,0),IF($H$2=$V$8,VLOOKUP($P12,Tabelle!$AU:$AW,3,0)))))),"",IF($H$2=$V$5,VLOOKUP($P12,Tabelle!$H:$J,3,0),IF($H$2=$V$6,VLOOKUP($P12,Tabelle!$U:$W,3,0),IF($H$2=$V$7,VLOOKUP($P12,Tabelle!$AH:$AJ,3,0),IF($H$2=$V$8,VLOOKUP($P12,Tabelle!$AU:$AW,3,0)))))) -> 4.2 | S12: =IF(ISERROR(IF($H$2=$V$5,VLOOKUP($P12,Tabelle!$H:$K,4,0),IF($H$2=$V$6,VLOOKUP($P12,Tabelle!$U:$X,4,0),IF($H$2=$V$7,VLOOKUP($P12,Tabelle!$AH:$AK,4,0),IF($H$2=$V$8,VLOOKUP($P12,Tabelle!$AU:$AX,4,0)))))),"",IF($H$2=$V$5,VLOOKUP($P12,Tabelle!$H:$K,4,0),IF($H$2=$V$6,VLOOKUP($P12,Tabelle!$U:$X,4,0),IF($H$2=$V$7,VLOOKUP($P12,Tabelle!$AH:$AK,4,0),IF($H$2=$V$8,VLOOKUP($P12,Tabelle!$AU:$AX,4,0)))))) -> 13.8 | T12: =IF(ISERROR(IF($H$2=$V$5,VLOOKUP($P12,Tabelle!$H:$L,5,0),IF($H$2=$V$6,VLOOKUP($P12,Tabelle!$U:$Y,5,0),IF($H$2=$V$7,VLOOKUP($P12,Tabelle!$AH:$AL,5,0),IF($H$2=$V$8,VLOOKUP($P12,Tabelle!$AU:$AY,5,0)))))),"",IF($H$2=$V$5,VLOOKUP($P12,Tabelle!$H:$L,5,0),IF($H$2=$V$6,VLOOKUP($P12,Tabelle!$U:$Y,5,0),IF($H$2=$V$7,VLOOKUP($P12,Tabelle!$AH:$AL,5,0),IF($H$2=$V$8,VLOOKUP($P12,Tabelle!$AU:$AY,5,0)))))) -> 3.7 | V12: ChartBulgaria | Z12: 9.1 | AA12: 10.9 | AB12: 3.1 | AC12: 6.74 | AF12: 4.4 | AG12: 4.2 | AH12: 13.8 | AI12: 3.7
I13: =IF(ISNUMBER(IF($H$2=$V$5,OFFSET(Tabelle!A13,0,0),IF($H$2=$V$6,OFFSET(Tabelle!N13,0,0),IF($H$2=$V$7,OFFSET(Tabelle!AA13,0,0),IF($H$2=$V$8,OFFSET(Tabelle!AN13,0,0)))))),IF($H$2=$V$5,OFFSET(Tabelle!A13,0,0),IF($H$2=$V$6,OFFSET(Tabelle!N13,0,0),IF($H$2=$V$7,OFFSET(Tabelle!AA13,0,0),IF($H$2=$V$8,OFFSET(Tabelle!AN13,0,0))))),"") -> 2008-12-31 | J13: =IF(ISERROR(IF($H$2=$V$5,VLOOKUP($I13,Tabelle!$A:$B,2,0),IF($H$2=$V$6,VLOOKUP($I13,Tabelle!$N:$O,2,0),IF($H$2=$V$7,VLOOKUP($I13,Tabelle!$AA:$AB,2,0),IF($H$2=$V$8,VLOOKUP($I13,Tabelle!$AN:$AO,2,0)))))),"",IF($H$2=$V$5,VLOOKUP($I13,Tabelle!$A:$B,2,0),IF($H$2=$V$6,VLOOKUP($I13,Tabelle!$N:$O,2,0),IF($H$2=$V$7,VLOOKUP($I13,Tabelle!$AA:$AB,2,0),IF($H$2=$V$8,VLOOKUP($I13,Tabelle!$AN:$AO,2,0)))))) -> 2.9 | K13: =IF(ISERROR(IF($H$2=$V$5,VLOOKUP($I13,Tabelle!$A:$C,3,0),IF($H$2=$V$6,VLOOKUP($I13,Tabelle!$N:$P,3,0),IF($H$2=$V$7,VLOOKUP($I13,Tabelle!$AA:$AC,3,0),IF($H$2=$V$8,VLOOKUP($I13,Tabelle!$AN:$AP,3,0)))))),"",IF($H$2=$V$5,VLOOKUP($I13,Tabelle!$A:$C,3,0),IF($H$2=$V$6,VLOOKUP($I13,Tabelle!$N:$P,3,0),IF($H$2=$V$7,VLOOKUP($I13,Tabelle!$AA:$AC,3,0),IF($H$2=$V$8,VLOOKUP($I13,Tabelle!$AN:$AP,3,0)))))) -> 7.8 | L13: =IF(ISERROR(IF($H$2=$V$5,VLOOKUP($I13,Tabelle!$A:$D,4,0),IF($H$2=$V$6,VLOOKUP($I13,Tabelle!$N:$Q,4,0),IF($H$2=$V$7,VLOOKUP($I13,Tabelle!$AA:$AD,4,0),IF($H$2=$V$8,VLOOKUP($I13,Tabelle!$AN:$AQ,4,0)))))),"",IF($H$2=$V$5,VLOOKUP($I13,Tabelle!$A:$D,4,0),IF($H$2=$V$6,VLOOKUP($I13,Tabelle!$N:$Q,4,0),IF($H$2=$V$7,VLOOKUP($I13,Tabelle!$AA:$AD,4,0),IF($H$2=$V$8,VLOOKUP($I13,Tabelle!$AN:$AQ,4,0)))))) -> 8.6 | M13: =IF(ISERROR(IF($H$2=$V$5,VLOOKUP($I13,Tabelle!$A:$E,5,0),IF($H$2=$V$6,VLOOKUP($I13,Tabelle!$N:$R,5,0),IF($H$2=$V$7,VLOOKUP($I13,Tabelle!$AA:$AE,5,0),IF($H$2=$V$8,VLOOKUP($I13,Tabelle!$AN:$AR,5,0)))))),"",IF($H$2=$V$5,VLOOKUP($I13,Tabelle!$A:$E,5,0),IF($H$2=$V$6,VLOOKUP($I13,Tabelle!$N:$R,5,0),IF($H$2=$V$7,VLOOKUP($I13,Tabelle!$AA:$AE,5,0),IF($H$2=$V$8,VLOOKUP($I13,Tabelle!$AN:$AR,5,0)))))) -> 2.1 | N13: =IF(ISERROR(IF($H$2=$V$5,VLOOKUP($I13,Tabelle!$A:$F,6,0),IF($H$2=$V$6,VLOOKUP($I13,Tabelle!$N:$S,6,0),IF($H$2=$V$7,VLOOKUP($I13,Tabelle!$AA:$AF,6,0),IF($H$2=$V$8,VLOOKUP($I13,Tabelle!$AN:$AS,6,0)))))),"",IF($H$2=$V$5,VLOOKUP($I13,Tabelle!$A:$F,6,0),IF($H$2=$V$6,VLOOKUP($I13,Tabelle!$N:$S,6,0),IF($H$2=$V$7,VLOOKUP($I13,Tabelle!$AA:$AF,6,0),IF($H$2=$V$8,VLOOKUP($I13,Tabelle!$AN:$AS,6,0)))))) -> 6.3 | P13: =IF(ISNUMBER(IF($H$2=$V$5,OFFSET(Tabelle!H13,0,0),IF($H$2=$V$6,OFFSET(Tabelle!U13,0,0),IF($H$2=$V$7,OFFSET(Tabelle!AH13,0,0),IF($H$2=$V$8,OFFSET(Tabelle!AV13,0,0)))))),IF($H$2=$V$5,OFFSET(Tabelle!H13,0,0),IF($H$2=$V$6,OFFSET(Tabelle!U13,0,0),IF($H$2=$V$7,OFFSET(Tabelle!AH13,0,0),IF($H$2=$V$8,OFFSET(Tabelle!AU13,0,0))))),"") -> 2008-12-31 | Q13: =IF(ISERROR(IF($H$2=$V$5,VLOOKUP($P13,Tabelle!$H:$I,2,0),IF($H$2=$V$6,VLOOKUP($P13,Tabelle!$U:$V,2,0),IF($H$2=$V$7,VLOOKUP($P13,Tabelle!$AH:$AI,2,0),IF($H$2=$V$8,VLOOKUP($P13,Tabelle!$AU:$AV,2,0)))))),"",IF($H$2=$V$5,VLOOKUP($P13,Tabelle!$H:$I,2,0),IF($H$2=$V$6,VLOOKUP($P13,Tabelle!$U:$V,2,0),IF($H$2=$V$7,VLOOKUP($P13,Tabelle!$AH:$AI,2,0),IF($H$2=$V$8,VLOOKUP($P13,Tabelle!$AU:$AV,2,0)))))) -> 3.6 | R13: =IF(ISERROR(IF($H$2=$V$5,VLOOKUP($P13,Tabelle!$H:$J,3,0),IF($H$2=$V$6,VLOOKUP($P13,Tabelle!$U:$W,3,0),IF($H$2=$V$7,VLOOKUP($P13,Tabelle!$AH:$AJ,3,0),IF($H$2=$V$8,VLOOKUP($P13,Tabelle!$AU:$AW,3,0)))))),"",IF($H$2=$V$5,VLOOKUP($P13,Tabelle!$H:$J,3,0),IF($H$2=$V$6,VLOOKUP($P13,Tabelle!$U:$W,3,0),IF($H$2=$V$7,VLOOKUP($P13,Tabelle!$AH:$AJ,3,0),IF($H$2=$V$8,VLOOKUP($P13,Tabelle!$AU:$AW,3,0)))))) -> 3.5 | S13: =IF(ISERROR(IF($H$2=$V$5,VLOOKUP($P13,Tabelle!$H:$K,4,0),IF($H$2=$V$6,VLOOKUP($P13,Tabelle!$U:$X,4,0),IF($H$2=$V$7,VLOOKUP($P13,Tabelle!$AH:$AK,4,0),IF($H$2=$V$8,VLOOKUP($P13,Tabelle!$AU:$AX,4,0)))))),"",IF($H$2=$V$5,VLOOKUP($P13,Tabelle!$H:$K,4,0),IF($H$2=$V$6,VLOOKUP($P13,Tabelle!$U:$X,4,0),IF($H$2=$V$7,VLOOKUP($P13,Tabelle!$AH:$AK,4,0),IF($H$2=$V$8,VLOOKUP($P13,Tabelle!$AU:$AX,4,0)))))) -> 13.3 | T13: =IF(ISERROR(IF($H$2=$V$5,VLOOKUP($P13,Tabelle!$H:$L,5,0),IF($H$2=$V$6,VLOOKUP($P13,Tabelle!$U:$Y,5,0),IF($H$2=$V$7,VLOOKUP($P13,Tabelle!$AH:$AL,5,0),IF($H$2=$V$8,VLOOKUP($P13,Tabelle!$AU:$AY,5,0)))))),"",IF($H$2=$V$5,VLOOKUP($P13,Tabelle!$H:$L,5,0),IF($H$2=$V$6,VLOOKUP($P13,Tabelle!$U:$Y,5,0),IF($H$2=$V$7,VLOOKUP($P13,Tabelle!$AH:$AL,5,0),IF($H$2=$V$8,VLOOKUP($P13,Tabelle!$AU:$AY,5,0)))))) -> 3.3 | V13: ChartSerbia | Z13: 7.8 | AA13: 8.6 | AB13: 2.1 | AC13: 6.3 | AF13: 3.6 | AG13: 3.5 | AH13: 13.3 | AI13: 3.3
I14: =IF(ISNUMBER(IF($H$2=$V$5,OFFSET(Tabelle!A14,0,0),IF($H$2=$V$6,OFFSET(Tabelle!N14,0,0),IF($H$2=$V$7,OFFSET(Tabelle!AA14,0,0),IF($H$2=$V$8,OFFSET(Tabelle!AN14,0,0)))))),IF($H$2=$V$5,OFFSET(Tabelle!A14,0,0),IF($H$2=$V$6,OFFSET(Tabelle!N14,0,0),IF($H$2=$V$7,OFFSET(Tabelle!AA14,0,0),IF($H$2=$V$8,OFFSET(Tabelle!AN14,0,0))))),"") -> 2009-01-31 | J14: =IF(ISERROR(IF($H$2=$V$5,VLOOKUP($I14,Tabelle!$A:$B,2,0),IF($H$2=$V$6,VLOOKUP($I14,Tabelle!$N:$O,2,0),IF($H$2=$V$7,VLOOKUP($I14,Tabelle!$AA:$AB,2,0),IF($H$2=$V$8,VLOOKUP($I14,Tabelle!$AN:$AO,2,0)))))),"",IF($H$2=$V$5,VLOOKUP($I14,Tabelle!$A:$B,2,0),IF($H$2=$V$6,VLOOKUP($I14,Tabelle!$N:$O,2,0),IF($H$2=$V$7,VLOOKUP($I14,Tabelle!$AA:$AB,2,0),IF($H$2=$V$8,VLOOKUP($I14,Tabelle!$AN:$AO,2,0)))))) -> 3.4 | K14: =IF(ISERROR(IF($H$2=$V$5,VLOOKUP($I14,Tabelle!$A:$C,3,0),IF($H$2=$V$6,VLOOKUP($I14,Tabelle!$N:$P,3,0),IF($H$2=$V$7,VLOOKUP($I14,Tabelle!$AA:$AC,3,0),IF($H$2=$V$8,VLOOKUP($I14,Tabelle!$AN:$AP,3,0)))))),"",IF($H$2=$V$5,VLOOKUP($I14,Tabelle!$A:$C,3,0),IF($H$2=$V$6,VLOOKUP($I14,Tabelle!$N:$P,3,0),IF($H$2=$V$7,VLOOKUP($I14,Tabelle!$AA:$AC,3,0),IF($H$2=$V$8,VLOOKUP($I14,Tabelle!$AN:$AP,3,0)))))) -> 7.1 | L14: =IF(ISERROR(IF($H$2=$V$5,VLOOKUP($I14,Tabelle!$A:$D,4,0),IF($H$2=$V$6,VLOOKUP($I14,Tabelle!$N:$Q,4,0),IF($H$2=$V$7,VLOOKUP($I14,Tabelle!$AA:$AD,4,0),IF($H$2=$V$8,VLOOKUP($I14,Tabelle!$AN:$AQ,4,0)))))),"",IF($H$2=$V$5,VLOOKUP($I14,Tabelle!$A:$D,4,0),IF($H$2=$V$6,VLOOKUP($I14,Tabelle!$N:$Q,4,0),IF($H$2=$V$7,VLOOKUP($I14,Tabelle!$AA:$AD,4,0),IF($H$2=$V$8,VLOOKUP($I14,Tabelle!$AN:$AQ,4,0)))))) -> 10 | M14: =IF(ISERROR(IF($H$2=$V$5,VLOOKUP($I14,Tabelle!$A:$E,5,0),IF($H$2=$V$6,VLOOKUP($I14,Tabelle!$N:$R,5,0),IF($H$2=$V$7,VLOOKUP($I14,Tabelle!$AA:$AE,5,0),IF($H$2=$V$8,VLOOKUP($I14,Tabelle!$AN:$AR,5,0)))))),"",IF($H$2=$V$5,VLOOKUP($I14,Tabelle!$A:$E,5,0),IF($H$2=$V$6,VLOOKUP($I14,Tabelle!$N:$R,5,0),IF($H$2=$V$7,VLOOKUP($I14,Tabelle!$AA:$AE,5,0),IF($H$2=$V$8,VLOOKUP($I14,Tabelle!$AN:$AR,5,0)))))) -> 1.6 | N14: =IF(ISERROR(IF($H$2=$V$5,VLOOKUP($I14,Tabelle!$A:$F,6,0),IF($H$2=$V$6,VLOOKUP($I14,Tabelle!$N:$S,6,0),IF($H$2=$V$7,VLOOKUP($I14,Tabelle!$AA:$AF,6,0),IF($H$2=$V$8,VLOOKUP($I14,Tabelle!$AN:$AS,6,0)))))),"",IF($H$2=$V$5,VLOOKUP($I14,Tabelle!$A:$F,6,0),IF($H$2=$V$6,VLOOKUP($I14,Tabelle!$N:$S,6,0),IF($H$2=$V$7,VLOOKUP($I14,Tabelle!$AA:$AF,6,0),IF($H$2=$V$8,VLOOKUP($I14,Tabelle!$AN:$AS,6,0)))))) -> 6.71 | P14: =IF(ISNUMBER(IF($H$2=$V$5,OFFSET(Tabelle!H14,0,0),IF($H$2=$V$6,OFFSET(Tabelle!U14,0,0),IF($H$2=$V$7,OFFSET(Tabelle!AH14,0,0),IF($H$2=$V$8,OFFSET(Tabelle!AV14,0,0)))))),IF($H$2=$V$5,OFFSET(Tabelle!H14,0,0),IF($H$2=$V$6,OFFSET(Tabelle!U14,0,0),IF($H$2=$V$7,OFFSET(Tabelle!AH14,0,0),IF($H$2=$V$8,OFFSET(Tabelle!AU14,0,0))))),"") -> 2009-01-31 | Q14: =IF(ISERROR(IF($H$2=$V$5,VLOOKUP($P14,Tabelle!$H:$I,2,0),IF($H$2=$V$6,VLOOKUP($P14,Tabelle!$U:$V,2,0),IF($H$2=$V$7,VLOOKUP($P14,Tabelle!$AH:$AI,2,0),IF($H$2=$V$8,VLOOKUP($P14,Tabelle!$AU:$AV,2,0)))))),"",IF($H$2=$V$5,VLOOKUP($P14,Tabelle!$H:$I,2,0),IF($H$2=$V$6,VLOOKUP($P14,Tabelle!$U:$V,2,0),IF($H$2=$V$7,VLOOKUP($P14,Tabelle!$AH:$AI,2,0),IF($H$2=$V$8,VLOOKUP($P14,Tabelle!$AU:$AV,2,0)))))) -> 2.2 | R14: =IF(ISERROR(IF($H$2=$V$5,VLOOKUP($P14,Tabelle!$H:$J,3,0),IF($H$2=$V$6,VLOOKUP($P14,Tabelle!$U:$W,3,0),IF($H$2=$V$7,VLOOKUP($P14,Tabelle!$AH:$AJ,3,0),IF($H$2=$V$8,VLOOKUP($P14,Tabelle!$AU:$AW,3,0)))))),"",IF($H$2=$V$5,VLOOKUP($P14,Tabelle!$H:$J,3,0),IF($H$2=$V$6,VLOOKUP($P14,Tabelle!$U:$W,3,0),IF($H$2=$V$7,VLOOKUP($P14,Tabelle!$AH:$AJ,3,0),IF($H$2=$V$8,VLOOKUP($P14,Tabelle!$AU:$AW,3,0)))))) -> 3.1 | S14: =IF(ISERROR(IF($H$2=$V$5,VLOOKUP($P14,Tabelle!$H:$K,4,0),IF($H$2=$V$6,VLOOKUP($P14,Tabelle!$U:$X,4,0),IF($H$2=$V$7,VLOOKUP($P14,Tabelle!$AH:$AK,4,0),IF($H$2=$V$8,VLOOKUP($P14,Tabelle!$AU:$AX,4,0)))))),"",IF($H$2=$V$5,VLOOKUP($P14,Tabelle!$H:$K,4,0),IF($H$2=$V$6,VLOOKUP($P14,Tabelle!$U:$X,4,0),IF($H$2=$V$7,VLOOKUP($P14,Tabelle!$AH:$AK,4,0),IF($H$2=$V$8,VLOOKUP($P14,Tabelle!$AU:$AX,4,0)))))) -> 13.4 | T14: =IF(ISERROR(IF($H$2=$V$5,VLOOKUP($P14,Tabelle!$H:$L,5,0),IF($H$2=$V$6,VLOOKUP($P14,Tabelle!$U:$Y,5,0),IF($H$2=$V$7,VLOOKUP($P14,Tabelle!$AH:$AL,5,0),IF($H$2=$V$8,VLOOKUP($P14,Tabelle!$AU:$AY,5,0)))))),"",IF($H$2=$V$5,VLOOKUP($P14,Tabelle!$H:$L,5,0),IF($H$2=$V$6,VLOOKUP($P14,Tabelle!$U:$Y,5,0),IF($H$2=$V$7,VLOOKUP($P14,Tabelle!$AH:$AL,5,0),IF($H$2=$V$8,VLOOKUP($P14,Tabelle!$AU:$AY,5,0)))))) -> 2.8 | V14: ChartSlovenia | Z14: 7.1 | AA14: 10 | AB14: 1.6 | AC14: 6.71 | AF14: 2.2 | AG14: 3.1 | AH14: 13.4 | AI14: 2.8
I15: =IF(ISNUMBER(IF($H$2=$V$5,OFFSET(Tabelle!A15,0,0),IF($H$2=$V$6,OFFSET(Tabelle!N15,0,0),IF($H$2=$V$7,OFFSET(Tabelle!AA15,0,0),IF($H$2=$V$8,OFFSET(Tabelle!AN15,0,0)))))),IF($H$2=$V$5,OFFSET(Tabelle!A15,0,0),IF($H$2=$V$6,OFFSET(Tabelle!N15,0,0),IF($H$2=$V$7,OFFSET(Tabelle!AA15,0,0),IF($H$2=$V$8,OFFSET(Tabelle!AN15,0,0))))),"") -> 2009-02-28 | J15: =IF(ISERROR(IF($H$2=$V$5,VLOOKUP($I15,Tabelle!$A:$B,2,0),IF($H$2=$V$6,VLOOKUP($I15,Tabelle!$N:$O,2,0),IF($H$2=$V$7,VLOOKUP($I15,Tabelle!$AA:$AB,2,0),IF($H$2=$V$8,VLOOKUP($I15,Tabelle!$AN:$AO,2,0)))))),"",IF($H$2=$V$5,VLOOKUP($I15,Tabelle!$A:$B,2,0),IF($H$2=$V$6,VLOOKUP($I15,Tabelle!$N:$O,2,0),IF($H$2=$V$7,VLOOKUP($I15,Tabelle!$AA:$AB,2,0),IF($H$2=$V$8,VLOOKUP($I15,Tabelle!$AN:$AO,2,0)))))) -> 4.2 | K15: =IF(ISERROR(IF($H$2=$V$5,VLOOKUP($I15,Tabelle!$A:$C,3,0),IF($H$2=$V$6,VLOOKUP($I15,Tabelle!$N:$P,3,0),IF($H$2=$V$7,VLOOKUP($I15,Tabelle!$AA:$AC,3,0),IF($H$2=$V$8,VLOOKUP($I15,Tabelle!$AN:$AP,3,0)))))),"",IF($H$2=$V$5,VLOOKUP($I15,Tabelle!$A:$C,3,0),IF($H$2=$V$6,VLOOKUP($I15,Tabelle!$N:$P,3,0),IF($H$2=$V$7,VLOOKUP($I15,Tabelle!$AA:$AC,3,0),IF($H$2=$V$8,VLOOKUP($I15,Tabelle!$AN:$AP,3,0)))))) -> 6 | L15: =IF(ISERROR(IF($H$2=$V$5,VLOOKUP($I15,Tabelle!$A:$D,4,0),IF($H$2=$V$6,VLOOKUP($I15,Tabelle!$N:$Q,4,0),IF($H$2=$V$7,VLOOKUP($I15,Tabelle!$AA:$AD,4,0),IF($H$2=$V$8,VLOOKUP($I15,Tabelle!$AN:$AQ,4,0)))))),"",IF($H$2=$V$5,VLOOKUP($I15,Tabelle!$A:$D,4,0),IF($H$2=$V$6,VLOOKUP($I15,Tabelle!$N:$Q,4,0),IF($H$2=$V$7,VLOOKUP($I15,Tabelle!$AA:$AD,4,0),IF($H$2=$V$8,VLOOKUP($I15,Tabelle!$AN:$AQ,4,0)))))) -> 10.7 | M15: =IF(ISERROR(IF($H$2=$V$5,VLOOKUP($I15,Tabelle!$A:$E,5,0),IF($H$2=$V$6,VLOOKUP($I15,Tabelle!$N:$R,5,0),IF($H$2=$V$7,VLOOKUP($I15,Tabelle!$AA:$AE,5,0),IF($H$2=$V$8,VLOOKUP($I15,Tabelle!$AN:$AR,5,0)))))),"",IF($H$2=$V$5,VLOOKUP($I15,Tabelle!$A:$E,5,0),IF($H$2=$V$6,VLOOKUP($I15,Tabelle!$N:$R,5,0),IF($H$2=$V$7,VLOOKUP($I15,Tabelle!$AA:$AE,5,0),IF($H$2=$V$8,VLOOKUP($I15,Tabelle!$AN:$AR,5,0)))))) -> 2.1 | N15: =IF(ISERROR(IF($H$2=$V$5,VLOOKUP($I15,Tabelle!$A:$F,6,0),IF($H$2=$V$6,VLOOKUP($I15,Tabelle!$N:$S,6,0),IF($H$2=$V$7,VLOOKUP($I15,Tabelle!$AA:$AF,6,0),IF($H$2=$V$8,VLOOKUP($I15,Tabelle!$AN:$AS,6,0)))))),"",IF($H$2=$V$5,VLOOKUP($I15,Tabelle!$A:$F,6,0),IF($H$2=$V$6,VLOOKUP($I15,Tabelle!$N:$S,6,0),IF($H$2=$V$7,VLOOKUP($I15,Tabelle!$AA:$AF,6,0),IF($H$2=$V$8,VLOOKUP($I15,Tabelle!$AN:$AS,6,0)))))) -> 6.89 | P15: =IF(ISNUMBER(IF($H$2=$V$5,OFFSET(Tabelle!H15,0,0),IF($H$2=$V$6,OFFSET(Tabelle!U15,0,0),IF($H$2=$V$7,OFFSET(Tabelle!AH15,0,0),IF($H$2=$V$8,OFFSET(Tabelle!AV15,0,0)))))),IF($H$2=$V$5,OFFSET(Tabelle!H15,0,0),IF($H$2=$V$6,OFFSET(Tabelle!U15,0,0),IF($H$2=$V$7,OFFSET(Tabelle!AH15,0,0),IF($H$2=$V$8,OFFSET(Tabelle!AU15,0,0))))),"") -> 2009-02-28 | Q15: =IF(ISERROR(IF($H$2=$V$5,VLOOKUP($P15,Tabelle!$H:$I,2,0),IF($H$2=$V$6,VLOOKUP($P15,Tabelle!$U:$V,2,0),IF($H$2=$V$7,VLOOKUP($P15,Tabelle!$AH:$AI,2,0),IF($H$2=$V$8,VLOOKUP($P15,Tabelle!$AU:$AV,2,0)))))),"",IF($H$2=$V$5,VLOOKUP($P15,Tabelle!$H:$I,2,0),IF($H$2=$V$6,VLOOKUP($P15,Tabelle!$U:$V,2,0),IF($H$2=$V$7,VLOOKUP($P15,Tabelle!$AH:$AI,2,0),IF($H$2=$V$8,VLOOKUP($P15,Tabelle!$AU:$AV,2,0)))))) -> 2 | R15: =IF(ISERROR(IF($H$2=$V$5,VLOOKUP($P15,Tabelle!$H:$J,3,0),IF($H$2=$V$6,VLOOKUP($P15,Tabelle!$U:$W,3,0),IF($H$2=$V$7,VLOOKUP($P15,Tabelle!$AH:$AJ,3,0),IF($H$2=$V$8,VLOOKUP($P15,Tabelle!$AU:$AW,3,0)))))),"",IF($H$2=$V$5,VLOOKUP($P15,Tabelle!$H:$J,3,0),IF($H$2=$V$6,VLOOKUP($P15,Tabelle!$U:$W,3,0),IF($H$2=$V$7,VLOOKUP($P15,Tabelle!$AH:$AJ,3,0),IF($H$2=$V$8,VLOOKUP($P15,Tabelle!$AU:$AW,3,0)))))) -> 3 | S15: =IF(ISERROR(IF($H$2=$V$5,VLOOKUP($P15,Tabelle!$H:$K,4,0),IF($H$2=$V$6,VLOOKUP($P15,Tabelle!$U:$X,4,0),IF($H$2=$V$7,VLOOKUP($P15,Tabelle!$AH:$AK,4,0),IF($H$2=$V$8,VLOOKUP($P15,Tabelle!$AU:$AX,4,0)))))),"",IF($H$2=$V$5,VLOOKUP($P15,Tabelle!$H:$K,4,0),IF($H$2=$V$6,VLOOKUP($P15,Tabelle!$U:$X,4,0),IF($H$2=$V$7,VLOOKUP($P15,Tabelle!$AH:$AK,4,0),IF($H$2=$V$8,VLOOKUP($P15,Tabelle!$AU:$AX,4,0)))))) -> 13.9 | T15: =IF(ISERROR(IF($H$2=$V$5,VLOOKUP($P15,Tabelle!$H:$L,5,0),IF($H$2=$V$6,VLOOKUP($P15,Tabelle!$U:$Y,5,0),IF($H$2=$V$7,VLOOKUP($P15,Tabelle!$AH:$AL,5,0),IF($H$2=$V$8,VLOOKUP($P15,Tabelle!$AU:$AY,5,0)))))),"",IF($H$2=$V$5,VLOOKUP($P15,Tabelle!$H:$L,5,0),IF($H$2=$V$6,VLOOKUP($P15,Tabelle!$U:$Y,5,0),IF($H$2=$V$7,VLOOKUP($P15,Tabelle!$AH:$AL,5,0),IF($H$2=$V$8,VLOOKUP($P15,Tabelle!$AU:$AY,5,0)))))) -> 3.3 | V15: ChartRomania | Z15: 6 | AA15: 10.7 | AB15: 2.1 | AC15: 6.89 | AF15: 2 | AG15: 3 | AH15: 13.9 | AI15: 3.3
I16: =IF(ISNUMBER(IF($H$2=$V$5,OFFSET(Tabelle!A16,0,0),IF($H$2=$V$6,OFFSET(Tabelle!N16,0,0),IF($H$2=$V$7,OFFSET(Tabelle!AA16,0,0),IF($H$2=$V$8,OFFSET(Tabelle!AN16,0,0)))))),IF($H$2=$V$5,OFFSET(Tabelle!A16,0,0),IF($H$2=$V$6,OFFSET(Tabelle!N16,0,0),IF($H$2=$V$7,OFFSET(Tabelle!AA16,0,0),IF($H$2=$V$8,OFFSET(Tabelle!AN16,0,0))))),"") -> 2009-03-31 | J16: =IF(ISERROR(IF($H$2=$V$5,VLOOKUP($I16,Tabelle!$A:$B,2,0),IF($H$2=$V$6,VLOOKUP($I16,Tabelle!$N:$O,2,0),IF($H$2=$V$7,VLOOKUP($I16,Tabelle!$AA:$AB,2,0),IF($H$2=$V$8,VLOOKUP($I16,Tabelle!$AN:$AO,2,0)))))),"",IF($H$2=$V$5,VLOOKUP($I16,Tabelle!$A:$B,2,0),IF($H$2=$V$6,VLOOKUP($I16,Tabelle!$N:$O,2,0),IF($H$2=$V$7,VLOOKUP($I16,Tabelle!$AA:$AB,2,0),IF($H$2=$V$8,VLOOKUP($I16,Tabelle!$AN:$AO,2,0)))))) -> 3.8 | K16: =IF(ISERROR(IF($H$2=$V$5,VLOOKUP($I16,Tabelle!$A:$C,3,0),IF($H$2=$V$6,VLOOKUP($I16,Tabelle!$N:$P,3,0),IF($H$2=$V$7,VLOOKUP($I16,Tabelle!$AA:$AC,3,0),IF($H$2=$V$8,VLOOKUP($I16,Tabelle!$AN:$AP,3,0)))))),"",IF($H$2=$V$5,VLOOKUP($I16,Tabelle!$A:$C,3,0),IF($H$2=$V$6,VLOOKUP($I16,Tabelle!$N:$P,3,0),IF($H$2=$V$7,VLOOKUP($I16,Tabelle!$AA:$AC,3,0),IF($H$2=$V$8,VLOOKUP($I16,Tabelle!$AN:$AP,3,0)))))) -> 4.9 | L16: =IF(ISERROR(IF($H$2=$V$5,VLOOKUP($I16,Tabelle!$A:$D,4,0),IF($H$2=$V$6,VLOOKUP($I16,Tabelle!$N:$Q,4,0),IF($H$2=$V$7,VLOOKUP($I16,Tabelle!$AA:$AD,4,0),IF($H$2=$V$8,VLOOKUP($I16,Tabelle!$AN:$AQ,4,0)))))),"",IF($H$2=$V$5,VLOOKUP($I16,Tabelle!$A:$D,4,0),IF($H$2=$V$6,VLOOKUP($I16,Tabelle!$N:$Q,4,0),IF($H$2=$V$7,VLOOKUP($I16,Tabelle!$AA:$AD,4,0),IF($H$2=$V$8,VLOOKUP($I16,Tabelle!$AN:$AQ,4,0)))))) -> 9.4 | M16: =IF(ISERROR(IF($H$2=$V$5,VLOOKUP($I16,Tabelle!$A:$E,5,0),IF($H$2=$V$6,VLOOKUP($I16,Tabelle!$N:$R,5,0),IF($H$2=$V$7,VLOOKUP($I16,Tabelle!$AA:$AE,5,0),IF($H$2=$V$8,VLOOKUP($I16,Tabelle!$AN:$AR,5,0)))))),"",IF($H$2=$V$5,VLOOKUP($I16,Tabelle!$A:$E,5,0),IF($H$2=$V$6,VLOOKUP($I16,Tabelle!$N:$R,5,0),IF($H$2=$V$7,VLOOKUP($I16,Tabelle!$AA:$AE,5,0),IF($H$2=$V$8,VLOOKUP($I16,Tabelle!$AN:$AR,5,0)))))) -> 1.8 | N16: =IF(ISERROR(IF($H$2=$V$5,VLOOKUP($I16,Tabelle!$A:$F,6,0),IF($H$2=$V$6,VLOOKUP($I16,Tabelle!$N:$S,6,0),IF($H$2=$V$7,VLOOKUP($I16,Tabelle!$AA:$AF,6,0),IF($H$2=$V$8,VLOOKUP($I16,Tabelle!$AN:$AS,6,0)))))),"",IF($H$2=$V$5,VLOOKUP($I16,Tabelle!$A:$F,6,0),IF($H$2=$V$6,VLOOKUP($I16,Tabelle!$N:$S,6,0),IF($H$2=$V$7,VLOOKUP($I16,Tabelle!$AA:$AF,6,0),IF($H$2=$V$8,VLOOKUP($I16,Tabelle!$AN:$AS,6,0)))))) -> 6.71 | P16: =IF(ISNUMBER(IF($H$2=$V$5,OFFSET(Tabelle!H16,0,0),IF($H$2=$V$6,OFFSET(Tabelle!U16,0,0),IF($H$2=$V$7,OFFSET(Tabelle!AH16,0,0),IF($H$2=$V$8,OFFSET(Tabelle!AV16,0,0)))))),IF($H$2=$V$5,OFFSET(Tabelle!H16,0,0),IF($H$2=$V$6,OFFSET(Tabelle!U16,0,0),IF($H$2=$V$7,OFFSET(Tabelle!AH16,0,0),IF($H$2=$V$8,OFFSET(Tabelle!AU16,0,0))))),"") -> 2009-03-31 | Q16: =IF(ISERROR(IF($H$2=$V$5,VLOOKUP($P16,Tabelle!$H:$I,2,0),IF($H$2=$V$6,VLOOKUP($P16,Tabelle!$U:$V,2,0),IF($H$2=$V$7,VLOOKUP($P16,Tabelle!$AH:$AI,2,0),IF($H$2=$V$8,VLOOKUP($P16,Tabelle!$AU:$AV,2,0)))))),"",IF($H$2=$V$5,VLOOKUP($P16,Tabelle!$H:$I,2,0),IF($H$2=$V$6,VLOOKUP($P16,Tabelle!$U:$V,2,0),IF($H$2=$V$7,VLOOKUP($P16,Tabelle!$AH:$AI,2,0),IF($H$2=$V$8,VLOOKUP($P16,Tabelle!$AU:$AV,2,0)))))) -> 2.3 | R16: =IF(ISERROR(IF($H$2=$V$5,VLOOKUP($P16,Tabelle!$H:$J,3,0),IF($H$2=$V$6,VLOOKUP($P16,Tabelle!$U:$W,3,0),IF($H$2=$V$7,VLOOKUP($P16,Tabelle!$AH:$AJ,3,0),IF($H$2=$V$8,VLOOKUP($P16,Tabelle!$AU:$AW,3,0)))))),"",IF($H$2=$V$5,VLOOKUP($P16,Tabelle!$H:$J,3,0),IF($H$2=$V$6,VLOOKUP($P16,Tabelle!$U:$W,3,0),IF($H$2=$V$7,VLOOKUP($P16,Tabelle!$AH:$AJ,3,0),IF($H$2=$V$8,VLOOKUP($P16,Tabelle!$AU:$AW,3,0)))))) -> 2.9 | S16: =IF(ISERROR(IF($H$2=$V$5,VLOOKUP($P16,Tabelle!$H:$K,4,0),IF($H$2=$V$6,VLOOKUP($P16,Tabelle!$U:$X,4,0),IF($H$2=$V$7,VLOOKUP($P16,Tabelle!$AH:$AK,4,0),IF($H$2=$V$8,VLOOKUP($P16,Tabelle!$AU:$AX,4,0)))))),"",IF($H$2=$V$5,VLOOKUP($P16,Tabelle!$H:$K,4,0),IF($H$2=$V$6,VLOOKUP($P16,Tabelle!$U:$X,4,0),IF($H$2=$V$7,VLOOKUP($P16,Tabelle!$AH:$AK,4,0),IF($H$2=$V$8,VLOOKUP($P16,Tabelle!$AU:$AX,4,0)))))) -> 14 | T16: =IF(ISERROR(IF($H$2=$V$5,VLOOKUP($P16,Tabelle!$H:$L,5,0),IF($H$2=$V$6,VLOOKUP($P16,Tabelle!$U:$Y,5,0),IF($H$2=$V$7,VLOOKUP($P16,Tabelle!$AH:$AL,5,0),IF($H$2=$V$8,VLOOKUP($P16,Tabelle!$AU:$AY,5,0)))))),"",IF($H$2=$V$5,VLOOKUP($P16,Tabelle!$H:$L,5,0),IF($H$2=$V$6,VLOOKUP($P16,Tabelle!$U:$Y,5,0),IF($H$2=$V$7,VLOOKUP($P16,Tabelle!$AH:$AL,5,0),IF($H$2=$V$8,VLOOKUP($P16,Tabelle!$AU:$AY,5,0)))))) -> 3.6 | Z16: 4.9 | AA16: 9.4 | AB16: 1.8 | AC16: 6.71 | AF16: 2.3 | AG16: 2.9 | AH16: 14 | AI16: 3.6
I17: =IF(ISNUMBER(IF($H$2=$V$5,OFFSET(Tabelle!A17,0,0),IF($H$2=$V$6,OFFSET(Tabelle!N17,0,0),IF($H$2=$V$7,OFFSET(Tabelle!AA17,0,0),IF($H$2=$V$8,OFFSET(Tabelle!AN17,0,0)))))),IF($H$2=$V$5,OFFSET(Tabelle!A17,0,0),IF($H$2=$V$6,OFFSET(Tabelle!N17,0,0),IF($H$2=$V$7,OFFSET(Tabelle!AA17,0,0),IF($H$2=$V$8,OFFSET(Tabelle!AN17,0,0))))),"") -> 2009-04-30 | J17: =IF(ISERROR(IF($H$2=$V$5,VLOOKUP($I17,Tabelle!$A:$B,2,0),IF($H$2=$V$6,VLOOKUP($I17,Tabelle!$N:$O,2,0),IF($H$2=$V$7,VLOOKUP($I17,Tabelle!$AA:$AB,2,0),IF($H$2=$V$8,VLOOKUP($I17,Tabelle!$AN:$AO,2,0)))))),"",IF($H$2=$V$5,VLOOKUP($I17,Tabelle!$A:$B,2,0),IF($H$2=$V$6,VLOOKUP($I17,Tabelle!$N:$O,2,0),IF($H$2=$V$7,VLOOKUP($I17,Tabelle!$AA:$AB,2,0),IF($H$2=$V$8,VLOOKUP($I17,Tabelle!$AN:$AO,2,0)))))) -> 3.9 | K17: =IF(ISERROR(IF($H$2=$V$5,VLOOKUP($I17,Tabelle!$A:$C,3,0),IF($H$2=$V$6,VLOOKUP($I17,Tabelle!$N:$P,3,0),IF($H$2=$V$7,VLOOKUP($I17,Tabelle!$AA:$AC,3,0),IF($H$2=$V$8,VLOOKUP($I17,Tabelle!$AN:$AP,3,0)))))),"",IF($H$2=$V$5,VLOOKUP($I17,Tabelle!$A:$C,3,0),IF($H$2=$V$6,VLOOKUP($I17,Tabelle!$N:$P,3,0),IF($H$2=$V$7,VLOOKUP($I17,Tabelle!$AA:$AC,3,0),IF($H$2=$V$8,VLOOKUP($I17,Tabelle!$AN:$AP,3,0)))))) -> 4.8 | L17: =IF(ISERROR(IF($H$2=$V$5,VLOOKUP($I17,Tabelle!$A:$D,4,0),IF($H$2=$V$6,VLOOKUP($I17,Tabelle!$N:$Q,4,0),IF($H$2=$V$7,VLOOKUP($I17,Tabelle!$AA:$AD,4,0),IF($H$2=$V$8,VLOOKUP($I17,Tabelle!$AN:$AQ,4,0)))))),"",IF($H$2=$V$5,VLOOKUP($I17,Tabelle!$A:$D,4,0),IF($H$2=$V$6,VLOOKUP($I17,Tabelle!$N:$Q,4,0),IF($H$2=$V$7,VLOOKUP($I17,Tabelle!$AA:$AD,4,0),IF($H$2=$V$8,VLOOKUP($I17,Tabelle!$AN:$AQ,4,0)))))) -> 8.8 | M17: =IF(ISERROR(IF($H$2=$V$5,VLOOKUP($I17,Tabelle!$A:$E,5,0),IF($H$2=$V$6,VLOOKUP($I17,Tabelle!$N:$R,5,0),IF($H$2=$V$7,VLOOKUP($I17,Tabelle!$AA:$AE,5,0),IF($H$2=$V$8,VLOOKUP($I17,Tabelle!$AN:$AR,5,0)))))),"",IF($H$2=$V$5,VLOOKUP($I17,Tabelle!$A:$E,5,0),IF($H$2=$V$6,VLOOKUP($I17,Tabelle!$N:$R,5,0),IF($H$2=$V$7,VLOOKUP($I17,Tabelle!$AA:$AE,5,0),IF($H$2=$V$8,VLOOKUP($I17,Tabelle!$AN:$AR,5,0)))))) -> 1.1 | N17: =IF(ISERROR(IF($H$2=$V$5,VLOOKUP($I17,Tabelle!$A:$F,6,0),IF($H$2=$V$6,VLOOKUP($I17,Tabelle!$N:$S,6,0),IF($H$2=$V$7,VLOOKUP($I17,Tabelle!$AA:$AF,6,0),IF($H$2=$V$8,VLOOKUP($I17,Tabelle!$AN:$AS,6,0)))))),"",IF($H$2=$V$5,VLOOKUP($I17,Tabelle!$A:$F,6,0),IF($H$2=$V$6,VLOOKUP($I17,Tabelle!$N:$S,6,0),IF($H$2=$V$7,VLOOKUP($I17,Tabelle!$AA:$AF,6,0),IF($H$2=$V$8,VLOOKUP($I17,Tabelle!$AN:$AS,6,0)))))) -> 6.45 | P17: =IF(ISNUMBER(IF($H$2=$V$5,OFFSET(Tabelle!H17,0,0),IF($H$2=$V$6,OFFSET(Tabelle!U17,0,0),IF($H$2=$V$7,OFFSET(Tabelle!AH17,0,0),IF($H$2=$V$8,OFFSET(Tabelle!AV17,0,0)))))),IF($H$2=$V$5,OFFSET(Tabelle!H17,0,0),IF($H$2=$V$6,OFFSET(Tabelle!U17,0,0),IF($H$2=$V$7,OFFSET(Tabelle!AH17,0,0),IF($H$2=$V$8,OFFSET(Tabelle!AU17,0,0))))),"") -> 2009-04-30 | Q17: =IF(ISERROR(IF($H$2=$V$5,VLOOKUP($P17,Tabelle!$H:$I,2,0),IF($H$2=$V$6,VLOOKUP($P17,Tabelle!$U:$V,2,0),IF($H$2=$V$7,VLOOKUP($P17,Tabelle!$AH:$AI,2,0),IF($H$2=$V$8,VLOOKUP($P17,Tabelle!$AU:$AV,2,0)))))),"",IF($H$2=$V$5,VLOOKUP($P17,Tabelle!$H:$I,2,0),IF($H$2=$V$6,VLOOKUP($P17,Tabelle!$U:$V,2,0),IF($H$2=$V$7,VLOOKUP($P17,Tabelle!$AH:$AI,2,0),IF($H$2=$V$8,VLOOKUP($P17,Tabelle!$AU:$AV,2,0)))))) -> 1.8 | R17: =IF(ISERROR(IF($H$2=$V$5,VLOOKUP($P17,Tabelle!$H:$J,3,0),IF($H$2=$V$6,VLOOKUP($P17,Tabelle!$U:$W,3,0),IF($H$2=$V$7,VLOOKUP($P17,Tabelle!$AH:$AJ,3,0),IF($H$2=$V$8,VLOOKUP($P17,Tabelle!$AU:$AW,3,0)))))),"",IF($H$2=$V$5,VLOOKUP($P17,Tabelle!$H:$J,3,0),IF($H$2=$V$6,VLOOKUP($P17,Tabelle!$U:$W,3,0),IF($H$2=$V$7,VLOOKUP($P17,Tabelle!$AH:$AJ,3,0),IF($H$2=$V$8,VLOOKUP($P17,Tabelle!$AU:$AW,3,0)))))) -> 3.4 | S17: =IF(ISERROR(IF($H$2=$V$5,VLOOKUP($P17,Tabelle!$H:$K,4,0),IF($H$2=$V$6,VLOOKUP($P17,Tabelle!$U:$X,4,0),IF($H$2=$V$7,VLOOKUP($P17,Tabelle!$AH:$AK,4,0),IF($H$2=$V$8,VLOOKUP($P17,Tabelle!$AU:$AX,4,0)))))),"",IF($H$2=$V$5,VLOOKUP($P17,Tabelle!$H:$K,4,0),IF($H$2=$V$6,VLOOKUP($P17,Tabelle!$U:$X,4,0),IF($H$2=$V$7,VLOOKUP($P17,Tabelle!$AH:$AK,4,0),IF($H$2=$V$8,VLOOKUP($P17,Tabelle!$AU:$AX,4,0)))))) -> 13.2 | T17: =IF(ISERROR(IF($H$2=$V$5,VLOOKUP($P17,Tabelle!$H:$L,5,0),IF($H$2=$V$6,VLOOKUP($P17,Tabelle!$U:$Y,5,0),IF($H$2=$V$7,VLOOKUP($P17,Tabelle!$AH:$AL,5,0),IF($H$2=$V$8,VLOOKUP($P17,Tabelle!$AU:$AY,5,0)))))),"",IF($H$2=$V$5,VLOOKUP($P17,Tabelle!$H:$L,5,0),IF($H$2=$V$6,VLOOKUP($P17,Tabelle!$U:$Y,5,0),IF($H$2=$V$7,VLOOKUP($P17,Tabelle!$AH:$AL,5,0),IF($H$2=$V$8,VLOOKUP($P17,Tabelle!$AU:$AY,5,0)))))) -> 4 | V17: DatesCEE | Z17: 4.8 | AA17: 8.8 | AB17: 1.1 | AC17: 6.45 | AF17: 1.8 | AG17: 3.4 | AH17: 13.2 | AI17: 4
I18: =IF(ISNUMBER(IF($H$2=$V$5,OFFSET(Tabelle!A18,0,0),IF($H$2=$V$6,OFFSET(Tabelle!N18,0,0),IF($H$2=$V$7,OFFSET(Tabelle!AA18,0,0),IF($H$2=$V$8,OFFSET(Tabelle!AN18,0,0)))))),IF($H$2=$V$5,OFFSET(Tabelle!A18,0,0),IF($H$2=$V$6,OFFSET(Tabelle!N18,0,0),IF($H$2=$V$7,OFFSET(Tabelle!AA18,0,0),IF($H$2=$V$8,OFFSET(Tabelle!AN18,0,0))))),"") -> 2009-05-31 | J18: =IF(ISERROR(IF($H$2=$V$5,VLOOKUP($I18,Tabelle!$A:$B,2,0),IF($H$2=$V$6,VLOOKUP($I18,Tabelle!$N:$O,2,0),IF($H$2=$V$7,VLOOKUP($I18,Tabelle!$AA:$AB,2,0),IF($H$2=$V$8,VLOOKUP($I18,Tabelle!$AN:$AO,2,0)))))),"",IF($H$2=$V$5,VLOOKUP($I18,Tabelle!$A:$B,2,0),IF($H$2=$V$6,VLOOKUP($I18,Tabelle!$N:$O,2,0),IF($H$2=$V$7,VLOOKUP($I18,Tabelle!$AA:$AB,2,0),IF($H$2=$V$8,VLOOKUP($I18,Tabelle!$AN:$AO,2,0)))))) -> 2.7 | K18: =IF(ISERROR(IF($H$2=$V$5,VLOOKUP($I18,Tabelle!$A:$C,3,0),IF($H$2=$V$6,VLOOKUP($I18,Tabelle!$N:$P,3,0),IF($H$2=$V$7,VLOOKUP($I18,Tabelle!$AA:$AC,3,0),IF($H$2=$V$8,VLOOKUP($I18,Tabelle!$AN:$AP,3,0)))))),"",IF($H$2=$V$5,VLOOKUP($I18,Tabelle!$A:$C,3,0),IF($H$2=$V$6,VLOOKUP($I18,Tabelle!$N:$P,3,0),IF($H$2=$V$7,VLOOKUP($I18,Tabelle!$AA:$AC,3,0),IF($H$2=$V$8,VLOOKUP($I18,Tabelle!$AN:$AP,3,0)))))) -> 3.9 | L18: =IF(ISERROR(IF($H$2=$V$5,VLOOKUP($I18,Tabelle!$A:$D,4,0),IF($H$2=$V$6,VLOOKUP($I18,Tabelle!$N:$Q,4,0),IF($H$2=$V$7,VLOOKUP($I18,Tabelle!$AA:$AD,4,0),IF($H$2=$V$8,VLOOKUP($I18,Tabelle!$AN:$AQ,4,0)))))),"",IF($H$2=$V$5,VLOOKUP($I18,Tabelle!$A:$D,4,0),IF($H$2=$V$6,VLOOKUP($I18,Tabelle!$N:$Q,4,0),IF($H$2=$V$7,VLOOKUP($I18,Tabelle!$AA:$AD,4,0),IF($H$2=$V$8,VLOOKUP($I18,Tabelle!$AN:$AQ,4,0)))))) -> 9.1 | M18: =IF(ISERROR(IF($H$2=$V$5,VLOOKUP($I18,Tabelle!$A:$E,5,0),IF($H$2=$V$6,VLOOKUP($I18,Tabelle!$N:$R,5,0),IF($H$2=$V$7,VLOOKUP($I18,Tabelle!$AA:$AE,5,0),IF($H$2=$V$8,VLOOKUP($I18,Tabelle!$AN:$AR,5,0)))))),"",IF($H$2=$V$5,VLOOKUP($I18,Tabelle!$A:$E,5,0),IF($H$2=$V$6,VLOOKUP($I18,Tabelle!$N:$R,5,0),IF($H$2=$V$7,VLOOKUP($I18,Tabelle!$AA:$AE,5,0),IF($H$2=$V$8,VLOOKUP($I18,Tabelle!$AN:$AR,5,0)))))) -> 0.7 | N18: =IF(ISERROR(IF($H$2=$V$5,VLOOKUP($I18,Tabelle!$A:$F,6,0),IF($H$2=$V$6,VLOOKUP($I18,Tabelle!$N:$S,6,0),IF($H$2=$V$7,VLOOKUP($I18,Tabelle!$AA:$AF,6,0),IF($H$2=$V$8,VLOOKUP($I18,Tabelle!$AN:$AS,6,0)))))),"",IF($H$2=$V$5,VLOOKUP($I18,Tabelle!$A:$F,6,0),IF($H$2=$V$6,VLOOKUP($I18,Tabelle!$N:$S,6,0),IF($H$2=$V$7,VLOOKUP($I18,Tabelle!$AA:$AF,6,0),IF($H$2=$V$8,VLOOKUP($I18,Tabelle!$AN:$AS,6,0)))))) -> 5.95 | P18: =IF(ISNUMBER(IF($H$2=$V$5,OFFSET(Tabelle!H18,0,0),IF($H$2=$V$6,OFFSET(Tabelle!U18,0,0),IF($H$2=$V$7,OFFSET(Tabelle!AH18,0,0),IF($H$2=$V$8,OFFSET(Tabelle!AV18,0,0)))))),IF($H$2=$V$5,OFFSET(Tabelle!H18,0,0),IF($H$2=$V$6,OFFSET(Tabelle!U18,0,0),IF($H$2=$V$7,OFFSET(Tabelle!AH18,0,0),IF($H$2=$V$8,OFFSET(Tabelle!AU18,0,0))))),"") -> 2009-05-31 | Q18: =IF(ISERROR(IF($H$2=$V$5,VLOOKUP($P18,Tabelle!$H:$I,2,0),IF($H$2=$V$6,VLOOKUP($P18,Tabelle!$U:$V,2,0),IF($H$2=$V$7,VLOOKUP($P18,Tabelle!$AH:$AI,2,0),IF($H$2=$V$8,VLOOKUP($P18,Tabelle!$AU:$AV,2,0)))))),"",IF($H$2=$V$5,VLOOKUP($P18,Tabelle!$H:$I,2,0),IF($H$2=$V$6,VLOOKUP($P18,Tabelle!$U:$V,2,0),IF($H$2=$V$7,VLOOKUP($P18,Tabelle!$AH:$AI,2,0),IF($H$2=$V$8,VLOOKUP($P18,Tabelle!$AU:$AV,2,0)))))) -> 1.3 | R18: =IF(ISERROR(IF($H$2=$V$5,VLOOKUP($P18,Tabelle!$H:$J,3,0),IF($H$2=$V$6,VLOOKUP($P18,Tabelle!$U:$W,3,0),IF($H$2=$V$7,VLOOKUP($P18,Tabelle!$AH:$AJ,3,0),IF($H$2=$V$8,VLOOKUP($P18,Tabelle!$AU:$AW,3,0)))))),"",IF($H$2=$V$5,VLOOKUP($P18,Tabelle!$H:$J,3,0),IF($H$2=$V$6,VLOOKUP($P18,Tabelle!$U:$W,3,0),IF($H$2=$V$7,VLOOKUP($P18,Tabelle!$AH:$AJ,3,0),IF($H$2=$V$8,VLOOKUP($P18,Tabelle!$AU:$AW,3,0)))))) -> 3.8 | S18: =IF(ISERROR(IF($H$2=$V$5,VLOOKUP($P18,Tabelle!$H:$K,4,0),IF($H$2=$V$6,VLOOKUP($P18,Tabelle!$U:$X,4,0),IF($H$2=$V$7,VLOOKUP($P18,Tabelle!$AH:$AK,4,0),IF($H$2=$V$8,VLOOKUP($P18,Tabelle!$AU:$AX,4,0)))))),"",IF($H$2=$V$5,VLOOKUP($P18,Tabelle!$H:$K,4,0),IF($H$2=$V$6,VLOOKUP($P18,Tabelle!$U:$X,4,0),IF($H$2=$V$7,VLOOKUP($P18,Tabelle!$AH:$AK,4,0),IF($H$2=$V$8,VLOOKUP($P18,Tabelle!$AU:$AX,4,0)))))) -> 12.3 | T18: =IF(ISERROR(IF($H$2=$V$5,VLOOKUP($P18,Tabelle!$H:$L,5,0),IF($H$2=$V$6,VLOOKUP($P18,Tabelle!$U:$Y,5,0),IF($H$2=$V$7,VLOOKUP($P18,Tabelle!$AH:$AL,5,0),IF($H$2=$V$8,VLOOKUP($P18,Tabelle!$AU:$AY,5,0)))))),"",IF($H$2=$V$5,VLOOKUP($P18,Tabelle!$H:$L,5,0),IF($H$2=$V$6,VLOOKUP($P18,Tabelle!$U:$Y,5,0),IF($H$2=$V$7,VLOOKUP($P18,Tabelle!$AH:$AL,5,0),IF($H$2=$V$8,VLOOKUP($P18,Tabelle!$AU:$AY,5,0)))))) -> 3.6 | V18: ChartCzechRepublic | Z18: 3.9 | AA18: 9.1 | AB18: 0.7 | AC18: 5.95 | AF18: 1.3 | AG18: 3.8 | AH18: 12.3 | AI18: 3.6
I19: =IF(ISNUMBER(IF($H$2=$V$5,OFFSET(Tabelle!A19,0,0),IF($H$2=$V$6,OFFSET(Tabelle!N19,0,0),IF($H$2=$V$7,OFFSET(Tabelle!AA19,0,0),IF($H$2=$V$8,OFFSET(Tabelle!AN19,0,0)))))),IF($H$2=$V$5,OFFSET(Tabelle!A19,0,0),IF($H$2=$V$6,OFFSET(Tabelle!N19,0,0),IF($H$2=$V$7,OFFSET(Tabelle!AA19,0,0),IF($H$2=$V$8,OFFSET(Tabelle!AN19,0,0))))),"") -> 2009-06-30 | J19: =IF(ISERROR(IF($H$2=$V$5,VLOOKUP($I19,Tabelle!$A:$B,2,0),IF($H$2=$V$6,VLOOKUP($I19,Tabelle!$N:$O,2,0),IF($H$2=$V$7,VLOOKUP($I19,Tabelle!$AA:$AB,2,0),IF($H$2=$V$8,VLOOKUP($I19,Tabelle!$AN:$AO,2,0)))))),"",IF($H$2=$V$5,VLOOKUP($I19,Tabelle!$A:$B,2,0),IF($H$2=$V$6,VLOOKUP($I19,Tabelle!$N:$O,2,0),IF($H$2=$V$7,VLOOKUP($I19,Tabelle!$AA:$AB,2,0),IF($H$2=$V$8,VLOOKUP($I19,Tabelle!$AN:$AO,2,0)))))) -> 2.1 | K19: =IF(ISERROR(IF($H$2=$V$5,VLOOKUP($I19,Tabelle!$A:$C,3,0),IF($H$2=$V$6,VLOOKUP($I19,Tabelle!$N:$P,3,0),IF($H$2=$V$7,VLOOKUP($I19,Tabelle!$AA:$AC,3,0),IF($H$2=$V$8,VLOOKUP($I19,Tabelle!$AN:$AP,3,0)))))),"",IF($H$2=$V$5,VLOOKUP($I19,Tabelle!$A:$C,3,0),IF($H$2=$V$6,VLOOKUP($I19,Tabelle!$N:$P,3,0),IF($H$2=$V$7,VLOOKUP($I19,Tabelle!$AA:$AC,3,0),IF($H$2=$V$8,VLOOKUP($I19,Tabelle!$AN:$AP,3,0)))))) -> 3.7 | L19: =IF(ISERROR(IF($H$2=$V$5,VLOOKUP($I19,Tabelle!$A:$D,4,0),IF($H$2=$V$6,VLOOKUP($I19,Tabelle!$N:$Q,4,0),IF($H$2=$V$7,VLOOKUP($I19,Tabelle!$AA:$AD,4,0),IF($H$2=$V$8,VLOOKUP($I19,Tabelle!$AN:$AQ,4,0)))))),"",IF($H$2=$V$5,VLOOKUP($I19,Tabelle!$A:$D,4,0),IF($H$2=$V$6,VLOOKUP($I19,Tabelle!$N:$Q,4,0),IF($H$2=$V$7,VLOOKUP($I19,Tabelle!$AA:$AD,4,0),IF($H$2=$V$8,VLOOKUP($I19,Tabelle!$AN:$AQ,4,0)))))) -> 8.3 | M19: =IF(ISERROR(IF($H$2=$V$5,VLOOKUP($I19,Tabelle!$A:$E,5,0),IF($H$2=$V$6,VLOOKUP($I19,Tabelle!$N:$R,5,0),IF($H$2=$V$7,VLOOKUP($I19,Tabelle!$AA:$AE,5,0),IF($H$2=$V$8,VLOOKUP($I19,Tabelle!$AN:$AR,5,0)))))),"",IF($H$2=$V$5,VLOOKUP($I19,Tabelle!$A:$E,5,0),IF($H$2=$V$6,VLOOKUP($I19,Tabelle!$N:$R,5,0),IF($H$2=$V$7,VLOOKUP($I19,Tabelle!$AA:$AE,5,0),IF($H$2=$V$8,VLOOKUP($I19,Tabelle!$AN:$AR,5,0)))))) -> 0.3 | N19: =IF(ISERROR(IF($H$2=$V$5,VLOOKUP($I19,Tabelle!$A:$F,6,0),IF($H$2=$V$6,VLOOKUP($I19,Tabelle!$N:$S,6,0),IF($H$2=$V$7,VLOOKUP($I19,Tabelle!$AA:$AF,6,0),IF($H$2=$V$8,VLOOKUP($I19,Tabelle!$AN:$AS,6,0)))))),"",IF($H$2=$V$5,VLOOKUP($I19,Tabelle!$A:$F,6,0),IF($H$2=$V$6,VLOOKUP($I19,Tabelle!$N:$S,6,0),IF($H$2=$V$7,VLOOKUP($I19,Tabelle!$AA:$AF,6,0),IF($H$2=$V$8,VLOOKUP($I19,Tabelle!$AN:$AS,6,0)))))) -> 5.86 | P19: =IF(ISNUMBER(IF($H$2=$V$5,OFFSET(Tabelle!H19,0,0),IF($H$2=$V$6,OFFSET(Tabelle!U19,0,0),IF($H$2=$V$7,OFFSET(Tabelle!AH19,0,0),IF($H$2=$V$8,OFFSET(Tabelle!AV19,0,0)))))),IF($H$2=$V$5,OFFSET(Tabelle!H19,0,0),IF($H$2=$V$6,OFFSET(Tabelle!U19,0,0),IF($H$2=$V$7,OFFSET(Tabelle!AH19,0,0),IF($H$2=$V$8,OFFSET(Tabelle!AU19,0,0))))),"") -> 2009-06-30 | Q19: =IF(ISERROR(IF($H$2=$V$5,VLOOKUP($P19,Tabelle!$H:$I,2,0),IF($H$2=$V$6,VLOOKUP($P19,Tabelle!$U:$V,2,0),IF($H$2=$V$7,VLOOKUP($P19,Tabelle!$AH:$AI,2,0),IF($H$2=$V$8,VLOOKUP($P19,Tabelle!$AU:$AV,2,0)))))),"",IF($H$2=$V$5,VLOOKUP($P19,Tabelle!$H:$I,2,0),IF($H$2=$V$6,VLOOKUP($P19,Tabelle!$U:$V,2,0),IF($H$2=$V$7,VLOOKUP($P19,Tabelle!$AH:$AI,2,0),IF($H$2=$V$8,VLOOKUP($P19,Tabelle!$AU:$AV,2,0)))))) -> 1.2 | R19: =IF(ISERROR(IF($H$2=$V$5,VLOOKUP($P19,Tabelle!$H:$J,3,0),IF($H$2=$V$6,VLOOKUP($P19,Tabelle!$U:$W,3,0),IF($H$2=$V$7,VLOOKUP($P19,Tabelle!$AH:$AJ,3,0),IF($H$2=$V$8,VLOOKUP($P19,Tabelle!$AU:$AW,3,0)))))),"",IF($H$2=$V$5,VLOOKUP($P19,Tabelle!$H:$J,3,0),IF($H$2=$V$6,VLOOKUP($P19,Tabelle!$U:$W,3,0),IF($H$2=$V$7,VLOOKUP($P19,Tabelle!$AH:$AJ,3,0),IF($H$2=$V$8,VLOOKUP($P19,Tabelle!$AU:$AW,3,0)))))) -> 3.7 | S19: =IF(ISERROR(IF($H$2=$V$5,VLOOKUP($P19,Tabelle!$H:$K,4,0),IF($H$2=$V$6,VLOOKUP($P19,Tabelle!$U:$X,4,0),IF($H$2=$V$7,VLOOKUP($P19,Tabelle!$AH:$AK,4,0),IF($H$2=$V$8,VLOOKUP($P19,Tabelle!$AU:$AX,4,0)))))),"",IF($H$2=$V$5,VLOOKUP($P19,Tabelle!$H:$K,4,0),IF($H$2=$V$6,VLOOKUP($P19,Tabelle!$U:$X,4,0),IF($H$2=$V$7,VLOOKUP($P19,Tabelle!$AH:$AK,4,0),IF($H$2=$V$8,VLOOKUP($P19,Tabelle!$AU:$AX,4,0)))))) -> 11.9 | T19: =IF(ISERROR(IF($H$2=$V$5,VLOOKUP($P19,Tabelle!$H:$L,5,0),IF($H$2=$V$6,VLOOKUP($P19,Tabelle!$U:$Y,5,0),IF($H$2=$V$7,VLOOKUP($P19,Tabelle!$AH:$AL,5,0),IF($H$2=$V$8,VLOOKUP($P19,Tabelle!$AU:$AY,5,0)))))),"",IF($H$2=$V$5,VLOOKUP($P19,Tabelle!$H:$L,5,0),IF($H$2=$V$6,VLOOKUP($P19,Tabelle!$U:$Y,5,0),IF($H$2=$V$7,VLOOKUP($P19,Tabelle!$AH:$AL,5,0),IF($H$2=$V$8,VLOOKUP($P19,Tabelle!$AU:$AY,5,0)))))) -> 3.5 | V19: ChartHungary | Z19: 3.7 | AA19: 8.3 | AB19: 0.3 | AC19: 5.86 | AF19: 1.2 | AG19: 3.7 | AH19: 11.9 | AI19: 3.5
I20: =IF(ISNUMBER(IF($H$2=$V$5,OFFSET(Tabelle!A20,0,0),IF($H$2=$V$6,OFFSET(Tabelle!N20,0,0),IF($H$2=$V$7,OFFSET(Tabelle!AA20,0,0),IF($H$2=$V$8,OFFSET(Tabelle!AN20,0,0)))))),IF($H$2=$V$5,OFFSET(Tabelle!A20,0,0),IF($H$2=$V$6,OFFSET(Tabelle!N20,0,0),IF($H$2=$V$7,OFFSET(Tabelle!AA20,0,0),IF($H$2=$V$8,OFFSET(Tabelle!AN20,0,0))))),"") -> 2009-07-31 | J20: =IF(ISERROR(IF($H$2=$V$5,VLOOKUP($I20,Tabelle!$A:$B,2,0),IF($H$2=$V$6,VLOOKUP($I20,Tabelle!$N:$O,2,0),IF($H$2=$V$7,VLOOKUP($I20,Tabelle!$AA:$AB,2,0),IF($H$2=$V$8,VLOOKUP($I20,Tabelle!$AN:$AO,2,0)))))),"",IF($H$2=$V$5,VLOOKUP($I20,Tabelle!$A:$B,2,0),IF($H$2=$V$6,VLOOKUP($I20,Tabelle!$N:$O,2,0),IF($H$2=$V$7,VLOOKUP($I20,Tabelle!$AA:$AB,2,0),IF($H$2=$V$8,VLOOKUP($I20,Tabelle!$AN:$AO,2,0)))))) -> 1.2 | K20: =IF(ISERROR(IF($H$2=$V$5,VLOOKUP($I20,Tabelle!$A:$C,3,0),IF($H$2=$V$6,VLOOKUP($I20,Tabelle!$N:$P,3,0),IF($H$2=$V$7,VLOOKUP($I20,Tabelle!$AA:$AC,3,0),IF($H$2=$V$8,VLOOKUP($I20,Tabelle!$AN:$AP,3,0)))))),"",IF($H$2=$V$5,VLOOKUP($I20,Tabelle!$A:$C,3,0),IF($H$2=$V$6,VLOOKUP($I20,Tabelle!$N:$P,3,0),IF($H$2=$V$7,VLOOKUP($I20,Tabelle!$AA:$AC,3,0),IF($H$2=$V$8,VLOOKUP($I20,Tabelle!$AN:$AP,3,0)))))) -> 1.6 | L20: =IF(ISERROR(IF($H$2=$V$5,VLOOKUP($I20,Tabelle!$A:$D,4,0),IF($H$2=$V$6,VLOOKUP($I20,Tabelle!$N:$Q,4,0),IF($H$2=$V$7,VLOOKUP($I20,Tabelle!$AA:$AD,4,0),IF($H$2=$V$8,VLOOKUP($I20,Tabelle!$AN:$AQ,4,0)))))),"",IF($H$2=$V$5,VLOOKUP($I20,Tabelle!$A:$D,4,0),IF($H$2=$V$6,VLOOKUP($I20,Tabelle!$N:$Q,4,0),IF($H$2=$V$7,VLOOKUP($I20,Tabelle!$AA:$AD,4,0),IF($H$2=$V$8,VLOOKUP($I20,Tabelle!$AN:$AQ,4,0)))))) -> 8.5 | M20: =IF(ISERROR(IF($H$2=$V$5,VLOOKUP($I20,Tabelle!$A:$E,5,0),IF($H$2=$V$6,VLOOKUP($I20,Tabelle!$N:$R,5,0),IF($H$2=$V$7,VLOOKUP($I20,Tabelle!$AA:$AE,5,0),IF($H$2=$V$8,VLOOKUP($I20,Tabelle!$AN:$AR,5,0)))))),"",IF($H$2=$V$5,VLOOKUP($I20,Tabelle!$A:$E,5,0),IF($H$2=$V$6,VLOOKUP($I20,Tabelle!$N:$R,5,0),IF($H$2=$V$7,VLOOKUP($I20,Tabelle!$AA:$AE,5,0),IF($H$2=$V$8,VLOOKUP($I20,Tabelle!$AN:$AR,5,0)))))) -> -0.6 | N20: =IF(ISERROR(IF($H$2=$V$5,VLOOKUP($I20,Tabelle!$A:$F,6,0),IF($H$2=$V$6,VLOOKUP($I20,Tabelle!$N:$S,6,0),IF($H$2=$V$7,VLOOKUP($I20,Tabelle!$AA:$AF,6,0),IF($H$2=$V$8,VLOOKUP($I20,Tabelle!$AN:$AS,6,0)))))),"",IF($H$2=$V$5,VLOOKUP($I20,Tabelle!$A:$F,6,0),IF($H$2=$V$6,VLOOKUP($I20,Tabelle!$N:$S,6,0),IF($H$2=$V$7,VLOOKUP($I20,Tabelle!$AA:$AF,6,0),IF($H$2=$V$8,VLOOKUP($I20,Tabelle!$AN:$AS,6,0)))))) -> 5.06 | P20: =IF(ISNUMBER(IF($H$2=$V$5,OFFSET(Tabelle!H20,0,0),IF($H$2=$V$6,OFFSET(Tabelle!U20,0,0),IF($H$2=$V$7,OFFSET(Tabelle!AH20,0,0),IF($H$2=$V$8,OFFSET(Tabelle!AV20,0,0)))))),IF($H$2=$V$5,OFFSET(Tabelle!H20,0,0),IF($H$2=$V$6,OFFSET(Tabelle!U20,0,0),IF($H$2=$V$7,OFFSET(Tabelle!AH20,0,0),IF($H$2=$V$8,OFFSET(Tabelle!AU20,0,0))))),"") -> 2009-07-31 | Q20: =IF(ISERROR(IF($H$2=$V$5,VLOOKUP($P20,Tabelle!$H:$I,2,0),IF($H$2=$V$6,VLOOKUP($P20,Tabelle!$U:$V,2,0),IF($H$2=$V$7,VLOOKUP($P20,Tabelle!$AH:$AI,2,0),IF($H$2=$V$8,VLOOKUP($P20,Tabelle!$AU:$AV,2,0)))))),"",IF($H$2=$V$5,VLOOKUP($P20,Tabelle!$H:$I,2,0),IF($H$2=$V$6,VLOOKUP($P20,Tabelle!$U:$V,2,0),IF($H$2=$V$7,VLOOKUP($P20,Tabelle!$AH:$AI,2,0),IF($H$2=$V$8,VLOOKUP($P20,Tabelle!$AU:$AV,2,0)))))) -> 0.3 | R20: =IF(ISERROR(IF($H$2=$V$5,VLOOKUP($P20,Tabelle!$H:$J,3,0),IF($H$2=$V$6,VLOOKUP($P20,Tabelle!$U:$W,3,0),IF($H$2=$V$7,VLOOKUP($P20,Tabelle!$AH:$AJ,3,0),IF($H$2=$V$8,VLOOKUP($P20,Tabelle!$AU:$AW,3,0)))))),"",IF($H$2=$V$5,VLOOKUP($P20,Tabelle!$H:$J,3,0),IF($H$2=$V$6,VLOOKUP($P20,Tabelle!$U:$W,3,0),IF($H$2=$V$7,VLOOKUP($P20,Tabelle!$AH:$AJ,3,0),IF($H$2=$V$8,VLOOKUP($P20,Tabelle!$AU:$AW,3,0)))))) -> 5.1 | S20: =IF(ISERROR(IF($H$2=$V$5,VLOOKUP($P20,Tabelle!$H:$K,4,0),IF($H$2=$V$6,VLOOKUP($P20,Tabelle!$U:$X,4,0),IF($H$2=$V$7,VLOOKUP($P20,Tabelle!$AH:$AK,4,0),IF($H$2=$V$8,VLOOKUP($P20,Tabelle!$AU:$AX,4,0)))))),"",IF($H$2=$V$5,VLOOKUP($P20,Tabelle!$H:$K,4,0),IF($H$2=$V$6,VLOOKUP($P20,Tabelle!$U:$X,4,0),IF($H$2=$V$7,VLOOKUP($P20,Tabelle!$AH:$AK,4,0),IF($H$2=$V$8,VLOOKUP($P20,Tabelle!$AU:$AX,4,0)))))) -> 12 | T20: =IF(ISERROR(IF($H$2=$V$5,VLOOKUP($P20,Tabelle!$H:$L,5,0),IF($H$2=$V$6,VLOOKUP($P20,Tabelle!$U:$Y,5,0),IF($H$2=$V$7,VLOOKUP($P20,Tabelle!$AH:$AL,5,0),IF($H$2=$V$8,VLOOKUP($P20,Tabelle!$AU:$AY,5,0)))))),"",IF($H$2=$V$5,VLOOKUP($P20,Tabelle!$H:$L,5,0),IF($H$2=$V$6,VLOOKUP($P20,Tabelle!$U:$Y,5,0),IF($H$2=$V$7,VLOOKUP($P20,Tabelle!$AH:$AL,5,0),IF($H$2=$V$8,VLOOKUP($P20,Tabelle!$AU:$AY,5,0)))))) -> 3.6 | V20: ChartRussia | Z20: 1.6 | AA20: 8.5 | AB20: -0.6 | AC20: 5.06 | AF20: 0.3 | AG20: 5.1 | AH20: 12 | AI20: 3.6
I21: =IF(ISNUMBER(IF($H$2=$V$5,OFFSET(Tabelle!A21,0,0),IF($H$2=$V$6,OFFSET(Tabelle!N21,0,0),IF($H$2=$V$7,OFFSET(Tabelle!AA21,0,0),IF($H$2=$V$8,OFFSET(Tabelle!AN21,0,0)))))),IF($H$2=$V$5,OFFSET(Tabelle!A21,0,0),IF($H$2=$V$6,OFFSET(Tabelle!N21,0,0),IF($H$2=$V$7,OFFSET(Tabelle!AA21,0,0),IF($H$2=$V$8,OFFSET(Tabelle!AN21,0,0))))),"") -> 2009-08-31 | J21: =IF(ISERROR(IF($H$2=$V$5,VLOOKUP($I21,Tabelle!$A:$B,2,0),IF($H$2=$V$6,VLOOKUP($I21,Tabelle!$N:$O,2,0),IF($H$2=$V$7,VLOOKUP($I21,Tabelle!$AA:$AB,2,0),IF($H$2=$V$8,VLOOKUP($I21,Tabelle!$AN:$AO,2,0)))))),"",IF($H$2=$V$5,VLOOKUP($I21,Tabelle!$A:$B,2,0),IF($H$2=$V$6,VLOOKUP($I21,Tabelle!$N:$O,2,0),IF($H$2=$V$7,VLOOKUP($I21,Tabelle!$AA:$AB,2,0),IF($H$2=$V$8,VLOOKUP($I21,Tabelle!$AN:$AO,2,0)))))) -> 1.5 | K21: =IF(ISERROR(IF($H$2=$V$5,VLOOKUP($I21,Tabelle!$A:$C,3,0),IF($H$2=$V$6,VLOOKUP($I21,Tabelle!$N:$P,3,0),IF($H$2=$V$7,VLOOKUP($I21,Tabelle!$AA:$AC,3,0),IF($H$2=$V$8,VLOOKUP($I21,Tabelle!$AN:$AP,3,0)))))),"",IF($H$2=$V$5,VLOOKUP($I21,Tabelle!$A:$C,3,0),IF($H$2=$V$6,VLOOKUP($I21,Tabelle!$N:$P,3,0),IF($H$2=$V$7,VLOOKUP($I21,Tabelle!$AA:$AC,3,0),IF($H$2=$V$8,VLOOKUP($I21,Tabelle!$AN:$AP,3,0)))))) -> 1.3 | L21: =IF(ISERROR(IF($H$2=$V$5,VLOOKUP($I21,Tabelle!$A:$D,4,0),IF($H$2=$V$6,VLOOKUP($I21,Tabelle!$N:$Q,4,0),IF($H$2=$V$7,VLOOKUP($I21,Tabelle!$AA:$AD,4,0),IF($H$2=$V$8,VLOOKUP($I21,Tabelle!$AN:$AQ,4,0)))))),"",IF($H$2=$V$5,VLOOKUP($I21,Tabelle!$A:$D,4,0),IF($H$2=$V$6,VLOOKUP($I21,Tabelle!$N:$Q,4,0),IF($H$2=$V$7,VLOOKUP($I21,Tabelle!$AA:$AD,4,0),IF($H$2=$V$8,VLOOKUP($I21,Tabelle!$AN:$AQ,4,0)))))) -> 8 | M21: =IF(ISERROR(IF($H$2=$V$5,VLOOKUP($I21,Tabelle!$A:$E,5,0),IF($H$2=$V$6,VLOOKUP($I21,Tabelle!$N:$R,5,0),IF($H$2=$V$7,VLOOKUP($I21,Tabelle!$AA:$AE,5,0),IF($H$2=$V$8,VLOOKUP($I21,Tabelle!$AN:$AR,5,0)))))),"",IF($H$2=$V$5,VLOOKUP($I21,Tabelle!$A:$E,5,0),IF($H$2=$V$6,VLOOKUP($I21,Tabelle!$N:$R,5,0),IF($H$2=$V$7,VLOOKUP($I21,Tabelle!$AA:$AE,5,0),IF($H$2=$V$8,VLOOKUP($I21,Tabelle!$AN:$AR,5,0)))))) -> 0 | N21: =IF(ISERROR(IF($H$2=$V$5,VLOOKUP($I21,Tabelle!$A:$F,6,0),IF($H$2=$V$6,VLOOKUP($I21,Tabelle!$N:$S,6,0),IF($H$2=$V$7,VLOOKUP($I21,Tabelle!$AA:$AF,6,0),IF($H$2=$V$8,VLOOKUP($I21,Tabelle!$AN:$AS,6,0)))))),"",IF($H$2=$V$5,VLOOKUP($I21,Tabelle!$A:$F,6,0),IF($H$2=$V$6,VLOOKUP($I21,Tabelle!$N:$S,6,0),IF($H$2=$V$7,VLOOKUP($I21,Tabelle!$AA:$AF,6,0),IF($H$2=$V$8,VLOOKUP($I21,Tabelle!$AN:$AS,6,0)))))) -> 4.96 | P21: =IF(ISNUMBER(IF($H$2=$V$5,OFFSET(Tabelle!H21,0,0),IF($H$2=$V$6,OFFSET(Tabelle!U21,0,0),IF($H$2=$V$7,OFFSET(Tabelle!AH21,0,0),IF($H$2=$V$8,OFFSET(Tabelle!AV21,0,0)))))),IF($H$2=$V$5,OFFSET(Tabelle!H21,0,0),IF($H$2=$V$6,OFFSET(Tabelle!U21,0,0),IF($H$2=$V$7,OFFSET(Tabelle!AH21,0,0),IF($H$2=$V$8,OFFSET(Tabelle!AU21,0,0))))),"") -> 2009-08-31 | Q21: =IF(ISERROR(IF($H$2=$V$5,VLOOKUP($P21,Tabelle!$H:$I,2,0),IF($H$2=$V$6,VLOOKUP($P21,Tabelle!$U:$V,2,0),IF($H$2=$V$7,VLOOKUP($P21,Tabelle!$AH:$AI,2,0),IF($H$2=$V$8,VLOOKUP($P21,Tabelle!$AU:$AV,2,0)))))),"",IF($H$2=$V$5,VLOOKUP($P21,Tabelle!$H:$I,2,0),IF($H$2=$V$6,VLOOKUP($P21,Tabelle!$U:$V,2,0),IF($H$2=$V$7,VLOOKUP($P21,Tabelle!$AH:$AI,2,0),IF($H$2=$V$8,VLOOKUP($P21,Tabelle!$AU:$AV,2,0)))))) -> 0.2 | R21: =IF(ISERROR(IF($H$2=$V$5,VLOOKUP($P21,Tabelle!$H:$J,3,0),IF($H$2=$V$6,VLOOKUP($P21,Tabelle!$U:$W,3,0),IF($H$2=$V$7,VLOOKUP($P21,Tabelle!$AH:$AJ,3,0),IF($H$2=$V$8,VLOOKUP($P21,Tabelle!$AU:$AW,3,0)))))),"",IF($H$2=$V$5,VLOOKUP($P21,Tabelle!$H:$J,3,0),IF($H$2=$V$6,VLOOKUP($P21,Tabelle!$U:$W,3,0),IF($H$2=$V$7,VLOOKUP($P21,Tabelle!$AH:$AJ,3,0),IF($H$2=$V$8,VLOOKUP($P21,Tabelle!$AU:$AW,3,0)))))) -> 5 | S21: =IF(ISERROR(IF($H$2=$V$5,VLOOKUP($P21,Tabelle!$H:$K,4,0),IF($H$2=$V$6,VLOOKUP($P21,Tabelle!$U:$X,4,0),IF($H$2=$V$7,VLOOKUP($P21,Tabelle!$AH:$AK,4,0),IF($H$2=$V$8,VLOOKUP($P21,Tabelle!$AU:$AX,4,0)))))),"",IF($H$2=$V$5,VLOOKUP($P21,Tabelle!$H:$K,4,0),IF($H$2=$V$6,VLOOKUP($P21,Tabelle!$U:$X,4,0),IF($H$2=$V$7,VLOOKUP($P21,Tabelle!$AH:$AK,4,0),IF($H$2=$V$8,VLOOKUP($P21,Tabelle!$AU:$AX,4,0)))))) -> 11.6 | T21: =IF(ISERROR(IF($H$2=$V$5,VLOOKUP($P21,Tabelle!$H:$L,5,0),IF($H$2=$V$6,VLOOKUP($P21,Tabelle!$U:$Y,5,0),IF($H$2=$V$7,VLOOKUP($P21,Tabelle!$AH:$AL,5,0),IF($H$2=$V$8,VLOOKUP($P21,Tabelle!$AU:$AY,5,0)))))),"",IF($H$2=$V$5,VLOOKUP($P21,Tabelle!$H:$L,5,0),IF($H$2=$V$6,VLOOKUP($P21,Tabelle!$U:$Y,5,0),IF($H$2=$V$7,VLOOKUP($P21,Tabelle!$AH:$AL,5,0),IF($H$2=$V$8,VLOOKUP($P21,Tabelle!$AU:$AY,5,0)))))) -> 3.7 | V21: ChartPoland | Z21: 1.3 | AA21: 8 | AB21: 0 | AC21: 4.96 | AF21: 0.2 | AG21: 5 | AH21: 11.6 | AI21: 3.7
I22: =IF(ISNUMBER(IF($H$2=$V$5,OFFSET(Tabelle!A22,0,0),IF($H$2=$V$6,OFFSET(Tabelle!N22,0,0),IF($H$2=$V$7,OFFSET(Tabelle!AA22,0,0),IF($H$2=$V$8,OFFSET(Tabelle!AN22,0,0)))))),IF($H$2=$V$5,OFFSET(Tabelle!A22,0,0),IF($H$2=$V$6,OFFSET(Tabelle!N22,0,0),IF($H$2=$V$7,OFFSET(Tabelle!AA22,0,0),IF($H$2=$V$8,OFFSET(Tabelle!AN22,0,0))))),"") -> 2009-09-30 | J22: =IF(ISERROR(IF($H$2=$V$5,VLOOKUP($I22,Tabelle!$A:$B,2,0),IF($H$2=$V$6,VLOOKUP($I22,Tabelle!$N:$O,2,0),IF($H$2=$V$7,VLOOKUP($I22,Tabelle!$AA:$AB,2,0),IF($H$2=$V$8,VLOOKUP($I22,Tabelle!$AN:$AO,2,0)))))),"",IF($H$2=$V$5,VLOOKUP($I22,Tabelle!$A:$B,2,0),IF($H$2=$V$6,VLOOKUP($I22,Tabelle!$N:$O,2,0),IF($H$2=$V$7,VLOOKUP($I22,Tabelle!$AA:$AB,2,0),IF($H$2=$V$8,VLOOKUP($I22,Tabelle!$AN:$AO,2,0)))))) -> 1 | K22: =IF(ISERROR(IF($H$2=$V$5,VLOOKUP($I22,Tabelle!$A:$C,3,0),IF($H$2=$V$6,VLOOKUP($I22,Tabelle!$N:$P,3,0),IF($H$2=$V$7,VLOOKUP($I22,Tabelle!$AA:$AC,3,0),IF($H$2=$V$8,VLOOKUP($I22,Tabelle!$AN:$AP,3,0)))))),"",IF($H$2=$V$5,VLOOKUP($I22,Tabelle!$A:$C,3,0),IF($H$2=$V$6,VLOOKUP($I22,Tabelle!$N:$P,3,0),IF($H$2=$V$7,VLOOKUP($I22,Tabelle!$AA:$AC,3,0),IF($H$2=$V$8,VLOOKUP($I22,Tabelle!$AN:$AP,3,0)))))) -> 0.2 | L22: =IF(ISERROR(IF($H$2=$V$5,VLOOKUP($I22,Tabelle!$A:$D,4,0),IF($H$2=$V$6,VLOOKUP($I22,Tabelle!$N:$Q,4,0),IF($H$2=$V$7,VLOOKUP($I22,Tabelle!$AA:$AD,4,0),IF($H$2=$V$8,VLOOKUP($I22,Tabelle!$AN:$AQ,4,0)))))),"",IF($H$2=$V$5,VLOOKUP($I22,Tabelle!$A:$D,4,0),IF($H$2=$V$6,VLOOKUP($I22,Tabelle!$N:$Q,4,0),IF($H$2=$V$7,VLOOKUP($I22,Tabelle!$AA:$AD,4,0),IF($H$2=$V$8,VLOOKUP($I22,Tabelle!$AN:$AQ,4,0)))))) -> 7.3 | M22: =IF(ISERROR(IF($H$2=$V$5,VLOOKUP($I22,Tabelle!$A:$E,5,0),IF($H$2=$V$6,VLOOKUP($I22,Tabelle!$N:$R,5,0),IF($H$2=$V$7,VLOOKUP($I22,Tabelle!$AA:$AE,5,0),IF($H$2=$V$8,VLOOKUP($I22,Tabelle!$AN:$AR,5,0)))))),"",IF($H$2=$V$5,VLOOKUP($I22,Tabelle!$A:$E,5,0),IF($H$2=$V$6,VLOOKUP($I22,Tabelle!$N:$R,5,0),IF($H$2=$V$7,VLOOKUP($I22,Tabelle!$AA:$AE,5,0),IF($H$2=$V$8,VLOOKUP($I22,Tabelle!$AN:$AR,5,0)))))) -> -0.1 | N22: =IF(ISERROR(IF($H$2=$V$5,VLOOKUP($I22,Tabelle!$A:$F,6,0),IF($H$2=$V$6,VLOOKUP($I22,Tabelle!$N:$S,6,0),IF($H$2=$V$7,VLOOKUP($I22,Tabelle!$AA:$AF,6,0),IF($H$2=$V$8,VLOOKUP($I22,Tabelle!$AN:$AS,6,0)))))),"",IF($H$2=$V$5,VLOOKUP($I22,Tabelle!$A:$F,6,0),IF($H$2=$V$6,VLOOKUP($I22,Tabelle!$N:$S,6,0),IF($H$2=$V$7,VLOOKUP($I22,Tabelle!$AA:$AF,6,0),IF($H$2=$V$8,VLOOKUP($I22,Tabelle!$AN:$AS,6,0)))))) -> 4.94 | P22: =IF(ISNUMBER(IF($H$2=$V$5,OFFSET(Tabelle!H22,0,0),IF($H$2=$V$6,OFFSET(Tabelle!U22,0,0),IF($H$2=$V$7,OFFSET(Tabelle!AH22,0,0),IF($H$2=$V$8,OFFSET(Tabelle!AV22,0,0)))))),IF($H$2=$V$5,OFFSET(Tabelle!H22,0,0),IF($H$2=$V$6,OFFSET(Tabelle!U22,0,0),IF($H$2=$V$7,OFFSET(Tabelle!AH22,0,0),IF($H$2=$V$8,OFFSET(Tabelle!AU22,0,0))))),"") -> 2009-09-30 | Q22: =IF(ISERROR(IF($H$2=$V$5,VLOOKUP($P22,Tabelle!$H:$I,2,0),IF($H$2=$V$6,VLOOKUP($P22,Tabelle!$U:$V,2,0),IF($H$2=$V$7,VLOOKUP($P22,Tabelle!$AH:$AI,2,0),IF($H$2=$V$8,VLOOKUP($P22,Tabelle!$AU:$AV,2,0)))))),"",IF($H$2=$V$5,VLOOKUP($P22,Tabelle!$H:$I,2,0),IF($H$2=$V$6,VLOOKUP($P22,Tabelle!$U:$V,2,0),IF($H$2=$V$7,VLOOKUP($P22,Tabelle!$AH:$AI,2,0),IF($H$2=$V$8,VLOOKUP($P22,Tabelle!$AU:$AV,2,0)))))) -> 0 | R22: =IF(ISERROR(IF($H$2=$V$5,VLOOKUP($P22,Tabelle!$H:$J,3,0),IF($H$2=$V$6,VLOOKUP($P22,Tabelle!$U:$W,3,0),IF($H$2=$V$7,VLOOKUP($P22,Tabelle!$AH:$AJ,3,0),IF($H$2=$V$8,VLOOKUP($P22,Tabelle!$AU:$AW,3,0)))))),"",IF($H$2=$V$5,VLOOKUP($P22,Tabelle!$H:$J,3,0),IF($H$2=$V$6,VLOOKUP($P22,Tabelle!$U:$W,3,0),IF($H$2=$V$7,VLOOKUP($P22,Tabelle!$AH:$AJ,3,0),IF($H$2=$V$8,VLOOKUP($P22,Tabelle!$AU:$AW,3,0)))))) -> 4.9 | S22: =IF(ISERROR(IF($H$2=$V$5,VLOOKUP($P22,Tabelle!$H:$K,4,0),IF($H$2=$V$6,VLOOKUP($P22,Tabelle!$U:$X,4,0),IF($H$2=$V$7,VLOOKUP($P22,Tabelle!$AH:$AK,4,0),IF($H$2=$V$8,VLOOKUP($P22,Tabelle!$AU:$AX,4,0)))))),"",IF($H$2=$V$5,VLOOKUP($P22,Tabelle!$H:$K,4,0),IF($H$2=$V$6,VLOOKUP($P22,Tabelle!$U:$X,4,0),IF($H$2=$V$7,VLOOKUP($P22,Tabelle!$AH:$AK,4,0),IF($H$2=$V$8,VLOOKUP($P22,Tabelle!$AU:$AX,4,0)))))) -> 10.7 | T22: =IF(ISERROR(IF($H$2=$V$5,VLOOKUP($P22,Tabelle!$H:$L,5,0),IF($H$2=$V$6,VLOOKUP($P22,Tabelle!$U:$Y,5,0),IF($H$2=$V$7,VLOOKUP($P22,Tabelle!$AH:$AL,5,0),IF($H$2=$V$8,VLOOKUP($P22,Tabelle!$AU:$AY,5,0)))))),"",IF($H$2=$V$5,VLOOKUP($P22,Tabelle!$H:$L,5,0),IF($H$2=$V$6,VLOOKUP($P22,Tabelle!$U:$Y,5,0),IF($H$2=$V$7,VLOOKUP($P22,Tabelle!$AH:$AL,5,0),IF($H$2=$V$8,VLOOKUP($P22,Tabelle!$AU:$AY,5,0)))))) -> 3.4 | Z22: 0.2 | AA22: 7.3 | AB22: -0.1 | AC22: 4.94 | AF22: 0 | AG22: 4.9 | AH22: 10.7 | AI22: 3.4
I23: =IF(ISNUMBER(IF($H$2=$V$5,OFFSET(Tabelle!A23,0,0),IF($H$2=$V$6,OFFSET(Tabelle!N23,0,0),IF($H$2=$V$7,OFFSET(Tabelle!AA23,0,0),IF($H$2=$V$8,OFFSET(Tabelle!AN23,0,0)))))),IF($H$2=$V$5,OFFSET(Tabelle!A23,0,0),IF($H$2=$V$6,OFFSET(Tabelle!N23,0,0),IF($H$2=$V$7,OFFSET(Tabelle!AA23,0,0),IF($H$2=$V$8,OFFSET(Tabelle!AN23,0,0))))),"") -> 2009-10-31 | J23: =IF(ISERROR(IF($H$2=$V$5,VLOOKUP($I23,Tabelle!$A:$B,2,0),IF($H$2=$V$6,VLOOKUP($I23,Tabelle!$N:$O,2,0),IF($H$2=$V$7,VLOOKUP($I23,Tabelle!$AA:$AB,2,0),IF($H$2=$V$8,VLOOKUP($I23,Tabelle!$AN:$AO,2,0)))))),"",IF($H$2=$V$5,VLOOKUP($I23,Tabelle!$A:$B,2,0),IF($H$2=$V$6,VLOOKUP($I23,Tabelle!$N:$O,2,0),IF($H$2=$V$7,VLOOKUP($I23,Tabelle!$AA:$AB,2,0),IF($H$2=$V$8,VLOOKUP($I23,Tabelle!$AN:$AO,2,0)))))) -> 1.3 | K23: =IF(ISERROR(IF($H$2=$V$5,VLOOKUP($I23,Tabelle!$A:$C,3,0),IF($H$2=$V$6,VLOOKUP($I23,Tabelle!$N:$P,3,0),IF($H$2=$V$7,VLOOKUP($I23,Tabelle!$AA:$AC,3,0),IF($H$2=$V$8,VLOOKUP($I23,Tabelle!$AN:$AP,3,0)))))),"",IF($H$2=$V$5,VLOOKUP($I23,Tabelle!$A:$C,3,0),IF($H$2=$V$6,VLOOKUP($I23,Tabelle!$N:$P,3,0),IF($H$2=$V$7,VLOOKUP($I23,Tabelle!$AA:$AC,3,0),IF($H$2=$V$8,VLOOKUP($I23,Tabelle!$AN:$AP,3,0)))))) -> -0.3 | L23: =IF(ISERROR(IF($H$2=$V$5,VLOOKUP($I23,Tabelle!$A:$D,4,0),IF($H$2=$V$6,VLOOKUP($I23,Tabelle!$N:$Q,4,0),IF($H$2=$V$7,VLOOKUP($I23,Tabelle!$AA:$AD,4,0),IF($H$2=$V$8,VLOOKUP($I23,Tabelle!$AN:$AQ,4,0)))))),"",IF($H$2=$V$5,VLOOKUP($I23,Tabelle!$A:$D,4,0),IF($H$2=$V$6,VLOOKUP($I23,Tabelle!$N:$Q,4,0),IF($H$2=$V$7,VLOOKUP($I23,Tabelle!$AA:$AD,4,0),IF($H$2=$V$8,VLOOKUP($I23,Tabelle!$AN:$AQ,4,0)))))) -> 5.2 | M23: =IF(ISERROR(IF($H$2=$V$5,VLOOKUP($I23,Tabelle!$A:$E,5,0),IF($H$2=$V$6,VLOOKUP($I23,Tabelle!$N:$R,5,0),IF($H$2=$V$7,VLOOKUP($I23,Tabelle!$AA:$AE,5,0),IF($H$2=$V$8,VLOOKUP($I23,Tabelle!$AN:$AR,5,0)))))),"",IF($H$2=$V$5,VLOOKUP($I23,Tabelle!$A:$E,5,0),IF($H$2=$V$6,VLOOKUP($I23,Tabelle!$N:$R,5,0),IF($H$2=$V$7,VLOOKUP($I23,Tabelle!$AA:$AE,5,0),IF($H$2=$V$8,VLOOKUP($I23,Tabelle!$AN:$AR,5,0)))))) -> 0 | N23: =IF(ISERROR(IF($H$2=$V$5,VLOOKUP($I23,Tabelle!$A:$F,6,0),IF($H$2=$V$6,VLOOKUP($I23,Tabelle!$N:$S,6,0),IF($H$2=$V$7,VLOOKUP($I23,Tabelle!$AA:$AF,6,0),IF($H$2=$V$8,VLOOKUP($I23,Tabelle!$AN:$AS,6,0)))))),"",IF($H$2=$V$5,VLOOKUP($I23,Tabelle!$A:$F,6,0),IF($H$2=$V$6,VLOOKUP($I23,Tabelle!$N:$S,6,0),IF($H$2=$V$7,VLOOKUP($I23,Tabelle!$AA:$AF,6,0),IF($H$2=$V$8,VLOOKUP($I23,Tabelle!$AN:$AS,6,0)))))) -> 4.3 | P23: =IF(ISNUMBER(IF($H$2=$V$5,OFFSET(Tabelle!H23,0,0),IF($H$2=$V$6,OFFSET(Tabelle!U23,0,0),IF($H$2=$V$7,OFFSET(Tabelle!AH23,0,0),IF($H$2=$V$8,OFFSET(Tabelle!AV23,0,0)))))),IF($H$2=$V$5,OFFSET(Tabelle!H23,0,0),IF($H$2=$V$6,OFFSET(Tabelle!U23,0,0),IF($H$2=$V$7,OFFSET(Tabelle!AH23,0,0),IF($H$2=$V$8,OFFSET(Tabelle!AU23,0,0))))),"") -> 2009-10-31 | Q23: =IF(ISERROR(IF($H$2=$V$5,VLOOKUP($P23,Tabelle!$H:$I,2,0),IF($H$2=$V$6,VLOOKUP($P23,Tabelle!$U:$V,2,0),IF($H$2=$V$7,VLOOKUP($P23,Tabelle!$AH:$AI,2,0),IF($H$2=$V$8,VLOOKUP($P23,Tabelle!$AU:$AV,2,0)))))),"",IF($H$2=$V$5,VLOOKUP($P23,Tabelle!$H:$I,2,0),IF($H$2=$V$6,VLOOKUP($P23,Tabelle!$U:$V,2,0),IF($H$2=$V$7,VLOOKUP($P23,Tabelle!$AH:$AI,2,0),IF($H$2=$V$8,VLOOKUP($P23,Tabelle!$AU:$AV,2,0)))))) -> -0.2 | R23: =IF(ISERROR(IF($H$2=$V$5,VLOOKUP($P23,Tabelle!$H:$J,3,0),IF($H$2=$V$6,VLOOKUP($P23,Tabelle!$U:$W,3,0),IF($H$2=$V$7,VLOOKUP($P23,Tabelle!$AH:$AJ,3,0),IF($H$2=$V$8,VLOOKUP($P23,Tabelle!$AU:$AW,3,0)))))),"",IF($H$2=$V$5,VLOOKUP($P23,Tabelle!$H:$J,3,0),IF($H$2=$V$6,VLOOKUP($P23,Tabelle!$U:$W,3,0),IF($H$2=$V$7,VLOOKUP($P23,Tabelle!$AH:$AJ,3,0),IF($H$2=$V$8,VLOOKUP($P23,Tabelle!$AU:$AW,3,0)))))) -> 4.7 | S23: =IF(ISERROR(IF($H$2=$V$5,VLOOKUP($P23,Tabelle!$H:$K,4,0),IF($H$2=$V$6,VLOOKUP($P23,Tabelle!$U:$X,4,0),IF($H$2=$V$7,VLOOKUP($P23,Tabelle!$AH:$AK,4,0),IF($H$2=$V$8,VLOOKUP($P23,Tabelle!$AU:$AX,4,0)))))),"",IF($H$2=$V$5,VLOOKUP($P23,Tabelle!$H:$K,4,0),IF($H$2=$V$6,VLOOKUP($P23,Tabelle!$U:$X,4,0),IF($H$2=$V$7,VLOOKUP($P23,Tabelle!$AH:$AK,4,0),IF($H$2=$V$8,VLOOKUP($P23,Tabelle!$AU:$AX,4,0)))))) -> 9.7 | T23: =IF(ISERROR(IF($H$2=$V$5,VLOOKUP($P23,Tabelle!$H:$L,5,0),IF($H$2=$V$6,VLOOKUP($P23,Tabelle!$U:$Y,5,0),IF($H$2=$V$7,VLOOKUP($P23,Tabelle!$AH:$AL,5,0),IF($H$2=$V$8,VLOOKUP($P23,Tabelle!$AU:$AY,5,0)))))),"",IF($H$2=$V$5,VLOOKUP($P23,Tabelle!$H:$L,5,0),IF($H$2=$V$6,VLOOKUP($P23,Tabelle!$U:$Y,5,0),IF($H$2=$V$7,VLOOKUP($P23,Tabelle!$AH:$AL,5,0),IF($H$2=$V$8,VLOOKUP($P23,Tabelle!$AU:$AY,5,0)))))) -> 3.1 | Z23: -0.3 | AA23: 5.2 | AB23: 0 | AC23: 4.3 | AF23: -0.2 | AG23: 4.7 | AH23: 9.7 | AI23: 3.1
I24: =IF(ISNUMBER(IF($H$2=$V$5,OFFSET(Tabelle!A24,0,0),IF($H$2=$V$6,OFFSET(Tabelle!N24,0,0),IF($H$2=$V$7,OFFSET(Tabelle!AA24,0,0),IF($H$2=$V$8,OFFSET(Tabelle!AN24,0,0)))))),IF($H$2=$V$5,OFFSET(Tabelle!A24,0,0),IF($H$2=$V$6,OFFSET(Tabelle!N24,0,0),IF($H$2=$V$7,OFFSET(Tabelle!AA24,0,0),IF($H$2=$V$8,OFFSET(Tabelle!AN24,0,0))))),"") -> 2009-11-30 | J24: =IF(ISERROR(IF($H$2=$V$5,VLOOKUP($I24,Tabelle!$A:$B,2,0),IF($H$2=$V$6,VLOOKUP($I24,Tabelle!$N:$O,2,0),IF($H$2=$V$7,VLOOKUP($I24,Tabelle!$AA:$AB,2,0),IF($H$2=$V$8,VLOOKUP($I24,Tabelle!$AN:$AO,2,0)))))),"",IF($H$2=$V$5,VLOOKUP($I24,Tabelle!$A:$B,2,0),IF($H$2=$V$6,VLOOKUP($I24,Tabelle!$N:$O,2,0),IF($H$2=$V$7,VLOOKUP($I24,Tabelle!$AA:$AB,2,0),IF($H$2=$V$8,VLOOKUP($I24,Tabelle!$AN:$AO,2,0)))))) -> 1.8 | K24: =IF(ISERROR(IF($H$2=$V$5,VLOOKUP($I24,Tabelle!$A:$C,3,0),IF($H$2=$V$6,VLOOKUP($I24,Tabelle!$N:$P,3,0),IF($H$2=$V$7,VLOOKUP($I24,Tabelle!$AA:$AC,3,0),IF($H$2=$V$8,VLOOKUP($I24,Tabelle!$AN:$AP,3,0)))))),"",IF($H$2=$V$5,VLOOKUP($I24,Tabelle!$A:$C,3,0),IF($H$2=$V$6,VLOOKUP($I24,Tabelle!$N:$P,3,0),IF($H$2=$V$7,VLOOKUP($I24,Tabelle!$AA:$AC,3,0),IF($H$2=$V$8,VLOOKUP($I24,Tabelle!$AN:$AP,3,0)))))) -> -0.1 | L24: =IF(ISERROR(IF($H$2=$V$5,VLOOKUP($I24,Tabelle!$A:$D,4,0),IF($H$2=$V$6,VLOOKUP($I24,Tabelle!$N:$Q,4,0),IF($H$2=$V$7,VLOOKUP($I24,Tabelle!$AA:$AD,4,0),IF($H$2=$V$8,VLOOKUP($I24,Tabelle!$AN:$AQ,4,0)))))),"",IF($H$2=$V$5,VLOOKUP($I24,Tabelle!$A:$D,4,0),IF($H$2=$V$6,VLOOKUP($I24,Tabelle!$N:$Q,4,0),IF($H$2=$V$7,VLOOKUP($I24,Tabelle!$AA:$AD,4,0),IF($H$2=$V$8,VLOOKUP($I24,Tabelle!$AN:$AQ,4,0)))))) -> 5.9 | M24: =IF(ISERROR(IF($H$2=$V$5,VLOOKUP($I24,Tabelle!$A:$E,5,0),IF($H$2=$V$6,VLOOKUP($I24,Tabelle!$N:$R,5,0),IF($H$2=$V$7,VLOOKUP($I24,Tabelle!$AA:$AE,5,0),IF($H$2=$V$8,VLOOKUP($I24,Tabelle!$AN:$AR,5,0)))))),"",IF($H$2=$V$5,VLOOKUP($I24,Tabelle!$A:$E,5,0),IF($H$2=$V$6,VLOOKUP($I24,Tabelle!$N:$R,5,0),IF($H$2=$V$7,VLOOKUP($I24,Tabelle!$AA:$AE,5,0),IF($H$2=$V$8,VLOOKUP($I24,Tabelle!$AN:$AR,5,0)))))) -> 1.6 | N24: =IF(ISERROR(IF($H$2=$V$5,VLOOKUP($I24,Tabelle!$A:$F,6,0),IF($H$2=$V$6,VLOOKUP($I24,Tabelle!$N:$S,6,0),IF($H$2=$V$7,VLOOKUP($I24,Tabelle!$AA:$AF,6,0),IF($H$2=$V$8,VLOOKUP($I24,Tabelle!$AN:$AS,6,0)))))),"",IF($H$2=$V$5,VLOOKUP($I24,Tabelle!$A:$F,6,0),IF($H$2=$V$6,VLOOKUP($I24,Tabelle!$N:$S,6,0),IF($H$2=$V$7,VLOOKUP($I24,Tabelle!$AA:$AF,6,0),IF($H$2=$V$8,VLOOKUP($I24,Tabelle!$AN:$AS,6,0)))))) -> 4.7 | P24: =IF(ISNUMBER(IF($H$2=$V$5,OFFSET(Tabelle!H24,0,0),IF($H$2=$V$6,OFFSET(Tabelle!U24,0,0),IF($H$2=$V$7,OFFSET(Tabelle!AH24,0,0),IF($H$2=$V$8,OFFSET(Tabelle!AV24,0,0)))))),IF($H$2=$V$5,OFFSET(Tabelle!H24,0,0),IF($H$2=$V$6,OFFSET(Tabelle!U24,0,0),IF($H$2=$V$7,OFFSET(Tabelle!AH24,0,0),IF($H$2=$V$8,OFFSET(Tabelle!AU24,0,0))))),"") -> 2009-11-30 | Q24: =IF(ISERROR(IF($H$2=$V$5,VLOOKUP($P24,Tabelle!$H:$I,2,0),IF($H$2=$V$6,VLOOKUP($P24,Tabelle!$U:$V,2,0),IF($H$2=$V$7,VLOOKUP($P24,Tabelle!$AH:$AI,2,0),IF($H$2=$V$8,VLOOKUP($P24,Tabelle!$AU:$AV,2,0)))))),"",IF($H$2=$V$5,VLOOKUP($P24,Tabelle!$H:$I,2,0),IF($H$2=$V$6,VLOOKUP($P24,Tabelle!$U:$V,2,0),IF($H$2=$V$7,VLOOKUP($P24,Tabelle!$AH:$AI,2,0),IF($H$2=$V$8,VLOOKUP($P24,Tabelle!$AU:$AV,2,0)))))) -> 0.5 | R24: =IF(ISERROR(IF($H$2=$V$5,VLOOKUP($P24,Tabelle!$H:$J,3,0),IF($H$2=$V$6,VLOOKUP($P24,Tabelle!$U:$W,3,0),IF($H$2=$V$7,VLOOKUP($P24,Tabelle!$AH:$AJ,3,0),IF($H$2=$V$8,VLOOKUP($P24,Tabelle!$AU:$AW,3,0)))))),"",IF($H$2=$V$5,VLOOKUP($P24,Tabelle!$H:$J,3,0),IF($H$2=$V$6,VLOOKUP($P24,Tabelle!$U:$W,3,0),IF($H$2=$V$7,VLOOKUP($P24,Tabelle!$AH:$AJ,3,0),IF($H$2=$V$8,VLOOKUP($P24,Tabelle!$AU:$AW,3,0)))))) -> 5.2 | S24: =IF(ISERROR(IF($H$2=$V$5,VLOOKUP($P24,Tabelle!$H:$K,4,0),IF($H$2=$V$6,VLOOKUP($P24,Tabelle!$U:$X,4,0),IF($H$2=$V$7,VLOOKUP($P24,Tabelle!$AH:$AK,4,0),IF($H$2=$V$8,VLOOKUP($P24,Tabelle!$AU:$AX,4,0)))))),"",IF($H$2=$V$5,VLOOKUP($P24,Tabelle!$H:$K,4,0),IF($H$2=$V$6,VLOOKUP($P24,Tabelle!$U:$X,4,0),IF($H$2=$V$7,VLOOKUP($P24,Tabelle!$AH:$AK,4,0),IF($H$2=$V$8,VLOOKUP($P24,Tabelle!$AU:$AX,4,0)))))) -> 9.1 | T24: =IF(ISERROR(IF($H$2=$V$5,VLOOKUP($P24,Tabelle!$H:$L,5,0),IF($H$2=$V$6,VLOOKUP($P24,Tabelle!$U:$Y,5,0),IF($H$2=$V$7,VLOOKUP($P24,Tabelle!$AH:$AL,5,0),IF($H$2=$V$8,VLOOKUP($P24,Tabelle!$AU:$AY,5,0)))))),"",IF($H$2=$V$5,VLOOKUP($P24,Tabelle!$H:$L,5,0),IF($H$2=$V$6,VLOOKUP($P24,Tabelle!$U:$Y,5,0),IF($H$2=$V$7,VLOOKUP($P24,Tabelle!$AH:$AL,5,0),IF($H$2=$V$8,VLOOKUP($P24,Tabelle!$AU:$AY,5,0)))))) -> 3.3 | Z24: -0.1 | AA24: 5.9 | AB24: 1.6 | AC24: 4.7 | AF24: 0.5 | AG24: 5.2 | AH24: 9.1 | AI24: 3.3
A25: Source: Bloomberg, Ecowin Reuters, RZS Serbia | I25: =IF(ISNUMBER(IF($H$2=$V$5,OFFSET(Tabelle!A25,0,0),IF($H$2=$V$6,OFFSET(Tabelle!N25,0,0),IF($H$2=$V$7,OFFSET(Tabelle!AA25,0,0),IF($H$2=$V$8,OFFSET(Tabelle!AN25,0,0)))))),IF($H$2=$V$5,OFFSET(Tabelle!A25,0,0),IF($H$2=$V$6,OFFSET(Tabelle!N25,0,0),IF($H$2=$V$7,OFFSET(Tabelle!AA25,0,0),IF($H$2=$V$8,OFFSET(Tabelle!AN25,0,0))))),"") -> 2009-12-31 | J25: =IF(ISERROR(IF($H$2=$V$5,VLOOKUP($I25,Tabelle!$A:$B,2,0),IF($H$2=$V$6,VLOOKUP($I25,Tabelle!$N:$O,2,0),IF($H$2=$V$7,VLOOKUP($I25,Tabelle!$AA:$AB,2,0),IF($H$2=$V$8,VLOOKUP($I25,Tabelle!$AN:$AO,2,0)))))),"",IF($H$2=$V$5,VLOOKUP($I25,Tabelle!$A:$B,2,0),IF($H$2=$V$6,VLOOKUP($I25,Tabelle!$N:$O,2,0),IF($H$2=$V$7,VLOOKUP($I25,Tabelle!$AA:$AB,2,0),IF($H$2=$V$8,VLOOKUP($I25,Tabelle!$AN:$AO,2,0)))))) -> 1.9 | K25: =IF(ISERROR(IF($H$2=$V$5,VLOOKUP($I25,Tabelle!$A:$C,3,0),IF($H$2=$V$6,VLOOKUP($I25,Tabelle!$N:$P,3,0),IF($H$2=$V$7,VLOOKUP($I25,Tabelle!$AA:$AC,3,0),IF($H$2=$V$8,VLOOKUP($I25,Tabelle!$AN:$AP,3,0)))))),"",IF($H$2=$V$5,VLOOKUP($I25,Tabelle!$A:$C,3,0),IF($H$2=$V$6,VLOOKUP($I25,Tabelle!$N:$P,3,0),IF($H$2=$V$7,VLOOKUP($I25,Tabelle!$AA:$AC,3,0),IF($H$2=$V$8,VLOOKUP($I25,Tabelle!$AN:$AP,3,0)))))) -> 0.6 | L25: =IF(ISERROR(IF($H$2=$V$5,VLOOKUP($I25,Tabelle!$A:$D,4,0),IF($H$2=$V$6,VLOOKUP($I25,Tabelle!$N:$Q,4,0),IF($H$2=$V$7,VLOOKUP($I25,Tabelle!$AA:$AD,4,0),IF($H$2=$V$8,VLOOKUP($I25,Tabelle!$AN:$AQ,4,0)))))),"",IF($H$2=$V$5,VLOOKUP($I25,Tabelle!$A:$D,4,0),IF($H$2=$V$6,VLOOKUP($I25,Tabelle!$N:$Q,4,0),IF($H$2=$V$7,VLOOKUP($I25,Tabelle!$AA:$AD,4,0),IF($H$2=$V$8,VLOOKUP($I25,Tabelle!$AN:$AQ,4,0)))))) -> 6.6 | M25: =IF(ISERROR(IF($H$2=$V$5,VLOOKUP($I25,Tabelle!$A:$E,5,0),IF($H$2=$V$6,VLOOKUP($I25,Tabelle!$N:$R,5,0),IF($H$2=$V$7,VLOOKUP($I25,Tabelle!$AA:$AE,5,0),IF($H$2=$V$8,VLOOKUP($I25,Tabelle!$AN:$AR,5,0)))))),"",IF($H$2=$V$5,VLOOKUP($I25,Tabelle!$A:$E,5,0),IF($H$2=$V$6,VLOOKUP($I25,Tabelle!$N:$R,5,0),IF($H$2=$V$7,VLOOKUP($I25,Tabelle!$AA:$AE,5,0),IF($H$2=$V$8,VLOOKUP($I25,Tabelle!$AN:$AR,5,0)))))) -> 1.8 | N25: =IF(ISERROR(IF($H$2=$V$5,VLOOKUP($I25,Tabelle!$A:$F,6,0),IF($H$2=$V$6,VLOOKUP($I25,Tabelle!$N:$S,6,0),IF($H$2=$V$7,VLOOKUP($I25,Tabelle!$AA:$AF,6,0),IF($H$2=$V$8,VLOOKUP($I25,Tabelle!$AN:$AS,6,0)))))),"",IF($H$2=$V$5,VLOOKUP($I25,Tabelle!$A:$F,6,0),IF($H$2=$V$6,VLOOKUP($I25,Tabelle!$N:$S,6,0),IF($H$2=$V$7,VLOOKUP($I25,Tabelle!$AA:$AF,6,0),IF($H$2=$V$8,VLOOKUP($I25,Tabelle!$AN:$AS,6,0)))))) -> 4.74 | P25: =IF(ISNUMBER(IF($H$2=$V$5,OFFSET(Tabelle!H25,0,0),IF($H$2=$V$6,OFFSET(Tabelle!U25,0,0),IF($H$2=$V$7,OFFSET(Tabelle!AH25,0,0),IF($H$2=$V$8,OFFSET(Tabelle!AV25,0,0)))))),IF($H$2=$V$5,OFFSET(Tabelle!H25,0,0),IF($H$2=$V$6,OFFSET(Tabelle!U25,0,0),IF($H$2=$V$7,OFFSET(Tabelle!AH25,0,0),IF($H$2=$V$8,OFFSET(Tabelle!AU25,0,0))))),"") -> 2009-12-31 | Q25: =IF(ISERROR(IF($H$2=$V$5,VLOOKUP($P25,Tabelle!$H:$I,2,0),IF($H$2=$V$6,VLOOKUP($P25,Tabelle!$U:$V,2,0),IF($H$2=$V$7,VLOOKUP($P25,Tabelle!$AH:$AI,2,0),IF($H$2=$V$8,VLOOKUP($P25,Tabelle!$AU:$AV,2,0)))))),"",IF($H$2=$V$5,VLOOKUP($P25,Tabelle!$H:$I,2,0),IF($H$2=$V$6,VLOOKUP($P25,Tabelle!$U:$V,2,0),IF($H$2=$V$7,VLOOKUP($P25,Tabelle!$AH:$AI,2,0),IF($H$2=$V$8,VLOOKUP($P25,Tabelle!$AU:$AV,2,0)))))) -> 1 | R25: =IF(ISERROR(IF($H$2=$V$5,VLOOKUP($P25,Tabelle!$H:$J,3,0),IF($H$2=$V$6,VLOOKUP($P25,Tabelle!$U:$W,3,0),IF($H$2=$V$7,VLOOKUP($P25,Tabelle!$AH:$AJ,3,0),IF($H$2=$V$8,VLOOKUP($P25,Tabelle!$AU:$AW,3,0)))))),"",IF($H$2=$V$5,VLOOKUP($P25,Tabelle!$H:$J,3,0),IF($H$2=$V$6,VLOOKUP($P25,Tabelle!$U:$W,3,0),IF($H$2=$V$7,VLOOKUP($P25,Tabelle!$AH:$AJ,3,0),IF($H$2=$V$8,VLOOKUP($P25,Tabelle!$AU:$AW,3,0)))))) -> 5.6 | S25: =IF(ISERROR(IF($H$2=$V$5,VLOOKUP($P25,Tabelle!$H:$K,4,0),IF($H$2=$V$6,VLOOKUP($P25,Tabelle!$U:$X,4,0),IF($H$2=$V$7,VLOOKUP($P25,Tabelle!$AH:$AK,4,0),IF($H$2=$V$8,VLOOKUP($P25,Tabelle!$AU:$AX,4,0)))))),"",IF($H$2=$V$5,VLOOKUP($P25,Tabelle!$H:$K,4,0),IF($H$2=$V$6,VLOOKUP($P25,Tabelle!$U:$X,4,0),IF($H$2=$V$7,VLOOKUP($P25,Tabelle!$AH:$AK,4,0),IF($H$2=$V$8,VLOOKUP($P25,Tabelle!$AU:$AX,4,0)))))) -> 8.8 | T25: =IF(ISERROR(IF($H$2=$V$5,VLOOKUP($P25,Tabelle!$H:$L,5,0),IF($H$2=$V$6,VLOOKUP($P25,Tabelle!$U:$Y,5,0),IF($H$2=$V$7,VLOOKUP($P25,Tabelle!$AH:$AL,5,0),IF($H$2=$V$8,VLOOKUP($P25,Tabelle!$AU:$AY,5,0)))))),"",IF($H$2=$V$5,VLOOKUP($P25,Tabelle!$H:$L,5,0),IF($H$2=$V$6,VLOOKUP($P25,Tabelle!$U:$Y,5,0),IF($H$2=$V$7,VLOOKUP($P25,Tabelle!$AH:$AL,5,0),IF($H$2=$V$8,VLOOKUP($P25,Tabelle!$AU:$AY,5,0)))))) -> 3.5 | Z25: 0.6 | AA25: 6.6 | AB25: 1.8 | AC25: 4.74 | AF25: 1 | AG25: 5.6 | AH25: 8.8 | AI25: 3.5
I26: =IF(ISNUMBER(IF($H$2=$V$5,OFFSET(Tabelle!A26,0,0),IF($H$2=$V$6,OFFSET(Tabelle!N26,0,0),IF($H$2=$V$7,OFFSET(Tabelle!AA26,0,0),IF($H$2=$V$8,OFFSET(Tabelle!AN26,0,0)))))),IF($H$2=$V$5,OFFSET(Tabelle!A26,0,0),IF($H$2=$V$6,OFFSET(Tabelle!N26,0,0),IF($H$2=$V$7,OFFSET(Tabelle!AA26,0,0),IF($H$2=$V$8,OFFSET(Tabelle!AN26,0,0))))),"") -> 2010-01-31 | J26: =IF(ISERROR(IF($H$2=$V$5,VLOOKUP($I26,Tabelle!$A:$B,2,0),IF($H$2=$V$6,VLOOKUP($I26,Tabelle!$N:$O,2,0),IF($H$2=$V$7,VLOOKUP($I26,Tabelle!$AA:$AB,2,0),IF($H$2=$V$8,VLOOKUP($I26,Tabelle!$AN:$AO,2,0)))))),"",IF($H$2=$V$5,VLOOKUP($I26,Tabelle!$A:$B,2,0),IF($H$2=$V$6,VLOOKUP($I26,Tabelle!$N:$O,2,0),IF($H$2=$V$7,VLOOKUP($I26,Tabelle!$AA:$AB,2,0),IF($H$2=$V$8,VLOOKUP($I26,Tabelle!$AN:$AO,2,0)))))) -> 1.1 | K26: =IF(ISERROR(IF($H$2=$V$5,VLOOKUP($I26,Tabelle!$A:$C,3,0),IF($H$2=$V$6,VLOOKUP($I26,Tabelle!$N:$P,3,0),IF($H$2=$V$7,VLOOKUP($I26,Tabelle!$AA:$AC,3,0),IF($H$2=$V$8,VLOOKUP($I26,Tabelle!$AN:$AP,3,0)))))),"",IF($H$2=$V$5,VLOOKUP($I26,Tabelle!$A:$C,3,0),IF($H$2=$V$6,VLOOKUP($I26,Tabelle!$N:$P,3,0),IF($H$2=$V$7,VLOOKUP($I26,Tabelle!$AA:$AC,3,0),IF($H$2=$V$8,VLOOKUP($I26,Tabelle!$AN:$AP,3,0)))))) -> 0.5 | L26: =IF(ISERROR(IF($H$2=$V$5,VLOOKUP($I26,Tabelle!$A:$D,4,0),IF($H$2=$V$6,VLOOKUP($I26,Tabelle!$N:$Q,4,0),IF($H$2=$V$7,VLOOKUP($I26,Tabelle!$AA:$AD,4,0),IF($H$2=$V$8,VLOOKUP($I26,Tabelle!$AN:$AQ,4,0)))))),"",IF($H$2=$V$5,VLOOKUP($I26,Tabelle!$A:$D,4,0),IF($H$2=$V$6,VLOOKUP($I26,Tabelle!$N:$Q,4,0),IF($H$2=$V$7,VLOOKUP($I26,Tabelle!$AA:$AD,4,0),IF($H$2=$V$8,VLOOKUP($I26,Tabelle!$AN:$AQ,4,0)))))) -> 4.8 | M26: =IF(ISERROR(IF($H$2=$V$5,VLOOKUP($I26,Tabelle!$A:$E,5,0),IF($H$2=$V$6,VLOOKUP($I26,Tabelle!$N:$R,5,0),IF($H$2=$V$7,VLOOKUP($I26,Tabelle!$AA:$AE,5,0),IF($H$2=$V$8,VLOOKUP($I26,Tabelle!$AN:$AR,5,0)))))),"",IF($H$2=$V$5,VLOOKUP($I26,Tabelle!$A:$E,5,0),IF($H$2=$V$6,VLOOKUP($I26,Tabelle!$N:$R,5,0),IF($H$2=$V$7,VLOOKUP($I26,Tabelle!$AA:$AE,5,0),IF($H$2=$V$8,VLOOKUP($I26,Tabelle!$AN:$AR,5,0)))))) -> 1.5 | N26: =IF(ISERROR(IF($H$2=$V$5,VLOOKUP($I26,Tabelle!$A:$F,6,0),IF($H$2=$V$6,VLOOKUP($I26,Tabelle!$N:$S,6,0),IF($H$2=$V$7,VLOOKUP($I26,Tabelle!$AA:$AF,6,0),IF($H$2=$V$8,VLOOKUP($I26,Tabelle!$AN:$AS,6,0)))))),"",IF($H$2=$V$5,VLOOKUP($I26,Tabelle!$A:$F,6,0),IF($H$2=$V$6,VLOOKUP($I26,Tabelle!$N:$S,6,0),IF($H$2=$V$7,VLOOKUP($I26,Tabelle!$AA:$AF,6,0),IF($H$2=$V$8,VLOOKUP($I26,Tabelle!$AN:$AS,6,0)))))) -> 5.2 | P26: =IF(ISNUMBER(IF($H$2=$V$5,OFFSET(Tabelle!H26,0,0),IF($H$2=$V$6,OFFSET(Tabelle!U26,0,0),IF($H$2=$V$7,OFFSET(Tabelle!AH26,0,0),IF($H$2=$V$8,OFFSET(Tabelle!AV26,0,0)))))),IF($H$2=$V$5,OFFSET(Tabelle!H26,0,0),IF($H$2=$V$6,OFFSET(Tabelle!U26,0,0),IF($H$2=$V$7,OFFSET(Tabelle!AH26,0,0),IF($H$2=$V$8,OFFSET(Tabelle!AU26,0,0))))),"") -> 2010-01-31 | Q26: =IF(ISERROR(IF($H$2=$V$5,VLOOKUP($P26,Tabelle!$H:$I,2,0),IF($H$2=$V$6,VLOOKUP($P26,Tabelle!$U:$V,2,0),IF($H$2=$V$7,VLOOKUP($P26,Tabelle!$AH:$AI,2,0),IF($H$2=$V$8,VLOOKUP($P26,Tabelle!$AU:$AV,2,0)))))),"",IF($H$2=$V$5,VLOOKUP($P26,Tabelle!$H:$I,2,0),IF($H$2=$V$6,VLOOKUP($P26,Tabelle!$U:$V,2,0),IF($H$2=$V$7,VLOOKUP($P26,Tabelle!$AH:$AI,2,0),IF($H$2=$V$8,VLOOKUP($P26,Tabelle!$AU:$AV,2,0)))))) -> 0.7 | R26: =IF(ISERROR(IF($H$2=$V$5,VLOOKUP($P26,Tabelle!$H:$J,3,0),IF($H$2=$V$6,VLOOKUP($P26,Tabelle!$U:$W,3,0),IF($H$2=$V$7,VLOOKUP($P26,Tabelle!$AH:$AJ,3,0),IF($H$2=$V$8,VLOOKUP($P26,Tabelle!$AU:$AW,3,0)))))),"",IF($H$2=$V$5,VLOOKUP($P26,Tabelle!$H:$J,3,0),IF($H$2=$V$6,VLOOKUP($P26,Tabelle!$U:$W,3,0),IF($H$2=$V$7,VLOOKUP($P26,Tabelle!$AH:$AJ,3,0),IF($H$2=$V$8,VLOOKUP($P26,Tabelle!$AU:$AW,3,0)))))) -> 6.4 | S26: =IF(ISERROR(IF($H$2=$V$5,VLOOKUP($P26,Tabelle!$H:$K,4,0),IF($H$2=$V$6,VLOOKUP($P26,Tabelle!$U:$X,4,0),IF($H$2=$V$7,VLOOKUP($P26,Tabelle!$AH:$AK,4,0),IF($H$2=$V$8,VLOOKUP($P26,Tabelle!$AU:$AX,4,0)))))),"",IF($H$2=$V$5,VLOOKUP($P26,Tabelle!$H:$K,4,0),IF($H$2=$V$6,VLOOKUP($P26,Tabelle!$U:$X,4,0),IF($H$2=$V$7,VLOOKUP($P26,Tabelle!$AH:$AK,4,0),IF($H$2=$V$8,VLOOKUP($P26,Tabelle!$AU:$AX,4,0)))))) -> 8 | T26: =IF(ISERROR(IF($H$2=$V$5,VLOOKUP($P26,Tabelle!$H:$L,5,0),IF($H$2=$V$6,VLOOKUP($P26,Tabelle!$U:$Y,5,0),IF($H$2=$V$7,VLOOKUP($P26,Tabelle!$AH:$AL,5,0),IF($H$2=$V$8,VLOOKUP($P26,Tabelle!$AU:$AY,5,0)))))),"",IF($H$2=$V$5,VLOOKUP($P26,Tabelle!$H:$L,5,0),IF($H$2=$V$6,VLOOKUP($P26,Tabelle!$U:$Y,5,0),IF($H$2=$V$7,VLOOKUP($P26,Tabelle!$AH:$AL,5,0),IF($H$2=$V$8,VLOOKUP($P26,Tabelle!$AU:$AY,5,0)))))) -> 3.5 | Z26: 0.5 | AA26: 4.8 | AB26: 1.5 | AC26: 5.2 | AF26: 0.7 | AG26: 6.4 | AH26: 8 | AI26: 3.5
I27: =IF(ISNUMBER(IF($H$2=$V$5,OFFSET(Tabelle!A27,0,0),IF($H$2=$V$6,OFFSET(Tabelle!N27,0,0),IF($H$2=$V$7,OFFSET(Tabelle!AA27,0,0),IF($H$2=$V$8,OFFSET(Tabelle!AN27,0,0)))))),IF($H$2=$V$5,OFFSET(Tabelle!A27,0,0),IF($H$2=$V$6,OFFSET(Tabelle!N27,0,0),IF($H$2=$V$7,OFFSET(Tabelle!AA27,0,0),IF($H$2=$V$8,OFFSET(Tabelle!AN27,0,0))))),"") -> 2010-02-28 | J27: =IF(ISERROR(IF($H$2=$V$5,VLOOKUP($I27,Tabelle!$A:$B,2,0),IF($H$2=$V$6,VLOOKUP($I27,Tabelle!$N:$O,2,0),IF($H$2=$V$7,VLOOKUP($I27,Tabelle!$AA:$AB,2,0),IF($H$2=$V$8,VLOOKUP($I27,Tabelle!$AN:$AO,2,0)))))),"",IF($H$2=$V$5,VLOOKUP($I27,Tabelle!$A:$B,2,0),IF($H$2=$V$6,VLOOKUP($I27,Tabelle!$N:$O,2,0),IF($H$2=$V$7,VLOOKUP($I27,Tabelle!$AA:$AB,2,0),IF($H$2=$V$8,VLOOKUP($I27,Tabelle!$AN:$AO,2,0)))))) -> 0.7 | K27: =IF(ISERROR(IF($H$2=$V$5,VLOOKUP($I27,Tabelle!$A:$C,3,0),IF($H$2=$V$6,VLOOKUP($I27,Tabelle!$N:$P,3,0),IF($H$2=$V$7,VLOOKUP($I27,Tabelle!$AA:$AC,3,0),IF($H$2=$V$8,VLOOKUP($I27,Tabelle!$AN:$AP,3,0)))))),"",IF($H$2=$V$5,VLOOKUP($I27,Tabelle!$A:$C,3,0),IF($H$2=$V$6,VLOOKUP($I27,Tabelle!$N:$P,3,0),IF($H$2=$V$7,VLOOKUP($I27,Tabelle!$AA:$AC,3,0),IF($H$2=$V$8,VLOOKUP($I27,Tabelle!$AN:$AP,3,0)))))) -> 0.9 | L27: =IF(ISERROR(IF($H$2=$V$5,VLOOKUP($I27,Tabelle!$A:$D,4,0),IF($H$2=$V$6,VLOOKUP($I27,Tabelle!$N:$Q,4,0),IF($H$2=$V$7,VLOOKUP($I27,Tabelle!$AA:$AD,4,0),IF($H$2=$V$8,VLOOKUP($I27,Tabelle!$AN:$AQ,4,0)))))),"",IF($H$2=$V$5,VLOOKUP($I27,Tabelle!$A:$D,4,0),IF($H$2=$V$6,VLOOKUP($I27,Tabelle!$N:$Q,4,0),IF($H$2=$V$7,VLOOKUP($I27,Tabelle!$AA:$AD,4,0),IF($H$2=$V$8,VLOOKUP($I27,Tabelle!$AN:$AQ,4,0)))))) -> 3.9 | M27: =IF(ISERROR(IF($H$2=$V$5,VLOOKUP($I27,Tabelle!$A:$E,5,0),IF($H$2=$V$6,VLOOKUP($I27,Tabelle!$N:$R,5,0),IF($H$2=$V$7,VLOOKUP($I27,Tabelle!$AA:$AE,5,0),IF($H$2=$V$8,VLOOKUP($I27,Tabelle!$AN:$AR,5,0)))))),"",IF($H$2=$V$5,VLOOKUP($I27,Tabelle!$A:$E,5,0),IF($H$2=$V$6,VLOOKUP($I27,Tabelle!$N:$R,5,0),IF($H$2=$V$7,VLOOKUP($I27,Tabelle!$AA:$AE,5,0),IF($H$2=$V$8,VLOOKUP($I27,Tabelle!$AN:$AR,5,0)))))) -> 1.3 | N27: =IF(ISERROR(IF($H$2=$V$5,VLOOKUP($I27,Tabelle!$A:$F,6,0),IF($H$2=$V$6,VLOOKUP($I27,Tabelle!$N:$S,6,0),IF($H$2=$V$7,VLOOKUP($I27,Tabelle!$AA:$AF,6,0),IF($H$2=$V$8,VLOOKUP($I27,Tabelle!$AN:$AS,6,0)))))),"",IF($H$2=$V$5,VLOOKUP($I27,Tabelle!$A:$F,6,0),IF($H$2=$V$6,VLOOKUP($I27,Tabelle!$N:$S,6,0),IF($H$2=$V$7,VLOOKUP($I27,Tabelle!$AA:$AF,6,0),IF($H$2=$V$8,VLOOKUP($I27,Tabelle!$AN:$AS,6,0)))))) -> 4.49 | P27: =IF(ISNUMBER(IF($H$2=$V$5,OFFSET(Tabelle!H27,0,0),IF($H$2=$V$6,OFFSET(Tabelle!U27,0,0),IF($H$2=$V$7,OFFSET(Tabelle!AH27,0,0),IF($H$2=$V$8,OFFSET(Tabelle!AV27,0,0)))))),IF($H$2=$V$5,OFFSET(Tabelle!H27,0,0),IF($H$2=$V$6,OFFSET(Tabelle!U27,0,0),IF($H$2=$V$7,OFFSET(Tabelle!AH27,0,0),IF($H$2=$V$8,OFFSET(Tabelle!AU27,0,0))))),"") -> 2010-02-28 | Q27: =IF(ISERROR(IF($H$2=$V$5,VLOOKUP($P27,Tabelle!$H:$I,2,0),IF($H$2=$V$6,VLOOKUP($P27,Tabelle!$U:$V,2,0),IF($H$2=$V$7,VLOOKUP($P27,Tabelle!$AH:$AI,2,0),IF($H$2=$V$8,VLOOKUP($P27,Tabelle!$AU:$AV,2,0)))))),"",IF($H$2=$V$5,VLOOKUP($P27,Tabelle!$H:$I,2,0),IF($H$2=$V$6,VLOOKUP($P27,Tabelle!$U:$V,2,0),IF($H$2=$V$7,VLOOKUP($P27,Tabelle!$AH:$AI,2,0),IF($H$2=$V$8,VLOOKUP($P27,Tabelle!$AU:$AV,2,0)))))) -> 0.6 | R27: =IF(ISERROR(IF($H$2=$V$5,VLOOKUP($P27,Tabelle!$H:$J,3,0),IF($H$2=$V$6,VLOOKUP($P27,Tabelle!$U:$W,3,0),IF($H$2=$V$7,VLOOKUP($P27,Tabelle!$AH:$AJ,3,0),IF($H$2=$V$8,VLOOKUP($P27,Tabelle!$AU:$AW,3,0)))))),"",IF($H$2=$V$5,VLOOKUP($P27,Tabelle!$H:$J,3,0),IF($H$2=$V$6,VLOOKUP($P27,Tabelle!$U:$W,3,0),IF($H$2=$V$7,VLOOKUP($P27,Tabelle!$AH:$AJ,3,0),IF($H$2=$V$8,VLOOKUP($P27,Tabelle!$AU:$AW,3,0)))))) -> 5.7 | S27: =IF(ISERROR(IF($H$2=$V$5,VLOOKUP($P27,Tabelle!$H:$K,4,0),IF($H$2=$V$6,VLOOKUP($P27,Tabelle!$U:$X,4,0),IF($H$2=$V$7,VLOOKUP($P27,Tabelle!$AH:$AK,4,0),IF($H$2=$V$8,VLOOKUP($P27,Tabelle!$AU:$AX,4,0)))))),"",IF($H$2=$V$5,VLOOKUP($P27,Tabelle!$H:$K,4,0),IF($H$2=$V$6,VLOOKUP($P27,Tabelle!$U:$X,4,0),IF($H$2=$V$7,VLOOKUP($P27,Tabelle!$AH:$AK,4,0),IF($H$2=$V$8,VLOOKUP($P27,Tabelle!$AU:$AX,4,0)))))) -> 7.2 | T27: =IF(ISERROR(IF($H$2=$V$5,VLOOKUP($P27,Tabelle!$H:$L,5,0),IF($H$2=$V$6,VLOOKUP($P27,Tabelle!$U:$Y,5,0),IF($H$2=$V$7,VLOOKUP($P27,Tabelle!$AH:$AL,5,0),IF($H$2=$V$8,VLOOKUP($P27,Tabelle!$AU:$AY,5,0)))))),"",IF($H$2=$V$5,VLOOKUP($P27,Tabelle!$H:$L,5,0),IF($H$2=$V$6,VLOOKUP($P27,Tabelle!$U:$Y,5,0),IF($H$2=$V$7,VLOOKUP($P27,Tabelle!$AH:$AL,5,0),IF($H$2=$V$8,VLOOKUP($P27,Tabelle!$AU:$AY,5,0)))))) -> 2.9 | Z27: 0.9 | AA27: 3.9 | AB27: 1.3 | AC27: 4.49 | AF27: 0.6 | AG27: 5.7 | AH27: 7.2 | AI27: 2.9
I28: =IF(ISNUMBER(IF($H$2=$V$5,OFFSET(Tabelle!A28,0,0),IF($H$2=$V$6,OFFSET(Tabelle!N28,0,0),IF($H$2=$V$7,OFFSET(Tabelle!AA28,0,0),IF($H$2=$V$8,OFFSET(Tabelle!AN28,0,0)))))),IF($H$2=$V$5,OFFSET(Tabelle!A28,0,0),IF($H$2=$V$6,OFFSET(Tabelle!N28,0,0),IF($H$2=$V$7,OFFSET(Tabelle!AA28,0,0),IF($H$2=$V$8,OFFSET(Tabelle!AN28,0,0))))),"") -> 2010-03-31 | J28: =IF(ISERROR(IF($H$2=$V$5,VLOOKUP($I28,Tabelle!$A:$B,2,0),IF($H$2=$V$6,VLOOKUP($I28,Tabelle!$N:$O,2,0),IF($H$2=$V$7,VLOOKUP($I28,Tabelle!$AA:$AB,2,0),IF($H$2=$V$8,VLOOKUP($I28,Tabelle!$AN:$AO,2,0)))))),"",IF($H$2=$V$5,VLOOKUP($I28,Tabelle!$A:$B,2,0),IF($H$2=$V$6,VLOOKUP($I28,Tabelle!$N:$O,2,0),IF($H$2=$V$7,VLOOKUP($I28,Tabelle!$AA:$AB,2,0),IF($H$2=$V$8,VLOOKUP($I28,Tabelle!$AN:$AO,2,0)))))) -> 0.9 | K28: =IF(ISERROR(IF($H$2=$V$5,VLOOKUP($I28,Tabelle!$A:$C,3,0),IF($H$2=$V$6,VLOOKUP($I28,Tabelle!$N:$P,3,0),IF($H$2=$V$7,VLOOKUP($I28,Tabelle!$AA:$AC,3,0),IF($H$2=$V$8,VLOOKUP($I28,Tabelle!$AN:$AP,3,0)))))),"",IF($H$2=$V$5,VLOOKUP($I28,Tabelle!$A:$C,3,0),IF($H$2=$V$6,VLOOKUP($I28,Tabelle!$N:$P,3,0),IF($H$2=$V$7,VLOOKUP($I28,Tabelle!$AA:$AC,3,0),IF($H$2=$V$8,VLOOKUP($I28,Tabelle!$AN:$AP,3,0)))))) -> 1.3 | L28: =IF(ISERROR(IF($H$2=$V$5,VLOOKUP($I28,Tabelle!$A:$D,4,0),IF($H$2=$V$6,VLOOKUP($I28,Tabelle!$N:$Q,4,0),IF($H$2=$V$7,VLOOKUP($I28,Tabelle!$AA:$AD,4,0),IF($H$2=$V$8,VLOOKUP($I28,Tabelle!$AN:$AQ,4,0)))))),"",IF($H$2=$V$5,VLOOKUP($I28,Tabelle!$A:$D,4,0),IF($H$2=$V$6,VLOOKUP($I28,Tabelle!$N:$Q,4,0),IF($H$2=$V$7,VLOOKUP($I28,Tabelle!$AA:$AD,4,0),IF($H$2=$V$8,VLOOKUP($I28,Tabelle!$AN:$AQ,4,0)))))) -> 4.7 | M28: =IF(ISERROR(IF($H$2=$V$5,VLOOKUP($I28,Tabelle!$A:$E,5,0),IF($H$2=$V$6,VLOOKUP($I28,Tabelle!$N:$R,5,0),IF($H$2=$V$7,VLOOKUP($I28,Tabelle!$AA:$AE,5,0),IF($H$2=$V$8,VLOOKUP($I28,Tabelle!$AN:$AR,5,0)))))),"",IF($H$2=$V$5,VLOOKUP($I28,Tabelle!$A:$E,5,0),IF($H$2=$V$6,VLOOKUP($I28,Tabelle!$N:$R,5,0),IF($H$2=$V$7,VLOOKUP($I28,Tabelle!$AA:$AE,5,0),IF($H$2=$V$8,VLOOKUP($I28,Tabelle!$AN:$AR,5,0)))))) -> 1.4 | N28: =IF(ISERROR(IF($H$2=$V$5,VLOOKUP($I28,Tabelle!$A:$F,6,0),IF($H$2=$V$6,VLOOKUP($I28,Tabelle!$N:$S,6,0),IF($H$2=$V$7,VLOOKUP($I28,Tabelle!$AA:$AF,6,0),IF($H$2=$V$8,VLOOKUP($I28,Tabelle!$AN:$AS,6,0)))))),"",IF($H$2=$V$5,VLOOKUP($I28,Tabelle!$A:$F,6,0),IF($H$2=$V$6,VLOOKUP($I28,Tabelle!$N:$S,6,0),IF($H$2=$V$7,VLOOKUP($I28,Tabelle!$AA:$AF,6,0),IF($H$2=$V$8,VLOOKUP($I28,Tabelle!$AN:$AS,6,0)))))) -> 4.2 | P28: =IF(ISNUMBER(IF($H$2=$V$5,OFFSET(Tabelle!H28,0,0),IF($H$2=$V$6,OFFSET(Tabelle!U28,0,0),IF($H$2=$V$7,OFFSET(Tabelle!AH28,0,0),IF($H$2=$V$8,OFFSET(Tabelle!AV28,0,0)))))),IF($H$2=$V$5,OFFSET(Tabelle!H28,0,0),IF($H$2=$V$6,OFFSET(Tabelle!U28,0,0),IF($H$2=$V$7,OFFSET(Tabelle!AH28,0,0),IF($H$2=$V$8,OFFSET(Tabelle!AU28,0,0))))),"") -> 2010-03-31 | Q28: =IF(ISERROR(IF($H$2=$V$5,VLOOKUP($P28,Tabelle!$H:$I,2,0),IF($H$2=$V$6,VLOOKUP($P28,Tabelle!$U:$V,2,0),IF($H$2=$V$7,VLOOKUP($P28,Tabelle!$AH:$AI,2,0),IF($H$2=$V$8,VLOOKUP($P28,Tabelle!$AU:$AV,2,0)))))),"",IF($H$2=$V$5,VLOOKUP($P28,Tabelle!$H:$I,2,0),IF($H$2=$V$6,VLOOKUP($P28,Tabelle!$U:$V,2,0),IF($H$2=$V$7,VLOOKUP($P28,Tabelle!$AH:$AI,2,0),IF($H$2=$V$8,VLOOKUP($P28,Tabelle!$AU:$AV,2,0)))))) -> 0.7 | R28: =IF(ISERROR(IF($H$2=$V$5,VLOOKUP($P28,Tabelle!$H:$J,3,0),IF($H$2=$V$6,VLOOKUP($P28,Tabelle!$U:$W,3,0),IF($H$2=$V$7,VLOOKUP($P28,Tabelle!$AH:$AJ,3,0),IF($H$2=$V$8,VLOOKUP($P28,Tabelle!$AU:$AW,3,0)))))),"",IF($H$2=$V$5,VLOOKUP($P28,Tabelle!$H:$J,3,0),IF($H$2=$V$6,VLOOKUP($P28,Tabelle!$U:$W,3,0),IF($H$2=$V$7,VLOOKUP($P28,Tabelle!$AH:$AJ,3,0),IF($H$2=$V$8,VLOOKUP($P28,Tabelle!$AU:$AW,3,0)))))) -> 5.9 | S28: =IF(ISERROR(IF($H$2=$V$5,VLOOKUP($P28,Tabelle!$H:$K,4,0),IF($H$2=$V$6,VLOOKUP($P28,Tabelle!$U:$X,4,0),IF($H$2=$V$7,VLOOKUP($P28,Tabelle!$AH:$AK,4,0),IF($H$2=$V$8,VLOOKUP($P28,Tabelle!$AU:$AX,4,0)))))),"",IF($H$2=$V$5,VLOOKUP($P28,Tabelle!$H:$K,4,0),IF($H$2=$V$6,VLOOKUP($P28,Tabelle!$U:$X,4,0),IF($H$2=$V$7,VLOOKUP($P28,Tabelle!$AH:$AK,4,0),IF($H$2=$V$8,VLOOKUP($P28,Tabelle!$AU:$AX,4,0)))))) -> 6.5 | T28: =IF(ISERROR(IF($H$2=$V$5,VLOOKUP($P28,Tabelle!$H:$L,5,0),IF($H$2=$V$6,VLOOKUP($P28,Tabelle!$U:$Y,5,0),IF($H$2=$V$7,VLOOKUP($P28,Tabelle!$AH:$AL,5,0),IF($H$2=$V$8,VLOOKUP($P28,Tabelle!$AU:$AY,5,0)))))),"",IF($H$2=$V$5,VLOOKUP($P28,Tabelle!$H:$L,5,0),IF($H$2=$V$6,VLOOKUP($P28,Tabelle!$U:$Y,5,0),IF($H$2=$V$7,VLOOKUP($P28,Tabelle!$AH:$AL,5,0),IF($H$2=$V$8,VLOOKUP($P28,Tabelle!$AU:$AY,5,0)))))) -> 2.6 | Z28: 1.3 | AA28: 4.7 | AB28: 1.4 | AC28: 4.2 | AF28: 0.7 | AG28: 5.9 | AH28: 6.5 | AI28: 2.6
I29: =IF(ISNUMBER(IF($H$2=$V$5,OFFSET(Tabelle!A29,0,0),IF($H$2=$V$6,OFFSET(Tabelle!N29,0,0),IF($H$2=$V$7,OFFSET(Tabelle!AA29,0,0),IF($H$2=$V$8,OFFSET(Tabelle!AN29,0,0)))))),IF($H$2=$V$5,OFFSET(Tabelle!A29,0,0),IF($H$2=$V$6,OFFSET(Tabelle!N29,0,0),IF($H$2=$V$7,OFFSET(Tabelle!AA29,0,0),IF($H$2=$V$8,OFFSET(Tabelle!AN29,0,0))))),"") -> 2010-04-30 | J29: =IF(ISERROR(IF($H$2=$V$5,VLOOKUP($I29,Tabelle!$A:$B,2,0),IF($H$2=$V$6,VLOOKUP($I29,Tabelle!$N:$O,2,0),IF($H$2=$V$7,VLOOKUP($I29,Tabelle!$AA:$AB,2,0),IF($H$2=$V$8,VLOOKUP($I29,Tabelle!$AN:$AO,2,0)))))),"",IF($H$2=$V$5,VLOOKUP($I29,Tabelle!$A:$B,2,0),IF($H$2=$V$6,VLOOKUP($I29,Tabelle!$N:$O,2,0),IF($H$2=$V$7,VLOOKUP($I29,Tabelle!$AA:$AB,2,0),IF($H$2=$V$8,VLOOKUP($I29,Tabelle!$AN:$AO,2,0)))))) -> 0.6 | K29: =IF(ISERROR(IF($H$2=$V$5,VLOOKUP($I29,Tabelle!$A:$C,3,0),IF($H$2=$V$6,VLOOKUP($I29,Tabelle!$N:$P,3,0),IF($H$2=$V$7,VLOOKUP($I29,Tabelle!$AA:$AC,3,0),IF($H$2=$V$8,VLOOKUP($I29,Tabelle!$AN:$AP,3,0)))))),"",IF($H$2=$V$5,VLOOKUP($I29,Tabelle!$A:$C,3,0),IF($H$2=$V$6,VLOOKUP($I29,Tabelle!$N:$P,3,0),IF($H$2=$V$7,VLOOKUP($I29,Tabelle!$AA:$AC,3,0),IF($H$2=$V$8,VLOOKUP($I29,Tabelle!$AN:$AP,3,0)))))) -> 1.8 | L29: =IF(ISERROR(IF($H$2=$V$5,VLOOKUP($I29,Tabelle!$A:$D,4,0),IF($H$2=$V$6,VLOOKUP($I29,Tabelle!$N:$Q,4,0),IF($H$2=$V$7,VLOOKUP($I29,Tabelle!$AA:$AD,4,0),IF($H$2=$V$8,VLOOKUP($I29,Tabelle!$AN:$AQ,4,0)))))),"",IF($H$2=$V$5,VLOOKUP($I29,Tabelle!$A:$D,4,0),IF($H$2=$V$6,VLOOKUP($I29,Tabelle!$N:$Q,4,0),IF($H$2=$V$7,VLOOKUP($I29,Tabelle!$AA:$AD,4,0),IF($H$2=$V$8,VLOOKUP($I29,Tabelle!$AN:$AQ,4,0)))))) -> 4.3 | M29: =IF(ISERROR(IF($H$2=$V$5,VLOOKUP($I29,Tabelle!$A:$E,5,0),IF($H$2=$V$6,VLOOKUP($I29,Tabelle!$N:$R,5,0),IF($H$2=$V$7,VLOOKUP($I29,Tabelle!$AA:$AE,5,0),IF($H$2=$V$8,VLOOKUP($I29,Tabelle!$AN:$AR,5,0)))))),"",IF($H$2=$V$5,VLOOKUP($I29,Tabelle!$A:$E,5,0),IF($H$2=$V$6,VLOOKUP($I29,Tabelle!$N:$R,5,0),IF($H$2=$V$7,VLOOKUP($I29,Tabelle!$AA:$AE,5,0),IF($H$2=$V$8,VLOOKUP($I29,Tabelle!$AN:$AR,5,0)))))) -> 2.3 | N29: =IF(ISERROR(IF($H$2=$V$5,VLOOKUP($I29,Tabelle!$A:$F,6,0),IF($H$2=$V$6,VLOOKUP($I29,Tabelle!$N:$S,6,0),IF($H$2=$V$7,VLOOKUP($I29,Tabelle!$AA:$AF,6,0),IF($H$2=$V$8,VLOOKUP($I29,Tabelle!$AN:$AS,6,0)))))),"",IF($H$2=$V$5,VLOOKUP($I29,Tabelle!$A:$F,6,0),IF($H$2=$V$6,VLOOKUP($I29,Tabelle!$N:$S,6,0),IF($H$2=$V$7,VLOOKUP($I29,Tabelle!$AA:$AF,6,0),IF($H$2=$V$8,VLOOKUP($I29,Tabelle!$AN:$AS,6,0)))))) -> 4.28 | P29: =IF(ISNUMBER(IF($H$2=$V$5,OFFSET(Tabelle!H29,0,0),IF($H$2=$V$6,OFFSET(Tabelle!U29,0,0),IF($H$2=$V$7,OFFSET(Tabelle!AH29,0,0),IF($H$2=$V$8,OFFSET(Tabelle!AV29,0,0)))))),IF($H$2=$V$5,OFFSET(Tabelle!H29,0,0),IF($H$2=$V$6,OFFSET(Tabelle!U29,0,0),IF($H$2=$V$7,OFFSET(Tabelle!AH29,0,0),IF($H$2=$V$8,OFFSET(Tabelle!AU29,0,0))))),"") -> 2010-04-30 | Q29: =IF(ISERROR(IF($H$2=$V$5,VLOOKUP($P29,Tabelle!$H:$I,2,0),IF($H$2=$V$6,VLOOKUP($P29,Tabelle!$U:$V,2,0),IF($H$2=$V$7,VLOOKUP($P29,Tabelle!$AH:$AI,2,0),IF($H$2=$V$8,VLOOKUP($P29,Tabelle!$AU:$AV,2,0)))))),"",IF($H$2=$V$5,VLOOKUP($P29,Tabelle!$H:$I,2,0),IF($H$2=$V$6,VLOOKUP($P29,Tabelle!$U:$V,2,0),IF($H$2=$V$7,VLOOKUP($P29,Tabelle!$AH:$AI,2,0),IF($H$2=$V$8,VLOOKUP($P29,Tabelle!$AU:$AV,2,0)))))) -> 1.1 | R29: =IF(ISERROR(IF($H$2=$V$5,VLOOKUP($P29,Tabelle!$H:$J,3,0),IF($H$2=$V$6,VLOOKUP($P29,Tabelle!$U:$W,3,0),IF($H$2=$V$7,VLOOKUP($P29,Tabelle!$AH:$AJ,3,0),IF($H$2=$V$8,VLOOKUP($P29,Tabelle!$AU:$AW,3,0)))))),"",IF($H$2=$V$5,VLOOKUP($P29,Tabelle!$H:$J,3,0),IF($H$2=$V$6,VLOOKUP($P29,Tabelle!$U:$W,3,0),IF($H$2=$V$7,VLOOKUP($P29,Tabelle!$AH:$AJ,3,0),IF($H$2=$V$8,VLOOKUP($P29,Tabelle!$AU:$AW,3,0)))))) -> 5.7 | S29: =IF(ISERROR(IF($H$2=$V$5,VLOOKUP($P29,Tabelle!$H:$K,4,0),IF($H$2=$V$6,VLOOKUP($P29,Tabelle!$U:$X,4,0),IF($H$2=$V$7,VLOOKUP($P29,Tabelle!$AH:$AK,4,0),IF($H$2=$V$8,VLOOKUP($P29,Tabelle!$AU:$AX,4,0)))))),"",IF($H$2=$V$5,VLOOKUP($P29,Tabelle!$H:$K,4,0),IF($H$2=$V$6,VLOOKUP($P29,Tabelle!$U:$X,4,0),IF($H$2=$V$7,VLOOKUP($P29,Tabelle!$AH:$AK,4,0),IF($H$2=$V$8,VLOOKUP($P29,Tabelle!$AU:$AX,4,0)))))) -> 6 | T29: =IF(ISERROR(IF($H$2=$V$5,VLOOKUP($P29,Tabelle!$H:$L,5,0),IF($H$2=$V$6,VLOOKUP($P29,Tabelle!$U:$Y,5,0),IF($H$2=$V$7,VLOOKUP($P29,Tabelle!$AH:$AL,5,0),IF($H$2=$V$8,VLOOKUP($P29,Tabelle!$AU:$AY,5,0)))))),"",IF($H$2=$V$5,VLOOKUP($P29,Tabelle!$H:$L,5,0),IF($H$2=$V$6,VLOOKUP($P29,Tabelle!$U:$Y,5,0),IF($H$2=$V$7,VLOOKUP($P29,Tabelle!$AH:$AL,5,0),IF($H$2=$V$8,VLOOKUP($P29,Tabelle!$AU:$AY,5,0)))))) -> 2.4 | Z29: 1.8 | AA29: 4.3 | AB29: 2.3 | AC29: 4.28 | AF29: 1.1 | AG29: 5.7 | AH29: 6 | AI29: 2.4
I30: =IF(ISNUMBER(IF($H$2=$V$5,OFFSET(Tabelle!A30,0,0),IF($H$2=$V$6,OFFSET(Tabelle!N30,0,0),IF($H$2=$V$7,OFFSET(Tabelle!AA30,0,0),IF($H$2=$V$8,OFFSET(Tabelle!AN30,0,0)))))),IF($H$2=$V$5,OFFSET(Tabelle!A30,0,0),IF($H$2=$V$6,OFFSET(Tabelle!N30,0,0),IF($H$2=$V$7,OFFSET(Tabelle!AA30,0,0),IF($H$2=$V$8,OFFSET(Tabelle!AN30,0,0))))),"") -> 2010-05-31 | J30: =IF(ISERROR(IF($H$2=$V$5,VLOOKUP($I30,Tabelle!$A:$B,2,0),IF($H$2=$V$6,VLOOKUP($I30,Tabelle!$N:$O,2,0),IF($H$2=$V$7,VLOOKUP($I30,Tabelle!$AA:$AB,2,0),IF($H$2=$V$8,VLOOKUP($I30,Tabelle!$AN:$AO,2,0)))))),"",IF($H$2=$V$5,VLOOKUP($I30,Tabelle!$A:$B,2,0),IF($H$2=$V$6,VLOOKUP($I30,Tabelle!$N:$O,2,0),IF($H$2=$V$7,VLOOKUP($I30,Tabelle!$AA:$AB,2,0),IF($H$2=$V$8,VLOOKUP($I30,Tabelle!$AN:$AO,2,0)))))) -> 0.8 | K30: =IF(ISERROR(IF($H$2=$V$5,VLOOKUP($I30,Tabelle!$A:$C,3,0),IF($H$2=$V$6,VLOOKUP($I30,Tabelle!$N:$P,3,0),IF($H$2=$V$7,VLOOKUP($I30,Tabelle!$AA:$AC,3,0),IF($H$2=$V$8,VLOOKUP($I30,Tabelle!$AN:$AP,3,0)))))),"",IF($H$2=$V$5,VLOOKUP($I30,Tabelle!$A:$C,3,0),IF($H$2=$V$6,VLOOKUP($I30,Tabelle!$N:$P,3,0),IF($H$2=$V$7,VLOOKUP($I30,Tabelle!$AA:$AC,3,0),IF($H$2=$V$8,VLOOKUP($I30,Tabelle!$AN:$AP,3,0)))))) -> 1.9 | L30: =IF(ISERROR(IF($H$2=$V$5,VLOOKUP($I30,Tabelle!$A:$D,4,0),IF($H$2=$V$6,VLOOKUP($I30,Tabelle!$N:$Q,4,0),IF($H$2=$V$7,VLOOKUP($I30,Tabelle!$AA:$AD,4,0),IF($H$2=$V$8,VLOOKUP($I30,Tabelle!$AN:$AQ,4,0)))))),"",IF($H$2=$V$5,VLOOKUP($I30,Tabelle!$A:$D,4,0),IF($H$2=$V$6,VLOOKUP($I30,Tabelle!$N:$Q,4,0),IF($H$2=$V$7,VLOOKUP($I30,Tabelle!$AA:$AD,4,0),IF($H$2=$V$8,VLOOKUP($I30,Tabelle!$AN:$AQ,4,0)))))) -> 3.7 | M30: =IF(ISERROR(IF($H$2=$V$5,VLOOKUP($I30,Tabelle!$A:$E,5,0),IF($H$2=$V$6,VLOOKUP($I30,Tabelle!$N:$R,5,0),IF($H$2=$V$7,VLOOKUP($I30,Tabelle!$AA:$AE,5,0),IF($H$2=$V$8,VLOOKUP($I30,Tabelle!$AN:$AR,5,0)))))),"",IF($H$2=$V$5,VLOOKUP($I30,Tabelle!$A:$E,5,0),IF($H$2=$V$6,VLOOKUP($I30,Tabelle!$N:$R,5,0),IF($H$2=$V$7,VLOOKUP($I30,Tabelle!$AA:$AE,5,0),IF($H$2=$V$8,VLOOKUP($I30,Tabelle!$AN:$AR,5,0)))))) -> 2.1 | N30: =IF(ISERROR(IF($H$2=$V$5,VLOOKUP($I30,Tabelle!$A:$F,6,0),IF($H$2=$V$6,VLOOKUP($I30,Tabelle!$N:$S,6,0),IF($H$2=$V$7,VLOOKUP($I30,Tabelle!$AA:$AF,6,0),IF($H$2=$V$8,VLOOKUP($I30,Tabelle!$AN:$AS,6,0)))))),"",IF($H$2=$V$5,VLOOKUP($I30,Tabelle!$A:$F,6,0),IF($H$2=$V$6,VLOOKUP($I30,Tabelle!$N:$S,6,0),IF($H$2=$V$7,VLOOKUP($I30,Tabelle!$AA:$AF,6,0),IF($H$2=$V$8,VLOOKUP($I30,Tabelle!$AN:$AS,6,0)))))) -> 4.42 | P30: =IF(ISNUMBER(IF($H$2=$V$5,OFFSET(Tabelle!H30,0,0),IF($H$2=$V$6,OFFSET(Tabelle!U30,0,0),IF($H$2=$V$7,OFFSET(Tabelle!AH30,0,0),IF($H$2=$V$8,OFFSET(Tabelle!AV30,0,0)))))),IF($H$2=$V$5,OFFSET(Tabelle!H30,0,0),IF($H$2=$V$6,OFFSET(Tabelle!U30,0,0),IF($H$2=$V$7,OFFSET(Tabelle!AH30,0,0),IF($H$2=$V$8,OFFSET(Tabelle!AU30,0,0))))),"") -> 2010-05-31 | Q30: =IF(ISERROR(IF($H$2=$V$5,VLOOKUP($P30,Tabelle!$H:$I,2,0),IF($H$2=$V$6,VLOOKUP($P30,Tabelle!$U:$V,2,0),IF($H$2=$V$7,VLOOKUP($P30,Tabelle!$AH:$AI,2,0),IF($H$2=$V$8,VLOOKUP($P30,Tabelle!$AU:$AV,2,0)))))),"",IF($H$2=$V$5,VLOOKUP($P30,Tabelle!$H:$I,2,0),IF($H$2=$V$6,VLOOKUP($P30,Tabelle!$U:$V,2,0),IF($H$2=$V$7,VLOOKUP($P30,Tabelle!$AH:$AI,2,0),IF($H$2=$V$8,VLOOKUP($P30,Tabelle!$AU:$AV,2,0)))))) -> 1.2 | R30: =IF(ISERROR(IF($H$2=$V$5,VLOOKUP($P30,Tabelle!$H:$J,3,0),IF($H$2=$V$6,VLOOKUP($P30,Tabelle!$U:$W,3,0),IF($H$2=$V$7,VLOOKUP($P30,Tabelle!$AH:$AJ,3,0),IF($H$2=$V$8,VLOOKUP($P30,Tabelle!$AU:$AW,3,0)))))),"",IF($H$2=$V$5,VLOOKUP($P30,Tabelle!$H:$J,3,0),IF($H$2=$V$6,VLOOKUP($P30,Tabelle!$U:$W,3,0),IF($H$2=$V$7,VLOOKUP($P30,Tabelle!$AH:$AJ,3,0),IF($H$2=$V$8,VLOOKUP($P30,Tabelle!$AU:$AW,3,0)))))) -> 5.1 | S30: =IF(ISERROR(IF($H$2=$V$5,VLOOKUP($P30,Tabelle!$H:$K,4,0),IF($H$2=$V$6,VLOOKUP($P30,Tabelle!$U:$X,4,0),IF($H$2=$V$7,VLOOKUP($P30,Tabelle!$AH:$AK,4,0),IF($H$2=$V$8,VLOOKUP($P30,Tabelle!$AU:$AX,4,0)))))),"",IF($H$2=$V$5,VLOOKUP($P30,Tabelle!$H:$K,4,0),IF($H$2=$V$6,VLOOKUP($P30,Tabelle!$U:$X,4,0),IF($H$2=$V$7,VLOOKUP($P30,Tabelle!$AH:$AK,4,0),IF($H$2=$V$8,VLOOKUP($P30,Tabelle!$AU:$AX,4,0)))))) -> 6 | T30: =IF(ISERROR(IF($H$2=$V$5,VLOOKUP($P30,Tabelle!$H:$L,5,0),IF($H$2=$V$6,VLOOKUP($P30,Tabelle!$U:$Y,5,0),IF($H$2=$V$7,VLOOKUP($P30,Tabelle!$AH:$AL,5,0),IF($H$2=$V$8,VLOOKUP($P30,Tabelle!$AU:$AY,5,0)))))),"",IF($H$2=$V$5,VLOOKUP($P30,Tabelle!$H:$L,5,0),IF($H$2=$V$6,VLOOKUP($P30,Tabelle!$U:$Y,5,0),IF($H$2=$V$7,VLOOKUP($P30,Tabelle!$AH:$AL,5,0),IF($H$2=$V$8,VLOOKUP($P30,Tabelle!$AU:$AY,5,0)))))) -> 2.2 | Z30: 1.9 | AA30: 3.7 | AB30: 2.1 | AC30: 4.42 | AF30: 1.2 | AG30: 5.1 | AH30: 6 | AI30: 2.2
I31: =IF(ISNUMBER(IF($H$2=$V$5,OFFSET(Tabelle!A31,0,0),IF($H$2=$V$6,OFFSET(Tabelle!N31,0,0),IF($H$2=$V$7,OFFSET(Tabelle!AA31,0,0),IF($H$2=$V$8,OFFSET(Tabelle!AN31,0,0)))))),IF($H$2=$V$5,OFFSET(Tabelle!A31,0,0),IF($H$2=$V$6,OFFSET(Tabelle!N31,0,0),IF($H$2=$V$7,OFFSET(Tabelle!AA31,0,0),IF($H$2=$V$8,OFFSET(Tabelle!AN31,0,0))))),"") -> 2010-06-30 | J31: =IF(ISERROR(IF($H$2=$V$5,VLOOKUP($I31,Tabelle!$A:$B,2,0),IF($H$2=$V$6,VLOOKUP($I31,Tabelle!$N:$O,2,0),IF($H$2=$V$7,VLOOKUP($I31,Tabelle!$AA:$AB,2,0),IF($H$2=$V$8,VLOOKUP($I31,Tabelle!$AN:$AO,2,0)))))),"",IF($H$2=$V$5,VLOOKUP($I31,Tabelle!$A:$B,2,0),IF($H$2=$V$6,VLOOKUP($I31,Tabelle!$N:$O,2,0),IF($H$2=$V$7,VLOOKUP($I31,Tabelle!$AA:$AB,2,0),IF($H$2=$V$8,VLOOKUP($I31,Tabelle!$AN:$AO,2,0)))))) -> 0.7 | K31: =IF(ISERROR(IF($H$2=$V$5,VLOOKUP($I31,Tabelle!$A:$C,3,0),IF($H$2=$V$6,VLOOKUP($I31,Tabelle!$N:$P,3,0),IF($H$2=$V$7,VLOOKUP($I31,Tabelle!$AA:$AC,3,0),IF($H$2=$V$8,VLOOKUP($I31,Tabelle!$AN:$AP,3,0)))))),"",IF($H$2=$V$5,VLOOKUP($I31,Tabelle!$A:$C,3,0),IF($H$2=$V$6,VLOOKUP($I31,Tabelle!$N:$P,3,0),IF($H$2=$V$7,VLOOKUP($I31,Tabelle!$AA:$AC,3,0),IF($H$2=$V$8,VLOOKUP($I31,Tabelle!$AN:$AP,3,0)))))) -> 1.4 | L31: =IF(ISERROR(IF($H$2=$V$5,VLOOKUP($I31,Tabelle!$A:$D,4,0),IF($H$2=$V$6,VLOOKUP($I31,Tabelle!$N:$Q,4,0),IF($H$2=$V$7,VLOOKUP($I31,Tabelle!$AA:$AD,4,0),IF($H$2=$V$8,VLOOKUP($I31,Tabelle!$AN:$AQ,4,0)))))),"",IF($H$2=$V$5,VLOOKUP($I31,Tabelle!$A:$D,4,0),IF($H$2=$V$6,VLOOKUP($I31,Tabelle!$N:$Q,4,0),IF($H$2=$V$7,VLOOKUP($I31,Tabelle!$AA:$AD,4,0),IF($H$2=$V$8,VLOOKUP($I31,Tabelle!$AN:$AQ,4,0)))))) -> 4.2 | M31: =IF(ISERROR(IF($H$2=$V$5,VLOOKUP($I31,Tabelle!$A:$E,5,0),IF($H$2=$V$6,VLOOKUP($I31,Tabelle!$N:$R,5,0),IF($H$2=$V$7,VLOOKUP($I31,Tabelle!$AA:$AE,5,0),IF($H$2=$V$8,VLOOKUP($I31,Tabelle!$AN:$AR,5,0)))))),"",IF($H$2=$V$5,VLOOKUP($I31,Tabelle!$A:$E,5,0),IF($H$2=$V$6,VLOOKUP($I31,Tabelle!$N:$R,5,0),IF($H$2=$V$7,VLOOKUP($I31,Tabelle!$AA:$AE,5,0),IF($H$2=$V$8,VLOOKUP($I31,Tabelle!$AN:$AR,5,0)))))) -> 1.9 | N31: =IF(ISERROR(IF($H$2=$V$5,VLOOKUP($I31,Tabelle!$A:$F,6,0),IF($H$2=$V$6,VLOOKUP($I31,Tabelle!$N:$S,6,0),IF($H$2=$V$7,VLOOKUP($I31,Tabelle!$AA:$AF,6,0),IF($H$2=$V$8,VLOOKUP($I31,Tabelle!$AN:$AS,6,0)))))),"",IF($H$2=$V$5,VLOOKUP($I31,Tabelle!$A:$F,6,0),IF($H$2=$V$6,VLOOKUP($I31,Tabelle!$N:$S,6,0),IF($H$2=$V$7,VLOOKUP($I31,Tabelle!$AA:$AF,6,0),IF($H$2=$V$8,VLOOKUP($I31,Tabelle!$AN:$AS,6,0)))))) -> 4.4 | P31: =IF(ISNUMBER(IF($H$2=$V$5,OFFSET(Tabelle!H31,0,0),IF($H$2=$V$6,OFFSET(Tabelle!U31,0,0),IF($H$2=$V$7,OFFSET(Tabelle!AH31,0,0),IF($H$2=$V$8,OFFSET(Tabelle!AV31,0,0)))))),IF($H$2=$V$5,OFFSET(Tabelle!H31,0,0),IF($H$2=$V$6,OFFSET(Tabelle!U31,0,0),IF($H$2=$V$7,OFFSET(Tabelle!AH31,0,0),IF($H$2=$V$8,OFFSET(Tabelle!AU31,0,0))))),"") -> 2010-06-30 | Q31: =IF(ISERROR(IF($H$2=$V$5,VLOOKUP($P31,Tabelle!$H:$I,2,0),IF($H$2=$V$6,VLOOKUP($P31,Tabelle!$U:$V,2,0),IF($H$2=$V$7,VLOOKUP($P31,Tabelle!$AH:$AI,2,0),IF($H$2=$V$8,VLOOKUP($P31,Tabelle!$AU:$AV,2,0)))))),"",IF($H$2=$V$5,VLOOKUP($P31,Tabelle!$H:$I,2,0),IF($H$2=$V$6,VLOOKUP($P31,Tabelle!$U:$V,2,0),IF($H$2=$V$7,VLOOKUP($P31,Tabelle!$AH:$AI,2,0),IF($H$2=$V$8,VLOOKUP($P31,Tabelle!$AU:$AV,2,0)))))) -> 1.2 | R31: =IF(ISERROR(IF($H$2=$V$5,VLOOKUP($P31,Tabelle!$H:$J,3,0),IF($H$2=$V$6,VLOOKUP($P31,Tabelle!$U:$W,3,0),IF($H$2=$V$7,VLOOKUP($P31,Tabelle!$AH:$AJ,3,0),IF($H$2=$V$8,VLOOKUP($P31,Tabelle!$AU:$AW,3,0)))))),"",IF($H$2=$V$5,VLOOKUP($P31,Tabelle!$H:$J,3,0),IF($H$2=$V$6,VLOOKUP($P31,Tabelle!$U:$W,3,0),IF($H$2=$V$7,VLOOKUP($P31,Tabelle!$AH:$AJ,3,0),IF($H$2=$V$8,VLOOKUP($P31,Tabelle!$AU:$AW,3,0)))))) -> 5.3 | S31: =IF(ISERROR(IF($H$2=$V$5,VLOOKUP($P31,Tabelle!$H:$K,4,0),IF($H$2=$V$6,VLOOKUP($P31,Tabelle!$U:$X,4,0),IF($H$2=$V$7,VLOOKUP($P31,Tabelle!$AH:$AK,4,0),IF($H$2=$V$8,VLOOKUP($P31,Tabelle!$AU:$AX,4,0)))))),"",IF($H$2=$V$5,VLOOKUP($P31,Tabelle!$H:$K,4,0),IF($H$2=$V$6,VLOOKUP($P31,Tabelle!$U:$X,4,0),IF($H$2=$V$7,VLOOKUP($P31,Tabelle!$AH:$AK,4,0),IF($H$2=$V$8,VLOOKUP($P31,Tabelle!$AU:$AX,4,0)))))) -> 5.8 | T31: =IF(ISERROR(IF($H$2=$V$5,VLOOKUP($P31,Tabelle!$H:$L,5,0),IF($H$2=$V$6,VLOOKUP($P31,Tabelle!$U:$Y,5,0),IF($H$2=$V$7,VLOOKUP($P31,Tabelle!$AH:$AL,5,0),IF($H$2=$V$8,VLOOKUP($P31,Tabelle!$AU:$AY,5,0)))))),"",IF($H$2=$V$5,VLOOKUP($P31,Tabelle!$H:$L,5,0),IF($H$2=$V$6,VLOOKUP($P31,Tabelle!$U:$Y,5,0),IF($H$2=$V$7,VLOOKUP($P31,Tabelle!$AH:$AL,5,0),IF($H$2=$V$8,VLOOKUP($P31,Tabelle!$AU:$AY,5,0)))))) -> 2.3 | Z31: 1.4 | AA31: 4.2 | AB31: 1.9 | AC31: 4.4 | AF31: 1.2 | AG31: 5.3 | AH31: 5.8 | AI31: 2.3
I32: =IF(ISNUMBER(IF($H$2=$V$5,OFFSET(Tabelle!A32,0,0),IF($H$2=$V$6,OFFSET(Tabelle!N32,0,0),IF($H$2=$V$7,OFFSET(Tabelle!AA32,0,0),IF($H$2=$V$8,OFFSET(Tabelle!AN32,0,0)))))),IF($H$2=$V$5,OFFSET(Tabelle!A32,0,0),IF($H$2=$V$6,OFFSET(Tabelle!N32,0,0),IF($H$2=$V$7,OFFSET(Tabelle!AA32,0,0),IF($H$2=$V$8,OFFSET(Tabelle!AN32,0,0))))),"") -> 2010-07-31 | J32: =IF(ISERROR(IF($H$2=$V$5,VLOOKUP($I32,Tabelle!$A:$B,2,0),IF($H$2=$V$6,VLOOKUP($I32,Tabelle!$N:$O,2,0),IF($H$2=$V$7,VLOOKUP($I32,Tabelle!$AA:$AB,2,0),IF($H$2=$V$8,VLOOKUP($I32,Tabelle!$AN:$AO,2,0)))))),"",IF($H$2=$V$5,VLOOKUP($I32,Tabelle!$A:$B,2,0),IF($H$2=$V$6,VLOOKUP($I32,Tabelle!$N:$O,2,0),IF($H$2=$V$7,VLOOKUP($I32,Tabelle!$AA:$AB,2,0),IF($H$2=$V$8,VLOOKUP($I32,Tabelle!$AN:$AO,2,0)))))) -> 1 | K32: =IF(ISERROR(IF($H$2=$V$5,VLOOKUP($I32,Tabelle!$A:$C,3,0),IF($H$2=$V$6,VLOOKUP($I32,Tabelle!$N:$P,3,0),IF($H$2=$V$7,VLOOKUP($I32,Tabelle!$AA:$AC,3,0),IF($H$2=$V$8,VLOOKUP($I32,Tabelle!$AN:$AP,3,0)))))),"",IF($H$2=$V$5,VLOOKUP($I32,Tabelle!$A:$C,3,0),IF($H$2=$V$6,VLOOKUP($I32,Tabelle!$N:$P,3,0),IF($H$2=$V$7,VLOOKUP($I32,Tabelle!$AA:$AC,3,0),IF($H$2=$V$8,VLOOKUP($I32,Tabelle!$AN:$AP,3,0)))))) -> 2.4 | L32: =IF(ISERROR(IF($H$2=$V$5,VLOOKUP($I32,Tabelle!$A:$D,4,0),IF($H$2=$V$6,VLOOKUP($I32,Tabelle!$N:$Q,4,0),IF($H$2=$V$7,VLOOKUP($I32,Tabelle!$AA:$AD,4,0),IF($H$2=$V$8,VLOOKUP($I32,Tabelle!$AN:$AQ,4,0)))))),"",IF($H$2=$V$5,VLOOKUP($I32,Tabelle!$A:$D,4,0),IF($H$2=$V$6,VLOOKUP($I32,Tabelle!$N:$Q,4,0),IF($H$2=$V$7,VLOOKUP($I32,Tabelle!$AA:$AD,4,0),IF($H$2=$V$8,VLOOKUP($I32,Tabelle!$AN:$AQ,4,0)))))) -> 5.1 | M32: =IF(ISERROR(IF($H$2=$V$5,VLOOKUP($I32,Tabelle!$A:$E,5,0),IF($H$2=$V$6,VLOOKUP($I32,Tabelle!$N:$R,5,0),IF($H$2=$V$7,VLOOKUP($I32,Tabelle!$AA:$AE,5,0),IF($H$2=$V$8,VLOOKUP($I32,Tabelle!$AN:$AR,5,0)))))),"",IF($H$2=$V$5,VLOOKUP($I32,Tabelle!$A:$E,5,0),IF($H$2=$V$6,VLOOKUP($I32,Tabelle!$N:$R,5,0),IF($H$2=$V$7,VLOOKUP($I32,Tabelle!$AA:$AE,5,0),IF($H$2=$V$8,VLOOKUP($I32,Tabelle!$AN:$AR,5,0)))))) -> 2.1 | N32: =IF(ISERROR(IF($H$2=$V$5,VLOOKUP($I32,Tabelle!$A:$F,6,0),IF($H$2=$V$6,VLOOKUP($I32,Tabelle!$N:$S,6,0),IF($H$2=$V$7,VLOOKUP($I32,Tabelle!$AA:$AF,6,0),IF($H$2=$V$8,VLOOKUP($I32,Tabelle!$AN:$AS,6,0)))))),"",IF($H$2=$V$5,VLOOKUP($I32,Tabelle!$A:$F,6,0),IF($H$2=$V$6,VLOOKUP($I32,Tabelle!$N:$S,6,0),IF($H$2=$V$7,VLOOKUP($I32,Tabelle!$AA:$AF,6,0),IF($H$2=$V$8,VLOOKUP($I32,Tabelle!$AN:$AS,6,0)))))) -> 7.14 | P32: =IF(ISNUMBER(IF($H$2=$V$5,OFFSET(Tabelle!H32,0,0),IF($H$2=$V$6,OFFSET(Tabelle!U32,0,0),IF($H$2=$V$7,OFFSET(Tabelle!AH32,0,0),IF($H$2=$V$8,OFFSET(Tabelle!AV32,0,0)))))),IF($H$2=$V$5,OFFSET(Tabelle!H32,0,0),IF($H$2=$V$6,OFFSET(Tabelle!U32,0,0),IF($H$2=$V$7,OFFSET(Tabelle!AH32,0,0),IF($H$2=$V$8,OFFSET(Tabelle!AU32,0,0))))),"") -> 2010-07-31 | Q32: =IF(ISERROR(IF($H$2=$V$5,VLOOKUP($P32,Tabelle!$H:$I,2,0),IF($H$2=$V$6,VLOOKUP($P32,Tabelle!$U:$V,2,0),IF($H$2=$V$7,VLOOKUP($P32,Tabelle!$AH:$AI,2,0),IF($H$2=$V$8,VLOOKUP($P32,Tabelle!$AU:$AV,2,0)))))),"",IF($H$2=$V$5,VLOOKUP($P32,Tabelle!$H:$I,2,0),IF($H$2=$V$6,VLOOKUP($P32,Tabelle!$U:$V,2,0),IF($H$2=$V$7,VLOOKUP($P32,Tabelle!$AH:$AI,2,0),IF($H$2=$V$8,VLOOKUP($P32,Tabelle!$AU:$AV,2,0)))))) -> 1.9 | R32: =IF(ISERROR(IF($H$2=$V$5,VLOOKUP($P32,Tabelle!$H:$J,3,0),IF($H$2=$V$6,VLOOKUP($P32,Tabelle!$U:$W,3,0),IF($H$2=$V$7,VLOOKUP($P32,Tabelle!$AH:$AJ,3,0),IF($H$2=$V$8,VLOOKUP($P32,Tabelle!$AU:$AW,3,0)))))),"",IF($H$2=$V$5,VLOOKUP($P32,Tabelle!$H:$J,3,0),IF($H$2=$V$6,VLOOKUP($P32,Tabelle!$U:$W,3,0),IF($H$2=$V$7,VLOOKUP($P32,Tabelle!$AH:$AJ,3,0),IF($H$2=$V$8,VLOOKUP($P32,Tabelle!$AU:$AW,3,0)))))) -> 4 | S32: =IF(ISERROR(IF($H$2=$V$5,VLOOKUP($P32,Tabelle!$H:$K,4,0),IF($H$2=$V$6,VLOOKUP($P32,Tabelle!$U:$X,4,0),IF($H$2=$V$7,VLOOKUP($P32,Tabelle!$AH:$AK,4,0),IF($H$2=$V$8,VLOOKUP($P32,Tabelle!$AU:$AX,4,0)))))),"",IF($H$2=$V$5,VLOOKUP($P32,Tabelle!$H:$K,4,0),IF($H$2=$V$6,VLOOKUP($P32,Tabelle!$U:$X,4,0),IF($H$2=$V$7,VLOOKUP($P32,Tabelle!$AH:$AK,4,0),IF($H$2=$V$8,VLOOKUP($P32,Tabelle!$AU:$AX,4,0)))))) -> 5.5 | T32: =IF(ISERROR(IF($H$2=$V$5,VLOOKUP($P32,Tabelle!$H:$L,5,0),IF($H$2=$V$6,VLOOKUP($P32,Tabelle!$U:$Y,5,0),IF($H$2=$V$7,VLOOKUP($P32,Tabelle!$AH:$AL,5,0),IF($H$2=$V$8,VLOOKUP($P32,Tabelle!$AU:$AY,5,0)))))),"",IF($H$2=$V$5,VLOOKUP($P32,Tabelle!$H:$L,5,0),IF($H$2=$V$6,VLOOKUP($P32,Tabelle!$U:$Y,5,0),IF($H$2=$V$7,VLOOKUP($P32,Tabelle!$AH:$AL,5,0),IF($H$2=$V$8,VLOOKUP($P32,Tabelle!$AU:$AY,5,0)))))) -> 2 | Z32: 2.4 | AA32: 5.1 | AB32: 2.1 | AC32: 7.14 | AF32: 1.9 | AG32: 4 | AH32: 5.5 | AI32: 2
I33: =IF(ISNUMBER(IF($H$2=$V$5,OFFSET(Tabelle!A33,0,0),IF($H$2=$V$6,OFFSET(Tabelle!N33,0,0),IF($H$2=$V$7,OFFSET(Tabelle!AA33,0,0),IF($H$2=$V$8,OFFSET(Tabelle!AN33,0,0)))))),IF($H$2=$V$5,OFFSET(Tabelle!A33,0,0),IF($H$2=$V$6,OFFSET(Tabelle!N33,0,0),IF($H$2=$V$7,OFFSET(Tabelle!AA33,0,0),IF($H$2=$V$8,OFFSET(Tabelle!AN33,0,0))))),"") -> 2010-08-31 | J33: =IF(ISERROR(IF($H$2=$V$5,VLOOKUP($I33,Tabelle!$A:$B,2,0),IF($H$2=$V$6,VLOOKUP($I33,Tabelle!$N:$O,2,0),IF($H$2=$V$7,VLOOKUP($I33,Tabelle!$AA:$AB,2,0),IF($H$2=$V$8,VLOOKUP($I33,Tabelle!$AN:$AO,2,0)))))),"",IF($H$2=$V$5,VLOOKUP($I33,Tabelle!$A:$B,2,0),IF($H$2=$V$6,VLOOKUP($I33,Tabelle!$N:$O,2,0),IF($H$2=$V$7,VLOOKUP($I33,Tabelle!$AA:$AB,2,0),IF($H$2=$V$8,VLOOKUP($I33,Tabelle!$AN:$AO,2,0)))))) -> 0.9 | K33: =IF(ISERROR(IF($H$2=$V$5,VLOOKUP($I33,Tabelle!$A:$C,3,0),IF($H$2=$V$6,VLOOKUP($I33,Tabelle!$N:$P,3,0),IF($H$2=$V$7,VLOOKUP($I33,Tabelle!$AA:$AC,3,0),IF($H$2=$V$8,VLOOKUP($I33,Tabelle!$AN:$AP,3,0)))))),"",IF($H$2=$V$5,VLOOKUP($I33,Tabelle!$A:$C,3,0),IF($H$2=$V$6,VLOOKUP($I33,Tabelle!$N:$P,3,0),IF($H$2=$V$7,VLOOKUP($I33,Tabelle!$AA:$AC,3,0),IF($H$2=$V$8,VLOOKUP($I33,Tabelle!$AN:$AP,3,0)))))) -> 2.7 | L33: =IF(ISERROR(IF($H$2=$V$5,VLOOKUP($I33,Tabelle!$A:$D,4,0),IF($H$2=$V$6,VLOOKUP($I33,Tabelle!$N:$Q,4,0),IF($H$2=$V$7,VLOOKUP($I33,Tabelle!$AA:$AD,4,0),IF($H$2=$V$8,VLOOKUP($I33,Tabelle!$AN:$AQ,4,0)))))),"",IF($H$2=$V$5,VLOOKUP($I33,Tabelle!$A:$D,4,0),IF($H$2=$V$6,VLOOKUP($I33,Tabelle!$N:$Q,4,0),IF($H$2=$V$7,VLOOKUP($I33,Tabelle!$AA:$AD,4,0),IF($H$2=$V$8,VLOOKUP($I33,Tabelle!$AN:$AQ,4,0)))))) -> 6.6 | M33: =IF(ISERROR(IF($H$2=$V$5,VLOOKUP($I33,Tabelle!$A:$E,5,0),IF($H$2=$V$6,VLOOKUP($I33,Tabelle!$N:$R,5,0),IF($H$2=$V$7,VLOOKUP($I33,Tabelle!$AA:$AE,5,0),IF($H$2=$V$8,VLOOKUP($I33,Tabelle!$AN:$AR,5,0)))))),"",IF($H$2=$V$5,VLOOKUP($I33,Tabelle!$A:$E,5,0),IF($H$2=$V$6,VLOOKUP($I33,Tabelle!$N:$R,5,0),IF($H$2=$V$7,VLOOKUP($I33,Tabelle!$AA:$AE,5,0),IF($H$2=$V$8,VLOOKUP($I33,Tabelle!$AN:$AR,5,0)))))) -> 2.3 | N33: =IF(ISERROR(IF($H$2=$V$5,VLOOKUP($I33,Tabelle!$A:$F,6,0),IF($H$2=$V$6,VLOOKUP($I33,Tabelle!$N:$S,6,0),IF($H$2=$V$7,VLOOKUP($I33,Tabelle!$AA:$AF,6,0),IF($H$2=$V$8,VLOOKUP($I33,Tabelle!$AN:$AS,6,0)))))),"",IF($H$2=$V$5,VLOOKUP($I33,Tabelle!$A:$F,6,0),IF($H$2=$V$6,VLOOKUP($I33,Tabelle!$N:$S,6,0),IF($H$2=$V$7,VLOOKUP($I33,Tabelle!$AA:$AF,6,0),IF($H$2=$V$8,VLOOKUP($I33,Tabelle!$AN:$AS,6,0)))))) -> 7.58 | P33: =IF(ISNUMBER(IF($H$2=$V$5,OFFSET(Tabelle!H33,0,0),IF($H$2=$V$6,OFFSET(Tabelle!U33,0,0),IF($H$2=$V$7,OFFSET(Tabelle!AH33,0,0),IF($H$2=$V$8,OFFSET(Tabelle!AV33,0,0)))))),IF($H$2=$V$5,OFFSET(Tabelle!H33,0,0),IF($H$2=$V$6,OFFSET(Tabelle!U33,0,0),IF($H$2=$V$7,OFFSET(Tabelle!AH33,0,0),IF($H$2=$V$8,OFFSET(Tabelle!AU33,0,0))))),"") -> 2010-08-31 | Q33: =IF(ISERROR(IF($H$2=$V$5,VLOOKUP($P33,Tabelle!$H:$I,2,0),IF($H$2=$V$6,VLOOKUP($P33,Tabelle!$U:$V,2,0),IF($H$2=$V$7,VLOOKUP($P33,Tabelle!$AH:$AI,2,0),IF($H$2=$V$8,VLOOKUP($P33,Tabelle!$AU:$AV,2,0)))))),"",IF($H$2=$V$5,VLOOKUP($P33,Tabelle!$H:$I,2,0),IF($H$2=$V$6,VLOOKUP($P33,Tabelle!$U:$V,2,0),IF($H$2=$V$7,VLOOKUP($P33,Tabelle!$AH:$AI,2,0),IF($H$2=$V$8,VLOOKUP($P33,Tabelle!$AU:$AV,2,0)))))) -> 1.9 | R33: =IF(ISERROR(IF($H$2=$V$5,VLOOKUP($P33,Tabelle!$H:$J,3,0),IF($H$2=$V$6,VLOOKUP($P33,Tabelle!$U:$W,3,0),IF($H$2=$V$7,VLOOKUP($P33,Tabelle!$AH:$AJ,3,0),IF($H$2=$V$8,VLOOKUP($P33,Tabelle!$AU:$AW,3,0)))))),"",IF($H$2=$V$5,VLOOKUP($P33,Tabelle!$H:$J,3,0),IF($H$2=$V$6,VLOOKUP($P33,Tabelle!$U:$W,3,0),IF($H$2=$V$7,VLOOKUP($P33,Tabelle!$AH:$AJ,3,0),IF($H$2=$V$8,VLOOKUP($P33,Tabelle!$AU:$AW,3,0)))))) -> 3.7 | S33: =IF(ISERROR(IF($H$2=$V$5,VLOOKUP($P33,Tabelle!$H:$K,4,0),IF($H$2=$V$6,VLOOKUP($P33,Tabelle!$U:$X,4,0),IF($H$2=$V$7,VLOOKUP($P33,Tabelle!$AH:$AK,4,0),IF($H$2=$V$8,VLOOKUP($P33,Tabelle!$AU:$AX,4,0)))))),"",IF($H$2=$V$5,VLOOKUP($P33,Tabelle!$H:$K,4,0),IF($H$2=$V$6,VLOOKUP($P33,Tabelle!$U:$X,4,0),IF($H$2=$V$7,VLOOKUP($P33,Tabelle!$AH:$AK,4,0),IF($H$2=$V$8,VLOOKUP($P33,Tabelle!$AU:$AX,4,0)))))) -> 6.1 | T33: =IF(ISERROR(IF($H$2=$V$5,VLOOKUP($P33,Tabelle!$H:$L,5,0),IF($H$2=$V$6,VLOOKUP($P33,Tabelle!$U:$Y,5,0),IF($H$2=$V$7,VLOOKUP($P33,Tabelle!$AH:$AL,5,0),IF($H$2=$V$8,VLOOKUP($P33,Tabelle!$AU:$AY,5,0)))))),"",IF($H$2=$V$5,VLOOKUP($P33,Tabelle!$H:$L,5,0),IF($H$2=$V$6,VLOOKUP($P33,Tabelle!$U:$Y,5,0),IF($H$2=$V$7,VLOOKUP($P33,Tabelle!$AH:$AL,5,0),IF($H$2=$V$8,VLOOKUP($P33,Tabelle!$AU:$AY,5,0)))))) -> 2 | Z33: 2.7 | AA33: 6.6 | AB33: 2.3 | AC33: 7.58 | AF33: 1.9 | AG33: 3.7 | AH33: 6.1 | AI33: 2
I34: =IF(ISNUMBER(IF($H$2=$V$5,OFFSET(Tabelle!A34,0,0),IF($H$2=$V$6,OFFSET(Tabelle!N34,0,0),IF($H$2=$V$7,OFFSET(Tabelle!AA34,0,0),IF($H$2=$V$8,OFFSET(Tabelle!AN34,0,0)))))),IF($H$2=$V$5,OFFSET(Tabelle!A34,0,0),IF($H$2=$V$6,OFFSET(Tabelle!N34,0,0),IF($H$2=$V$7,OFFSET(Tabelle!AA34,0,0),IF($H$2=$V$8,OFFSET(Tabelle!AN34,0,0))))),"") -> 2010-09-30 | J34: =IF(ISERROR(IF($H$2=$V$5,VLOOKUP($I34,Tabelle!$A:$B,2,0),IF($H$2=$V$6,VLOOKUP($I34,Tabelle!$N:$O,2,0),IF($H$2=$V$7,VLOOKUP($I34,Tabelle!$AA:$AB,2,0),IF($H$2=$V$8,VLOOKUP($I34,Tabelle!$AN:$AO,2,0)))))),"",IF($H$2=$V$5,VLOOKUP($I34,Tabelle!$A:$B,2,0),IF($H$2=$V$6,VLOOKUP($I34,Tabelle!$N:$O,2,0),IF($H$2=$V$7,VLOOKUP($I34,Tabelle!$AA:$AB,2,0),IF($H$2=$V$8,VLOOKUP($I34,Tabelle!$AN:$AO,2,0)))))) -> 1.4 | K34: =IF(ISERROR(IF($H$2=$V$5,VLOOKUP($I34,Tabelle!$A:$C,3,0),IF($H$2=$V$6,VLOOKUP($I34,Tabelle!$N:$P,3,0),IF($H$2=$V$7,VLOOKUP($I34,Tabelle!$AA:$AC,3,0),IF($H$2=$V$8,VLOOKUP($I34,Tabelle!$AN:$AP,3,0)))))),"",IF($H$2=$V$5,VLOOKUP($I34,Tabelle!$A:$C,3,0),IF($H$2=$V$6,VLOOKUP($I34,Tabelle!$N:$P,3,0),IF($H$2=$V$7,VLOOKUP($I34,Tabelle!$AA:$AC,3,0),IF($H$2=$V$8,VLOOKUP($I34,Tabelle!$AN:$AP,3,0)))))) -> 3.5 | L34: =IF(ISERROR(IF($H$2=$V$5,VLOOKUP($I34,Tabelle!$A:$D,4,0),IF($H$2=$V$6,VLOOKUP($I34,Tabelle!$N:$Q,4,0),IF($H$2=$V$7,VLOOKUP($I34,Tabelle!$AA:$AD,4,0),IF($H$2=$V$8,VLOOKUP($I34,Tabelle!$AN:$AQ,4,0)))))),"",IF($H$2=$V$5,VLOOKUP($I34,Tabelle!$A:$D,4,0),IF($H$2=$V$6,VLOOKUP($I34,Tabelle!$N:$Q,4,0),IF($H$2=$V$7,VLOOKUP($I34,Tabelle!$AA:$AD,4,0),IF($H$2=$V$8,VLOOKUP($I34,Tabelle!$AN:$AQ,4,0)))))) -> 7.7 | M34: =IF(ISERROR(IF($H$2=$V$5,VLOOKUP($I34,Tabelle!$A:$E,5,0),IF($H$2=$V$6,VLOOKUP($I34,Tabelle!$N:$R,5,0),IF($H$2=$V$7,VLOOKUP($I34,Tabelle!$AA:$AE,5,0),IF($H$2=$V$8,VLOOKUP($I34,Tabelle!$AN:$AR,5,0)))))),"",IF($H$2=$V$5,VLOOKUP($I34,Tabelle!$A:$E,5,0),IF($H$2=$V$6,VLOOKUP($I34,Tabelle!$N:$R,5,0),IF($H$2=$V$7,VLOOKUP($I34,Tabelle!$AA:$AE,5,0),IF($H$2=$V$8,VLOOKUP($I34,Tabelle!$AN:$AR,5,0)))))) -> 2 | N34: =IF(ISERROR(IF($H$2=$V$5,VLOOKUP($I34,Tabelle!$A:$F,6,0),IF($H$2=$V$6,VLOOKUP($I34,Tabelle!$N:$S,6,0),IF($H$2=$V$7,VLOOKUP($I34,Tabelle!$AA:$AF,6,0),IF($H$2=$V$8,VLOOKUP($I34,Tabelle!$AN:$AS,6,0)))))),"",IF($H$2=$V$5,VLOOKUP($I34,Tabelle!$A:$F,6,0),IF($H$2=$V$6,VLOOKUP($I34,Tabelle!$N:$S,6,0),IF($H$2=$V$7,VLOOKUP($I34,Tabelle!$AA:$AF,6,0),IF($H$2=$V$8,VLOOKUP($I34,Tabelle!$AN:$AS,6,0)))))) -> 7.77 | P34: =IF(ISNUMBER(IF($H$2=$V$5,OFFSET(Tabelle!H34,0,0),IF($H$2=$V$6,OFFSET(Tabelle!U34,0,0),IF($H$2=$V$7,OFFSET(Tabelle!AH34,0,0),IF($H$2=$V$8,OFFSET(Tabelle!AV34,0,0)))))),IF($H$2=$V$5,OFFSET(Tabelle!H34,0,0),IF($H$2=$V$6,OFFSET(Tabelle!U34,0,0),IF($H$2=$V$7,OFFSET(Tabelle!AH34,0,0),IF($H$2=$V$8,OFFSET(Tabelle!AU34,0,0))))),"") -> 2010-09-30 | Q34: =IF(ISERROR(IF($H$2=$V$5,VLOOKUP($P34,Tabelle!$H:$I,2,0),IF($H$2=$V$6,VLOOKUP($P34,Tabelle!$U:$V,2,0),IF($H$2=$V$7,VLOOKUP($P34,Tabelle!$AH:$AI,2,0),IF($H$2=$V$8,VLOOKUP($P34,Tabelle!$AU:$AV,2,0)))))),"",IF($H$2=$V$5,VLOOKUP($P34,Tabelle!$H:$I,2,0),IF($H$2=$V$6,VLOOKUP($P34,Tabelle!$U:$V,2,0),IF($H$2=$V$7,VLOOKUP($P34,Tabelle!$AH:$AI,2,0),IF($H$2=$V$8,VLOOKUP($P34,Tabelle!$AU:$AV,2,0)))))) -> 2 | R34: =IF(ISERROR(IF($H$2=$V$5,VLOOKUP($P34,Tabelle!$H:$J,3,0),IF($H$2=$V$6,VLOOKUP($P34,Tabelle!$U:$W,3,0),IF($H$2=$V$7,VLOOKUP($P34,Tabelle!$AH:$AJ,3,0),IF($H$2=$V$8,VLOOKUP($P34,Tabelle!$AU:$AW,3,0)))))),"",IF($H$2=$V$5,VLOOKUP($P34,Tabelle!$H:$J,3,0),IF($H$2=$V$6,VLOOKUP($P34,Tabelle!$U:$W,3,0),IF($H$2=$V$7,VLOOKUP($P34,Tabelle!$AH:$AJ,3,0),IF($H$2=$V$8,VLOOKUP($P34,Tabelle!$AU:$AW,3,0)))))) -> 3.8 | S34: =IF(ISERROR(IF($H$2=$V$5,VLOOKUP($P34,Tabelle!$H:$K,4,0),IF($H$2=$V$6,VLOOKUP($P34,Tabelle!$U:$X,4,0),IF($H$2=$V$7,VLOOKUP($P34,Tabelle!$AH:$AK,4,0),IF($H$2=$V$8,VLOOKUP($P34,Tabelle!$AU:$AX,4,0)))))),"",IF($H$2=$V$5,VLOOKUP($P34,Tabelle!$H:$K,4,0),IF($H$2=$V$6,VLOOKUP($P34,Tabelle!$U:$X,4,0),IF($H$2=$V$7,VLOOKUP($P34,Tabelle!$AH:$AK,4,0),IF($H$2=$V$8,VLOOKUP($P34,Tabelle!$AU:$AX,4,0)))))) -> 7 | T34: =IF(ISERROR(IF($H$2=$V$5,VLOOKUP($P34,Tabelle!$H:$L,5,0),IF($H$2=$V$6,VLOOKUP($P34,Tabelle!$U:$Y,5,0),IF($H$2=$V$7,VLOOKUP($P34,Tabelle!$AH:$AL,5,0),IF($H$2=$V$8,VLOOKUP($P34,Tabelle!$AU:$AY,5,0)))))),"",IF($H$2=$V$5,VLOOKUP($P34,Tabelle!$H:$L,5,0),IF($H$2=$V$6,VLOOKUP($P34,Tabelle!$U:$Y,5,0),IF($H$2=$V$7,VLOOKUP($P34,Tabelle!$AH:$AL,5,0),IF($H$2=$V$8,VLOOKUP($P34,Tabelle!$AU:$AY,5,0)))))) -> 2.5 | Z34: 3.5 | AA34: 7.7 | AB34: 2 | AC34: 7.77 | AF34: 2 | AG34: 3.8 | AH34: 7 | AI34: 2.5
I35: =IF(ISNUMBER(IF($H$2=$V$5,OFFSET(Tabelle!A35,0,0),IF($H$2=$V$6,OFFSET(Tabelle!N35,0,0),IF($H$2=$V$7,OFFSET(Tabelle!AA35,0,0),IF($H$2=$V$8,OFFSET(Tabelle!AN35,0,0)))))),IF($H$2=$V$5,OFFSET(Tabelle!A35,0,0),IF($H$2=$V$6,OFFSET(Tabelle!N35,0,0),IF($H$2=$V$7,OFFSET(Tabelle!AA35,0,0),IF($H$2=$V$8,OFFSET(Tabelle!AN35,0,0))))),"") -> 2010-10-31 | J35: =IF(ISERROR(IF($H$2=$V$5,VLOOKUP($I35,Tabelle!$A:$B,2,0),IF($H$2=$V$6,VLOOKUP($I35,Tabelle!$N:$O,2,0),IF($H$2=$V$7,VLOOKUP($I35,Tabelle!$AA:$AB,2,0),IF($H$2=$V$8,VLOOKUP($I35,Tabelle!$AN:$AO,2,0)))))),"",IF($H$2=$V$5,VLOOKUP($I35,Tabelle!$A:$B,2,0),IF($H$2=$V$6,VLOOKUP($I35,Tabelle!$N:$O,2,0),IF($H$2=$V$7,VLOOKUP($I35,Tabelle!$AA:$AB,2,0),IF($H$2=$V$8,VLOOKUP($I35,Tabelle!$AN:$AO,2,0)))))) -> 1.4 | K35: =IF(ISERROR(IF($H$2=$V$5,VLOOKUP($I35,Tabelle!$A:$C,3,0),IF($H$2=$V$6,VLOOKUP($I35,Tabelle!$N:$P,3,0),IF($H$2=$V$7,VLOOKUP($I35,Tabelle!$AA:$AC,3,0),IF($H$2=$V$8,VLOOKUP($I35,Tabelle!$AN:$AP,3,0)))))),"",IF($H$2=$V$5,VLOOKUP($I35,Tabelle!$A:$C,3,0),IF($H$2=$V$6,VLOOKUP($I35,Tabelle!$N:$P,3,0),IF($H$2=$V$7,VLOOKUP($I35,Tabelle!$AA:$AC,3,0),IF($H$2=$V$8,VLOOKUP($I35,Tabelle!$AN:$AP,3,0)))))) -> 3.9 | L35: =IF(ISERROR(IF($H$2=$V$5,VLOOKUP($I35,Tabelle!$A:$D,4,0),IF($H$2=$V$6,VLOOKUP($I35,Tabelle!$N:$Q,4,0),IF($H$2=$V$7,VLOOKUP($I35,Tabelle!$AA:$AD,4,0),IF($H$2=$V$8,VLOOKUP($I35,Tabelle!$AN:$AQ,4,0)))))),"",IF($H$2=$V$5,VLOOKUP($I35,Tabelle!$A:$D,4,0),IF($H$2=$V$6,VLOOKUP($I35,Tabelle!$N:$Q,4,0),IF($H$2=$V$7,VLOOKUP($I35,Tabelle!$AA:$AD,4,0),IF($H$2=$V$8,VLOOKUP($I35,Tabelle!$AN:$AQ,4,0)))))) -> 8.9 | M35: =IF(ISERROR(IF($H$2=$V$5,VLOOKUP($I35,Tabelle!$A:$E,5,0),IF($H$2=$V$6,VLOOKUP($I35,Tabelle!$N:$R,5,0),IF($H$2=$V$7,VLOOKUP($I35,Tabelle!$AA:$AE,5,0),IF($H$2=$V$8,VLOOKUP($I35,Tabelle!$AN:$AR,5,0)))))),"",IF($H$2=$V$5,VLOOKUP($I35,Tabelle!$A:$E,5,0),IF($H$2=$V$6,VLOOKUP($I35,Tabelle!$N:$R,5,0),IF($H$2=$V$7,VLOOKUP($I35,Tabelle!$AA:$AE,5,0),IF($H$2=$V$8,VLOOKUP($I35,Tabelle!$AN:$AR,5,0)))))) -> 1.9 | N35: =IF(ISERROR(IF($H$2=$V$5,VLOOKUP($I35,Tabelle!$A:$F,6,0),IF($H$2=$V$6,VLOOKUP($I35,Tabelle!$N:$S,6,0),IF($H$2=$V$7,VLOOKUP($I35,Tabelle!$AA:$AF,6,0),IF($H$2=$V$8,VLOOKUP($I35,Tabelle!$AN:$AS,6,0)))))),"",IF($H$2=$V$5,VLOOKUP($I35,Tabelle!$A:$F,6,0),IF($H$2=$V$6,VLOOKUP($I35,Tabelle!$N:$S,6,0),IF($H$2=$V$7,VLOOKUP($I35,Tabelle!$AA:$AF,6,0),IF($H$2=$V$8,VLOOKUP($I35,Tabelle!$AN:$AS,6,0)))))) -> 7.88 | P35: =IF(ISNUMBER(IF($H$2=$V$5,OFFSET(Tabelle!H35,0,0),IF($H$2=$V$6,OFFSET(Tabelle!U35,0,0),IF($H$2=$V$7,OFFSET(Tabelle!AH35,0,0),IF($H$2=$V$8,OFFSET(Tabelle!AV35,0,0)))))),IF($H$2=$V$5,OFFSET(Tabelle!H35,0,0),IF($H$2=$V$6,OFFSET(Tabelle!U35,0,0),IF($H$2=$V$7,OFFSET(Tabelle!AH35,0,0),IF($H$2=$V$8,OFFSET(Tabelle!AU35,0,0))))),"") -> 2010-10-31 | Q35: =IF(ISERROR(IF($H$2=$V$5,VLOOKUP($P35,Tabelle!$H:$I,2,0),IF($H$2=$V$6,VLOOKUP($P35,Tabelle!$U:$V,2,0),IF($H$2=$V$7,VLOOKUP($P35,Tabelle!$AH:$AI,2,0),IF($H$2=$V$8,VLOOKUP($P35,Tabelle!$AU:$AV,2,0)))))),"",IF($H$2=$V$5,VLOOKUP($P35,Tabelle!$H:$I,2,0),IF($H$2=$V$6,VLOOKUP($P35,Tabelle!$U:$V,2,0),IF($H$2=$V$7,VLOOKUP($P35,Tabelle!$AH:$AI,2,0),IF($H$2=$V$8,VLOOKUP($P35,Tabelle!$AU:$AV,2,0)))))) -> 2 | R35: =IF(ISERROR(IF($H$2=$V$5,VLOOKUP($P35,Tabelle!$H:$J,3,0),IF($H$2=$V$6,VLOOKUP($P35,Tabelle!$U:$W,3,0),IF($H$2=$V$7,VLOOKUP($P35,Tabelle!$AH:$AJ,3,0),IF($H$2=$V$8,VLOOKUP($P35,Tabelle!$AU:$AW,3,0)))))),"",IF($H$2=$V$5,VLOOKUP($P35,Tabelle!$H:$J,3,0),IF($H$2=$V$6,VLOOKUP($P35,Tabelle!$U:$W,3,0),IF($H$2=$V$7,VLOOKUP($P35,Tabelle!$AH:$AJ,3,0),IF($H$2=$V$8,VLOOKUP($P35,Tabelle!$AU:$AW,3,0)))))) -> 4.2 | S35: =IF(ISERROR(IF($H$2=$V$5,VLOOKUP($P35,Tabelle!$H:$K,4,0),IF($H$2=$V$6,VLOOKUP($P35,Tabelle!$U:$X,4,0),IF($H$2=$V$7,VLOOKUP($P35,Tabelle!$AH:$AK,4,0),IF($H$2=$V$8,VLOOKUP($P35,Tabelle!$AU:$AX,4,0)))))),"",IF($H$2=$V$5,VLOOKUP($P35,Tabelle!$H:$K,4,0),IF($H$2=$V$6,VLOOKUP($P35,Tabelle!$U:$X,4,0),IF($H$2=$V$7,VLOOKUP($P35,Tabelle!$AH:$AK,4,0),IF($H$2=$V$8,VLOOKUP($P35,Tabelle!$AU:$AX,4,0)))))) -> 7.5 | T35: =IF(ISERROR(IF($H$2=$V$5,VLOOKUP($P35,Tabelle!$H:$L,5,0),IF($H$2=$V$6,VLOOKUP($P35,Tabelle!$U:$Y,5,0),IF($H$2=$V$7,VLOOKUP($P35,Tabelle!$AH:$AL,5,0),IF($H$2=$V$8,VLOOKUP($P35,Tabelle!$AU:$AY,5,0)))))),"",IF($H$2=$V$5,VLOOKUP($P35,Tabelle!$H:$L,5,0),IF($H$2=$V$6,VLOOKUP($P35,Tabelle!$U:$Y,5,0),IF($H$2=$V$7,VLOOKUP($P35,Tabelle!$AH:$AL,5,0),IF($H$2=$V$8,VLOOKUP($P35,Tabelle!$AU:$AY,5,0)))))) -> 2.8 | Z35: 3.9 | AA35: 8.9 | AB35: 1.9 | AC35: 7.88 | AF35: 2 | AG35: 4.2 | AH35: 7.5 | AI35: 2.8
I36: =IF(ISNUMBER(IF($H$2=$V$5,OFFSET(Tabelle!A36,0,0),IF($H$2=$V$6,OFFSET(Tabelle!N36,0,0),IF($H$2=$V$7,OFFSET(Tabelle!AA36,0,0),IF($H$2=$V$8,OFFSET(Tabelle!AN36,0,0)))))),IF($H$2=$V$5,OFFSET(Tabelle!A36,0,0),IF($H$2=$V$6,OFFSET(Tabelle!N36,0,0),IF($H$2=$V$7,OFFSET(Tabelle!AA36,0,0),IF($H$2=$V$8,OFFSET(Tabelle!AN36,0,0))))),"") -> 2010-11-30 | J36: =IF(ISERROR(IF($H$2=$V$5,VLOOKUP($I36,Tabelle!$A:$B,2,0),IF($H$2=$V$6,VLOOKUP($I36,Tabelle!$N:$O,2,0),IF($H$2=$V$7,VLOOKUP($I36,Tabelle!$AA:$AB,2,0),IF($H$2=$V$8,VLOOKUP($I36,Tabelle!$AN:$AO,2,0)))))),"",IF($H$2=$V$5,VLOOKUP($I36,Tabelle!$A:$B,2,0),IF($H$2=$V$6,VLOOKUP($I36,Tabelle!$N:$O,2,0),IF($H$2=$V$7,VLOOKUP($I36,Tabelle!$AA:$AB,2,0),IF($H$2=$V$8,VLOOKUP($I36,Tabelle!$AN:$AO,2,0)))))) -> 1.2 | K36: =IF(ISERROR(IF($H$2=$V$5,VLOOKUP($I36,Tabelle!$A:$C,3,0),IF($H$2=$V$6,VLOOKUP($I36,Tabelle!$N:$P,3,0),IF($H$2=$V$7,VLOOKUP($I36,Tabelle!$AA:$AC,3,0),IF($H$2=$V$8,VLOOKUP($I36,Tabelle!$AN:$AP,3,0)))))),"",IF($H$2=$V$5,VLOOKUP($I36,Tabelle!$A:$C,3,0),IF($H$2=$V$6,VLOOKUP($I36,Tabelle!$N:$P,3,0),IF($H$2=$V$7,VLOOKUP($I36,Tabelle!$AA:$AC,3,0),IF($H$2=$V$8,VLOOKUP($I36,Tabelle!$AN:$AP,3,0)))))) -> 4.6 | L36: =IF(ISERROR(IF($H$2=$V$5,VLOOKUP($I36,Tabelle!$A:$D,4,0),IF($H$2=$V$6,VLOOKUP($I36,Tabelle!$N:$Q,4,0),IF($H$2=$V$7,VLOOKUP($I36,Tabelle!$AA:$AD,4,0),IF($H$2=$V$8,VLOOKUP($I36,Tabelle!$AN:$AQ,4,0)))))),"",IF($H$2=$V$5,VLOOKUP($I36,Tabelle!$A:$D,4,0),IF($H$2=$V$6,VLOOKUP($I36,Tabelle!$N:$Q,4,0),IF($H$2=$V$7,VLOOKUP($I36,Tabelle!$AA:$AD,4,0),IF($H$2=$V$8,VLOOKUP($I36,Tabelle!$AN:$AQ,4,0)))))) -> 9.6 | M36: =IF(ISERROR(IF($H$2=$V$5,VLOOKUP($I36,Tabelle!$A:$E,5,0),IF($H$2=$V$6,VLOOKUP($I36,Tabelle!$N:$R,5,0),IF($H$2=$V$7,VLOOKUP($I36,Tabelle!$AA:$AE,5,0),IF($H$2=$V$8,VLOOKUP($I36,Tabelle!$AN:$AR,5,0)))))),"",IF($H$2=$V$5,VLOOKUP($I36,Tabelle!$A:$E,5,0),IF($H$2=$V$6,VLOOKUP($I36,Tabelle!$N:$R,5,0),IF($H$2=$V$7,VLOOKUP($I36,Tabelle!$AA:$AE,5,0),IF($H$2=$V$8,VLOOKUP($I36,Tabelle!$AN:$AR,5,0)))))) -> 1.4 | N36: =IF(ISERROR(IF($H$2=$V$5,VLOOKUP($I36,Tabelle!$A:$F,6,0),IF($H$2=$V$6,VLOOKUP($I36,Tabelle!$N:$S,6,0),IF($H$2=$V$7,VLOOKUP($I36,Tabelle!$AA:$AF,6,0),IF($H$2=$V$8,VLOOKUP($I36,Tabelle!$AN:$AS,6,0)))))),"",IF($H$2=$V$5,VLOOKUP($I36,Tabelle!$A:$F,6,0),IF($H$2=$V$6,VLOOKUP($I36,Tabelle!$N:$S,6,0),IF($H$2=$V$7,VLOOKUP($I36,Tabelle!$AA:$AF,6,0),IF($H$2=$V$8,VLOOKUP($I36,Tabelle!$AN:$AS,6,0)))))) -> 7.73 | P36: =IF(ISNUMBER(IF($H$2=$V$5,OFFSET(Tabelle!H36,0,0),IF($H$2=$V$6,OFFSET(Tabelle!U36,0,0),IF($H$2=$V$7,OFFSET(Tabelle!AH36,0,0),IF($H$2=$V$8,OFFSET(Tabelle!AV36,0,0)))))),IF($H$2=$V$5,OFFSET(Tabelle!H36,0,0),IF($H$2=$V$6,OFFSET(Tabelle!U36,0,0),IF($H$2=$V$7,OFFSET(Tabelle!AH36,0,0),IF($H$2=$V$8,OFFSET(Tabelle!AU36,0,0))))),"") -> 2010-11-30 | Q36: =IF(ISERROR(IF($H$2=$V$5,VLOOKUP($P36,Tabelle!$H:$I,2,0),IF($H$2=$V$6,VLOOKUP($P36,Tabelle!$U:$V,2,0),IF($H$2=$V$7,VLOOKUP($P36,Tabelle!$AH:$AI,2,0),IF($H$2=$V$8,VLOOKUP($P36,Tabelle!$AU:$AV,2,0)))))),"",IF($H$2=$V$5,VLOOKUP($P36,Tabelle!$H:$I,2,0),IF($H$2=$V$6,VLOOKUP($P36,Tabelle!$U:$V,2,0),IF($H$2=$V$7,VLOOKUP($P36,Tabelle!$AH:$AI,2,0),IF($H$2=$V$8,VLOOKUP($P36,Tabelle!$AU:$AV,2,0)))))) -> 2 | R36: =IF(ISERROR(IF($H$2=$V$5,VLOOKUP($P36,Tabelle!$H:$J,3,0),IF($H$2=$V$6,VLOOKUP($P36,Tabelle!$U:$W,3,0),IF($H$2=$V$7,VLOOKUP($P36,Tabelle!$AH:$AJ,3,0),IF($H$2=$V$8,VLOOKUP($P36,Tabelle!$AU:$AW,3,0)))))),"",IF($H$2=$V$5,VLOOKUP($P36,Tabelle!$H:$J,3,0),IF($H$2=$V$6,VLOOKUP($P36,Tabelle!$U:$W,3,0),IF($H$2=$V$7,VLOOKUP($P36,Tabelle!$AH:$AJ,3,0),IF($H$2=$V$8,VLOOKUP($P36,Tabelle!$AU:$AW,3,0)))))) -> 4.2 | S36: =IF(ISERROR(IF($H$2=$V$5,VLOOKUP($P36,Tabelle!$H:$K,4,0),IF($H$2=$V$6,VLOOKUP($P36,Tabelle!$U:$X,4,0),IF($H$2=$V$7,VLOOKUP($P36,Tabelle!$AH:$AK,4,0),IF($H$2=$V$8,VLOOKUP($P36,Tabelle!$AU:$AX,4,0)))))),"",IF($H$2=$V$5,VLOOKUP($P36,Tabelle!$H:$K,4,0),IF($H$2=$V$6,VLOOKUP($P36,Tabelle!$U:$X,4,0),IF($H$2=$V$7,VLOOKUP($P36,Tabelle!$AH:$AK,4,0),IF($H$2=$V$8,VLOOKUP($P36,Tabelle!$AU:$AX,4,0)))))) -> 8.1 | T36: =IF(ISERROR(IF($H$2=$V$5,VLOOKUP($P36,Tabelle!$H:$L,5,0),IF($H$2=$V$6,VLOOKUP($P36,Tabelle!$U:$Y,5,0),IF($H$2=$V$7,VLOOKUP($P36,Tabelle!$AH:$AL,5,0),IF($H$2=$V$8,VLOOKUP($P36,Tabelle!$AU:$AY,5,0)))))),"",IF($H$2=$V$5,VLOOKUP($P36,Tabelle!$H:$L,5,0),IF($H$2=$V$6,VLOOKUP($P36,Tabelle!$U:$Y,5,0),IF($H$2=$V$7,VLOOKUP($P36,Tabelle!$AH:$AL,5,0),IF($H$2=$V$8,VLOOKUP($P36,Tabelle!$AU:$AY,5,0)))))) -> 2.7 | Z36: 4.6 | AA36: 9.6 | AB36: 1.4 | AC36: 7.73 | AF36: 2 | AG36: 4.2 | AH36: 8.1 | AI36: 2.7
I37: =IF(ISNUMBER(IF($H$2=$V$5,OFFSET(Tabelle!A37,0,0),IF($H$2=$V$6,OFFSET(Tabelle!N37,0,0),IF($H$2=$V$7,OFFSET(Tabelle!AA37,0,0),IF($H$2=$V$8,OFFSET(Tabelle!AN37,0,0)))))),IF($H$2=$V$5,OFFSET(Tabelle!A37,0,0),IF($H$2=$V$6,OFFSET(Tabelle!N37,0,0),IF($H$2=$V$7,OFFSET(Tabelle!AA37,0,0),IF($H$2=$V$8,OFFSET(Tabelle!AN37,0,0))))),"") -> 2010-12-31 | J37: =IF(ISERROR(IF($H$2=$V$5,VLOOKUP($I37,Tabelle!$A:$B,2,0),IF($H$2=$V$6,VLOOKUP($I37,Tabelle!$N:$O,2,0),IF($H$2=$V$7,VLOOKUP($I37,Tabelle!$AA:$AB,2,0),IF($H$2=$V$8,VLOOKUP($I37,Tabelle!$AN:$AO,2,0)))))),"",IF($H$2=$V$5,VLOOKUP($I37,Tabelle!$A:$B,2,0),IF($H$2=$V$6,VLOOKUP($I37,Tabelle!$N:$O,2,0),IF($H$2=$V$7,VLOOKUP($I37,Tabelle!$AA:$AB,2,0),IF($H$2=$V$8,VLOOKUP($I37,Tabelle!$AN:$AO,2,0)))))) -> 1.8 | K37: =IF(ISERROR(IF($H$2=$V$5,VLOOKUP($I37,Tabelle!$A:$C,3,0),IF($H$2=$V$6,VLOOKUP($I37,Tabelle!$N:$P,3,0),IF($H$2=$V$7,VLOOKUP($I37,Tabelle!$AA:$AC,3,0),IF($H$2=$V$8,VLOOKUP($I37,Tabelle!$AN:$AP,3,0)))))),"",IF($H$2=$V$5,VLOOKUP($I37,Tabelle!$A:$C,3,0),IF($H$2=$V$6,VLOOKUP($I37,Tabelle!$N:$P,3,0),IF($H$2=$V$7,VLOOKUP($I37,Tabelle!$AA:$AC,3,0),IF($H$2=$V$8,VLOOKUP($I37,Tabelle!$AN:$AP,3,0)))))) -> 4.5 | L37: =IF(ISERROR(IF($H$2=$V$5,VLOOKUP($I37,Tabelle!$A:$D,4,0),IF($H$2=$V$6,VLOOKUP($I37,Tabelle!$N:$Q,4,0),IF($H$2=$V$7,VLOOKUP($I37,Tabelle!$AA:$AD,4,0),IF($H$2=$V$8,VLOOKUP($I37,Tabelle!$AN:$AQ,4,0)))))),"",IF($H$2=$V$5,VLOOKUP($I37,Tabelle!$A:$D,4,0),IF($H$2=$V$6,VLOOKUP($I37,Tabelle!$N:$Q,4,0),IF($H$2=$V$7,VLOOKUP($I37,Tabelle!$AA:$AD,4,0),IF($H$2=$V$8,VLOOKUP($I37,Tabelle!$AN:$AQ,4,0)))))) -> 10.3 | M37: =IF(ISERROR(IF($H$2=$V$5,VLOOKUP($I37,Tabelle!$A:$E,5,0),IF($H$2=$V$6,VLOOKUP($I37,Tabelle!$N:$R,5,0),IF($H$2=$V$7,VLOOKUP($I37,Tabelle!$AA:$AE,5,0),IF($H$2=$V$8,VLOOKUP($I37,Tabelle!$AN:$AR,5,0)))))),"",IF($H$2=$V$5,VLOOKUP($I37,Tabelle!$A:$E,5,0),IF($H$2=$V$6,VLOOKUP($I37,Tabelle!$N:$R,5,0),IF($H$2=$V$7,VLOOKUP($I37,Tabelle!$AA:$AE,5,0),IF($H$2=$V$8,VLOOKUP($I37,Tabelle!$AN:$AR,5,0)))))) -> 1.9 | N37: =IF(ISERROR(IF($H$2=$V$5,VLOOKUP($I37,Tabelle!$A:$F,6,0),IF($H$2=$V$6,VLOOKUP($I37,Tabelle!$N:$S,6,0),IF($H$2=$V$7,VLOOKUP($I37,Tabelle!$AA:$AF,6,0),IF($H$2=$V$8,VLOOKUP($I37,Tabelle!$AN:$AS,6,0)))))),"",IF($H$2=$V$5,VLOOKUP($I37,Tabelle!$A:$F,6,0),IF($H$2=$V$6,VLOOKUP($I37,Tabelle!$N:$S,6,0),IF($H$2=$V$7,VLOOKUP($I37,Tabelle!$AA:$AF,6,0),IF($H$2=$V$8,VLOOKUP($I37,Tabelle!$AN:$AS,6,0)))))) -> 7.96 | P37: =IF(ISNUMBER(IF($H$2=$V$5,OFFSET(Tabelle!H37,0,0),IF($H$2=$V$6,OFFSET(Tabelle!U37,0,0),IF($H$2=$V$7,OFFSET(Tabelle!AH37,0,0),IF($H$2=$V$8,OFFSET(Tabelle!AV37,0,0)))))),IF($H$2=$V$5,OFFSET(Tabelle!H37,0,0),IF($H$2=$V$6,OFFSET(Tabelle!U37,0,0),IF($H$2=$V$7,OFFSET(Tabelle!AH37,0,0),IF($H$2=$V$8,OFFSET(Tabelle!AU37,0,0))))),"") -> 2010-12-31 | Q37: =IF(ISERROR(IF($H$2=$V$5,VLOOKUP($P37,Tabelle!$H:$I,2,0),IF($H$2=$V$6,VLOOKUP($P37,Tabelle!$U:$V,2,0),IF($H$2=$V$7,VLOOKUP($P37,Tabelle!$AH:$AI,2,0),IF($H$2=$V$8,VLOOKUP($P37,Tabelle!$AU:$AV,2,0)))))),"",IF($H$2=$V$5,VLOOKUP($P37,Tabelle!$H:$I,2,0),IF($H$2=$V$6,VLOOKUP($P37,Tabelle!$U:$V,2,0),IF($H$2=$V$7,VLOOKUP($P37,Tabelle!$AH:$AI,2,0),IF($H$2=$V$8,VLOOKUP($P37,Tabelle!$AU:$AV,2,0)))))) -> 2.3 | R37: =IF(ISERROR(IF($H$2=$V$5,VLOOKUP($P37,Tabelle!$H:$J,3,0),IF($H$2=$V$6,VLOOKUP($P37,Tabelle!$U:$W,3,0),IF($H$2=$V$7,VLOOKUP($P37,Tabelle!$AH:$AJ,3,0),IF($H$2=$V$8,VLOOKUP($P37,Tabelle!$AU:$AW,3,0)))))),"",IF($H$2=$V$5,VLOOKUP($P37,Tabelle!$H:$J,3,0),IF($H$2=$V$6,VLOOKUP($P37,Tabelle!$U:$W,3,0),IF($H$2=$V$7,VLOOKUP($P37,Tabelle!$AH:$AJ,3,0),IF($H$2=$V$8,VLOOKUP($P37,Tabelle!$AU:$AW,3,0)))))) -> 4.7 | S37: =IF(ISERROR(IF($H$2=$V$5,VLOOKUP($P37,Tabelle!$H:$K,4,0),IF($H$2=$V$6,VLOOKUP($P37,Tabelle!$U:$X,4,0),IF($H$2=$V$7,VLOOKUP($P37,Tabelle!$AH:$AK,4,0),IF($H$2=$V$8,VLOOKUP($P37,Tabelle!$AU:$AX,4,0)))))),"",IF($H$2=$V$5,VLOOKUP($P37,Tabelle!$H:$K,4,0),IF($H$2=$V$6,VLOOKUP($P37,Tabelle!$U:$X,4,0),IF($H$2=$V$7,VLOOKUP($P37,Tabelle!$AH:$AK,4,0),IF($H$2=$V$8,VLOOKUP($P37,Tabelle!$AU:$AX,4,0)))))) -> 8.8 | T37: =IF(ISERROR(IF($H$2=$V$5,VLOOKUP($P37,Tabelle!$H:$L,5,0),IF($H$2=$V$6,VLOOKUP($P37,Tabelle!$U:$Y,5,0),IF($H$2=$V$7,VLOOKUP($P37,Tabelle!$AH:$AL,5,0),IF($H$2=$V$8,VLOOKUP($P37,Tabelle!$AU:$AY,5,0)))))),"",IF($H$2=$V$5,VLOOKUP($P37,Tabelle!$H:$L,5,0),IF($H$2=$V$6,VLOOKUP($P37,Tabelle!$U:$Y,5,0),IF($H$2=$V$7,VLOOKUP($P37,Tabelle!$AH:$AL,5,0),IF($H$2=$V$8,VLOOKUP($P37,Tabelle!$AU:$AY,5,0)))))) -> 3.1 | Z37: 4.5 | AA37: 10.3 | AB37: 1.9 | AC37: 7.96 | AF37: 2.3 | AG37: 4.7 | AH37: 8.8 | AI37: 3.1
I38: =IF(ISNUMBER(IF($H$2=$V$5,OFFSET(Tabelle!A38,0,0),IF($H$2=$V$6,OFFSET(Tabelle!N38,0,0),IF($H$2=$V$7,OFFSET(Tabelle!AA38,0,0),IF($H$2=$V$8,OFFSET(Tabelle!AN38,0,0)))))),IF($H$2=$V$5,OFFSET(Tabelle!A38,0,0),IF($H$2=$V$6,OFFSET(Tabelle!N38,0,0),IF($H$2=$V$7,OFFSET(Tabelle!AA38,0,0),IF($H$2=$V$8,OFFSET(Tabelle!AN38,0,0))))),"") -> 2011-01-31 | J38: =IF(ISERROR(IF($H$2=$V$5,VLOOKUP($I38,Tabelle!$A:$B,2,0),IF($H$2=$V$6,VLOOKUP($I38,Tabelle!$N:$O,2,0),IF($H$2=$V$7,VLOOKUP($I38,Tabelle!$AA:$AB,2,0),IF($H$2=$V$8,VLOOKUP($I38,Tabelle!$AN:$AO,2,0)))))),"",IF($H$2=$V$5,VLOOKUP($I38,Tabelle!$A:$B,2,0),IF($H$2=$V$6,VLOOKUP($I38,Tabelle!$N:$O,2,0),IF($H$2=$V$7,VLOOKUP($I38,Tabelle!$AA:$AB,2,0),IF($H$2=$V$8,VLOOKUP($I38,Tabelle!$AN:$AO,2,0)))))) -> 1.9 | K38: =IF(ISERROR(IF($H$2=$V$5,VLOOKUP($I38,Tabelle!$A:$C,3,0),IF($H$2=$V$6,VLOOKUP($I38,Tabelle!$N:$P,3,0),IF($H$2=$V$7,VLOOKUP($I38,Tabelle!$AA:$AC,3,0),IF($H$2=$V$8,VLOOKUP($I38,Tabelle!$AN:$AP,3,0)))))),"",IF($H$2=$V$5,VLOOKUP($I38,Tabelle!$A:$C,3,0),IF($H$2=$V$6,VLOOKUP($I38,Tabelle!$N:$P,3,0),IF($H$2=$V$7,VLOOKUP($I38,Tabelle!$AA:$AC,3,0),IF($H$2=$V$8,VLOOKUP($I38,Tabelle!$AN:$AP,3,0)))))) -> 4.5 | L38: =IF(ISERROR(IF($H$2=$V$5,VLOOKUP($I38,Tabelle!$A:$D,4,0),IF($H$2=$V$6,VLOOKUP($I38,Tabelle!$N:$Q,4,0),IF($H$2=$V$7,VLOOKUP($I38,Tabelle!$AA:$AD,4,0),IF($H$2=$V$8,VLOOKUP($I38,Tabelle!$AN:$AQ,4,0)))))),"",IF($H$2=$V$5,VLOOKUP($I38,Tabelle!$A:$D,4,0),IF($H$2=$V$6,VLOOKUP($I38,Tabelle!$N:$Q,4,0),IF($H$2=$V$7,VLOOKUP($I38,Tabelle!$AA:$AD,4,0),IF($H$2=$V$8,VLOOKUP($I38,Tabelle!$AN:$AQ,4,0)))))) -> 11.2 | M38: =IF(ISERROR(IF($H$2=$V$5,VLOOKUP($I38,Tabelle!$A:$E,5,0),IF($H$2=$V$6,VLOOKUP($I38,Tabelle!$N:$R,5,0),IF($H$2=$V$7,VLOOKUP($I38,Tabelle!$AA:$AE,5,0),IF($H$2=$V$8,VLOOKUP($I38,Tabelle!$AN:$AR,5,0)))))),"",IF($H$2=$V$5,VLOOKUP($I38,Tabelle!$A:$E,5,0),IF($H$2=$V$6,VLOOKUP($I38,Tabelle!$N:$R,5,0),IF($H$2=$V$7,VLOOKUP($I38,Tabelle!$AA:$AE,5,0),IF($H$2=$V$8,VLOOKUP($I38,Tabelle!$AN:$AR,5,0)))))) -> 1.8 | N38: =IF(ISERROR(IF($H$2=$V$5,VLOOKUP($I38,Tabelle!$A:$F,6,0),IF($H$2=$V$6,VLOOKUP($I38,Tabelle!$N:$S,6,0),IF($H$2=$V$7,VLOOKUP($I38,Tabelle!$AA:$AF,6,0),IF($H$2=$V$8,VLOOKUP($I38,Tabelle!$AN:$AS,6,0)))))),"",IF($H$2=$V$5,VLOOKUP($I38,Tabelle!$A:$F,6,0),IF($H$2=$V$6,VLOOKUP($I38,Tabelle!$N:$S,6,0),IF($H$2=$V$7,VLOOKUP($I38,Tabelle!$AA:$AF,6,0),IF($H$2=$V$8,VLOOKUP($I38,Tabelle!$AN:$AS,6,0)))))) -> 6.99 | P38: =IF(ISNUMBER(IF($H$2=$V$5,OFFSET(Tabelle!H38,0,0),IF($H$2=$V$6,OFFSET(Tabelle!U38,0,0),IF($H$2=$V$7,OFFSET(Tabelle!AH38,0,0),IF($H$2=$V$8,OFFSET(Tabelle!AV38,0,0)))))),IF($H$2=$V$5,OFFSET(Tabelle!H38,0,0),IF($H$2=$V$6,OFFSET(Tabelle!U38,0,0),IF($H$2=$V$7,OFFSET(Tabelle!AH38,0,0),IF($H$2=$V$8,OFFSET(Tabelle!AU38,0,0))))),"") -> 2011-01-31 | Q38: =IF(ISERROR(IF($H$2=$V$5,VLOOKUP($P38,Tabelle!$H:$I,2,0),IF($H$2=$V$6,VLOOKUP($P38,Tabelle!$U:$V,2,0),IF($H$2=$V$7,VLOOKUP($P38,Tabelle!$AH:$AI,2,0),IF($H$2=$V$8,VLOOKUP($P38,Tabelle!$AU:$AV,2,0)))))),"",IF($H$2=$V$5,VLOOKUP($P38,Tabelle!$H:$I,2,0),IF($H$2=$V$6,VLOOKUP($P38,Tabelle!$U:$V,2,0),IF($H$2=$V$7,VLOOKUP($P38,Tabelle!$AH:$AI,2,0),IF($H$2=$V$8,VLOOKUP($P38,Tabelle!$AU:$AV,2,0)))))) -> 1.7 | R38: =IF(ISERROR(IF($H$2=$V$5,VLOOKUP($P38,Tabelle!$H:$J,3,0),IF($H$2=$V$6,VLOOKUP($P38,Tabelle!$U:$W,3,0),IF($H$2=$V$7,VLOOKUP($P38,Tabelle!$AH:$AJ,3,0),IF($H$2=$V$8,VLOOKUP($P38,Tabelle!$AU:$AW,3,0)))))),"",IF($H$2=$V$5,VLOOKUP($P38,Tabelle!$H:$J,3,0),IF($H$2=$V$6,VLOOKUP($P38,Tabelle!$U:$W,3,0),IF($H$2=$V$7,VLOOKUP($P38,Tabelle!$AH:$AJ,3,0),IF($H$2=$V$8,VLOOKUP($P38,Tabelle!$AU:$AW,3,0)))))) -> 4 | S38: =IF(ISERROR(IF($H$2=$V$5,VLOOKUP($P38,Tabelle!$H:$K,4,0),IF($H$2=$V$6,VLOOKUP($P38,Tabelle!$U:$X,4,0),IF($H$2=$V$7,VLOOKUP($P38,Tabelle!$AH:$AK,4,0),IF($H$2=$V$8,VLOOKUP($P38,Tabelle!$AU:$AX,4,0)))))),"",IF($H$2=$V$5,VLOOKUP($P38,Tabelle!$H:$K,4,0),IF($H$2=$V$6,VLOOKUP($P38,Tabelle!$U:$X,4,0),IF($H$2=$V$7,VLOOKUP($P38,Tabelle!$AH:$AK,4,0),IF($H$2=$V$8,VLOOKUP($P38,Tabelle!$AU:$AX,4,0)))))) -> 9.6 | T38: =IF(ISERROR(IF($H$2=$V$5,VLOOKUP($P38,Tabelle!$H:$L,5,0),IF($H$2=$V$6,VLOOKUP($P38,Tabelle!$U:$Y,5,0),IF($H$2=$V$7,VLOOKUP($P38,Tabelle!$AH:$AL,5,0),IF($H$2=$V$8,VLOOKUP($P38,Tabelle!$AU:$AY,5,0)))))),"",IF($H$2=$V$5,VLOOKUP($P38,Tabelle!$H:$L,5,0),IF($H$2=$V$6,VLOOKUP($P38,Tabelle!$U:$Y,5,0),IF($H$2=$V$7,VLOOKUP($P38,Tabelle!$AH:$AL,5,0),IF($H$2=$V$8,VLOOKUP($P38,Tabelle!$AU:$AY,5,0)))))) -> 3.6 | Z38: 4.5 | AA38: 11.2 | AB38: 1.8 | AC38: 6.99 | AF38: 1.7 | AG38: 4 | AH38: 9.6 | AI38: 3.6
I39: =IF(ISNUMBER(IF($H$2=$V$5,OFFSET(Tabelle!A39,0,0),IF($H$2=$V$6,OFFSET(Tabelle!N39,0,0),IF($H$2=$V$7,OFFSET(Tabelle!AA39,0,0),IF($H$2=$V$8,OFFSET(Tabelle!AN39,0,0)))))),IF($H$2=$V$5,OFFSET(Tabelle!A39,0,0),IF($H$2=$V$6,OFFSET(Tabelle!N39,0,0),IF($H$2=$V$7,OFFSET(Tabelle!AA39,0,0),IF($H$2=$V$8,OFFSET(Tabelle!AN39,0,0))))),"") -> 2011-02-28 | J39: =IF(ISERROR(IF($H$2=$V$5,VLOOKUP($I39,Tabelle!$A:$B,2,0),IF($H$2=$V$6,VLOOKUP($I39,Tabelle!$N:$O,2,0),IF($H$2=$V$7,VLOOKUP($I39,Tabelle!$AA:$AB,2,0),IF($H$2=$V$8,VLOOKUP($I39,Tabelle!$AN:$AO,2,0)))))),"",IF($H$2=$V$5,VLOOKUP($I39,Tabelle!$A:$B,2,0),IF($H$2=$V$6,VLOOKUP($I39,Tabelle!$N:$O,2,0),IF($H$2=$V$7,VLOOKUP($I39,Tabelle!$AA:$AB,2,0),IF($H$2=$V$8,VLOOKUP($I39,Tabelle!$AN:$AO,2,0)))))) -> 2.2 | K39: =IF(ISERROR(IF($H$2=$V$5,VLOOKUP($I39,Tabelle!$A:$C,3,0),IF($H$2=$V$6,VLOOKUP($I39,Tabelle!$N:$P,3,0),IF($H$2=$V$7,VLOOKUP($I39,Tabelle!$AA:$AC,3,0),IF($H$2=$V$8,VLOOKUP($I39,Tabelle!$AN:$AP,3,0)))))),"",IF($H$2=$V$5,VLOOKUP($I39,Tabelle!$A:$C,3,0),IF($H$2=$V$6,VLOOKUP($I39,Tabelle!$N:$P,3,0),IF($H$2=$V$7,VLOOKUP($I39,Tabelle!$AA:$AC,3,0),IF($H$2=$V$8,VLOOKUP($I39,Tabelle!$AN:$AP,3,0)))))) -> 5.2 | L39: =IF(ISERROR(IF($H$2=$V$5,VLOOKUP($I39,Tabelle!$A:$D,4,0),IF($H$2=$V$6,VLOOKUP($I39,Tabelle!$N:$Q,4,0),IF($H$2=$V$7,VLOOKUP($I39,Tabelle!$AA:$AD,4,0),IF($H$2=$V$8,VLOOKUP($I39,Tabelle!$AN:$AQ,4,0)))))),"",IF($H$2=$V$5,VLOOKUP($I39,Tabelle!$A:$D,4,0),IF($H$2=$V$6,VLOOKUP($I39,Tabelle!$N:$Q,4,0),IF($H$2=$V$7,VLOOKUP($I39,Tabelle!$AA:$AD,4,0),IF($H$2=$V$8,VLOOKUP($I39,Tabelle!$AN:$AQ,4,0)))))) -> 12.6 | M39: =IF(ISERROR(IF($H$2=$V$5,VLOOKUP($I39,Tabelle!$A:$E,5,0),IF($H$2=$V$6,VLOOKUP($I39,Tabelle!$N:$R,5,0),IF($H$2=$V$7,VLOOKUP($I39,Tabelle!$AA:$AE,5,0),IF($H$2=$V$8,VLOOKUP($I39,Tabelle!$AN:$AR,5,0)))))),"",IF($H$2=$V$5,VLOOKUP($I39,Tabelle!$A:$E,5,0),IF($H$2=$V$6,VLOOKUP($I39,Tabelle!$N:$R,5,0),IF($H$2=$V$7,VLOOKUP($I39,Tabelle!$AA:$AE,5,0),IF($H$2=$V$8,VLOOKUP($I39,Tabelle!$AN:$AR,5,0)))))) -> 1.4 | N39: =IF(ISERROR(IF($H$2=$V$5,VLOOKUP($I39,Tabelle!$A:$F,6,0),IF($H$2=$V$6,VLOOKUP($I39,Tabelle!$N:$S,6,0),IF($H$2=$V$7,VLOOKUP($I39,Tabelle!$AA:$AF,6,0),IF($H$2=$V$8,VLOOKUP($I39,Tabelle!$AN:$AS,6,0)))))),"",IF($H$2=$V$5,VLOOKUP($I39,Tabelle!$A:$F,6,0),IF($H$2=$V$6,VLOOKUP($I39,Tabelle!$N:$S,6,0),IF($H$2=$V$7,VLOOKUP($I39,Tabelle!$AA:$AF,6,0),IF($H$2=$V$8,VLOOKUP($I39,Tabelle!$AN:$AS,6,0)))))) -> 7.6 | P39: =IF(ISNUMBER(IF($H$2=$V$5,OFFSET(Tabelle!H39,0,0),IF($H$2=$V$6,OFFSET(Tabelle!U39,0,0),IF($H$2=$V$7,OFFSET(Tabelle!AH39,0,0),IF($H$2=$V$8,OFFSET(Tabelle!AV39,0,0)))))),IF($H$2=$V$5,OFFSET(Tabelle!H39,0,0),IF($H$2=$V$6,OFFSET(Tabelle!U39,0,0),IF($H$2=$V$7,OFFSET(Tabelle!AH39,0,0),IF($H$2=$V$8,OFFSET(Tabelle!AU39,0,0))))),"") -> 2011-02-28 | Q39: =IF(ISERROR(IF($H$2=$V$5,VLOOKUP($P39,Tabelle!$H:$I,2,0),IF($H$2=$V$6,VLOOKUP($P39,Tabelle!$U:$V,2,0),IF($H$2=$V$7,VLOOKUP($P39,Tabelle!$AH:$AI,2,0),IF($H$2=$V$8,VLOOKUP($P39,Tabelle!$AU:$AV,2,0)))))),"",IF($H$2=$V$5,VLOOKUP($P39,Tabelle!$H:$I,2,0),IF($H$2=$V$6,VLOOKUP($P39,Tabelle!$U:$V,2,0),IF($H$2=$V$7,VLOOKUP($P39,Tabelle!$AH:$AI,2,0),IF($H$2=$V$8,VLOOKUP($P39,Tabelle!$AU:$AV,2,0)))))) -> 1.8 | R39: =IF(ISERROR(IF($H$2=$V$5,VLOOKUP($P39,Tabelle!$H:$J,3,0),IF($H$2=$V$6,VLOOKUP($P39,Tabelle!$U:$W,3,0),IF($H$2=$V$7,VLOOKUP($P39,Tabelle!$AH:$AJ,3,0),IF($H$2=$V$8,VLOOKUP($P39,Tabelle!$AU:$AW,3,0)))))),"",IF($H$2=$V$5,VLOOKUP($P39,Tabelle!$H:$J,3,0),IF($H$2=$V$6,VLOOKUP($P39,Tabelle!$U:$W,3,0),IF($H$2=$V$7,VLOOKUP($P39,Tabelle!$AH:$AJ,3,0),IF($H$2=$V$8,VLOOKUP($P39,Tabelle!$AU:$AW,3,0)))))) -> 4.1 | S39: =IF(ISERROR(IF($H$2=$V$5,VLOOKUP($P39,Tabelle!$H:$K,4,0),IF($H$2=$V$6,VLOOKUP($P39,Tabelle!$U:$X,4,0),IF($H$2=$V$7,VLOOKUP($P39,Tabelle!$AH:$AK,4,0),IF($H$2=$V$8,VLOOKUP($P39,Tabelle!$AU:$AX,4,0)))))),"",IF($H$2=$V$5,VLOOKUP($P39,Tabelle!$H:$K,4,0),IF($H$2=$V$6,VLOOKUP($P39,Tabelle!$U:$X,4,0),IF($H$2=$V$7,VLOOKUP($P39,Tabelle!$AH:$AK,4,0),IF($H$2=$V$8,VLOOKUP($P39,Tabelle!$AU:$AX,4,0)))))) -> 9.5 | T39: =IF(ISERROR(IF($H$2=$V$5,VLOOKUP($P39,Tabelle!$H:$L,5,0),IF($H$2=$V$6,VLOOKUP($P39,Tabelle!$U:$Y,5,0),IF($H$2=$V$7,VLOOKUP($P39,Tabelle!$AH:$AL,5,0),IF($H$2=$V$8,VLOOKUP($P39,Tabelle!$AU:$AY,5,0)))))),"",IF($H$2=$V$5,VLOOKUP($P39,Tabelle!$H:$L,5,0),IF($H$2=$V$6,VLOOKUP($P39,Tabelle!$U:$Y,5,0),IF($H$2=$V$7,VLOOKUP($P39,Tabelle!$AH:$AL,5,0),IF($H$2=$V$8,VLOOKUP($P39,Tabelle!$AU:$AY,5,0)))))) -> 3.6 | Z39: 5.2 | AA39: 12.6 | AB39: 1.4 | AC39: 7.6 | AF39: 1.8 | AG39: 4.1 | AH39: 9.5 | AI39: 3.6
I40: =IF(ISNUMBER(IF($H$2=$V$5,OFFSET(Tabelle!A40,0,0),IF($H$2=$V$6,OFFSET(Tabelle!N40,0,0),IF($H$2=$V$7,OFFSET(Tabelle!AA40,0,0),IF($H$2=$V$8,OFFSET(Tabelle!AN40,0,0)))))),IF($H$2=$V$5,OFFSET(Tabelle!A40,0,0),IF($H$2=$V$6,OFFSET(Tabelle!N40,0,0),IF($H$2=$V$7,OFFSET(Tabelle!AA40,0,0),IF($H$2=$V$8,OFFSET(Tabelle!AN40,0,0))))),"") ->  | J40: =IF(ISERROR(IF($H$2=$V$5,VLOOKUP($I40,Tabelle!$A:$B,2,0),IF($H$2=$V$6,VLOOKUP($I40,Tabelle!$N:$O,2,0),IF($H$2=$V$7,VLOOKUP($I40,Tabelle!$AA:$AB,2,0),IF($H$2=$V$8,VLOOKUP($I40,Tabelle!$AN:$AO,2,0)))))),"",IF($H$2=$V$5,VLOOKUP($I40,Tabelle!$A:$B,2,0),IF($H$2=$V$6,VLOOKUP($I40,Tabelle!$N:$O,2,0),IF($H$2=$V$7,VLOOKUP($I40,Tabelle!$AA:$AB,2,0),IF($H$2=$V$8,VLOOKUP($I40,Tabelle!$AN:$AO,2,0)))))) ->  | K40: =IF(ISERROR(IF($H$2=$V$5,VLOOKUP($I40,Tabelle!$A:$C,3,0),IF($H$2=$V$6,VLOOKUP($I40,Tabelle!$N:$P,3,0),IF($H$2=$V$7,VLOOKUP($I40,Tabelle!$AA:$AC,3,0),IF($H$2=$V$8,VLOOKUP($I40,Tabelle!$AN:$AP,3,0)))))),"",IF($H$2=$V$5,VLOOKUP($I40,Tabelle!$A:$C,3,0),IF($H$2=$V$6,VLOOKUP($I40,Tabelle!$N:$P,3,0),IF($H$2=$V$7,VLOOKUP($I40,Tabelle!$AA:$AC,3,0),IF($H$2=$V$8,VLOOKUP($I40,Tabelle!$AN:$AP,3,0)))))) ->  | L40: =IF(ISERROR(IF($H$2=$V$5,VLOOKUP($I40,Tabelle!$A:$D,4,0),IF($H$2=$V$6,VLOOKUP($I40,Tabelle!$N:$Q,4,0),IF($H$2=$V$7,VLOOKUP($I40,Tabelle!$AA:$AD,4,0),IF($H$2=$V$8,VLOOKUP($I40,Tabelle!$AN:$AQ,4,0)))))),"",IF($H$2=$V$5,VLOOKUP($I40,Tabelle!$A:$D,4,0),IF($H$2=$V$6,VLOOKUP($I40,Tabelle!$N:$Q,4,0),IF($H$2=$V$7,VLOOKUP($I40,Tabelle!$AA:$AD,4,0),IF($H$2=$V$8,VLOOKUP($I40,Tabelle!$AN:$AQ,4,0)))))) ->  | M40: =IF(ISERROR(IF($H$2=$V$5,VLOOKUP($I40,Tabelle!$A:$E,5,0),IF($H$2=$V$6,VLOOKUP($I40,Tabelle!$N:$R,5,0),IF($H$2=$V$7,VLOOKUP($I40,Tabelle!$AA:$AE,5,0),IF($H$2=$V$8,VLOOKUP($I40,Tabelle!$AN:$AR,5,0)))))),"",IF($H$2=$V$5,VLOOKUP($I40,Tabelle!$A:$E,5,0),IF($H$2=$V$6,VLOOKUP($I40,Tabelle!$N:$R,5,0),IF($H$2=$V$7,VLOOKUP($I40,Tabelle!$AA:$AE,5,0),IF($H$2=$V$8,VLOOKUP($I40,Tabelle!$AN:$AR,5,0)))))) ->  | N40: =IF(ISERROR(IF($H$2=$V$5,VLOOKUP($I40,Tabelle!$A:$F,6,0),IF($H$2=$V$6,VLOOKUP($I40,Tabelle!$N:$S,6,0),IF($H$2=$V$7,VLOOKUP($I40,Tabelle!$AA:$AF,6,0),IF($H$2=$V$8,VLOOKUP($I40,Tabelle!$AN:$AS,6,0)))))),"",IF($H$2=$V$5,VLOOKUP($I40,Tabelle!$A:$F,6,0),IF($H$2=$V$6,VLOOKUP($I40,Tabelle!$N:$S,6,0),IF($H$2=$V$7,VLOOKUP($I40,Tabelle!$AA:$AF,6,0),IF($H$2=$V$8,VLOOKUP($I40,Tabelle!$AN:$AS,6,0)))))) ->  | P40: =IF(ISNUMBER(IF($H$2=$V$5,OFFSET(Tabelle!H40,0,0),IF($H$2=$V$6,OFFSET(Tabelle!U40,0,0),IF($H$2=$V$7,OFFSET(Tabelle!AH40,0,0),IF($H$2=$V$8,OFFSET(Tabelle!AV40,0,0)))))),IF($H$2=$V$5,OFFSET(Tabelle!H40,0,0),IF($H$2=$V$6,OFFSET(Tabelle!U40,0,0),IF($H$2=$V$7,OFFSET(Tabelle!AH40,0,0),IF($H$2=$V$8,OFFSET(Tabelle!AU40,0,0))))),"") ->  | Q40: =IF(ISERROR(IF($H$2=$V$5,VLOOKUP($P40,Tabelle!$H:$I,2,0),IF($H$2=$V$6,VLOOKUP($P40,Tabelle!$U:$V,2,0),IF($H$2=$V$7,VLOOKUP($P40,Tabelle!$AH:$AI,2,0),IF($H$2=$V$8,VLOOKUP($P40,Tabelle!$AU:$AV,2,0)))))),"",IF($H$2=$V$5,VLOOKUP($P40,Tabelle!$H:$I,2,0),IF($H$2=$V$6,VLOOKUP($P40,Tabelle!$U:$V,2,0),IF($H$2=$V$7,VLOOKUP($P40,Tabelle!$AH:$AI,2,0),IF($H$2=$V$8,VLOOKUP($P40,Tabelle!$AU:$AV,2,0)))))) ->  | R40: =IF(ISERROR(IF($H$2=$V$5,VLOOKUP($P40,Tabelle!$H:$J,3,0),IF($H$2=$V$6,VLOOKUP($P40,Tabelle!$U:$W,3,0),IF($H$2=$V$7,VLOOKUP($P40,Tabelle!$AH:$AJ,3,0),IF($H$2=$V$8,VLOOKUP($P40,Tabelle!$AU:$AW,3,0)))))),"",IF($H$2=$V$5,VLOOKUP($P40,Tabelle!$H:$J,3,0),IF($H$2=$V$6,VLOOKUP($P40,Tabelle!$U:$W,3,0),IF($H$2=$V$7,VLOOKUP($P40,Tabelle!$AH:$AJ,3,0),IF($H$2=$V$8,VLOOKUP($P40,Tabelle!$AU:$AW,3,0)))))) ->  | S40: =IF(ISERROR(IF($H$2=$V$5,VLOOKUP($P40,Tabelle!$H:$K,4,0),IF($H$2=$V$6,VLOOKUP($P40,Tabelle!$U:$X,4,0),IF($H$2=$V$7,VLOOKUP($P40,Tabelle!$AH:$AK,4,0),IF($H$2=$V$8,VLOOKUP($P40,Tabelle!$AU:$AX,4,0)))))),"",IF($H$2=$V$5,VLOOKUP($P40,Tabelle!$H:$K,4,0),IF($H$2=$V$6,VLOOKUP($P40,Tabelle!$U:$X,4,0),IF($H$2=$V$7,VLOOKUP($P40,Tabelle!$AH:$AK,4,0),IF($H$2=$V$8,VLOOKUP($P40,Tabelle!$AU:$AX,4,0)))))) ->  | T40: =IF(ISERROR(IF($H$2=$V$5,VLOOKUP($P40,Tabelle!$H:$L,5,0),IF($H$2=$V$6,VLOOKUP($P40,Tabelle!$U:$Y,5,0),IF($H$2=$V$7,VLOOKUP($P40,Tabelle!$AH:$AL,5,0),IF($H$2=$V$8,VLOOKUP($P40,Tabelle!$AU:$AY,5,0)))))),"",IF($H$2=$V$5,VLOOKUP($P40,Tabelle!$H:$L,5,0),IF($H$2=$V$6,VLOOKUP($P40,Tabelle!$U:$Y,5,0),IF($H$2=$V$7,VLOOKUP($P40,Tabelle!$AH:$AL,5,0),IF($H$2=$V$8,VLOOKUP($P40,Tabelle!$AU:$AY,5,0)))))) -> 
I41: =IF(ISNUMBER(IF($H$2=$V$5,OFFSET(Tabelle!A41,0,0),IF($H$2=$V$6,OFFSET(Tabelle!N41,0,0),IF($H$2=$V$7,OFFSET(Tabelle!AA41,0,0),IF($H$2=$V$8,OFFSET(Tabelle!AN41,0,0)))))),IF($H$2=$V$5,OFFSET(Tabelle!A41,0,0),IF($H$2=$V$6,OFFSET(Tabelle!N41,0,0),IF($H$2=$V$7,OFFSET(Tabelle!AA41,0,0),IF($H$2=$V$8,OFFSET(Tabelle!AN41,0,0))))),"") ->  | J41: =IF(ISERROR(IF($H$2=$V$5,VLOOKUP($I41,Tabelle!$A:$B,2,0),IF($H$2=$V$6,VLOOKUP($I41,Tabelle!$N:$O,2,0),IF($H$2=$V$7,VLOOKUP($I41,Tabelle!$AA:$AB,2,0),IF($H$2=$V$8,VLOOKUP($I41,Tabelle!$AN:$AO,2,0)))))),"",IF($H$2=$V$5,VLOOKUP($I41,Tabelle!$A:$B,2,0),IF($H$2=$V$6,VLOOKUP($I41,Tabelle!$N:$O,2,0),IF($H$2=$V$7,VLOOKUP($I41,Tabelle!$AA:$AB,2,0),IF($H$2=$V$8,VLOOKUP($I41,Tabelle!$AN:$AO,2,0)))))) ->  | K41: =IF(ISERROR(IF($H$2=$V$5,VLOOKUP($I41,Tabelle!$A:$C,3,0),IF($H$2=$V$6,VLOOKUP($I41,Tabelle!$N:$P,3,0),IF($H$2=$V$7,VLOOKUP($I41,Tabelle!$AA:$AC,3,0),IF($H$2=$V$8,VLOOKUP($I41,Tabelle!$AN:$AP,3,0)))))),"",IF($H$2=$V$5,VLOOKUP($I41,Tabelle!$A:$C,3,0),IF($H$2=$V$6,VLOOKUP($I41,Tabelle!$N:$P,3,0),IF($H$2=$V$7,VLOOKUP($I41,Tabelle!$AA:$AC,3,0),IF($H$2=$V$8,VLOOKUP($I41,Tabelle!$AN:$AP,3,0)))))) ->  | L41: =IF(ISERROR(IF($H$2=$V$5,VLOOKUP($I41,Tabelle!$A:$D,4,0),IF($H$2=$V$6,VLOOKUP($I41,Tabelle!$N:$Q,4,0),IF($H$2=$V$7,VLOOKUP($I41,Tabelle!$AA:$AD,4,0),IF($H$2=$V$8,VLOOKUP($I41,Tabelle!$AN:$AQ,4,0)))))),"",IF($H$2=$V$5,VLOOKUP($I41,Tabelle!$A:$D,4,0),IF($H$2=$V$6,VLOOKUP($I41,Tabelle!$N:$Q,4,0),IF($H$2=$V$7,VLOOKUP($I41,Tabelle!$AA:$AD,4,0),IF($H$2=$V$8,VLOOKUP($I41,Tabelle!$AN:$AQ,4,0)))))) ->  | M41: =IF(ISERROR(IF($H$2=$V$5,VLOOKUP($I41,Tabelle!$A:$E,5,0),IF($H$2=$V$6,VLOOKUP($I41,Tabelle!$N:$R,5,0),IF($H$2=$V$7,VLOOKUP($I41,Tabelle!$AA:$AE,5,0),IF($H$2=$V$8,VLOOKUP($I41,Tabelle!$AN:$AR,5,0)))))),"",IF($H$2=$V$5,VLOOKUP($I41,Tabelle!$A:$E,5,0),IF($H$2=$V$6,VLOOKUP($I41,Tabelle!$N:$R,5,0),IF($H$2=$V$7,VLOOKUP($I41,Tabelle!$AA:$AE,5,0),IF($H$2=$V$8,VLOOKUP($I41,Tabelle!$AN:$AR,5,0)))))) ->  | N41: =IF(ISERROR(IF($H$2=$V$5,VLOOKUP($I41,Tabelle!$A:$F,6,0),IF($H$2=$V$6,VLOOKUP($I41,Tabelle!$N:$S,6,0),IF($H$2=$V$7,VLOOKUP($I41,Tabelle!$AA:$AF,6,0),IF($H$2=$V$8,VLOOKUP($I41,Tabelle!$AN:$AS,6,0)))))),"",IF($H$2=$V$5,VLOOKUP($I41,Tabelle!$A:$F,6,0),IF($H$2=$V$6,VLOOKUP($I41,Tabelle!$N:$S,6,0),IF($H$2=$V$7,VLOOKUP($I41,Tabelle!$AA:$AF,6,0),IF($H$2=$V$8,VLOOKUP($I41,Tabelle!$AN:$AS,6,0)))))) ->  | P41: =IF(ISNUMBER(IF($H$2=$V$5,OFFSET(Tabelle!H41,0,0),IF($H$2=$V$6,OFFSET(Tabelle!U41,0,0),IF($H$2=$V$7,OFFSET(Tabelle!AH41,0,0),IF($H$2=$V$8,OFFSET(Tabelle!AV41,0,0)))))),IF($H$2=$V$5,OFFSET(Tabelle!H41,0,0),IF($H$2=$V$6,OFFSET(Tabelle!U41,0,0),IF($H$2=$V$7,OFFSET(Tabelle!AH41,0,0),IF($H$2=$V$8,OFFSET(Tabelle!AU41,0,0))))),"") ->  | Q41: =IF(ISERROR(IF($H$2=$V$5,VLOOKUP($P41,Tabelle!$H:$I,2,0),IF($H$2=$V$6,VLOOKUP($P41,Tabelle!$U:$V,2,0),IF($H$2=$V$7,VLOOKUP($P41,Tabelle!$AH:$AI,2,0),IF($H$2=$V$8,VLOOKUP($P41,Tabelle!$AU:$AV,2,0)))))),"",IF($H$2=$V$5,VLOOKUP($P41,Tabelle!$H:$I,2,0),IF($H$2=$V$6,VLOOKUP($P41,Tabelle!$U:$V,2,0),IF($H$2=$V$7,VLOOKUP($P41,Tabelle!$AH:$AI,2,0),IF($H$2=$V$8,VLOOKUP($P41,Tabelle!$AU:$AV,2,0)))))) ->  | R41: =IF(ISERROR(IF($H$2=$V$5,VLOOKUP($P41,Tabelle!$H:$J,3,0),IF($H$2=$V$6,VLOOKUP($P41,Tabelle!$U:$W,3,0),IF($H$2=$V$7,VLOOKUP($P41,Tabelle!$AH:$AJ,3,0),IF($H$2=$V$8,VLOOKUP($P41,Tabelle!$AU:$AW,3,0)))))),"",IF($H$2=$V$5,VLOOKUP($P41,Tabelle!$H:$J,3,0),IF($H$2=$V$6,VLOOKUP($P41,Tabelle!$U:$W,3,0),IF($H$2=$V$7,VLOOKUP($P41,Tabelle!$AH:$AJ,3,0),IF($H$2=$V$8,VLOOKUP($P41,Tabelle!$AU:$AW,3,0)))))) ->  | S41: =IF(ISERROR(IF($H$2=$V$5,VLOOKUP($P41,Tabelle!$H:$K,4,0),IF($H$2=$V$6,VLOOKUP($P41,Tabelle!$U:$X,4,0),IF($H$2=$V$7,VLOOKUP($P41,Tabelle!$AH:$AK,4,0),IF($H$2=$V$8,VLOOKUP($P41,Tabelle!$AU:$AX,4,0)))))),"",IF($H$2=$V$5,VLOOKUP($P41,Tabelle!$H:$K,4,0),IF($H$2=$V$6,VLOOKUP($P41,Tabelle!$U:$X,4,0),IF($H$2=$V$7,VLOOKUP($P41,Tabelle!$AH:$AK,4,0),IF($H$2=$V$8,VLOOKUP($P41,Tabelle!$AU:$AX,4,0)))))) ->  | T41: =IF(ISERROR(IF($H$2=$V$5,VLOOKUP($P41,Tabelle!$H:$L,5,0),IF($H$2=$V$6,VLOOKUP($P41,Tabelle!$U:$Y,5,0),IF($H$2=$V$7,VLOOKUP($P41,Tabelle!$AH:$AL,5,0),IF($H$2=$V$8,VLOOKUP($P41,Tabelle!$AU:$AY,5,0)))))),"",IF($H$2=$V$5,VLOOKUP($P41,Tabelle!$H:$L,5,0),IF($H$2=$V$6,VLOOKUP($P41,Tabelle!$U:$Y,5,0),IF($H$2=$V$7,VLOOKUP($P41,Tabelle!$AH:$AL,5,0),IF($H$2=$V$8,VLOOKUP($P41,Tabelle!$AU:$AY,5,0)))))) -> 
I42: =IF(ISNUMBER(IF($H$2=$V$5,OFFSET(Tabelle!A42,0,0),IF($H$2=$V$6,OFFSET(Tabelle!N42,0,0),IF($H$2=$V$7,OFFSET(Tabelle!AA42,0,0),IF($H$2=$V$8,OFFSET(Tabelle!AN42,0,0)))))),IF($H$2=$V$5,OFFSET(Tabelle!A42,0,0),IF($H$2=$V$6,OFFSET(Tabelle!N42,0,0),IF($H$2=$V$7,OFFSET(Tabelle!AA42,0,0),IF($H$2=$V$8,OFFSET(Tabelle!AN42,0,0))))),"") ->  | J42: =IF(ISERROR(IF($H$2=$V$5,VLOOKUP($I42,Tabelle!$A:$B,2,0),IF($H$2=$V$6,VLOOKUP($I42,Tabelle!$N:$O,2,0),IF($H$2=$V$7,VLOOKUP($I42,Tabelle!$AA:$AB,2,0),IF($H$2=$V$8,VLOOKUP($I42,Tabelle!$AN:$AO,2,0)))))),"",IF($H$2=$V$5,VLOOKUP($I42,Tabelle!$A:$B,2,0),IF($H$2=$V$6,VLOOKUP($I42,Tabelle!$N:$O,2,0),IF($H$2=$V$7,VLOOKUP($I42,Tabelle!$AA:$AB,2,0),IF($H$2=$V$8,VLOOKUP($I42,Tabelle!$AN:$AO,2,0)))))) ->  | K42: =IF(ISERROR(IF($H$2=$V$5,VLOOKUP($I42,Tabelle!$A:$C,3,0),IF($H$2=$V$6,VLOOKUP($I42,Tabelle!$N:$P,3,0),IF($H$2=$V$7,VLOOKUP($I42,Tabelle!$AA:$AC,3,0),IF($H$2=$V$8,VLOOKUP($I42,Tabelle!$AN:$AP,3,0)))))),"",IF($H$2=$V$5,VLOOKUP($I42,Tabelle!$A:$C,3,0),IF($H$2=$V$6,VLOOKUP($I42,Tabelle!$N:$P,3,0),IF($H$2=$V$7,VLOOKUP($I42,Tabelle!$AA:$AC,3,0),IF($H$2=$V$8,VLOOKUP($I42,Tabelle!$AN:$AP,3,0)))))) ->  | L42: =IF(ISERROR(IF($H$2=$V$5,VLOOKUP($I42,Tabelle!$A:$D,4,0),IF($H$2=$V$6,VLOOKUP($I42,Tabelle!$N:$Q,4,0),IF($H$2=$V$7,VLOOKUP($I42,Tabelle!$AA:$AD,4,0),IF($H$2=$V$8,VLOOKUP($I42,Tabelle!$AN:$AQ,4,0)))))),"",IF($H$2=$V$5,VLOOKUP($I42,Tabelle!$A:$D,4,0),IF($H$2=$V$6,VLOOKUP($I42,Tabelle!$N:$Q,4,0),IF($H$2=$V$7,VLOOKUP($I42,Tabelle!$AA:$AD,4,0),IF($H$2=$V$8,VLOOKUP($I42,Tabelle!$AN:$AQ,4,0)))))) ->  | M42: =IF(ISERROR(IF($H$2=$V$5,VLOOKUP($I42,Tabelle!$A:$E,5,0),IF($H$2=$V$6,VLOOKUP($I42,Tabelle!$N:$R,5,0),IF($H$2=$V$7,VLOOKUP($I42,Tabelle!$AA:$AE,5,0),IF($H$2=$V$8,VLOOKUP($I42,Tabelle!$AN:$AR,5,0)))))),"",IF($H$2=$V$5,VLOOKUP($I42,Tabelle!$A:$E,5,0),IF($H$2=$V$6,VLOOKUP($I42,Tabelle!$N:$R,5,0),IF($H$2=$V$7,VLOOKUP($I42,Tabelle!$AA:$AE,5,0),IF($H$2=$V$8,VLOOKUP($I42,Tabelle!$AN:$AR,5,0)))))) ->  | N42: =IF(ISERROR(IF($H$2=$V$5,VLOOKUP($I42,Tabelle!$A:$F,6,0),IF($H$2=$V$6,VLOOKUP($I42,Tabelle!$N:$S,6,0),IF($H$2=$V$7,VLOOKUP($I42,Tabelle!$AA:$AF,6,0),IF($H$2=$V$8,VLOOKUP($I42,Tabelle!$AN:$AS,6,0)))))),"",IF($H$2=$V$5,VLOOKUP($I42,Tabelle!$A:$F,6,0),IF($H$2=$V$6,VLOOKUP($I42,Tabelle!$N:$S,6,0),IF($H$2=$V$7,VLOOKUP($I42,Tabelle!$AA:$AF,6,0),IF($H$2=$V$8,VLOOKUP($I42,Tabelle!$AN:$AS,6,0)))))) ->  | P42: =IF(ISNUMBER(IF($H$2=$V$5,OFFSET(Tabelle!H42,0,0),IF($H$2=$V$6,OFFSET(Tabelle!U42,0,0),IF($H$2=$V$7,OFFSET(Tabelle!AH42,0,0),IF($H$2=$V$8,OFFSET(Tabelle!AV42,0,0)))))),IF($H$2=$V$5,OFFSET(Tabelle!H42,0,0),IF($H$2=$V$6,OFFSET(Tabelle!U42,0,0),IF($H$2=$V$7,OFFSET(Tabelle!AH42,0,0),IF($H$2=$V$8,OFFSET(Tabelle!AU42,0,0))))),"") ->  | Q42: =IF(ISERROR(IF($H$2=$V$5,VLOOKUP($P42,Tabelle!$H:$I,2,0),IF($H$2=$V$6,VLOOKUP($P42,Tabelle!$U:$V,2,0),IF($H$2=$V$7,VLOOKUP($P42,Tabelle!$AH:$AI,2,0),IF($H$2=$V$8,VLOOKUP($P42,Tabelle!$AU:$AV,2,0)))))),"",IF($H$2=$V$5,VLOOKUP($P42,Tabelle!$H:$I,2,0),IF($H$2=$V$6,VLOOKUP($P42,Tabelle!$U:$V,2,0),IF($H$2=$V$7,VLOOKUP($P42,Tabelle!$AH:$AI,2,0),IF($H$2=$V$8,VLOOKUP($P42,Tabelle!$AU:$AV,2,0)))))) ->  | R42: =IF(ISERROR(IF($H$2=$V$5,VLOOKUP($P42,Tabelle!$H:$J,3,0),IF($H$2=$V$6,VLOOKUP($P42,Tabelle!$U:$W,3,0),IF($H$2=$V$7,VLOOKUP($P42,Tabelle!$AH:$AJ,3,0),IF($H$2=$V$8,VLOOKUP($P42,Tabelle!$AU:$AW,3,0)))))),"",IF($H$2=$V$5,VLOOKUP($P42,Tabelle!$H:$J,3,0),IF($H$2=$V$6,VLOOKUP($P42,Tabelle!$U:$W,3,0),IF($H$2=$V$7,VLOOKUP($P42,Tabelle!$AH:$AJ,3,0),IF($H$2=$V$8,VLOOKUP($P42,Tabelle!$AU:$AW,3,0)))))) ->  | S42: =IF(ISERROR(IF($H$2=$V$5,VLOOKUP($P42,Tabelle!$H:$K,4,0),IF($H$2=$V$6,VLOOKUP($P42,Tabelle!$U:$X,4,0),IF($H$2=$V$7,VLOOKUP($P42,Tabelle!$AH:$AK,4,0),IF($H$2=$V$8,VLOOKUP($P42,Tabelle!$AU:$AX,4,0)))))),"",IF($H$2=$V$5,VLOOKUP($P42,Tabelle!$H:$K,4,0),IF($H$2=$V$6,VLOOKUP($P42,Tabelle!$U:$X,4,0),IF($H$2=$V$7,VLOOKUP($P42,Tabelle!$AH:$AK,4,0),IF($H$2=$V$8,VLOOKUP($P42,Tabelle!$AU:$AX,4,0)))))) ->  | T42: =IF(ISERROR(IF($H$2=$V$5,VLOOKUP($P42,Tabelle!$H:$L,5,0),IF($H$2=$V$6,VLOOKUP($P42,Tabelle!$U:$Y,5,0),IF($H$2=$V$7,VLOOKUP($P42,Tabelle!$AH:$AL,5,0),IF($H$2=$V$8,VLOOKUP($P42,Tabelle!$AU:$AY,5,0)))))),"",IF($H$2=$V$5,VLOOKUP($P42,Tabelle!$H:$L,5,0),IF($H$2=$V$6,VLOOKUP($P42,Tabelle!$U:$Y,5,0),IF($H$2=$V$7,VLOOKUP($P42,Tabelle!$AH:$AL,5,0),IF($H$2=$V$8,VLOOKUP($P42,Tabelle!$AU:$AY,5,0)))))) -> 
I43: =IF(ISNUMBER(IF($H$2=$V$5,OFFSET(Tabelle!A43,0,0),IF($H$2=$V$6,OFFSET(Tabelle!N43,0,0),IF($H$2=$V$7,OFFSET(Tabelle!AA43,0,0),IF($H$2=$V$8,OFFSET(Tabelle!AN43,0,0)))))),IF($H$2=$V$5,OFFSET(Tabelle!A43,0,0),IF($H$2=$V$6,OFFSET(Tabelle!N43,0,0),IF($H$2=$V$7,OFFSET(Tabelle!AA43,0,0),IF($H$2=$V$8,OFFSET(Tabelle!AN43,0,0))))),"") ->  | J43: =IF(ISERROR(IF($H$2=$V$5,VLOOKUP($I43,Tabelle!$A:$B,2,0),IF($H$2=$V$6,VLOOKUP($I43,Tabelle!$N:$O,2,0),IF($H$2=$V$7,VLOOKUP($I43,Tabelle!$AA:$AB,2,0),IF($H$2=$V$8,VLOOKUP($I43,Tabelle!$AN:$AO,2,0)))))),"",IF($H$2=$V$5,VLOOKUP($I43,Tabelle!$A:$B,2,0),IF($H$2=$V$6,VLOOKUP($I43,Tabelle!$N:$O,2,0),IF($H$2=$V$7,VLOOKUP($I43,Tabelle!$AA:$AB,2,0),IF($H$2=$V$8,VLOOKUP($I43,Tabelle!$AN:$AO,2,0)))))) ->  | K43: =IF(ISERROR(IF($H$2=$V$5,VLOOKUP($I43,Tabelle!$A:$C,3,0),IF($H$2=$V$6,VLOOKUP($I43,Tabelle!$N:$P,3,0),IF($H$2=$V$7,VLOOKUP($I43,Tabelle!$AA:$AC,3,0),IF($H$2=$V$8,VLOOKUP($I43,Tabelle!$AN:$AP,3,0)))))),"",IF($H$2=$V$5,VLOOKUP($I43,Tabelle!$A:$C,3,0),IF($H$2=$V$6,VLOOKUP($I43,Tabelle!$N:$P,3,0),IF($H$2=$V$7,VLOOKUP($I43,Tabelle!$AA:$AC,3,0),IF($H$2=$V$8,VLOOKUP($I43,Tabelle!$AN:$AP,3,0)))))) ->  | L43: =IF(ISERROR(IF($H$2=$V$5,VLOOKUP($I43,Tabelle!$A:$D,4,0),IF($H$2=$V$6,VLOOKUP($I43,Tabelle!$N:$Q,4,0),IF($H$2=$V$7,VLOOKUP($I43,Tabelle!$AA:$AD,4,0),IF($H$2=$V$8,VLOOKUP($I43,Tabelle!$AN:$AQ,4,0)))))),"",IF($H$2=$V$5,VLOOKUP($I43,Tabelle!$A:$D,4,0),IF($H$2=$V$6,VLOOKUP($I43,Tabelle!$N:$Q,4,0),IF($H$2=$V$7,VLOOKUP($I43,Tabelle!$AA:$AD,4,0),IF($H$2=$V$8,VLOOKUP($I43,Tabelle!$AN:$AQ,4,0)))))) ->  | M43: =IF(ISERROR(IF($H$2=$V$5,VLOOKUP($I43,Tabelle!$A:$E,5,0),IF($H$2=$V$6,VLOOKUP($I43,Tabelle!$N:$R,5,0),IF($H$2=$V$7,VLOOKUP($I43,Tabelle!$AA:$AE,5,0),IF($H$2=$V$8,VLOOKUP($I43,Tabelle!$AN:$AR,5,0)))))),"",IF($H$2=$V$5,VLOOKUP($I43,Tabelle!$A:$E,5,0),IF($H$2=$V$6,VLOOKUP($I43,Tabelle!$N:$R,5,0),IF($H$2=$V$7,VLOOKUP($I43,Tabelle!$AA:$AE,5,0),IF($H$2=$V$8,VLOOKUP($I43,Tabelle!$AN:$AR,5,0)))))) ->  | N43: =IF(ISERROR(IF($H$2=$V$5,VLOOKUP($I43,Tabelle!$A:$F,6,0),IF($H$2=$V$6,VLOOKUP($I43,Tabelle!$N:$S,6,0),IF($H$2=$V$7,VLOOKUP($I43,Tabelle!$AA:$AF,6,0),IF($H$2=$V$8,VLOOKUP($I43,Tabelle!$AN:$AS,6,0)))))),"",IF($H$2=$V$5,VLOOKUP($I43,Tabelle!$A:$F,6,0),IF($H$2=$V$6,VLOOKUP($I43,Tabelle!$N:$S,6,0),IF($H$2=$V$7,VLOOKUP($I43,Tabelle!$AA:$AF,6,0),IF($H$2=$V$8,VLOOKUP($I43,Tabelle!$AN:$AS,6,0)))))) ->  | P43: =IF(ISNUMBER(IF($H$2=$V$5,OFFSET(Tabelle!H43,0,0),IF($H$2=$V$6,OFFSET(Tabelle!U43,0,0),IF($H$2=$V$7,OFFSET(Tabelle!AH43,0,0),IF($H$2=$V$8,OFFSET(Tabelle!AV43,0,0)))))),IF($H$2=$V$5,OFFSET(Tabelle!H43,0,0),IF($H$2=$V$6,OFFSET(Tabelle!U43,0,0),IF($H$2=$V$7,OFFSET(Tabelle!AH43,0,0),IF($H$2=$V$8,OFFSET(Tabelle!AU43,0,0))))),"") ->  | Q43: =IF(ISERROR(IF($H$2=$V$5,VLOOKUP($P43,Tabelle!$H:$I,2,0),IF($H$2=$V$6,VLOOKUP($P43,Tabelle!$U:$V,2,0),IF($H$2=$V$7,VLOOKUP($P43,Tabelle!$AH:$AI,2,0),IF($H$2=$V$8,VLOOKUP($P43,Tabelle!$AU:$AV,2,0)))))),"",IF($H$2=$V$5,VLOOKUP($P43,Tabelle!$H:$I,2,0),IF($H$2=$V$6,VLOOKUP($P43,Tabelle!$U:$V,2,0),IF($H$2=$V$7,VLOOKUP($P43,Tabelle!$AH:$AI,2,0),IF($H$2=$V$8,VLOOKUP($P43,Tabelle!$AU:$AV,2,0)))))) ->  | R43: =IF(ISERROR(IF($H$2=$V$5,VLOOKUP($P43,Tabelle!$H:$J,3,0),IF($H$2=$V$6,VLOOKUP($P43,Tabelle!$U:$W,3,0),IF($H$2=$V$7,VLOOKUP($P43,Tabelle!$AH:$AJ,3,0),IF($H$2=$V$8,VLOOKUP($P43,Tabelle!$AU:$AW,3,0)))))),"",IF($H$2=$V$5,VLOOKUP($P43,Tabelle!$H:$J,3,0),IF($H$2=$V$6,VLOOKUP($P43,Tabelle!$U:$W,3,0),IF($H$2=$V$7,VLOOKUP($P43,Tabelle!$AH:$AJ,3,0),IF($H$2=$V$8,VLOOKUP($P43,Tabelle!$AU:$AW,3,0)))))) ->  | S43: =IF(ISERROR(IF($H$2=$V$5,VLOOKUP($P43,Tabelle!$H:$K,4,0),IF($H$2=$V$6,VLOOKUP($P43,Tabelle!$U:$X,4,0),IF($H$2=$V$7,VLOOKUP($P43,Tabelle!$AH:$AK,4,0),IF($H$2=$V$8,VLOOKUP($P43,Tabelle!$AU:$AX,4,0)))))),"",IF($H$2=$V$5,VLOOKUP($P43,Tabelle!$H:$K,4,0),IF($H$2=$V$6,VLOOKUP($P43,Tabelle!$U:$X,4,0),IF($H$2=$V$7,VLOOKUP($P43,Tabelle!$AH:$AK,4,0),IF($H$2=$V$8,VLOOKUP($P43,Tabelle!$AU:$AX,4,0)))))) ->  | T43: =IF(ISERROR(IF($H$2=$V$5,VLOOKUP($P43,Tabelle!$H:$L,5,0),IF($H$2=$V$6,VLOOKUP($P43,Tabelle!$U:$Y,5,0),IF($H$2=$V$7,VLOOKUP($P43,Tabelle!$AH:$AL,5,0),IF($H$2=$V$8,VLOOKUP($P43,Tabelle!$AU:$AY,5,0)))))),"",IF($H$2=$V$5,VLOOKUP($P43,Tabelle!$H:$L,5,0),IF($H$2=$V$6,VLOOKUP($P43,Tabelle!$U:$Y,5,0),IF($H$2=$V$7,VLOOKUP($P43,Tabelle!$AH:$AL,5,0),IF($H$2=$V$8,VLOOKUP($P43,Tabelle!$AU:$AY,5,0)))))) -> 
P44: =IF(ISNUMBER(IF($H$2=$V$5,OFFSET(Tabelle!H44,0,0),IF($H$2=$V$6,OFFSET(Tabelle!U44,0,0),IF($H$2=$V$7,OFFSET(Tabelle!AH44,0,0),IF($H$2=$V$8,OFFSET(Tabelle!AV44,0,0)))))),IF($H$2=$V$5,OFFSET(Tabelle!H44,0,0),IF($H$2=$V$6,OFFSET(Tabelle!U44,0,0),IF($H$2=$V$7,OFFSET(Tabelle!AH44,0,0),IF($H$2=$V$8,OFFSET(Tabelle!AU44,0,0))))),"") ->  | Q44: =IF(ISERROR(IF($H$2=$V$5,VLOOKUP($P44,Tabelle!$H:$I,2,0),IF($H$2=$V$6,VLOOKUP($P44,Tabelle!$U:$V,2,0),IF($H$2=$V$7,VLOOKUP($P44,Tabelle!$AH:$AI,2,0),IF($H$2=$V$8,VLOOKUP($P44,Tabelle!$AU:$AV,2,0)))))),"",IF($H$2=$V$5,VLOOKUP($P44,Tabelle!$H:$I,2,0),IF($H$2=$V$6,VLOOKUP($P44,Tabelle!$U:$V,2,0),IF($H$2=$V$7,VLOOKUP($P44,Tabelle!$AH:$AI,2,0),IF($H$2=$V$8,VLOOKUP($P44,Tabelle!$AU:$AV,2,0)))))) ->  | R44: =IF(ISERROR(IF($H$2=$V$5,VLOOKUP($P44,Tabelle!$H:$J,3,0),IF($H$2=$V$6,VLOOKUP($P44,Tabelle!$U:$W,3,0),IF($H$2=$V$7,VLOOKUP($P44,Tabelle!$AH:$AJ,3,0),IF($H$2=$V$8,VLOOKUP($P44,Tabelle!$AU:$AW,3,0)))))),"",IF($H$2=$V$5,VLOOKUP($P44,Tabelle!$H:$J,3,0),IF($H$2=$V$6,VLOOKUP($P44,Tabelle!$U:$W,3,0),IF($H$2=$V$7,VLOOKUP($P44,Tabelle!$AH:$AJ,3,0),IF($H$2=$V$8,VLOOKUP($P44,Tabelle!$AU:$AW,3,0)))))) ->  | S44: =IF(ISERROR(IF($H$2=$V$5,VLOOKUP($P44,Tabelle!$H:$K,4,0),IF($H$2=$V$6,VLOOKUP($P44,Tabelle!$U:$X,4,0),IF($H$2=$V$7,VLOOKUP($P44,Tabelle!$AH:$AK,4,0),IF($H$2=$V$8,VLOOKUP($P44,Tabelle!$AU:$AX,4,0)))))),"",IF($H$2=$V$5,VLOOKUP($P44,Tabelle!$H:$K,4,0),IF($H$2=$V$6,VLOOKUP($P44,Tabelle!$U:$X,4,0),IF($H$2=$V$7,VLOOKUP($P44,Tabelle!$AH:$AK,4,0),IF($H$2=$V$8,VLOOKUP($P44,Tabelle!$AU:$AX,4,0)))))) ->  | T44: =IF(ISERROR(IF($H$2=$V$5,VLOOKUP($P44,Tabelle!$H:$L,5,0),IF($H$2=$V$6,VLOOKUP($P44,Tabelle!$U:$Y,5,0),IF($H$2=$V$7,VLOOKUP($P44,Tabelle!$AH:$AL,5,0),IF($H$2=$V$8,VLOOKUP($P44,Tabelle!$AU:$AY,5,0)))))),"",IF($H$2=$V$5,VLOOKUP($P44,Tabelle!$H:$L,5,0),IF($H$2=$V$6,VLOOKUP($P44,Tabelle!$U:$Y,5,0),IF($H$2=$V$7,VLOOKUP($P44,Tabelle!$AH:$AL,5,0),IF($H$2=$V$8,VLOOKUP($P44,Tabelle!$AU:$AY,5,0)))))) -> 
P45: =IF(ISNUMBER(IF($H$2=$V$5,OFFSET(Tabelle!H45,0,0),IF($H$2=$V$6,OFFSET(Tabelle!U45,0,0),IF($H$2=$V$7,OFFSET(Tabelle!AH45,0,0),IF($H$2=$V$8,OFFSET(Tabelle!AV45,0,0)))))),IF($H$2=$V$5,OFFSET(Tabelle!H45,0,0),IF($H$2=$V$6,OFFSET(Tabelle!U45,0,0),IF($H$2=$V$7,OFFSET(Tabelle!AH45,0,0),IF($H$2=$V$8,OFFSET(Tabelle!AU45,0,0))))),"") ->  | Q45: =IF(ISERROR(IF($H$2=$V$5,VLOOKUP($P45,Tabelle!$H:$I,2,0),IF($H$2=$V$6,VLOOKUP($P45,Tabelle!$U:$V,2,0),IF($H$2=$V$7,VLOOKUP($P45,Tabelle!$AH:$AI,2,0),IF($H$2=$V$8,VLOOKUP($P45,Tabelle!$AU:$AV,2,0)))))),"",IF($H$2=$V$5,VLOOKUP($P45,Tabelle!$H:$I,2,0),IF($H$2=$V$6,VLOOKUP($P45,Tabelle!$U:$V,2,0),IF($H$2=$V$7,VLOOKUP($P45,Tabelle!$AH:$AI,2,0),IF($H$2=$V$8,VLOOKUP($P45,Tabelle!$AU:$AV,2,0)))))) ->  | R45: =IF(ISERROR(IF($H$2=$V$5,VLOOKUP($P45,Tabelle!$H:$J,3,0),IF($H$2=$V$6,VLOOKUP($P45,Tabelle!$U:$W,3,0),IF($H$2=$V$7,VLOOKUP($P45,Tabelle!$AH:$AJ,3,0),IF($H$2=$V$8,VLOOKUP($P45,Tabelle!$AU:$AW,3,0)))))),"",IF($H$2=$V$5,VLOOKUP($P45,Tabelle!$H:$J,3,0),IF($H$2=$V$6,VLOOKUP($P45,Tabelle!$U:$W,3,0),IF($H$2=$V$7,VLOOKUP($P45,Tabelle!$AH:$AJ,3,0),IF($H$2=$V$8,VLOOKUP($P45,Tabelle!$AU:$AW,3,0)))))) ->  | S45: =IF(ISERROR(IF($H$2=$V$5,VLOOKUP($P45,Tabelle!$H:$K,4,0),IF($H$2=$V$6,VLOOKUP($P45,Tabelle!$U:$X,4,0),IF($H$2=$V$7,VLOOKUP($P45,Tabelle!$AH:$AK,4,0),IF($H$2=$V$8,VLOOKUP($P45,Tabelle!$AU:$AX,4,0)))))),"",IF($H$2=$V$5,VLOOKUP($P45,Tabelle!$H:$K,4,0),IF($H$2=$V$6,VLOOKUP($P45,Tabelle!$U:$X,4,0),IF($H$2=$V$7,VLOOKUP($P45,Tabelle!$AH:$AK,4,0),IF($H$2=$V$8,VLOOKUP($P45,Tabelle!$AU:$AX,4,0)))))) ->  | T45: =IF(ISERROR(IF($H$2=$V$5,VLOOKUP($P45,Tabelle!$H:$L,5,0),IF($H$2=$V$6,VLOOKUP($P45,Tabelle!$U:$Y,5,0),IF($H$2=$V$7,VLOOKUP($P45,Tabelle!$AH:$AL,5,0),IF($H$2=$V$8,VLOOKUP($P45,Tabelle!$AU:$AY,5,0)))))),"",IF($H$2=$V$5,VLOOKUP($P45,Tabelle!$H:$L,5,0),IF($H$2=$V$6,VLOOKUP($P45,Tabelle!$U:$Y,5,0),IF($H$2=$V$7,VLOOKUP($P45,Tabelle!$AH:$AL,5,0),IF($H$2=$V$8,VLOOKUP($P45,Tabelle!$AU:$AY,5,0)))))) -> 
P46: =IF(ISNUMBER(IF($H$2=$V$5,OFFSET(Tabelle!H46,0,0),IF($H$2=$V$6,OFFSET(Tabelle!U46,0,0),IF($H$2=$V$7,OFFSET(Tabelle!AH46,0,0),IF($H$2=$V$8,OFFSET(Tabelle!AV46,0,0)))))),IF($H$2=$V$5,OFFSET(Tabelle!H46,0,0),IF($H$2=$V$6,OFFSET(Tabelle!U46,0,0),IF($H$2=$V$7,OFFSET(Tabelle!AH46,0,0),IF($H$2=$V$8,OFFSET(Tabelle!AU46,0,0))))),"") ->  | Q46: =IF(ISERROR(IF($H$2=$V$5,VLOOKUP($P46,Tabelle!$H:$I,2,0),IF($H$2=$V$6,VLOOKUP($P46,Tabelle!$U:$V,2,0),IF($H$2=$V$7,VLOOKUP($P46,Tabelle!$AH:$AI,2,0),IF($H$2=$V$8,VLOOKUP($P46,Tabelle!$AU:$AV,2,0)))))),"",IF($H$2=$V$5,VLOOKUP($P46,Tabelle!$H:$I,2,0),IF($H$2=$V$6,VLOOKUP($P46,Tabelle!$U:$V,2,0),IF($H$2=$V$7,VLOOKUP($P46,Tabelle!$AH:$AI,2,0),IF($H$2=$V$8,VLOOKUP($P46,Tabelle!$AU:$AV,2,0)))))) ->  | R46: =IF(ISERROR(IF($H$2=$V$5,VLOOKUP($P46,Tabelle!$H:$J,3,0),IF($H$2=$V$6,VLOOKUP($P46,Tabelle!$U:$W,3,0),IF($H$2=$V$7,VLOOKUP($P46,Tabelle!$AH:$AJ,3,0),IF($H$2=$V$8,VLOOKUP($P46,Tabelle!$AU:$AW,3,0)))))),"",IF($H$2=$V$5,VLOOKUP($P46,Tabelle!$H:$J,3,0),IF($H$2=$V$6,VLOOKUP($P46,Tabelle!$U:$W,3,0),IF($H$2=$V$7,VLOOKUP($P46,Tabelle!$AH:$AJ,3,0),IF($H$2=$V$8,VLOOKUP($P46,Tabelle!$AU:$AW,3,0)))))) ->  | S46: =IF(ISERROR(IF($H$2=$V$5,VLOOKUP($P46,Tabelle!$H:$K,4,0),IF($H$2=$V$6,VLOOKUP($P46,Tabelle!$U:$X,4,0),IF($H$2=$V$7,VLOOKUP($P46,Tabelle!$AH:$AK,4,0),IF($H$2=$V$8,VLOOKUP($P46,Tabelle!$AU:$AX,4,0)))))),"",IF($H$2=$V$5,VLOOKUP($P46,Tabelle!$H:$K,4,0),IF($H$2=$V$6,VLOOKUP($P46,Tabelle!$U:$X,4,0),IF($H$2=$V$7,VLOOKUP($P46,Tabelle!$AH:$AK,4,0),IF($H$2=$V$8,VLOOKUP($P46,Tabelle!$AU:$AX,4,0)))))) ->  | T46: =IF(ISERROR(IF($H$2=$V$5,VLOOKUP($P46,Tabelle!$H:$L,5,0),IF($H$2=$V$6,VLOOKUP($P46,Tabelle!$U:$Y,5,0),IF($H$2=$V$7,VLOOKUP($P46,Tabelle!$AH:$AL,5,0),IF($H$2=$V$8,VLOOKUP($P46,Tabelle!$AU:$AY,5,0)))))),"",IF($H$2=$V$5,VLOOKUP($P46,Tabelle!$H:$L,5,0),IF($H$2=$V$6,VLOOKUP($P46,Tabelle!$U:$Y,5,0),IF($H$2=$V$7,VLOOKUP($P46,Tabelle!$AH:$AL,5,0),IF($H$2=$V$8,VLOOKUP($P46,Tabelle!$AU:$AY,5,0)))))) -> 
P47: =IF(ISNUMBER(IF($H$2=$V$5,OFFSET(Tabelle!H47,0,0),IF($H$2=$V$6,OFFSET(Tabelle!U47,0,0),IF($H$2=$V$7,OFFSET(Tabelle!AH47,0,0),IF($H$2=$V$8,OFFSET(Tabelle!AV47,0,0)))))),IF($H$2=$V$5,OFFSET(Tabelle!H47,0,0),IF($H$2=$V$6,OFFSET(Tabelle!U47,0,0),IF($H$2=$V$7,OFFSET(Tabelle!AH47,0,0),IF($H$2=$V$8,OFFSET(Tabelle!AU47,0,0))))),"") ->  | Q47: =IF(ISERROR(IF($H$2=$V$5,VLOOKUP($P47,Tabelle!$H:$I,2,0),IF($H$2=$V$6,VLOOKUP($P47,Tabelle!$U:$V,2,0),IF($H$2=$V$7,VLOOKUP($P47,Tabelle!$AH:$AI,2,0),IF($H$2=$V$8,VLOOKUP($P47,Tabelle!$AU:$AV,2,0)))))),"",IF($H$2=$V$5,VLOOKUP($P47,Tabelle!$H:$I,2,0),IF($H$2=$V$6,VLOOKUP($P47,Tabelle!$U:$V,2,0),IF($H$2=$V$7,VLOOKUP($P47,Tabelle!$AH:$AI,2,0),IF($H$2=$V$8,VLOOKUP($P47,Tabelle!$AU:$AV,2,0)))))) ->  | R47: =IF(ISERROR(IF($H$2=$V$5,VLOOKUP($P47,Tabelle!$H:$J,3,0),IF($H$2=$V$6,VLOOKUP($P47,Tabelle!$U:$W,3,0),IF($H$2=$V$7,VLOOKUP($P47,Tabelle!$AH:$AJ,3,0),IF($H$2=$V$8,VLOOKUP($P47,Tabelle!$AU:$AW,3,0)))))),"",IF($H$2=$V$5,VLOOKUP($P47,Tabelle!$H:$J,3,0),IF($H$2=$V$6,VLOOKUP($P47,Tabelle!$U:$W,3,0),IF($H$2=$V$7,VLOOKUP($P47,Tabelle!$AH:$AJ,3,0),IF($H$2=$V$8,VLOOKUP($P47,Tabelle!$AU:$AW,3,0)))))) ->  | S47: =IF(ISERROR(IF($H$2=$V$5,VLOOKUP($P47,Tabelle!$H:$K,4,0),IF($H$2=$V$6,VLOOKUP($P47,Tabelle!$U:$X,4,0),IF($H$2=$V$7,VLOOKUP($P47,Tabelle!$AH:$AK,4,0),IF($H$2=$V$8,VLOOKUP($P47,Tabelle!$AU:$AX,4,0)))))),"",IF($H$2=$V$5,VLOOKUP($P47,Tabelle!$H:$K,4,0),IF($H$2=$V$6,VLOOKUP($P47,Tabelle!$U:$X,4,0),IF($H$2=$V$7,VLOOKUP($P47,Tabelle!$AH:$AK,4,0),IF($H$2=$V$8,VLOOKUP($P47,Tabelle!$AU:$AX,4,0)))))) ->  | T47: =IF(ISERROR(IF($H$2=$V$5,VLOOKUP($P47,Tabelle!$H:$L,5,0),IF($H$2=$V$6,VLOOKUP($P47,Tabelle!$U:$Y,5,0),IF($H$2=$V$7,VLOOKUP($P47,Tabelle!$AH:$AL,5,0),IF($H$2=$V$8,VLOOKUP($P47,Tabelle!$AU:$AY,5,0)))))),"",IF($H$2=$V$5,VLOOKUP($P47,Tabelle!$H:$L,5,0),IF($H$2=$V$6,VLOOKUP($P47,Tabelle!$U:$Y,5,0),IF($H$2=$V$7,VLOOKUP($P47,Tabelle!$AH:$AL,5,0),IF($H$2=$V$8,VLOOKUP($P47,Tabelle!$AU:$AY,5,0)))))) -> 
P48: =IF(ISNUMBER(IF($H$2=$V$5,OFFSET(Tabelle!H48,0,0),IF($H$2=$V$6,OFFSET(Tabelle!U48,0,0),IF($H$2=$V$7,OFFSET(Tabelle!AH48,0,0),IF($H$2=$V$8,OFFSET(Tabelle!AV48,0,0)))))),IF($H$2=$V$5,OFFSET(Tabelle!H48,0,0),IF($H$2=$V$6,OFFSET(Tabelle!U48,0,0),IF($H$2=$V$7,OFFSET(Tabelle!AH48,0,0),IF($H$2=$V$8,OFFSET(Tabelle!AU48,0,0))))),"") ->  | Q48: =IF(ISERROR(IF($H$2=$V$5,VLOOKUP($P48,Tabelle!$H:$I,2,0),IF($H$2=$V$6,VLOOKUP($P48,Tabelle!$U:$V,2,0),IF($H$2=$V$7,VLOOKUP($P48,Tabelle!$AH:$AI,2,0),IF($H$2=$V$8,VLOOKUP($P48,Tabelle!$AU:$AV,2,0)))))),"",IF($H$2=$V$5,VLOOKUP($P48,Tabelle!$H:$I,2,0),IF($H$2=$V$6,VLOOKUP($P48,Tabelle!$U:$V,2,0),IF($H$2=$V$7,VLOOKUP($P48,Tabelle!$AH:$AI,2,0),IF($H$2=$V$8,VLOOKUP($P48,Tabelle!$AU:$AV,2,0)))))) ->  | R48: =IF(ISERROR(IF($H$2=$V$5,VLOOKUP($P48,Tabelle!$H:$J,3,0),IF($H$2=$V$6,VLOOKUP($P48,Tabelle!$U:$W,3,0),IF($H$2=$V$7,VLOOKUP($P48,Tabelle!$AH:$AJ,3,0),IF($H$2=$V$8,VLOOKUP($P48,Tabelle!$AU:$AW,3,0)))))),"",IF($H$2=$V$5,VLOOKUP($P48,Tabelle!$H:$J,3,0),IF($H$2=$V$6,VLOOKUP($P48,Tabelle!$U:$W,3,0),IF($H$2=$V$7,VLOOKUP($P48,Tabelle!$AH:$AJ,3,0),IF($H$2=$V$8,VLOOKUP($P48,Tabelle!$AU:$AW,3,0)))))) ->  | S48: =IF(ISERROR(IF($H$2=$V$5,VLOOKUP($P48,Tabelle!$H:$K,4,0),IF($H$2=$V$6,VLOOKUP($P48,Tabelle!$U:$X,4,0),IF($H$2=$V$7,VLOOKUP($P48,Tabelle!$AH:$AK,4,0),IF($H$2=$V$8,VLOOKUP($P48,Tabelle!$AU:$AX,4,0)))))),"",IF($H$2=$V$5,VLOOKUP($P48,Tabelle!$H:$K,4,0),IF($H$2=$V$6,VLOOKUP($P48,Tabelle!$U:$X,4,0),IF($H$2=$V$7,VLOOKUP($P48,Tabelle!$AH:$AK,4,0),IF($H$2=$V$8,VLOOKUP($P48,Tabelle!$AU:$AX,4,0)))))) ->  | T48: =IF(ISERROR(IF($H$2=$V$5,VLOOKUP($P48,Tabelle!$H:$L,5,0),IF($H$2=$V$6,VLOOKUP($P48,Tabelle!$U:$Y,5,0),IF($H$2=$V$7,VLOOKUP($P48,Tabelle!$AH:$AL,5,0),IF($H$2=$V$8,VLOOKUP($P48,Tabelle!$AU:$AY,5,0)))))),"",IF($H$2=$V$5,VLOOKUP($P48,Tabelle!$H:$L,5,0),IF($H$2=$V$6,VLOOKUP($P48,Tabelle!$U:$Y,5,0),IF($H$2=$V$7,VLOOKUP($P48,Tabelle!$AH:$AL,5,0),IF($H$2=$V$8,VLOOKUP($P48,Tabelle!$AU:$AY,5,0)))))) -> 
A49: Source: Bloomberg, Ecowin Reuters, RZS Serbia
